Workbook

Sheet AER only (hidden)
B1: Data in these columns used for data validation and database purposes.
B2: Date last modified: | C2: 2017-01-16 | D2: added (Albury and Victora) for AGN
C3: 2016-10-17 | D3: updated TransGrid's correct legal name, corrected TasNetworks (T) to June financial year
C4: 2017-02-01 | D4: inserted Power and Water, added NRs (dms_FeederCat_1 and dms_FeederCat_2)
C5: 2017-03-03 | D5: inserted AEMO as a business | AB5: FOR ELECTRICITY BUSINESSES ONLY
C6: 2018-03-28 | D6: major changes to accommodate STPIS
C7: Template Version | D7: 5 | AB7: Feeder Types | AF7: TasNetworks (D) | AG7: MAIFI flag | AH7: Feeder Names
AB8: CBD | AC8: Urban | AD8: Short rural | AE8: long rural | AF8: EXTRA
B9: dms_TradingName_List | C9: dms_TradingNameFull_List | D9: dms_ABN_List | E9: dms_JurisdictionList | F9: dms_Sector_List | G9: dms_Segment_List | H9: dms_FormControl_List | I9: dms_RPT_List | J9: dms_RPTMonth_List | K9: dms_CRCPlength_List | L9: dms_FRCPlength_List | M9: dms_663_List | N9: dms_DeterminationRef_List | O9: dms_Addr1_List | P9: dms_Addr2_List | Q9: dms_Suburb_List | R9: dms_State_List | S9: dms_PostCode_List | T9: dms_PAddr1_List | U9: dms_PAddr2_List | V9: dms_PSuburb_List | W9: dms_PState_List | X9: dms_PPostCode_List | Y9: dms_ContactName1_List | Z9: dms_ContactPh1_List | AA9: dms_ContactEmail_List | AB9: dms_CBD_flag | AC9: dms_Urban_flag | AD9: dms_ShortRural_flag | AE9: dms_LongRural_flag | AF9: dms_FeederType_5_flag | AG9: dms_MAIFI_flag_List | AH9: dms_FeederName_1 | AI9: dms_FeederName_2 | AJ9: dms_FeederName_3 | AK9: dms_FeederName_4 | AL9: dms_FeederName_5 | AM9: Column1
B10: ActewAGL Distribution | C10: ActewAGL Distribution | D10: 76670568688 | E10: ACT | F10: Electricity | G10: Distribution | H10: Revenue cap | I10: Financial | J10: June | K10: 5 | L10: 5 | M10: 5 | N10: 2014-19 Distribution Determination | O10: 40 Bunda Street | Q10: CANBERRA | R10: ACT | S10: 2600 | T10: GPO BOX 366 | V10: CANBERRA | W10: ACT | X10: 2601 | Y10: Robert Walker | Z10: 02 6248 3847 | AA10: robert.walker@actewagle.com.au | AB10: NO | AC10: YES | AD10: YES | AE10: NO | AF10: NO | AH10: CBD | AI10: Urban | AJ10: Short rural | AK10: Long rural | AM10: ActewAGL Distribution
B11: ActewAGL Distribution (Tx Assets) | C11: ActewAGL Distribution (Tx Assets) | D11: 76670568688 | E11: ACT | F11: Electricity | G11: Distribution | H11: Revenue cap | I11: Financial | J11: June | K11: 5 | L11: 5 | M11: 5 | N11: distribution determination | O11: 40 Bunda Street | Q11: CANBERRA | R11: ACT | S11: 2600 | T11: GPO BOX 366 | V11: CANBERRA | W11: ACT | X11: 2601 | Y11: Robert Walker | Z11: 02 6248 3847 | AA11: robert.walker@actewagle.com.au | AB11: NO | AC11: YES | AD11: YES | AE11: NO | AF11: NO | AH11: CBD | AI11: Urban | AJ11: Short rural | AK11: Long rural | AM11: ActewAGL Distribution (Tx Assets)
B12: ActewAGL Gas | C12: ActewAGL Gas | D12: 76670568688 | E12: ACT | F12: Gas | G12: Distribution | H12: Weighted average price cap | I12: Financial | J12: June | K12: 5 | L12: 5 | M12: x | O12: 40 Bunda Street | Q12: CANBERRA | R12: ACT | S12: 2600 | T12: GPO BOX 366 | V12: CANBERRA | W12: ACT | X12: 2601 | Y12: Philip Deamer | Z12: 02 6248 3438 | AA12: GasAAReview@actewagl.com.au | AH12: CBD | AI12: Urban | AJ12: Short rural | AK12: Long rural | AM12: ActewAGL Gas
B13: AEMO | C13: Australian Energy Market Operator Ltd | D13: 94072010327 | E13: Vic | F13: Electricity | G13: Transmission | H13: - | I13: Financial | J13: March | K13: 5 | L13: 5 | M13: x | N13: - | O13: Level 22 | P13: 530 Collins Street | Q13: MELBOURNE | R13: VIC | S13: 3000 | T13: GPO Box 2008 | V13: MELBOURNE | W13: VIC | X13: 3001 | AB13: n/a | AC13: n/a | AD13: n/a | AE13: n/a | AF13: n/a | AH13: CBD | AI13: Urban | AJ13: Short rural | AK13: Long rural | AM13: AEMO
B14: AGN (Albury and Victoria) | C14: Australian Gas Networks Limited (reporting data for Albury and Victoria) | D14: 19078551685 | E14: Vic | F14: Gas | G14: Distribution | H14: Weighted average price cap | I14: Calendar | J14: December | K14: 5 | L14: 5 | M14: x | O14: Level 6 | P14: 400 King William Street | Q14: ADELAIDE | R14: SA | S14: 5000 | T14: PO Box 6468 | U14: Halifax Street | V14: ADELAIDE | W14: SA | X14: 5000 | Y14: Craig de Laine | Z14: 08 8418 1129 | AA14: craig.delaine@agn.com.au | AB14: n/a | AC14: n/a | AD14: n/a | AE14: n/a | AF14: n/a | AH14: CBD | AI14: Urban | AJ14: Short rural | AK14: Long rural | AM14: AGN (Albury)
B15: AGN (Albury) | C15: Australian Gas Networks Limited (reporting data for Albury) | D15: 19078551685 | E15: Vic | F15: Gas | G15: Distribution | H15: Weighted average price cap | I15: Calendar | J15: December | K15: 5 | L15: 5 | M15: x | O15: Level 6 | P15: 400 King William Street | Q15: ADELAIDE | R15: SA | S15: 5000 | T15: PO Box 6468 | U15: Halifax Street | V15: ADELAIDE | W15: SA | X15: 5000 | Y15: Craig de Laine | Z15: 08 8418 1129 | AA15: craig.delaine@agn.com.au | AB15: n/a | AC15: n/a | AD15: n/a | AE15: n/a | AF15: n/a | AH15: CBD | AI15: Urban | AJ15: Short rural | AK15: Long rural
B16: AGN (SA) | C16: Australian Gas Networks Limited (reporting data for SA) | D16: 19078551685 | E16: SA | F16: Gas | G16: Distribution | H16: Weighted average price cap | I16: Financial | J16: June | K16: 5 | L16: 5 | M16: 5 | N16: distribution determination | O16: Level 6 | P16: 400 King William Street | Q16: ADELAIDE | R16: SA | S16: 5000 | T16: PO Box 6468 | U16: Halifax Street | V16: ADELAIDE | W16: SA | X16: 5000 | Y16: Craig de Laine | Z16: 08 8418 1129 | AA16: craig.delaine@agn.com.au | AB16: n/a | AC16: n/a | AD16: n/a | AE16: n/a | AF16: n/a | AH16: CBD | AI16: Urban | AJ16: Short rural | AK16: Long rural | AM16: AGN (SA)
B17: AGN (Victoria) | C17: Australian Gas Networks Limited (reporting data for Victoria) | D17: 19078551685 | E17: Vic | F17: Gas | G17: Distribution | H17: Weighted average price cap | I17: Calendar | J17: December | K17: 5 | L17: 5 | M17: x | O17: Level 6 | P17: 400 King William Street | Q17: ADELAIDE | R17: SA | S17: 5000 | T17: PO Box 6468 | U17: Halifax Street | V17: ADELAIDE | W17: SA | X17: 5000 | Y17: Craig de Laine | Z17: 08 8418 1129 | AA17: craig.delaine@agn.com.au | AB17: n/a | AC17: n/a | AD17: n/a | AE17: n/a | AF17: n/a | AH17: CBD | AI17: Urban | AJ17: Short rural | AK17: Long rural | AM17: AGN (Victoria)
B18: Amadeus | C18: APT Pipelines (NT) Pty Ltd | D18: 39009737393 | E18: NT | F18: Gas | G18: Transmission | H18: Weighted average price cap | I18: Financial | J18: June | K18: 5 | L18: 5 | M18: x | N18: n/a | O18: Level 19, HSBC Building | P18: 580 George Street | Q18: SYDNEY | R18: NSW | S18: 2000 | T18: Level 19, HSBC Building | U18: 580 George Street | V18: SYDNEY | W18: NSW | X18: 2000 | Y18: Alexandra Curran | Z18: 02 9275 0020 | AA18: alexandra.curran@apa.com.au | AB18: n/a | AC18: n/a | AD18: n/a | AE18: n/a | AF18: n/a | AH18: CBD | AI18: Urban | AJ18: Short rural | AK18: Long rural | AM18: Amadeus
B19: APA GasNet | C19: APA GasNet Australia (Operations) Pty Ltd | D19: 065083009 | E19: Vic | F19: Gas | G19: Transmission | H19: Weighted average price cap | I19: Calendar | J19: December | K19: 5 | L19: 5 | M19: x | O19: Level 19, HSBC Building | P19: 580 George Street | Q19: SYDNEY | R19: NSW | S19: 2000 | T19: PO Box R41 | V19: ROYAL EXCHANGE | W19: NSW | X19: 1225 | Y19: Alexandra Curran | Z19: 02 9275 0020 | AA19: alexandra.curran@apa.com.au | AB19: n/a | AC19: n/a | AD19: n/a | AE19: n/a | AF19: n/a | AH19: CBD | AI19: Urban | AJ19: Short rural | AK19: Long rural | AM19: APA GasNet
B20: Ausgrid | C20: Ausgrid | D20: 78508211731 | E20: NSW | F20: Electricity | G20: Distribution | H20: Revenue cap | I20: Financial | J20: June | K20: 5 | L20: 5 | M20: 5 | N20: 2014-19 Distribution Determination | O20: 570 George St | Q20: SYDNEY | R20: NSW | S20: 2000 | T20: GPO Box 4009 | V20: SYDNEY | W20: NSW | X20: 2001 | Y20: John Thomson | Z20: 02 9269 2312 | AA20: john.thomson@ausgrid.com.au | AB20: YES | AC20: YES | AD20: YES | AE20: YES | AF20: NO | AH20: CBD | AI20: Urban | AJ20: Short rural | AK20: Long rural | AM20: Ausgrid
B21: Ausgrid (Tx Assets) | C21: Ausgrid (Tx Assets) | D21: 67505337385 | E21: NSW | F21: Electricity | G21: Distribution | H21: Revenue cap | I21: Financial | J21: June | K21: 5 | L21: 5 | M21: 5 | N21: distribution determination | O21: 570 George St | Q21: SYDNEY | R21: NSW | S21: 2000 | T21: GPO Box 4009 | V21: SYDNEY | W21: NSW | X21: 2001 | Y21: John Thomson | Z21: 02 9269 2312 | AA21: john.thomson@ausgrid.com.au | AB21: YES | AC21: YES | AD21: YES | AE21: YES | AF21: NO | AH21: CBD | AI21: Urban | AJ21: Short rural | AK21: Long rural | AM21: Ausgrid (Tx Assets)
B22: AusNet (D) | C22: AusNet Electricity Services Pty Ltd | D22: 91064651118 | E22: Vic | F22: Electricity | G22: Distribution | H22: Revenue cap | I22: Calendar | J22: December | K22: 5 | L22: 5 | M22: 2 | N22: 2016-20 Distribution Determination | O22: Level 32 | P22: 2 Southbank Boulevard | Q22: SOUTHBANK | R22: Vic | S22: 3006 | T22: Locked Bag 14051 | V22: MELBOURNE CITY MAIL CENTRE | W22: VIC | X22: 8001 | Y22: please provide contact details | AC22: YES | AD22: YES | AE22: YES | AF22: NO | AH22: CBD | AI22: Urban | AJ22: Short rural | AK22: Long rural | AM22: AusNet (D)
B23: AusNet (Gas) | C23: AusNet Gas Services | D23: 086015036 | E23: Vic | F23: Gas | G23: Distribution | H23: Weighted average price cap | I23: Calendar | J23: December | K23: 5 | L23: 5 | M23: X | O23: Level 19, HSBC Building | P23: 580 George Street | Q23: SYDNEY | R23: NSW | S23: 2000 | T23: PO Box R41 | V23: ROYAL EXCHANGE | W23: NSW | X23: 1225 | Y23: Alexandra Curran | Z23: 02 9275 0020 | AA23: alexandra.curran@apa.com.au | AB23: n/a | AC23: n/a | AD23: n/a | AE23: n/a | AF23: n/a | AH23: CBD | AI23: Urban | AJ23: Short rural | AK23: Long rural | AM23: AusNet (Gas)
B24: AusNet (T) | C24: Ausnet Services (Transmission) Ltd | D24: 48116124362 | E24: Vic | F24: Electricity | G24: Transmission | H24: Revenue cap | I24: Financial | J24: March | K24: 5 | L24: 5 | M24: 2 | N24: transmission determination | O24: Level 32 | P24: 2 Southbank Boulevard | Q24: SOUTHBANK | R24: Vic | S24: 3006 | T24: Locked Bag 14051 | V24: MELBOURNE CITY MAIL CENTRE | W24: Vic | X24: 8001 | Y24: Clare Thompson | Z24: 03 9695 6670 | AA24: clare.e.thompson@ausnetservices.com.au | AB24: n/a | AC24: n/a | AD24: n/a | AE24: n/a | AF24: n/a | AH24: CBD | AI24: Urban | AJ24: Short rural | AK24: Long rural | AM24: AusNet (T)
B25: Australian Distribution Co. | C25: Australian Distribution Co. | D25: 11222333444 | E25: - | F25: Electricity | G25: Distribution | H25: Revenue cap | I25: Financial | J25: June | K25: 5 | L25: 5 | M25: 2 | N25: distribution determination | O25: 123 Straight Street | Q25: SYDNEY | R25: NSW | S25: 2000 | T25: PO Box 123 | V25: SYDNEY | W25: NSW | X25: 2000 | Y25: Bob Smith | Z25: 02 1234 5678 | AA25: bob@auselec.net.au | AB25: n/a | AC25: n/a | AD25: n/a | AE25: n/a | AF25: NO | AH25: CBD | AI25: Urban | AJ25: Short rural | AK25: Long rural | AM25: Australian Distribution Co.
B26: Australian Distribution Co. (Vic) | C26: Australian Distribution Co. (Victoria) | D26: 11222333444 | E26: Vic | F26: Electricity | G26: Distribution | H26: Revenue cap | I26: Calendar | J26: December | K26: 5 | L26: 5 | M26: 2 | N26: distribution determination | O26: 123 Straight Street | Q26: MELBOURNE | R26: Vic | S26: 3000 | T26: PO Box 123 | V26: MELBOURNE | W26: VIC | X26: 3000 | Y26: Bob Smith | Z26: 02 1234 5678 | AA26: bob@auselec.net.au | AB26: n/a | AC26: n/a | AD26: n/a | AE26: n/a | AF26: NO | AH26: CBD | AI26: Urban | AJ26: Short rural | AK26: Long rural | AM26: Australian Distribution Co. (Vic)
B27: Australian Transmission Co. | C27: Australian Transmission Co. | D27: 11222333444 | E27: - | F27: Electricity | G27: Transmission | H27: Revenue cap | I27: Financial | J27: June | K27: 5 | L27: 5 | M27: 5 | N27: transmission determination | O27: 123 Straight Street | Q27: SYDNEY | R27: NSW | S27: 2000 | T27: PO Box 123 | V27: SYDNEY | W27: NSW | X27: 2000 | Y27: Bob Smith | Z27: 02 1234 5678 | AA27: bob@auselec.net.au | AB27: n/a | AC27: n/a | AD27: n/a | AE27: n/a | AF27: NO | AH27: CBD | AI27: Urban | AJ27: Short rural | AK27: Long rural | AM27: Australian Transmission Co.
B28: Central Ranges Pipeline (D) | C28: Central Ranges Pipeline Pty Ltd | D28: 108218355 | E28: NSW | F28: Gas | G28: Distribution | H28: Weighted average price cap | I28: Financial | J28: June | K28: 15 | L28: 5 | M28: 5 | N28: distribution determination | O28: Level 19 | P28: 580 George Street | Q28: SYDNEY | R28: NSW | S28: 2000 | T28: PO Box R41 | V28: ROYAL EXCHANGE | W28: NSW | X28: 1225 | Y28: Scott Young | Z28: 02 9275 0031 | AA28: scott.young@apa.com.au | AB28: n/a | AC28: n/a | AD28: n/a | AE28: n/a | AF28: n/a | AH28: CBD | AI28: Urban | AJ28: Short rural | AK28: Long rural
B29: Central Ranges Pipeline (T) | C29: Central Ranges Pipeline Pty Ltd | D29: 108218355 | E29: NSW | F29: Gas | G29: Distribution | H29: Weighted average price cap | I29: Financial | J29: June | K29: 14 | L29: 5 | M29: 5 | N29: transmission determination | O29: Level 19 | P29: 580 George Street | Q29: SYDNEY | R29: NSW | S29: 2000 | T29: PO Box R41 | V29: ROYAL EXCHANGE | W29: NSW | X29: 1225 | Y29: Scott Young | Z29: 02 9275 0031 | AA29: scott.young@apa.com.au | AB29: n/a | AC29: n/a | AD29: n/a | AE29: n/a | AF29: n/a | AH29: CBD | AI29: Urban | AJ29: Short rural | AK29: Long rural
B30: CitiPower | C30: CitiPower | D30: 76064651056 | E30: Vic | F30: Electricity | G30: Distribution | H30: Revenue cap | I30: Calendar | J30: December | K30: 5 | L30: 5 | M30: 2 | N30: 2016-20 Distribution Determination | O30: 40 Market Street | Q30: MELBOURNE | R30: Vic | S30: 3000 | T30: Locked Bag 14090 | V30: MELBOURNE | W30: VIC | X30: 8001 | Y30: Hannah Williams | Z30: 03 9683 4088 | AA30: hwilliams@powercor.com.au | AB30: YES | AC30: YES | AD30: NO | AE30: NO | AF30: NO | AH30: CBD | AI30: Urban | AJ30: Short rural | AK30: Long rural | AM30: CitiPower
B31: Directlink | C31: Directlink | D31: 16779340889 | E31: Qld | F31: Electricity | G31: Transmission | H31: Revenue cap | I31: Financial | J31: June | K31: 9 | L31: 5 | M31: 5 | N31: transmission determination | O31: Level 19, HSBC Building | P31: 580 George Street | Q31: SYDNEY | R31: NSW | S31: 2000 | T31: PO Box R41 | V31: ROYAL EXCHANGE | W31: NSW | X31: 1225 | Y31: Scott Young | Z31: 02 9275 0031 | AA31: scott.young@apa.com.au | AB31: n/a | AC31: n/a | AD31: n/a | AE31: n/a | AF31: n/a | AH31: CBD | AI31: Urban | AJ31: Short rural | AK31: Long rural | AM31: Directlink
B32: ElectraNet | C32: ElectraNet | D32: 41094482416 | E32: SA | F32: Electricity | G32: Transmission | H32: Revenue cap | I32: Financial | J32: June | K32: 5 | L32: 5 | M32: 5 | N32: transmission determination | O32: 52-55 East Terrace | P32: Rymill Park | Q32: ADELAIDE | R32: SA | S32: 5000 | T32: PO Box 7096 | U32: Hutt Street Post Office | V32: ADELAIDE | W32: SA | X32: 5000 | Y32: Bill Jackson | Z32: 08 8404 7969 | AA32: jackson.bill@electranet.com.au | AB32: n/a | AC32: n/a | AD32: n/a | AE32: n/a | AF32: n/a | AH32: CBD | AI32: Urban | AJ32: Short rural | AK32: Long rural | AM32: ElectraNet
B33: Endeavour Energy | C33: Endeavour Energy | D33: 11247365823 | E33: NSW | F33: Electricity | G33: Distribution | H33: Revenue cap | I33: Financial | J33: June | K33: 5 | L33: 5 | M33: 5 | N33: 2014-19 Distribution Determination | O33: 51 Huntingwood Drive | Q33: HUNTINGWOOD | R33: NSW | S33: 2148 | T33: PO Box 811 | V33: SEVEN HILLS | W33: NSW | X33: 1730 | Y33: Jon Hocking | Z33: 02 9853 4386 / 0407 348 156 | AA33: Jon.Hocking@Endeavourenergy.com.au | AB33: NO | AC33: YES | AD33: YES | AE33: YES | AF33: NO | AH33: CBD | AI33: Urban | AJ33: Short rural | AK33: Long rural | AM33: Endeavour Energy
B34: Energex | C34: Energex | D34: 40078849055 | E34: Qld | F34: Electricity | G34: Distribution | H34: Revenue cap | I34: Financial | J34: June | K34: 5 | L34: 5 | M34: 5 | N34: 2015-20 Distribution Determination | O34: 26 Reddacliff Street | Q34: NEWSTEAD | R34: Qld | S34: 4006 | T34: 26 Reddacliff Street | V34: NEWSTEAD | W34: QLD | X34: 4006 | Y34: Nicola Roscoe | Z34: 07 3664 5891 | AA34: nicolaroscoe@energex.com.au | AB34: YES | AC34: YES | AD34: YES | AE34: NO | AF34: NO | AH34: CBD | AI34: Urban | AJ34: Short rural | AK34: Long rural | AM34: Energex
B35: Ergon Energy | C35: Ergon Energy | D35: 50087646062 | E35: Qld | F35: Electricity | G35: Distribution | H35: Revenue cap | I35: Financial | J35: June | K35: 5 | L35: 5 | M35: 5 | N35: 2015-20 Distribution Determination | O35: 22 Walker Street | Q35: TOWNSVILLE | R35: Qld | S35: 4810 | T35: Po Box 264 | V35: FORTITUDE VALLEY | W35: QLD | X35: 4006 | Y35: Jenny Doyle, Group Manager Regulatory Affairs | Z35: (07) 3851 6416 | AA35: jenny.doyle@ergon.com.au | AB35: NO | AC35: YES | AD35: YES | AE35: YES | AF35: NO | AH35: CBD | AI35: Urban | AJ35: Short rural | AK35: Long rural | AM35: Ergon Energy
B36: Essential Energy | C36: Essential Energy | D36: 37428185226 | E36: NSW | F36: Electricity | G36: Distribution | H36: Revenue cap | I36: Financial | J36: June | K36: 5 | L36: 5 | M36: 5 | N36: 2014-19 Distribution Determination | O36: 8 Buller Street | Q36: PORT MACQUARIE | R36: NSW | S36: 2444 | T36: PO Box 5730 | V36: PORT MACQUARIE | W36: NSW | X36: 2444 | Y36: Catherine Waddell | Z36: 02 6338 3553 | AA36: catherine.waddell@essentialenergy.com.au | AB36: NO | AC36: NO | AD36: YES | AE36: YES | AF36: NO | AH36: CBD | AI36: Urban | AJ36: Short rural | AK36: Long rural | AM36: Essential Energy
B37: Jemena Electricity | C37: Jemena Electricity | D37: 82064651083 | E37: Vic | F37: Electricity | G37: Distribution | H37: Revenue cap | I37: Calendar | J37: December | K37: 5 | L37: 5 | M37: 2 | N37: 2016-20 Distribution Determination | O37: Level 16 | P37: 567 Collins Street | Q37: MELBOURNE | R37: VIC | S37: 3000 | T37: PO Box 16182 | V37: MELBOURNE | W37: VIC | X37: 8001 | Y37: Matthew Serpell | Z37: 03 9173 8231 | AA37: matthew.serpell@jemena.com.au | AB37: NO | AC37: NO | AD37: YES | AE37: NO | AF37: NO | AH37: CBD | AI37: Urban | AJ37: Short rural | AK37: Long rural | AM37: Jemena Electricity
B38: JGN | C38: Jemena Gas Networks (NSW) Ltd | D38: 003 004 322 | E38: NSW | F38: Gas | G38: Distribution | H38: Weighted average price cap | I38: Financial | J38: June | K38: 5 | L38: 5 | Y38: please provide contact details | AB38: n/a | AC38: n/a | AD38: n/a | AE38: n/a | AF38: n/a | AH38: CBD | AI38: Urban | AJ38: Short rural | AK38: Long rural | AM38: JGN
B39: Multinet Gas | C39: Multinet Gas (DB No.1) Pty Ltd (ACN 086 026 986), Multinet Gas (DB No.2) Pty Ltd (ACN 086 230 122) | D39: 086026986 | E39: Vic | F39: Gas | G39: Distribution | H39: Weighted average price cap | I39: Calendar | J39: December | K39: 5 | L39: 5 | M39: x | O39: 43-45 Centreway | Q39: MT WAVERLEY | R39: Vic | S39: 3149 | Y39: Andrew Schille | Z39: 03 8846 9860 | AA39: andrew.schille@ue.com.au | AB39: n/a | AC39: n/a | AD39: n/a | AE39: n/a | AF39: n/a | AH39: CBD | AI39: Urban | AJ39: Short rural | AK39: Long rural | AM39: Multinet Gas
B40: Murraylink | C40: Murraylink | D40: 79181207909 | E40: SA | F40: Electricity | G40: Transmission | H40: Revenue cap | I40: Financial | J40: June | K40: 5 | L40: 5 | M40: 5 | N40: transmission determination | O40: Level 19 | P40: 580 George Street | Q40: SYDNEY | R40: NSW | S40: 2000 | T40: PO Box R41 | V40: ROYAL EXCHANGE | W40: NSW | X40: 1225 | Y40: Scott Young | Z40: 02 9275 0031 | AA40: scott.young@apa.com.au | AB40: n/a | AC40: n/a | AD40: n/a | AE40: n/a | AF40: n/a | AH40: CBD | AI40: Urban | AJ40: Short rural | AK40: Long rural | AM40: Murraylink
B41: Power and Water | C41: Power and Water Corporation | D41: 15947352360 | E41: NT | F41: Electricity | G41: Distribution | H41: Revenue cap | I41: Financial | J41: June | K41: 5 | L41: 5 | M41: x | N41: distribution determination | O41: GPO Box 1921 | Q41: DARWIN | R41: NT | S41: 801 | T41: GPO Box 1921 | V41: DARWIN | W41: NT | X41: 801 | Y41: Lucy Moon | Z41: 08 8924 5822 | AA41: Lucy.Moon@powerwater.com.au | AB41: YES | AC41: YES | AD41: YES | AE41: YES | AF41: NO | AH41: CBD | AI41: Urban | AJ41: Short rural | AK41: Long rural
B42: Powercor Australia | C42: Powercor Australia | D42: 89064651109 | E42: Vic | F42: Electricity | G42: Distribution | H42: Revenue cap | I42: Calendar | J42: December | K42: 5 | L42: 5 | M42: 2 | N42: 2016-20 Distribution Determination | O42: 40 Market Street | Q42: MELBOURNE | R42: Vic | S42: 3000 | T42: Locked bag 14090 | V42: MELBOURNE | W42: VIC | X42: 8001 | Y42: Hannah Williams | Z42: 03 9683 4088 | AA42: hwilliams@powercor.com.au | AD42: YES | AE42: YES | AF42: NO | AH42: CBD | AI42: Urban | AJ42: Short rural | AK42: Long rural | AM42: Powercor Australia
B43: Powerlink | C43: Queensland Electricity Transmission Corporation Limited trading as Powerlink Queensland | D43: 82078849233 | E43: Qld | F43: Electricity | G43: Transmission | H43: Revenue cap | I43: Financial | J43: June | K43: 5 | L43: 5 | M43: 5 | N43: transmission determination | O43: 33 Harold St | Q43: VIRGINIA | R43: Qld | S43: 4014 | T43: PO Box 1193 | V43: VIRGINIA | W43: QLD | X43: 4014 | Y43: Jennifer Harris | Z43: 07 3860 2667 | AA43: jharris@powerlink.com.au | AB43: n/a | AC43: n/a | AD43: n/a | AE43: n/a | AF43: n/a | AH43: CBD | AI43: Urban | AJ43: Short rural | AK43: Long rural | AM43: Powerlink
B44: Roma to Brisbane Pipeline | C44: APT Petroleum Pipelines Limited t/a Roma to Brisbane Pipeline | D44: 009 737 393 | E44: Qld | F44: Gas | G44: Transmission | H44: Weighted average price cap | I44: Financial | J44: June | K44: 5 | L44: 5 | M44: x | N44: n/a | O44: 580 George Street | Q44: SYDNEY | R44: NSW | S44: 2000 | T44: PO Box R41 | V44: ROYAL EXCHANGE | W44: NSW | X44: 1225 | Y44: Mark Allen | Z44: 02 9275 0010 | AA44: mark.allen@apa.com.au | AB44: n/a | AC44: n/a | AD44: n/a | AE44: n/a | AF44: n/a | AH44: CBD | AI44: Urban | AJ44: Short rural | AK44: Long rural | AM44: Roma to Brisbane Pipeline
B45: SA Power Networks | C45: SA Power Networks | D45: 13332330749 | E45: SA | F45: Electricity | G45: Distribution | H45: Revenue cap | I45: Financial | J45: June | K45: 5 | L45: 5 | M45: 5 | N45: 2015-20 Distribution Determination | O45: 1 Anzac Highway | Q45: KESWICK | R45: SA | S45: 5035 | T45: GPO Box 77 | V45: ADELAIDE | W45: SA | X45: 5000 | Y45: Richard Sibly | Z45: 08 8404 5613 | AA45: richard.sibly@sapowernetworks.com.au | AB45: NO | AC45: NO | AD45: YES | AE45: YES | AF45: NO | AH45: CBD | AI45: Urban | AJ45: Short rural | AK45: Long rural | AM45: SA Power Networks
B46: TasNetworks (D) | C46: TasNetworks (D) | D46: 24167357299 | E46: Tas | F46: Electricity | G46: Distribution | H46: Revenue cap | I46: Financial | J46: June | K46: 5 | L46: 5 | M46: 5 | N46: distribution determination | O46: 1-7 Maria Street | Q46: LENAH VALLEY | R46: Tas | S46: 7008 | T46: PO Box 606 | V46: MOONAH | W46: Tas | X46: 7009 | Y46: John Sayers | Z46: 03 6271 6469 | AA46: john.sayers@tasnetworks.com.au | AB46: YES | AC46: YES | AD46: YES | AE46: YES | AF46: YES | AH46: Critical Infrastructure | AI46: High density commercial | AJ46: Urban | AK46: High density rural | AL46: Low density rural | AM46: TasNetworks (D)
B47: TasNetworks (T) | C47: TasNetworks (T) | D47: 24167357299 | E47: Tas | F47: Electricity | G47: Transmission | H47: Revenue cap | I47: Financial | J47: June | K47: 5 | L47: 5 | M47: 5 | N47: transmission determination | O47: 1-7 Maria Street | Q47: LENAH VALLEY | R47: Tas | S47: 7008 | T47: PO Box 606 | V47: MOONAH | W47: Tas | X47: 7009 | Y47: John Sayers | Z47: 03 6271 6469 | AA47: john.sayers@tasnetworks.com.au | AB47: n/a | AC47: n/a | AD47: n/a | AE47: n/a | AF47: n/a | AH47: CBD | AI47: Urban | AJ47: Short rural | AK47: Long rural | AM47: TasNetworks (T)
B48: TransGrid | C48: NSW Electricity Networks Operations Pty Ltd trading as TransGrid | D48: 70250995390 | E48: NSW | F48: Electricity | G48: Transmission | H48: Revenue cap | I48: Financial | J48: June | K48: 5 | L48: 4 | M48: 5 | N48: transmission determination | O48: 180 Thomas Street | Q48: SYDNEY | R48: NSW | S48: 2000 | T48: PO Box A1000 | V48: SYDNEY SOUTH | W48: NSW | X48: 1235 | Y48: Garrie Chubb | Z48: 0408 210 221 | AA48: garrie.chubb@transgrid.com.au | AB48: n/a | AC48: n/a | AD48: n/a | AE48: n/a | AF48: n/a | AH48: CBD | AI48: Urban | AJ48: Short rural | AK48: Long rural | AM48: TransGrid
B49: United Energy | C49: United Energy | D49: 70064651029 | E49: Vic | F49: Electricity | G49: Distribution | H49: Revenue cap | I49: Calendar | J49: December | K49: 5 | L49: 5 | M49: 2 | N49: 2016-20 Distribution Determination | O49: Level 3 | P49: 6 Nexus Court | Q49: MULGRAVE | R49: Vic | S49: 3149 | T49: PO Box 449 | V49: MOUNT WAVERLEY | W49: VIC | X49: 3170 | Y49: Mathew Abraham | Z49: 03 8846 9758 | AA49: mathew.abraham@ue.com.au | AB49: NO | AC49: NO | AD49: YES | AE49: NO | AF49: NO | AH49: CBD | AI49: Urban | AJ49: Short rural | AK49: Long rural | AM49: United Energy
B50: Western Power (D) | C50: Western Power (D) | D50: 18540492861 | E50: WA | F50: Electricity | G50: Distribution | H50: Revenue cap | I50: Financial | J50: June | K50: 12 | L50: 4 | M50: x | N50: distribution determination | O50: 363 Wellington Street | Q50: PERTH | R50: WA | S50: 6000 | T50: GPO Box L921 | V50: PERTH | W50: WA | X50: 6842 | Y50: Judy Hunter | Z50: 08 9326 6239 | AA50: judy.hunter@westernpower.com.au | AB50: NO | AC50: NO | AD50: YES | AE50: YES | AF50: NO | AG50: NO | AH50: CBD | AI50: Urban | AJ50: Short rural | AK50: Long rural | AM50: Western Power (D)
B51: Western Power (T) | C51: Western Power (T) | D51: 18540492861 | E51: WA | F51: Electricity | G51: Transmission | H51: Revenue cap | I51: Financial | J51: June | K51: 12 | L51: 4 | M51: x | N51: transmission determination | O51: 363 Wellington Street | Q51: PERTH | R51: WA | S51: 6000 | T51: GPO Box L921 | V51: PERTH | W51: WA | X51: 6842 | Y51: Judy Hunter | Z51: 08 9326 6239 | AA51: judy.hunter@westernpower.com.au | AB51: n/a | AC51: n/a | AD51: n/a | AE51: n/a | AF51: n/a | AH51: CBD | AI51: Urban | AJ51: Short rural | AK51: Long rural | AM51: Western Power (T)
Y54: For EB & Reset RINs only | AD54: For AARs only
B55: The Reg Year Ending (dms_RYE) must be set to the last year of the regulatory period. For forecast data is is usually (FRCP_y5) for actual it is a single year (CRY). For historical actual data the RYE will need to be set manually in the business details sheet by setting the dms_Multiyear_flag to 1 and putting the correct value in 'dms_Specified_FinalYear. See cells C67:C68 | G55: =IF(dms_RPT="financial",VALUE(LEFT(CRCP_y1,4)-1)&"-"&TEXT(VALUE(RIGHT(CRCP_y1,2)-1),"00"),VALUE(LEFT(CRCP_y1,4)-1)) -> 2014-15 | N55: Drop down selector box for CA & Reset RINs. | O55: For CA & Reset RINs only | Y55: for DNSP only | AD55: For DNSPs only | AJ55: Reason for interruption | AK55: dms_Reason_Interruption_Detailed | AL55: dms_Reason_Interruption | AM55: dms_STPIS_Exclusion_List | AN55: dms_020301_ProjectType_List | AO55: dms_020302_ProjectType_List
B56: dms_Model_List | C56: DELETE NR 'CRY' IF NOT AN ANNUAL RIN (EB, CA , ARR) | E56: dms_RYE_Formula_Result | N56: dms_0203_ProjectType | O56: dms_020303_01_UOM | P56: dms_020501_01_UOM | Q56: dms_020501_02_UOM | R56: dms_020501_03_UOM | S56: dms_020501_04_UOM | T56: dms_020603_01_UOM | U56: dms_020701_01_UOM | V56: dms_020701_02_UOM | W56: dms_040102_01_UOM | X56: dms_040102_04_UOM | Y56: dms_030601_01_UOM | Z56: dms_030601_02_UOM | AA56: dms_030701_01_UOM | AB56: dms_030702_01_UOM | AC56: dms_030703_01_UOM | AD56: dms_030605_UOM | AE56: dms_03060703_UOM | AJ56: Animal | AK56: Animal impact | AL56: Animal | AM56: Weather | AN56: New substation establishment | AO56: New line on new route - single circuit
B57: ARR | C57: ANNUAL REPORTING STATEMENT | E57: =LEFT(dms_SingleYear_FinalYear_Result,2)&RIGHT(dms_SingleYear_FinalYear_Result,2) -> 2018 | F57: =LEFT(dms_SingleYear_FinalYear_Result,2)&RIGHT(dms_SingleYear_FinalYear_Result,2) | H57: Formula errors are OK | N57: New line on new route - single circuit | O57: Circuit line length in km | P57: 0's | Q57: 0's | R57: 0's | S57: 0's | T57: 0's | U57: km | V57: km | W57: 0's | X57: days | Y57: minutes/customer | Z57: minutes/customer | AA57: Customer / km | AB57: % | AC57: km | AD57: number | AE57: number | AK57: Animal nesting/burrowing, etc and other | AL57: Asset failure | AM57: Equipment failure | AN57: Capacity upgrade | AO57: New line on new route - dual circuit
B58: CA | C58: CATEGORY ANALYSIS | E58: =LEFT(dms_SingleYear_FinalYear_Result,2)&RIGHT(dms_SingleYear_FinalYear_Result,2) -> 2018 | F58: =LEFT(dms_SingleYear_FinalYear_Result,2)&RIGHT(dms_SingleYear_FinalYear_Result,2) | H58: Formula errors are OK | N58: New line on new route - dual circuit | O58: Circuit line length in km | P58: 0's | Q58: 0's | R58: 0's | S58: 0's | T58: 0's | U58: 0's | V58: 0's | W58: 0's | X58: 0's | Y58: minutes/customer | Z58: minutes/customer | AA58: MWh/customer | AB58: Number of spans | AD58: number | AE58: number | AK58: Other | AL58: Other | AM58: Operational error | AN58: Voltage upgrade | AO58: New line on new route - other
B59: CPI | C59: CPI | N59: New line on new route - other | O59: Circuit line length in km | P59: MVA added | Q59: MVA added | R59: MVA added | S59: MVA added | T59: 0's | U59: km | V59: km | W59: 0's | X59: $0s | Y59: interruptions/customer | Z59: interruptions/customer | AA59: kVA / customer | AB59: Number of spans | AD59: number | AE59: number | AJ59: Asset failure | AK59: LV | AL59: Overloads | AM59: Vegetation | AN59: Other | AO59: Line rebuild over existing route - single circuit
B60: EB | C60: ECONOMIC BENCHMARKING | E60: =LEFT(dms_SingleYear_FinalYear_Result,2)&RIGHT(dms_SingleYear_FinalYear_Result,2) -> 2018 | F60: =LEFT(dms_SingleYear_FinalYear_Result,2)&RIGHT(dms_SingleYear_FinalYear_Result,2) | H60: Formula errors are OK | N60: Line rebuild over existing route - single circuit | O60: Circuit line length in km | P60: 0's | Q60: 0's | R60: 0's | S60: 0's | T60: 0's | U60: km | V60: km | W60: $0s | X60: 0's | Y60: interruptions/customer | Z60: interruptions/customer | AB60: Number of spans | AD60: number | AE60: number | AK60: Distribution substation | AL60: Planned | AM60: Animals | AO60: Line rebuild over existing route - dual circuit
B61: PTRM | C61: POST TAX REVENUE MODEL | E61: =LEFT(dms_MultiYear_FinalYear_Result,2)&RIGHT(dms_MultiYear_FinalYear_Result,2) -> 2025 | F61: =LEFT(dms_MultiYear_FinalYear_Result,2)&RIGHT(dms_MultiYear_FinalYear_Result,2) | N61: Line rebuild over existing route - dual circuit | O61: Number | P61: total spend $0s | Q61: total spend $0s | R61: total spend $0s | S61: total spend $0s | T61: (per cent) | U61: 0's | V61: 0's | AB61: Number of spans | AD61: number | AE61: (per cent) | AK61: HV | AL61: Network business | AM61: Third party impacts | AO61: Reconductor - Single circuit
B62: Reset | C62: REGULATORY REPORTING STATEMENT | E62: =LEFT(dms_MultiYear_FinalYear_Result,2)&RIGHT(dms_MultiYear_FinalYear_Result,2) -> 2025 | F62: =LEFT(dms_MultiYear_FinalYear_Result,2)&RIGHT(dms_MultiYear_FinalYear_Result,2) | H62: Formula errors are OK | N62: Reconductor - Single circuit | O62: Number | P62: net circuit km added | Q62: net circuit km added | R62: net circuit km added | S62: net circuit km added | U62: years | V62: years | AB62: Years | AD62: number | AK62: Zone substation | AL62: Third party | AM62: Transmission failure | AO62: Reconductor - Dual circuit
B63: RFM | C63: ROLL FORWARD MODEL | E63: =LEFT(dms_CRCP_FinalYear_Result,2)&RIGHT(dms_CRCP_FinalYear_Result,2) -> 2018 | F63: =LEFT(dms_CRCP_FinalYear_Result,2)&RIGHT(dms_CRCP_FinalYear_Result,2) | N63: Reconductor - Dual circuit | O63: Number | P63: total spend $0s | Q63: total spend $0s | R63: total spend $0s | S63: total spend $0s | AB63: Years | AD63: number | AK63: Subtransmission | AL63: Unknown | AM63: Load shedding | AO63: Reconductor - Other
B64: WACC | C64: WEIGHTED AVERAGE COST OF CAPITAL | E64: =LEFT(dms_MultiYear_FinalYear_Result,2)&RIGHT(dms_MultiYear_FinalYear_Result,2) -> 2025 | F64: =LEFT(dms_MultiYear_FinalYear_Result,2)&RIGHT(dms_MultiYear_FinalYear_Result,2) | N64: Other | P64: net circuit km added | Q64: net circuit km added | R64: net circuit km added | S64: net circuit km added | AB64: Trees | AD64: number | AJ64: Other | AK64: insert description of 'other' | AL64: Vegetation | AM64: Inter-distributor connection failure | AO64: Line upgrade - raising/retensoring
P65: total spend $0s | Q65: total spend $0s | R65: total spend $0s | S65: total spend $0s | AB65: Trees | AD65: number | AJ65: Overloads | AK65: - | AL65: Weather | AM65: Other | AO65: Line upgrade - voltage upgrade
B66: dms_DataQuality_List | P66: 0's | R66: $0s | AB66: Defects | AD66: number | AJ66: Planned | AK66: - | AL66: 2 - STPIS Exclusion (3.3)(a) | AO66: Line upgrade - capacity
B67: Actual | P67: 0's | AB67: Defects | AD67: number | AJ67: Network business | AK67: Network error | AL67: 3 - STPIS Exclusion (3.3)(a) | AO67: String spare circuit
B68: Estimate | P68: 0's | AB68: Spans | AD68: number | AK68: Switching and protection error | AL68: 4 - STPIS Exclusion (3.3)(a) | AO68: Other
B69: Consolidated | P69: $0s | AB69: km | AD69: (per cent) | AJ69: Third party | AK69: Fire | AL69: 5 - STPIS Exclusion (3.3)(a)
B70: Recast | AB70: Spans | AD70: (per cent) | AK70: Other | AL70: 6 - STPIS Exclusion (3.3)(a)
B71: Public | AK71: Dig-in | AL71: 7 - STPIS Exclusion (3.3)(a)
AK72: Unauthorised access
B73: For all files either AER or business needs to be able to specify the type of submission | C73: For PTRM & RFM templates we must provide a choice in case they change their form of control - otherwise it is drawn from the business specific lookup table above. | O73: For PTRM files - this field set the text for the named range "DMS_Xfactor" which in all cases is simply the text "x factors" - this saves putting in each old gas PTRM file | Y73: for TNSP only | AK73: Vehicle impact
B74: dms_SourceList | C74: dms_FormControl_Choices | O74: DMS_Xfactor | Y74: dms_030601_01_UOM | AA74: dms_030701_01_UOM | AB74: dms_030702_01_UOM | AJ74: Unknown | AK74: Unknown
B75: After appeal | C75: Revenue cap | O75: x factors | Y75: % | AA75: Number of spans | AB75: km | AJ75: Vegetation | AK75: Blow-in/Fall-in - NSP responsibility
B76: Draft decision | C76: Revenue yield | Y76: number | AA76: Years | AB76: % | AK76: Grow-in - NSP responsibility
B77: Final decision | C77: Weighted average price cap | Y77: number | AA77: Trees | AB77: km | AK77: Blow-in/Fall-in - Other responsible party
B78: PTRM update 1 | Y78: % | AA78: Defects | AB78: number | AK78: Grow-in - Other responsible party
B79: PTRM update 2 | Y79: number | AA79: Number of spans | AJ79: Weather
B80: PTRM update 3 | Y80: number | AA80: km | AJ80: 2 - STPIS Exclusion (3.3)(a)
B81: PTRM update 4 | Y81: % | AA81: km | AJ81: 3 - STPIS Exclusion (3.3)(a)
B82: PTRM update 5 | Y82: number | AA82: Number of spans | AJ82: 4 - STPIS Exclusion (3.3)(a)
B83: PTRM update 6 | Y83: number | AJ83: 5 - STPIS Exclusion (3.3)(a)
B84: PTRM update 7 | Y84: % | AJ84: 6 - STPIS Exclusion (3.3)(a)
B85: Regulatory proposal | Y85: number | AJ85: 7 - STPIS Exclusion (3.3)(a)
B86: Reporting | Y86: %
B87: Revised regulatory proposal | Y87: number
Y88: %
Y89: number
B93: These are indeces and lookup values for various dates. All step from the value placed in FRCP_y1 on the business and other details worksheet | C93: =IF(dms_FifthFeeder_flag_NSP="NO","This NSP has only 4 feeder categories","This NSP has 5 feeder categories") -> This NSP has 5 feeder categories | L93: These date tables are currently used in the Recast templates to provide column headings and conditional formatting
B94: dms_FRCPlength_Num_List | C94: dms_FinalYear_List | D94: dms_CRCPlength_Num_List | E94: dms_CFinalYear_List | F94: dms_FRCP_years | H94: dms_CRCP_years | J94: dms_CRCP_index | L94: CRY from input cell on business sheet | M94: CRY - financial | N94: dms_FinYears | O94: CRY calendar | P94: dms_CalYears | Y94: These "row descriptions" are the column headings in the various templates but become row descriptions in the ETL process
B95: 1 | C95: dms_FRCP_y1 | D95: 1 | E95: CRCP_y1 | F95: =FRCP_y1 -> 2020-21 | G95: dms_FRCP_y1 | H95: =IF(dms_RPT="financial",VALUE(LEFT(dms_FRCP_y1,4)-1)&"-"&TEXT(VALUE(MID(dms_FRCP_y1,3,2)),"00"),VALUE(LEFT(dms_FRCP_y1,4)-1)) -> 2019-20 | I95: dms_CRCP_yZ | J95: 1 | L95: =CRY -> 2017-18 | M95: =VALUE(LEFT(CRY,4))&"-"&TEXT(MID(CRY,3,2)+1,"00") -> 2017-18 | N95: dms_CRYf_y1 | O95: =VALUE(LEFT(CRY,4)+1) -> 2018 | P95: dms_CRYc_y1 | Z95: Table 6.3 sustained interruptions - row descriptions
B96: 2 | C96: dms_FRCP_y2 | D96: 2 | E96: CRCP_y2 | F96: =IF(dms_RPT="financial",VALUE(LEFT(dms_FRCP_y1,4)+1)&"-"&TEXT(VALUE(RIGHT(dms_FRCP_y1,2)+1),"00"),VALUE(LEFT(dms_FRCP_y1,4)+1)) -> 2021-22 | G96: dms_FRCP_y2 | H96: =IF(dms_RPT="financial",VALUE(LEFT(dms_CRCP_yZ,4)-1)&"-"&TEXT(VALUE(MID(dms_CRCP_yZ,3,2)),"00"),VALUE(LEFT(dms_CRCP_yZ,4)-1)) -> 2018-19 | I96: dms_CRCP_yY | J96: 2 | M96: =VALUE(LEFT(dms_CRYf_y1,4)+1)&"-"&TEXT(MID(dms_CRYf_y1,3,2)+2,"00") -> 2018-19 | N96: dms_CRYf_y2 | O96: =VALUE(LEFT(dms_CRYc_y1,4)+1) -> 2019 | P96: dms_CRYc_y2 | Z96: dms_060301_CustNo_Affected_Row | AA96: dms_060301_Avg_Duration_Sustained_Int_Row | AB96: dms_060301_Effect_unplanned_SAIDI_Row | AC96: dms_060301_Effect_unplanned_SAIFI_Row
B97: 3 | C97: =IF(dms_Model="ARR",15,9) | D97: 3 | E97: =IF(dms_Model="ARR",15,9) | F97: =IF(dms_RPT="financial",VALUE(LEFT(dms_FRCP_y2,4)+1)&"-"&TEXT(VALUE(RIGHT(dms_FRCP_y2,2)+1),"00"),VALUE(LEFT(dms_FRCP_y2,4)+1)) -> 2022-23 | G97: dms_FRCP_y3 | H97: =IF(dms_RPT="financial",VALUE(LEFT(dms_CRCP_yY,4)-1)&"-"&TEXT(VALUE(MID(dms_CRCP_yY,3,2)),"00"),VALUE(LEFT(dms_CRCP_yY,4)-1)) -> 2017-18 | I97: dms_CRCP_yX | J97: 3 | M97: =VALUE(LEFT(dms_CRYf_y2,4)+1)&"-"&TEXT(MID(dms_CRYf_y2,3,2)+2,"00") -> 2019-20 | N97: dms_CRYf_y3 | O97: =VALUE(LEFT(dms_CRYc_y2,4)+1) -> 2020 | P97: dms_CRYc_y3 | Z97: Number of customers affected by the interruption | AA97: Average duration of sustained customer interruption | AB97: Effect on unplanned SAIDI | AC97: Effect on unplanned SAIFI
B98: 4 | C98: dms_FRCP_y4 | D98: 4 | E98: CRCP_y4 | F98: =IF(dms_RPT="financial",VALUE(LEFT(dms_FRCP_y3,4)+1)&"-"&TEXT(VALUE(RIGHT(dms_FRCP_y3,2)+1),"00"),VALUE(LEFT(dms_FRCP_y3,4)+1)) -> 2023-24 | G98: dms_FRCP_y4 | H98: =IF(dms_RPT="financial",VALUE(LEFT(dms_CRCP_yX,4)-1)&"-"&TEXT(VALUE(MID(dms_CRCP_yX,3,2)),"00"),VALUE(LEFT(dms_CRCP_yX,4)-1)) -> 2016-17 | I98: dms_CRCP_yW | J98: 4 | M98: =VALUE(LEFT(dms_CRYf_y3,4)+1)&"-"&TEXT(MID(dms_CRYf_y3,3,2)+2,"00") -> 2020-21 | N98: dms_CRYf_y4 | O98: =VALUE(LEFT(dms_CRYc_y3,4)+1) -> 2021 | P98: dms_CRYc_y4
B99: 5 | C99: dms_FRCP_y5 | D99: 5 | E99: CRCP_y5 | F99: =IF(dms_RPT="financial",VALUE(LEFT(dms_FRCP_y4,4)+1)&"-"&TEXT(VALUE(RIGHT(dms_FRCP_y4,2)+1),"00"),VALUE(LEFT(dms_FRCP_y4,4)+1)) -> 2024-25 | G99: dms_FRCP_y5 | H99: =IF(dms_RPT="financial",VALUE(LEFT(dms_CRCP_yW,4)-1)&"-"&TEXT(VALUE(MID(dms_CRCP_yW,3,2)),"00"),VALUE(LEFT(dms_CRCP_yW,4)-1)) -> 2015-16 | I99: dms_CRCP_yV | J99: 5 | M99: =VALUE(LEFT(dms_CRYf_y4,4)+1)&"-"&TEXT(MID(dms_CRYf_y4,3,2)+2,"00") -> 2021-22 | N99: dms_CRYf_y5 | O99: =VALUE(LEFT(dms_CRYc_y4,4)+1) -> 2022 | P99: dms_CRYc_y5
B100: 6 | C100: dms_FRCP_y6 | D100: 6 | E100: CRCP_y6 | F100: =IF(dms_RPT="financial",VALUE(LEFT(dms_FRCP_y5,4)+1)&"-"&TEXT(VALUE(RIGHT(dms_FRCP_y5,2)+1),"00"),VALUE(LEFT(dms_FRCP_y5,4)+1)) -> 2025-26 | G100: dms_FRCP_y6 | H100: =IF(dms_RPT="financial",VALUE(LEFT(dms_CRCP_yV,4)-1)&"-"&TEXT(VALUE(MID(dms_CRCP_yV,3,2)),"00"),VALUE(LEFT(dms_CRCP_yV,4)-1)) -> 2014-15 | I100: dms_CRCP_yU | J100: 6 | M100: =VALUE(LEFT(dms_CRYf_y5,4)+1)&"-"&TEXT(MID(dms_CRYf_y5,3,2)+2,"00") -> 2022-23 | N100: dms_CRYf_y6 | O100: =VALUE(LEFT(dms_CRYc_y5,4)+1) -> 2023 | P100: dms_CRYc_y6
B101: 7 | C101: dms_FRCP_y7 | D101: 7 | E101: CRCP_y7 | F101: =IF(dms_RPT="financial",VALUE(LEFT(dms_FRCP_y6,4)+1)&"-"&TEXT(VALUE(RIGHT(dms_FRCP_y6,2)+1),"00"),VALUE(LEFT(dms_FRCP_y6,4)+1)) -> 2026-27 | G101: dms_FRCP_y7 | H101: =IF(dms_RPT="financial",VALUE(LEFT(dms_CRCP_yU,4)-1)&"-"&TEXT(VALUE(MID(dms_CRCP_yU,3,2)),"00"),VALUE(LEFT(dms_CRCP_yU,4)-1)) -> 2013-14 | I101: dms_CRCP_yT | J101: 7 | M101: =VALUE(LEFT(dms_CRYf_y6,4)+1)&"-"&TEXT(MID(dms_CRYf_y6,3,2)+2,"00") -> 2023-24 | N101: dms_CRYf_y7 | O101: =VALUE(LEFT(dms_CRYc_y6,4)+1) -> 2024 | P101: dms_CRYc_y7 | Z101: Table 6.1 telephone answering - row descriptions and start date
B102: 8 | C102: dms_FRCP_y8 | D102: 8 | E102: CRCP_y8 | F102: =IF(dms_RPT="financial",VALUE(LEFT(dms_FRCP_y7,4)+1)&"-"&TEXT(VALUE(RIGHT(dms_FRCP_y7,2)+1),"00"),VALUE(LEFT(dms_FRCP_y7,4)+1)) -> 2027-28 | G102: dms_FRCP_y8 | H102: =IF(dms_RPT="financial",VALUE(LEFT(dms_CRCP_yT,4)-1)&"-"&TEXT(VALUE(MID(dms_CRCP_yT,3,2)),"00"),VALUE(LEFT(dms_CRCP_yT,4)-1)) -> 2012-13 | I102: dms_CRCP_yS | J102: 8 | M102: =VALUE(LEFT(dms_CRYf_y7,4)+1)&"-"&TEXT(MID(dms_CRYf_y7,3,2)+2,"00") -> 2024-25 | N102: dms_CRYf_y8 | O102: =VALUE(LEFT(dms_CRYc_y7,4)+1) -> 2025 | P102: dms_CRYc_y8 | Z102: dms_060101_Rows | AA102: dms_060102_Rows | AB102: dms_060101_StartDateTxt
B103: 9 | C103: dms_FRCP_y9 | D103: 9 | E103: CRCP_y9 | F103: =IF(dms_RPT="financial",VALUE(LEFT(dms_FRCP_y8,4)+1)&"-"&TEXT(VALUE(RIGHT(dms_FRCP_y8,2)+1),"00"),VALUE(LEFT(dms_FRCP_y8,4)+1)) -> 2028-29 | G103: dms_FRCP_y9 | H103: =IF(dms_RPT="financial",VALUE(LEFT(dms_CRCP_yS,4)-1)&"-"&TEXT(VALUE(MID(dms_CRCP_yS,3,2)),"00"),VALUE(LEFT(dms_CRCP_yS,4)-1)) -> 2011-12 | I103: dms_CRCP_yR | J103: 9 | M103: =VALUE(LEFT(dms_CRYf_y8,4)+1)&"-"&TEXT(MID(dms_CRYf_y8,3,2)+2,"00") -> 2025-26 | N103: dms_CRYf_y9 | O103: =VALUE(LEFT(dms_CRYc_y8,4)+1) -> 2026 | P103: dms_CRYc_y9 | Z103: Total number of calls (after removing excluded events) | AA103: Number of calls answered within 30 seconds (after excluding excluded events) | AB103: =dms_060701_StartDateTxt -> 1-Jul-2017
B104: 10 | C104: =IFERROR(IF(dms_Model="ARR",(MAX(0,dms_0608_LastRow-dms_0608_OffsetRows)),"not an ARR"),"6.8 not present") | D104: 10 | E104: =IFERROR(IF(dms_Model="ARR",(MAX(0,dms_0608_LastRow-dms_0608_OffsetRows)),"not an ARR"),"6.8 not present") | F104: =IF(dms_RPT="financial",VALUE(LEFT(dms_FRCP_y9,4)+1)&"-"&TEXT(VALUE(RIGHT(dms_FRCP_y9,2)+1),"00"),VALUE(LEFT(dms_FRCP_y9,4)+1)) -> 2029-30 | G104: dms_FRCP_y10 | H104: =IF(dms_RPT="financial",VALUE(LEFT(dms_CRCP_yR,4)-1)&"-"&TEXT(VALUE(MID(dms_CRCP_yR,3,2)),"00"),VALUE(LEFT(dms_CRCP_yR,4)-1)) -> 2010-11 | I104: dms_CRCP_yQ | J104: 10 | M104: =VALUE(LEFT(dms_CRYf_y9,4)+1)&"-"&TEXT(MID(dms_CRYf_y9,3,2)+2,"00") -> 2026-27 | N104: dms_CRYf_y10 | O104: =VALUE(LEFT(dms_CRYc_y9,4)+1) -> 2027 | P104: dms_CRYc_y10
B105: 11 | C105: dms_FRCP_y11 | D105: 11 | E105: CRCP_y11 | F105: =IF(dms_RPT="financial",VALUE(LEFT(dms_FRCP_y10,4)+1)&"-"&TEXT(VALUE(RIGHT(dms_FRCP_y10,2)+1),"00"),VALUE(LEFT(dms_FRCP_y10,4)+1)) -> 2030-31 | G105: dms_FRCP_y11 | H105: =IF(dms_RPT="financial",VALUE(LEFT(dms_CRCP_yQ,4)-1)&"-"&TEXT(VALUE(MID(dms_CRCP_yQ,3,2)),"00"),VALUE(LEFT(dms_CRCP_yQ,4)-1)) -> 2009-10 | I105: dms_CRCP_yP | J105: 11 | M105: =VALUE(LEFT(dms_CRYf_y10,4)+1)&"-"&TEXT(MID(dms_CRYf_y10,3,2)+2,"00") -> 2027-28 | N105: dms_CRYf_y11 | O105: =VALUE(LEFT(dms_CRYc_y10,4)+1) -> 2028 | P105: dms_CRYc_y11
B106: 12 | C106: dms_FRCP_y12 | D106: 12 | E106: CRCP_y12 | F106: =IF(dms_RPT="financial",VALUE(LEFT(dms_FRCP_y11,4)+1)&"-"&TEXT(VALUE(RIGHT(dms_FRCP_y11,2)+1),"00"),VALUE(LEFT(dms_FRCP_y11,4)+1)) -> 2031-32 | G106: dms_FRCP_y12 | H106: =IF(dms_RPT="financial",VALUE(LEFT(dms_CRCP_yP,4)-1)&"-"&TEXT(VALUE(MID(dms_CRCP_yP,3,2)),"00"),VALUE(LEFT(dms_CRCP_yP,4)-1)) -> 2008-09 | I106: dms_CRCP_yO | J106: 12 | M106: =VALUE(LEFT(dms_CRYf_y11,4)+1)&"-"&TEXT(MID(dms_CRYf_y11,3,2)+2,"00") -> 2028-29 | N106: dms_CRYf_y12 | O106: =VALUE(LEFT(dms_CRYc_y11,4)+1) -> 2029 | P106: dms_CRYc_y12
B107: 13 | C107: dms_FRCP_y13 | D107: 13 | E107: CRCP_y13 | F107: =IF(dms_RPT="financial",VALUE(LEFT(dms_FRCP_y12,4)+1)&"-"&TEXT(VALUE(RIGHT(dms_FRCP_y12,2)+1),"00"),VALUE(LEFT(dms_FRCP_y12,4)+1)) -> 2032-33 | G107: dms_FRCP_y13 | H107: =IF(dms_RPT="financial",VALUE(LEFT(dms_CRCP_yO,4)-1)&"-"&TEXT(VALUE(MID(dms_CRCP_yO,3,2)),"00"),VALUE(LEFT(dms_CRCP_yO,4)-1)) -> 2007-08 | I107: dms_CRCP_yN | J107: 13 | M107: =VALUE(LEFT(dms_CRYf_y12,4)+1)&"-"&TEXT(MID(dms_CRYf_y12,3,2)+2,"00") -> 2029-30 | N107: dms_CRYf_y13 | O107: =VALUE(LEFT(dms_CRYc_y12,4)+1) -> 2030 | P107: dms_CRYc_y13 | AE107: dms_0603_FeederList | AF107: =INDEX(dms_FeederName_1,MATCH(dms_TradingName,dms_TradingName_List)) -> CBD | AG107: =INDEX(dms_FeederName_2,MATCH(dms_TradingName,dms_TradingName_List)) -> Urban | AH107: =INDEX(dms_FeederName_3,MATCH(dms_TradingName,dms_TradingName_List)) -> Short rural | AI107: =INDEX(dms_FeederName_4,MATCH(dms_TradingName,dms_TradingName_List)) -> Long rural
B108: 14 | C108: dms_FRCP_y14 | D108: 14 | E108: CRCP_y14 | F108: =IF(dms_RPT="financial",VALUE(LEFT(dms_FRCP_y13,4)+1)&"-"&TEXT(VALUE(RIGHT(dms_FRCP_y13,2)+1),"00"),VALUE(LEFT(dms_FRCP_y13,4)+1)) -> 2033-34 | G108: dms_FRCP_y14 | H108: =IF(dms_RPT="financial",VALUE(LEFT(dms_CRCP_yN,4)-1)&"-"&TEXT(VALUE(MID(dms_CRCP_yN,3,2)),"00"),VALUE(LEFT(dms_CRCP_yN,4)-1)) -> 2006-07 | I108: dms_CRCP_yM | J108: 14 | M108: =VALUE(LEFT(dms_CRYf_y13,4)+1)&"-"&TEXT(MID(dms_CRYf_y13,3,2)+2,"00") -> 2030-31 | N108: dms_CRYf_y14 | O108: =VALUE(LEFT(dms_CRYc_y13,4)+1) -> 2031 | P108: dms_CRYc_y14 | Z108: Table 6.7.1 - daily performance data - unplanned - MAIFI -- row descriptions and header named range values
B109: 15 | C109: dms_FRCP_y15 | D109: 15 | E109: CRCP_y15 | F109: =IF(dms_RPT="financial",VALUE(LEFT(dms_FRCP_y14,4)+1)&"-"&TEXT(VALUE(RIGHT(dms_FRCP_y14,2)+1),"00"),VALUE(LEFT(dms_FRCP_y14,4)+1)) -> 2034-35 | G109: dms_FRCP_y15 | H109: =IF(dms_RPT="financial",VALUE(LEFT(dms_CRCP_yM,4)-1)&"-"&TEXT(VALUE(MID(dms_CRCP_yM,3,2)),"00"),VALUE(LEFT(dms_CRCP_yM,4)-1)) -> 2005-06 | I109: dms_CRCP_yL | J109: 15 | M109: =VALUE(LEFT(dms_CRYf_y14,4)+1)&"-"&TEXT(MID(dms_CRYf_y14,3,2)+2,"00") -> 2031-32 | N109: dms_CRYf_y15 | O109: =VALUE(LEFT(dms_CRYc_y14,4)+1) -> 2032 | P109: dms_CRYc_y15 | Z109: These headings (Lists) are determined from the INDEX/MATCH function on the NSP selected on the Business & other details sheet
M110: =VALUE(LEFT(dms_CRYf_y15,4)+1)&"-"&TEXT(MID(dms_CRYf_y15,3,2)+2,"00") -> 2032-33 | N110: dms_CRYf_y16 | O110: =VALUE(LEFT(dms_CRYc_y15,4)+1) -> 2033 | P110: dms_CRYc_y16 | Y110: dms_060701_Feeder_Header_Lvl4 | Z110: =INDEX(dms_FeederName_1,MATCH(dms_TradingName,dms_TradingName_List)) -> CBD | AA110: =INDEX(dms_FeederName_1,MATCH(dms_TradingName,dms_TradingName_List)) -> CBD | AB110: =INDEX(dms_FeederName_2,MATCH(dms_TradingName,dms_TradingName_List)) -> Urban | AC110: =INDEX(dms_FeederName_2,MATCH(dms_TradingName,dms_TradingName_List)) -> Urban | AD110: =INDEX(dms_FeederName_3,MATCH(dms_TradingName,dms_TradingName_List)) -> Short rural | AE110: =INDEX(dms_FeederName_3,MATCH(dms_TradingName,dms_TradingName_List)) -> Short rural | AF110: =INDEX(dms_FeederName_4,MATCH(dms_TradingName,dms_TradingName_List)) -> Long rural | AG110: =INDEX(dms_FeederName_4,MATCH(dms_TradingName,dms_TradingName_List)) -> Long rural | AH110: =IF((INDEX(dms_FeederName_5,MATCH(dms_TradingName,dms_TradingName_List))=0),"Network",(INDEX(dms_FeederName_5,MATCH(dms_TradingName,dms_TradingName_List)))) -> Network | AI110: =IF((INDEX(dms_FeederName_5,MATCH(dms_TradingName,dms_TradingName_List))=0),"Network",(INDEX(dms_FeederName_5,MATCH(dms_TradingName,dms_TradingName_List)))) -> Network | AJ110: Network | AK110: Network
B111: These are drop down lists for businesses to select the correct FRCP_y1 on the business and other details worksheet. This also populates the column headings in the worksheets | M111: =VALUE(LEFT(dms_CRYf_y16,4)+1)&"-"&TEXT(MID(dms_CRYf_y16,3,2)+2,"00") -> 2033-34 | N111: dms_CRYf_y17 | O111: =VALUE(LEFT(dms_CRYc_y16,4)+1) -> 2034 | P111: dms_CRYc_y17
B112: dms_RCP_fyear_list | C112: dms_CRY_ListF | D112: dms_CRY_ListC | E112: dms_RCP_cyear_list | F112: dms_FRCP_fyear_list | G112: dms_FRCP_ListF | H112: dms_FRCP_ListC | I112: dms_FRCP_cyear_list | M112: =VALUE(LEFT(dms_CRYf_y17,4)+1)&"-"&TEXT(MID(dms_CRYf_y17,3,2)+2,"00") -> 2034-35 | N112: dms_CRYf_y18 | O112: =VALUE(LEFT(dms_CRYc_y17,4)+1) -> 2035 | P112: dms_CRYc_y18 | Y112: dms_060701_Rows | Z112: All events | AA112: After removing excluded events | AB112: All events | AC112: After removing excluded events | AD112: All events | AE112: After removing excluded events | AF112: All events | AG112: After removing excluded events | AH112: All events | AI112: After removing excluded events | AJ112: All events | AK112: After removing excluded events
B113: dms_fy1 | C113: 2005-06 | D113: 2006 | E113: dms_cy1 | F113: dms_frcp_fy1 | G113: 2010-11 | H113: 2011 | I113: dms_crcp_cy1 | M113: =VALUE(LEFT(dms_CRYf_y18,4)+1)&"-"&TEXT(MID(dms_CRYf_y18,3,2)+2,"00") -> 2035-36 | N113: dms_CRYf_y19 | O113: =VALUE(LEFT(dms_CRYc_y18,4)+1) -> 2036 | P113: dms_CRYc_y19 | Z113: the number of column headings changes from 10 to 12 depending on the number of feeder categories for the NSP
B114: dms_fy2 | C114: 2006-07 | D114: 2007 | E114: dms_cy2 | F114: dms_frcp_fy2 | G114: 2011-12 | H114: 2012 | I114: dms_crcp_cy2 | M114: =VALUE(LEFT(dms_CRYf_y19,4)+1)&"-"&TEXT(MID(dms_CRYf_y19,3,2)+2,"00") -> 2036-37 | N114: dms_CRYf_y20 | O114: =VALUE(LEFT(dms_CRYc_y19,4)+1) -> 2037 | P114: dms_CRYc_y20
B115: dms_fy3 | C115: 2007-08 | D115: 2008 | E115: dms_cy3 | F115: dms_frcp_fy3 | G115: 2012-13 | H115: 2013 | I115: dms_crcp_cy3
B116: dms_fy4 | C116: 2008-09 | D116: 2009 | E116: dms_cy4 | F116: dms_frcp_fy4 | G116: 2013-14 | H116: 2014 | I116: dms_crcp_cy4
B117: dms_fy5 | C117: 2009-10 | D117: 2010 | E117: dms_cy5 | F117: dms_frcp_fy5 | G117: 2014-15 | H117: 2015 | I117: dms_crcp_cy5
B118: dms_fy6 | C118: 2010-11 | D118: 2011 | E118: dms_cy6 | F118: dms_frcp_fy6 | G118: 2015-16 | H118: 2016 | I118: dms_crcp_cy6 | Z118: Table 6.8.1 - row descriptions
B119: dms_fy7 | C119: 2011-12 | D119: 2012 | E119: dms_cy7 | F119: dms_frcp_fy7 | G119: 2016-17 | H119: 2017 | I119: dms_crcp_cy7 | Z119: dms_060801_01_Rows | AA119: dms_060801_02_Rows | AB119: dms_060801_03_Rows | AC119: dms_060801_04_Rows
B120: dms_fy8 | C120: 2012-13 | D120: 2013 | E120: dms_cy8 | F120: dms_frcp_fy8 | G120: 2017-18 | H120: 2018 | I120: dms_crcp_cy8 | L120: 2005-06 | M120: 2006 | Z120: Number of interruptions | AA120: Duration of interruptions | AB120: Total unplanned minutes off supply | AC120: Effect on unplanned MAIFI
B121: dms_fy9 | C121: 2013-14 | D121: 2014 | E121: dms_cy9 | F121: dms_frcp_fy9 | G121: 2018-19 | H121: 2019 | I121: dms_crcp_cy9 | L121: 2006-07 | M121: 2007
B122: dms_fy10 | C122: 2014-15 | D122: 2015 | E122: dms_cy10 | F122: dms_frcp_fy10 | G122: 2019-20 | H122: 2020 | I122: dms_crcp_cy10 | L122: 2007-08 | M122: 2008
B123: dms_fy11 | C123: 2015-16 | D123: 2016 | E123: dms_cy11 | F123: dms_frcp_fy11 | G123: 2020-21 | H123: 2021 | I123: dms_crcp_cy11 | L123: 2008-09 | M123: 2009
B124: dms_fy12 | C124: 2016-17 | D124: 2017 | E124: dms_cy12 | F124: dms_frcp_fy12 | G124: 2021-22 | H124: 2022 | I124: dms_crcp_cy12 | L124: 2009-10 | M124: 2010
B125: dms_fy13 | C125: 2017-18 | D125: 2018 | E125: dms_cy13 | F125: dms_frcp_fy13 | G125: 2022-23 | H125: 2023 | I125: dms_crcp_cy13 | L125: 2010-11 | M125: 2011 | Z125: Table 7.9.4 - market impact component - row descriptions
B126: dms_fy14 | C126: 2018-19 | D126: 2019 | E126: dms_cy14 | F126: dms_frcp_fy14 | G126: 2023-24 | H126: 2024 | I126: dms_crcp_cy14 | L126: 2011-12 | M126: 2012 | Y126: dms_070904_01_Rows | Z126: without exclusions | AA126: with exclusions
B127: dms_fy15 | C127: 2019-20 | D127: 2020 | E127: dms_cy15 | F127: dms_frcp_fy15 | G127: 2024-25 | H127: 2025 | I127: dms_crcp_cy15 | L127: 2012-13 | M127: 2013
B128: dms_fy16 | C128: 2020-21 | D128: 2021 | E128: dms_cy16 | L128: 2013-14 | M128: 2014
B129: dms_fy17 | C129: 2021-22 | D129: 2022 | E129: dms_cy17 | L129: 2014-15 | M129: 2015
B130: dms_fy18 | C130: 2022-23 | D130: 2023 | E130: dms_cy18 | L130: 2015-16 | M130: 2016
B131: dms_fy19 | C131: 2023-24 | D131: 2024 | E131: dms_cy19 | L131: 2016-17 | M131: 2017 | Z131: Use this to add to existing files
B132: dms_fy20 | C132: 2024-25 | D132: 2025 | E132: dms_cy20 | L132: 2017-18 | M132: 2018 | Z132: ARR's 6.8 STPIS exclusions
L133: 2018-19 | M133: 2019 | Z133: dms_060801_Event_Date | AA133: dms_060801_OutageID | AB133: dms_060801_FeederID | AC133: dms_060801_FeederClass | AD133: dms_060801_CauseID | AE133: dms_060801_01_Values | AF133: dms_060801_02_Values | AG133: dms_060801_03_Values | AH133: dms_060801_Excl_Cat | AI133: dms_060801_04_Values
L134: 2019-20 | M134: 2020
L135: 2020-21 | M135: 2021
L136: 2021-22 | M136: 2022 | Z136: CA 6.3 sustained interruptions
L137: 2022-23 | M137: 2023 | Z137: dms_060301_Event_Date | AA137: dms_060301_Event_Time | AB137: dms_060301_AssetID | AC137: dms_060301_FeederClass | AD137: dms_060301_Reason | AE137: dms_060301_DetailedReason | AF137: dms_060301_CustNo_Affected_Values | AG137: dms_060301_Avg_Duration_Sustained_Int_Values | AH137: dms_060301_Effect_unplanned_SAIDI_Values | AI137: dms_060301_Effect_unplanned_SAIFI_Values | AJ137: dms_060301_MED
L138: 2023-24 | M138: 2024
L139: 2024-25 | M139: 2025
L140: 2025-26 | M140: 2026
L141: 2026-27 | M141: 2027
L142: 2027-28 | M142: 2028
L143: 2028-29 | M143: 2029
L144: 2029-30 | M144: 2030
L145: 2030-31 | M145: 2031
L146: 2031-32 | M146: 2032
L147: 2032-33 | M147: 2033
L148: 2033-34 | M148: 2034
L149: 2034-35 | M149: 2035
L150: 2035-36 | M150: 2036

Sheet Instructions
B2: Transmission Network Service Provider
B3: Historical Reporting RIN Template
C4: This template is to be used by Powerlink to fulfil its reporting obligations to the AER.
C5: INSTRUCTIONS
C6: Complete the Business & other details worksheet before entering data or values in any other worksheets. The Business & other details worksheet is linked to other worksheets within the workbook and automatically generates certain column headings and conditional formatting.
C8: Identifying CONFIDENTIAL INFORMATION: Please use the macro at the top of each worksheet to identify confidential information.
C9: -Do this by selecting the cell or cells that contain confidential information and then run the Mark selection CONFIDENTIAL macro. This will format the cells a specific colour that is identified by the AER's database which in turn marks that information as confidential. -To reverse this, select the cell or cells and run the Return selection to NON-CONFIDENTIAL macro.
C11: UNITS OF MEASURE All amounts are to be unrounded and reported on a one for one basis: that is 1000 is to be entered as '1000'. Applicable units of measure may be identified in the table column headings or row descriptors.
C13: COLOUR CODING OF INPUT / NON-INPUT CELLS:
D14: Yellow = Input cell (mandatory)
D15: Darker yellow = input cell (mandatory)
D16: Orange = input cell (if data available)
D17: Grey = Not applicable/No inputs required
D18: . PLEASE DO NOT ENTER TEXT into cells that are to contain numeric data.
C21: WORKSHEET NAVIGATION Many tables in the worksheets have been "grouped" to allow for easy navigation. To ungroup or group data use the outline symbols in the left margin of excel (for Row groupings) or above the columns (for column groupings).
C23: RETURNING COMPLETED RESPONSES Please return four (4) files to the AER: 1. A confidential version which must contain a complete set of all responses with confidential information marked using the Mark selected cells CONFIDENTIAL macro and which has been completed using the locked template file provided by the AER. 2. An actual and an estimate version with confidential information marked using the Mark selection CONFIDENTIAL macro and which has been completed using the locked template file provided by the AER. 3. A public version with confidential information either removed completely or aggregated in some form together with writtten consent to disclose the public version of the response. Use the drop down box on the Business and other details worksheet to identify the file as either confidential ('consolidated') or public.
C25: SUBMITTING AMENDED DATA TO THE AER If an NSP wishes to correct data previously submitted to the AER it should resubmit that data using the original completed submission as the starting point. Please make any necessary changes to the data. Data that is not being amended should be left unchanged. NSPs must identify the reason for the amendments in the Amendment Reason box on the Business and other details worksheet. NSPs may provide further details regarding any amendments in the Amendments worksheet. .
C26: NSP may use Amended Data macro to highlight cells that contain amended data. NB: if data is also CONFIDENTIAL, re-apply the Confidentiality macro after applying the Amended macro
C27: Please resubmit two (2) files - a confidential version and a public version of the amended submission to the AER

Sheet Contents
B1: REGULATORY REPORTING STATEMENT
B2: =INDEX(dms_TradingNameFull_List,MATCH(dms_TradingName,dms_TradingName_List)) -> Queensland Electricity Transmission Corporation Limited trading as Powerlink Queensland
B3: =CONCATENATE((LOOKUP(dms_Model,dms_Model_List,dms_Worksheet_List))&" "&CRY) -> CATEGORY ANALYSIS 2017-18
B4: CONTENTS
E7: 1. Business details | L7: 2. Expenditure
E26: 4. Network information | L26: 5. Network information

Sheet Business & other details
B1: =IF(dms_DataQuality="backcast",INDEX(dms_Worksheet_List,MATCH(dms_Model,dms_Model_List))&" BACKCAST",INDEX(dms_Worksheet_List,MATCH(dms_Model,dms_Model_List))) -> CATEGORY ANALYSIS
B2: =INDEX(dms_TradingNameFull_List,MATCH(dms_TradingName,dms_TradingName_List)) -> Queensland Electricity Transmission Corporation Limited trading as Powerlink Queensland
B3: =IF(SUM(dms_SingleYear_Model)>0,CONCATENATE(CRY),CONCATENATE(FRCP_y1," to ",dms_MultiYear_FinalYear_Result)) -> 2017-18
B4: BUSINESS & OTHER DETAILS
B7: Instructions
B8: Complete the following business details regulatory template before entering data or values in any other regulatory template. This regulatory template is linked to other cells within the spreadsheet and automatically generates column headings and conditional formatting to distinguish business specific input and non-input cells.
B10: SUBMISSION PARTICULARS INPUT SHEETS
B12: ENTITY DETAILS
B14: Short name | C14: Powerlink | F14: Select business name from drop down list first
B15: ACN / ABN | C15: =INDEX(dms_ABN_List,MATCH(dms_TradingName,dms_TradingName_List)) -> 82078849233
B18: Business address | C18: Address 1 | E18: 33 Harold St
D19: Address 2 | E19: =IF(ISBLANK(INDEX(dms_Addr2_List,MATCH(dms_TradingName,dms_TradingName_List))),"",(INDEX(dms_Addr2_List,MATCH(dms_TradingName,dms_TradingName_List)))) -> 
C20: Suburb | E20: Virginia
D21: State | E21: Qld | F21: p/code | G21: 4014
B23: Postal address | C23: Address 1 | E23: PO Box 1193
D24: Address 2 | E24: =IF(ISBLANK(INDEX(dms_PAddr2_List,MATCH(dms_TradingName,dms_TradingName_List))),"",(INDEX(dms_PAddr2_List,MATCH(dms_TradingName,dms_TradingName_List)))) -> 
C25: Suburb | E25: Virginia
D26: State | E26: Qld | F26: p/code | G26: 4014
B29: Contact name/s | C29: Jennifer Harris
B30: Contact phone/s | C30: 07 3860 2667
B31: Contact email address/s | C31: jharris@powerlink.com.au
B33: REGULATORY CONTROL PERIODS
B35: Forthcoming regulatory control period | C35: 2020-21 | D35: =dms_FRCP_y2 -> 2021-22 | E35: =dms_FRCP_y3 -> 2022-23 | F35: =dms_FRCP_y4 -> 2023-24 | G35: =dms_FRCP_y5 -> 2024-25
C36: =dms_FRCP_y6 -> 2025-26 | D36: =dms_FRCP_y7 -> 2026-27 | E36: =dms_FRCP_y8 -> 2027-28 | F36: =dms_FRCP_y9 -> 2028-29 | G36: =dms_FRCP_y10 -> 2029-30
B39: Current regulatory control period | C39: =dms_CRCP_FirstYear_Result -> 2015-16 | D39: =IF(dms_RPT="financial",VALUE(LEFT(CRCP_y1,4)+1)&"-"&TEXT(MID(CRCP_y1,3,2)+2,"00"),VALUE(LEFT(CRCP_y1,4)+1)) -> 2016-17 | E39: =IF(dms_RPT="financial",VALUE(LEFT(CRCP_y1,4)+2)&"-"&TEXT(VALUE(MID(CRCP_y1,3,2)+3),"00"),VALUE(LEFT(CRCP_y1,4)+2)) -> 2017-18 | F39: =IF(dms_RPT="financial",VALUE(LEFT(CRCP_y1,4)+3)&"-"&TEXT(MID(CRCP_y1,3,2)+4,"00"),VALUE(LEFT(CRCP_y1,4)+3)) -> 2018-19 | G39: =IF(dms_RPT="financial",VALUE(LEFT(CRCP_y1,4)+4)&"-"&TEXT(MID(CRCP_y1,3,2)+5,"00"),VALUE(LEFT(CRCP_y1,4)+4)) -> 2019-20
C40: =IF(dms_RPT="financial",VALUE(LEFT(CRCP_y1,4)+5)&"-"&TEXT(MID(CRCP_y1,3,2)+6,"00"),VALUE(LEFT(CRCP_y1,4)+5)) -> 2020-21 | D40: =IF(dms_RPT="financial",VALUE(LEFT(CRCP_y1,4)+6)&"-"&TEXT(MID(CRCP_y1,3,2)+7,"00"),VALUE(LEFT(CRCP_y1,4)+6)) -> 2021-22 | E40: =IF(dms_RPT="financial",VALUE(LEFT(CRCP_y1,4)+7)&"-"&TEXT(MID(CRCP_y1,3,2)+8,"00"),VALUE(LEFT(CRCP_y1,4)+7)) -> 2022-23 | F40: =IF(dms_RPT="financial",VALUE(LEFT(CRCP_y1,4)+8)&"-"&TEXT(MID(CRCP_y1,3,2)+9,"00"),VALUE(LEFT(CRCP_y1,4)+8)) -> 2023-24 | G40: =IF(dms_RPT="financial",VALUE(LEFT(CRCP_y1,4)+9)&"-"&TEXT(MID(CRCP_y1,3,2)+10,"00"),VALUE(LEFT(CRCP_y1,4)+9)) -> 2024-25
C41: =IF(dms_RPT="financial",VALUE(LEFT(CRCP_y1,4)+10)&"-"&TEXT(MID(CRCP_y1,3,2)+11,"00"),VALUE(LEFT(CRCP_y1,4)+10)) -> 2025-26 | D41: =IF(dms_RPT="financial",VALUE(LEFT(CRCP_y1,4)+11)&"-"&TEXT(MID(CRCP_y1,3,2)+12,"00"),VALUE(LEFT(CRCP_y1,4)+11)) -> 2026-27 | E41: =IF(dms_RPT="financial",VALUE(LEFT(CRCP_y1,4)+12)&"-"&TEXT(MID(CRCP_y1,3,2)+13,"00"),VALUE(LEFT(CRCP_y1,4)+12)) -> 2027-28 | F41: =IF(dms_RPT="financial",VALUE(LEFT(CRCP_y1,4)+13)&"-"&TEXT(MID(CRCP_y1,3,2)+14,"00"),VALUE(LEFT(CRCP_y1,4)+13)) -> 2028-29 | G41: =IF(dms_RPT="financial",VALUE(LEFT(CRCP_y1,4)+14)&"-"&TEXT(MID(CRCP_y1,3,2)+15,"00"),VALUE(LEFT(CRCP_y1,4)+14)) -> 2029-30
B44: Previous regulatory control period | C44: =IF(dms_RPT="financial",VALUE(LEFT(PRCP_y2,4)-1)&"-"&TEXT(VALUE(MID(PRCP_y2,3,2)),"00"),VALUE(LEFT(PRCP_y2,4)-1)) -> 2010-11 | D44: =IF(dms_RPT="financial",VALUE(LEFT(PRCP_y3,4)-1)&"-"&TEXT(VALUE(MID(PRCP_y3,3,2)),"00"),VALUE(LEFT(PRCP_y3,4)-1)) -> 2011-12 | E44: =IF(dms_RPT="financial",VALUE(LEFT(PRCP_y4,4)-1)&"-"&TEXT(VALUE(MID(PRCP_y4,3,2)),"00"),VALUE(LEFT(PRCP_y4,4)-1)) -> 2012-13 | F44: =IF(dms_RPT="financial",VALUE(LEFT(PRCP_y5,4)-1)&"-"&TEXT(VALUE(RIGHT(PRCP_y5,2)-1),"00"),VALUE(LEFT(PRCP_y5,4)-1)) -> 2013-14 | G44: =IF(dms_RPT="financial",VALUE(LEFT(CRCP_y1,4)-1)&"-"&TEXT(VALUE(RIGHT(CRCP_y1,2)-1),"00"),VALUE(LEFT(CRCP_y1,4)-1)) -> 2014-15
B48: Commencing regulatory year | C48: 2017-18 | D48: CRY
B50: Last completed regulatory year | C50: 2017-18 | D50: dms_FinalYear
C54: IF THIS IS AN ABC RIN - make sure the the named range CRY is applied and the named range dms_dollar_nom_UOM is applied
C55: IF THIS IS A RESET RIN - make sure the named ranges CRY and dms_dollar_nom_UOM are NOT present in the workbook
C56: FOR ABC RINS THAT SPAN MULTIPLE YEARS - make sure MultiYear Flag is set and final year entered as required
B58: Source | C58: Reporting | E58: Please select the correct submission type from the dropdown list.
B59: Data quality (actual, estimate, public, consolidated) | C59: Public | E59: Use Consolidated for Consolidated Confidential version Use Public for Consolidated Public version
B60: Amended RIN submission - amendment reason | C60: .
B61: Submission Date | C61: 29/10/18 | D61: dms_SubmissionDate | E61: Please enter date this file submitted to AER (dd/mm/yyyy)
B62: EBSS - First application of scheme in forthcoming period? | C62: No
B63: Sector | C63: =INDEX(dms_Sector_List,MATCH(dms_TradingName,dms_TradingName_List)) -> Electricity | D63: dms_Sector | E63: =INDEX(dms_Sector_List,MATCH(dms_TradingName,dms_TradingName_List))
B64: Segment | C64: =INDEX(dms_Segment_List,MATCH(dms_TradingName,dms_TradingName_List)) -> Transmission | D64: dms_Segment | E64: =INDEX(dms_Segment_List,MATCH(dms_TradingName,dms_TradingName_List))
B65: Regulatory Year Ending | C65: =IF(dms_MultiYear_Flag=1,LEFT(dms_Specified_FinalYear,2)&RIGHT(dms_Specified_FinalYear,2),INDEX(dms_RYE_Formula_Result,MATCH(dms_Model,dms_Model_List))) -> 2018 | D65: dms_RYE | E65: =IF(dms_MultiYear_Flag=1,LEFT(dms_Specified_FinalYear,2)&RIGHT(dms_Specified_FinalYear,2),INDEX(dms_RYE_Formula_Result,MATCH(dms_Model,dms_Model_List)))
B66: Reporting Period Type | C66: =INDEX(dms_RPT_List,MATCH(dms_TradingName,dms_TradingName_List)) -> Financial | D66: dms_RPT | E66: =INDEX(dms_RPT_List,MATCH(dms_TradingName,dms_TradingName_List))
B67: Model or RIN Type | C67: CA | D67: dms_Model | E67: Drop down selection
B68: EB/CA Unit of Measure for Monetary Values | C68: $0s | D68: dms_dollar_nom_UOM | E68: If the cover sheet is attached to an ABC RIN make the NAMED RANGE on this field is set
B69: Security Classification | C69: Public | D69: dms_Classification | E69: Always Public
B70: Jurisdiction | C70: =INDEX(dms_JurisdictionList,MATCH(dms_TradingName,dms_TradingName_List)) -> Qld | D70: dms_Jurisdiction | E70: =INDEX(dms_JurisdictionList,MATCH(dms_TradingName,dms_TradingName_List))
B71: FOR RESET RINS
B72: CRY-1 | C72: =VALUE(LEFT(CRY,4)-1) -> 2016 | D72: dms_Left_CRY_minus1 | E72: =VALUE(LEFT(CRY,4)-1) | G72: Not used in Reset RINS but may be useful in other cases
B73: Dollar $ real month | C73: =INDEX(dms_RPTMonth_List,MATCH(dms_TradingName,dms_TradingName_List)) -> June | D73: dms_RPTMonth | E73: =INDEX(dms_RPTMonth_List,MATCH(dms_TradingName,dms_TradingName_List))
B74: Dollar $ real (the last month before the FRCP_y1) | C74: =IF(SUM(dms_SingleYear_Model)>0,CONCATENATE(dms_RPTMonth)&" "&VALUE((LEFT(CRY,2))&RIGHT(CRY,2)),CONCATENATE(dms_RPTMonth)&" "&VALUE((LEFT(dms_CRCP_FinalYear_Result,2)&RIGHT(dms_CRCP_FinalYear_Result,2)))) -> June 2018 | D74: dms_DollarReal | E74: =IF(SUM(dms_SingleYear_Model)>0,CONCATENATE(dms_RPTMonth)&" "&VALUE((LEFT(CRY,2))&RIGHT(CRY,2)),CONCATENATE(dms_RPTMonth)&" "&VALUE((LEFT(dms_CRCP_FinalYear_Result,2)&RIGHT(dms_CRCP_FinalYear_Result,2))))
B75: Dollar $ real previous year (PRCP_y5) | C75: =IF(SUM(dms_SingleYear_Model)>0,CONCATENATE(dms_RPTMonth)&" "&VALUE(((LEFT(CRY,2))&RIGHT(CRY,2))-1),CONCATENATE(dms_RPTMonth)&" "&VALUE(((LEFT(dms_CRCP_FirstYear_Result,2)&RIGHT(dms_CRCP_FirstYear_Result,2))))-1) -> June 2017 | D75: dms_DollarReal_Prev | E75: =IF(SUM(dms_SingleYear_Model)>0,CONCATENATE(dms_RPTMonth)&" "&VALUE(((LEFT(CRY,2))&RIGHT(CRY,2))-1),CONCATENATE(dms_RPTMonth)&" "&VALUE(((LEFT(dms_CRCP_FirstYear_Result,2)&RIGHT(dms_CRCP_FirstYear_Result,2))))-1)
B76: FOR PTRM/ RFMs
B77: Form of control | C77: =INDEX(dms_FormControl_List,MATCH(dms_TradingName,dms_TradingName_List)) -> Revenue cap | D77: dms_FormControl | E77: =INDEX(dms_FormControl_List,MATCH(dms_TradingName,dms_TradingName_List))
B78: FOR EB RINS
B79: Calendar Year for table 3.6 data | C79: =VALUE(dms_RYE)-1 -> 2017 | D79: dms_0306_Year | E79: =VALUE(dms_RYE)-1
B80: FOR ABC RINS THAT SPAN MULTIPLE YEARS
B81: Is this a multi year ABC RIN? | C81: No
B82: Backcast Multiyear EB, CA or ARR? | C82: =IF(dms_MultiYear_ResponseFlag="No",0,1) -> 0 | D82: dms_MultiYear_Flag | E82: This is set from the answer provided above
C83: =IF(dms_MultiYear_Flag=1,"Specify Final Reg Year here eg 2016 or 2015-16","not a Multi Reg Year submission") -> not a Multi Reg Year submission | D83: dms_Specified_FinalYear | E83: The result here is returned to dms_CRCP_FinalYear_Result if response to Q in C73 is "yes" and dms_MultiYear_Flag is set to 1
B84: This block works out the various RYE's for ALL RIN types and MODELS
B85: Single Year Model T/F | C85: =IF(dms_Model="EB",1,0) -> 0 | D85: dms_EB
C86: =IF(dms_Model="CA",1,0) -> 1 | D86: dms_CA | E86: =dms_SingleYear_Model
C87: =IF(dms_Model="ARR",1,0) -> 0 | D87: dms_ARR
B88: Single Year Final Year Reference | C88: CRY | D88: dms_SingleYear_FinalYear_Ref | E88: This is the reference for EB, CA & ARR RINs
B89: Single Year Final Year Result | C89: =IFERROR(IF(SUM(dms_SingleYear_Model)<>0,(INDIRECT(dms_SingleYear_FinalYear_Ref)),"not a single year RIN"),"CRY not present") -> 2017-18 | D89: dms_SingleYear_FinalYear_Result | E89: =IFERROR(IF(SUM(dms_SingleYear_Model)<>0,(INDIRECT(dms_SingleYear_FinalYear_Ref)),"not a single year RIN"),"CRY not present")
B90: FRCP length in years | C90: =INDEX(dms_FRCPlength_List,MATCH(dms_TradingName,dms_TradingName_List)) -> 5 | D90: dms_FRCPlength_Num | E90: =INDEX(dms_FRCPlength_List,MATCH(dms_TradingName,dms_TradingName_List))
B91: Multi Year Final Year Reference | C91: =INDEX(dms_FinalYear_List,MATCH(dms_FRCPlength_Num,dms_FRCPlength_Num_List)) -> dms_FRCP_y5 | D91: dms_MultiYear_FinalYear_Ref | E91: =INDEX(dms_FinalYear_List,MATCH(dms_FRCPlength_Num,dms_FRCPlength_Num_List))
B92: Multi Year Final Year Result | C92: =IF(dms_MultiYear_Flag=0,INDIRECT(dms_MultiYear_FinalYear_Ref),dms_Specified_FinalYear) -> 2024-25 | D92: dms_MultiYear_FinalYear_Result | E92: =IF(dms_MultiYear_Flag=0,INDIRECT(dms_MultiYear_FinalYear_Ref),dms_Specified_FinalYear) | I92: Formula errors OK
B93: CRCP length in years | C93: =INDEX(dms_CRCPlength_List,MATCH(dms_TradingName,dms_TradingName_List)) -> 5 | D93: dms_CRCPlength_Num | E93: =INDEX(dms_CRCPlength_List,MATCH(dms_TradingName,dms_TradingName_List))
B94: CRCP Final Year Reference | C94: =INDEX(dms_CFinalYear_List,MATCH(dms_CRCPlength_Num,dms_CRCPlength_Num_List)) -> CRCP_y5 | D94: dms_CRCP_FinalYear_Ref | E94: =INDEX(dms_CFinalYear_List,MATCH(dms_CRCPlength_Num,dms_CRCPlength_Num_List))
B95: CRCP First Year Result | C95: =INDEX(dms_CRCP_years,MATCH(dms_CRCPlength_Num,dms_CRCP_index)) -> 2015-16 | D95: dms_CRCP_FirstYear_Result | E95: =INDEX(dms_CRCP_years,MATCH(dms_CRCPlength_Num,dms_CRCP_index))
B96: CRCP Final Year Result | C96: =IF(dms_MultiYear_Flag=0,(IF(SUM(dms_SingleYear_Model)>0,CRY,dms_CRCP_yZ)),dms_Specified_FinalYear) -> 2017-18 | D96: dms_CRCP_FinalYear_Result | E96: =IF(dms_MultiYear_Flag=0,(IF(SUM(dms_SingleYear_Model)>0,CRY,dms_CRCP_yZ)),dms_Specified_FinalYear)
B97: FOR CATEGORY ANALYSIS FILES
B98: How many rows in tables 6.3 sustained interruptions? | C98: =IF(dms_Model<>"CA","not a CA","Is a CA") -> Is a CA | D98: dms_060301_MaxRows only returns a valid value when cover sheet is attached to a CA file
B99: Table 6.3.1 - last row reference | C99: =IFERROR(IF(dms_Model="CA", LOOKUP(2,1/(dms_060301_Avg_Duration_Sustained_Int_Values<>""), (ROW(dms_060301_Avg_Duration_Sustained_Int_Values))), "not a CA"),"no data in 6.3 or 6.3 not present") -> no data in 6.3 or 6.3 not present | D99: dms_060301_LastRow | E99: =IFERROR(IF(dms_Model="CA",LOOKUP(2,1/(dms_060301_Avg_Duration_Sustained_Int_Values<>""),(ROW(dms_060301_Avg_Duration_Sustained_Int_Values))),"not a CA"),"6.3 not present")
B100: Table 6.3.1 - max number rows | C100: =IFERROR(IF(dms_Model="CA",(dms_060301_LastRow-15),"not a CA"),"no data in 6.3 or 6.3 not present") -> no data in 6.3 or 6.3 not present | D100: dms_060301_MaxRows | E100: =IFERROR(IF(dms_Model="CA",(dms_060301_LastRow-15),"not a CA"),"6.3 not present")
B101: Table 6.6.3 - Public lighting repair - no. business days | C101: =INDEX(dms_663_List,MATCH(dms_TradingName,dms_TradingName_List)) -> 5 | D101: dms_663 | E101: =INDEX(dms_663_List,MATCH(dms_TradingName,dms_TradingName_List))
B102: FOR ARR or RESET RINS
B103: How many rows in tables 6.1 or 6.7? (leap year?) | C103: insert dms_LeapYear NR if required | D103: dms_LeapYear is used to determine dms_060701_Max_Rows BUT it is only found on worksheet 6.1 or 6.7 and the date value in the cell is used to determine whether it is a leap year
B104: Is dms_LeapYear named range present? | C104: =IFERROR(IF(dms_LeapYear,"yes"),"no") -> no
B105: Table 6.7.1 - includes a leap year? | C105: =IFERROR(IF(MONTH(DATE(YEAR(dms_LeapYear),2,29))=2,"is a leap year","not a leap year"), "dms_LeapYear not present") -> dms_LeapYear not present | D105: dms_LeapYear_Result | E105: =IFERROR(IF(MONTH(DATE(YEAR(dms_LeapYear),2,29))=2,"is a leap year","not a leap year"),"dms_LeapYear not present")
B106: Table 6.7.1 - Last row (leap year/ non leap year) | C106: =IFERROR(IF(dms_Model="ARR", IF(dms_LeapYear_Result="is a leap year",366,365), (IF(dms_Model="Reset", (IF(dms_LeapYear_Result="is a leap year",1827,1826)), "not a relevant RIN type"))), "dms_LeapYear in either 6.1 or 6.7 not present") -> not a relevant RIN type | D106: dms_060701_MaxRows | E106: =IFERROR(IF(dms_Model="ARR",IF(dms_LeapYear_Result="is a leap year",366,365),(IF(dms_Model="Reset",(IF(dms_LeapYear_Result="is a leap year",1827,1826)),"not a relevant RIN type"))),"dms_LeapYear in either 6.1 or 6.7 not present")
B107: How many columns in 6.7? (4 or 5 feeder categories) | C107: =IF(dms_FifthFeeder_flag_NSP="NO","This NSP has only 4 feeder categories","This NSP has 5 feeder categories") -> This NSP has 5 feeder categories
B108: Table 6.7.1 - Last column (# of feeder categories > 4) | C108: =IF(dms_FifthFeeder_flag_NSP="NO",10,12) -> 12 | D108: dms_060701_MaxCols | E108: =IF(dms_FifthFeeder_flag_NSP="NO",8,10)
B109: Table 6.7.1 - Number of offset rows | C109: =IF(dms_Model="ARR",15,9) -> 9 | D109: dms_060701_OffsetRows | E109: =IF(dms_Model="ARR",15,9)
B110: Start date for telephone answering in 6.1 or 6.7? | E110: Using 060701 as naming standard not 060101
B111: Table 6.1.1 and 6.7.1 - Start Date as Text | C111: =IF(SUM(dms_SingleYear_Model)>0,(CONCATENATE(IF(LEN(CRY)=4,"1-Jan-","1-Jul-"),LEFT(CRY,4))),(CONCATENATE(IF(LEN(CRCP_y4)=4,"1-Jan-","1-Jul-"),LEFT(CRCP_y4,4)))) -> 1-Jul-2017 | D111: dms_060701_StartDateTxt | E111: =IF(SUM(dms_SingleYear_Model)>1,(CONCATENATE(IF(LEN(CRY)=4,"1-Jan-","1-Jul-"),LEFT(CRY,4))),(CONCATENATE(IF(LEN(CRCP_y4)=4,"1-Jan-","1-Jul-"),LEFT(CRCP_y4,4))))
B112: Table 6.1.1 and 6.7.1 - Start Date as Date Value | C112: =DATEVALUE(dms_060701_StartDateTxt) -> 42917 | D112: dms_060701_StartDateVal | E112: =DATEVALUE(dms_060701_StartDateTxt)
B113: FOR ARRs
B114: How many rows in table 6.8? | C114: insert dms_060801_StartCell NR if required | D114: dms_060801_StartCell is only found on worksheet 6.8 and is used to determine the starting date for the date range
B115: Table 6.8 - Number of offset rows | C115: =IFERROR(IF(dms_Model="ARR",(ROW(dms_060801_StartCell)-1),"not an ARR"),"6.8 not present") -> not an ARR | D115: dms_0608_OffsetRows | E115: =IFERROR(IF(dms_Model="ARR",(ROW(dms_060801_StartCell)-1),"not an ARR"),"6.8 not present")
B116: Table 6.8 - Last row | C116: =IFERROR(IF(dms_060801_StartCell<>"",IF(dms_Model="ARR",(LOOKUP(2,1/(dms_060801_01_Values<>""),(ROW(dms_060801_01_Values)))),"not an ARR"),0),"6.8 not present") -> 6.8 not present | D116: dms_0608_LastRow | E116: =IFERROR(IF(dms_060801_StartCell<>"",IF(dms_Model="ARR",(LOOKUP(2,1/(dms_060801_01_Values<>""),(ROW(dms_060801_01_Values)))),"not an ARR"),0),"6.8 not present")
B117: Table 6.8 - MaxRows | C117: =IFERROR(IF(dms_Model="ARR",(MAX(0,dms_0608_LastRow-dms_0608_OffsetRows)),"not an ARR"),"6.8 not present") -> not an ARR | D117: dms_060801_MaxRows | E117: =IFERROR(IF(dms_Model="ARR",(MAX(0,dms_0608_LastRow-dms_0608_OffsetRows)),"not an ARR"),"6.8 not present")
B118: FOR TNSP RESET RINS
B119: Table 7.9.4 only appears in TNSPs Reset RIN
B120: Table 7.9.4 - first year | C120: =LEFT(PRCP_y3,4) -> 2012 | D120: dms_070904_Start_Year | E120: =LEFT(PRCP_y3,4)
B121: FOR SUBSET FILES
B122: Is this Submission File a Subset File | C122: NO | D122: dms_Partial
B123: MISC
B124: Distribution Determination Reference | C124: =INDEX(dms_DeterminationRef_List,MATCH(dms_TradingName,dms_TradingName_List)) -> transmission determination | D124: dms_DeterminationRef
B125: CBD Feeder for this business | C125: =INDEX(dms_CBD_flag,MATCH(dms_TradingName,dms_TradingName_List)) -> n/a | D125: dms_CBD_flag_NSP
B126: Urban Feeder for this business | C126: =INDEX(dms_Urban_flag,MATCH(dms_TradingName,dms_TradingName_List)) -> n/a | D126: dms_Urban_flag_NSP
B127: Short rural Feeder for this business | C127: =INDEX(dms_ShortRural_flag,MATCH(dms_TradingName,dms_TradingName_List)) -> n/a | D127: dms_ShortRural_flag_NSP
B128: Long rural Feeder for this business | C128: =INDEX(dms_LongRural_flag,MATCH(dms_TradingName,dms_TradingName_List)) -> n/a | D128: dms_LongRural_flag_NSP
B129: Fifth Feeder Category (eg. TasNetworks (D)) | C129: =INDEX(dms_FeederType_5_flag,MATCH(dms_TradingName,dms_TradingName_List)) -> n/a | D129: dms_FifthFeeder_flag_NSP | E129: =INDEX(dms_FeederType_5_flag,MATCH(dms_TradingName,dms_TradingName_List))
B131: DISCARD FILES
B132: discard this record? | C132: NO | D132: dms_DISCARD | E132: If record is to be discarded from DB set this flag to YES
B134: USES NAMED RANGES FLAG | C134: yes | D134: dms_Defined_Names_Used
B136: REGULATORY YEARS FOR MULTI RYE SUBMISSIONS
B137: Multiple RYE flag | C137: NO | D137: dms_Multi_RYE_flag
C138: Manually specify RYE | D138: Named ranges to apply
C139: 2013 | D139: dms_RYE_01
C140: 2014 | D140: dms_RYE_02
C141: 2015 | D141: dms_RYE_03
C142: 2016 | D142: dms_RYE_04
C143: 2017 | D143: dms_RYE_05

Sheet 2.1 Expenditure summary
B1: REGULATORY REPORTING STATEMENT
B2: =INDEX(dms_TradingNameFull_List,MATCH(dms_TradingName,dms_TradingName_List)) -> Queensland Electricity Transmission Corporation Limited trading as Powerlink Queensland
B3: =CONCATENATE((LOOKUP(dms_Model,dms_Model_List,dms_Worksheet_List))&" "&CRY) -> CATEGORY ANALYSIS 2017-18
B4: 2.1 EXPENDITURE SUMMARY AND RECONCILIATION
B6: There are TWO tables on this worksheet. Each has been grouped for ease of navigation. See the Instructions sheet on how to group or ungroup tables.
B8: 2.1.1 - PRESCRIBED TRANSMISSION SERVICES CAPEX (as incurred)
C9: Actual ($0's)
C10: =CRY -> 2017-18
B11: Replacement expenditure | C11: 62647967
B12: Connections | C12: 0
B13: Augmentation Expenditure | C13: 2180677
B14: Non-network | C14: 34717170
B15: Capitalised network overheads | C15: 0
B16: Capitalised corporate overheads | C16: 8352767
B32: balancing item | C32: 41526265
B33: TOTAL CAPEX | C33: =+SUM(C11:C32) -> 149424846
B35: 2.1.2 - PRESCRIBED TRANSMISSION SERVICE OPEX
C36: Actual ($0's)
C37: =CRY -> 2017-18
B38: Vegetation management | C38: 12704312
B39: Maintenance | C39: 75893120
B40: Non-network | C40: 29040716
B41: Network overheads | C41: 48792176
B42: Corporate overheads | C42: 72647517
B58: balancing item | C58: -45565620
B59: TOTAL OPEX | C59: =SUM(C38:C58) -> 193512221

Sheet 2.2 Repex
B1: REGULATORY REPORTING STATEMENT
B2: =INDEX(dms_TradingNameFull_List,MATCH(dms_TradingName,dms_TradingName_List)) -> Queensland Electricity Transmission Corporation Limited trading as Powerlink Queensland
B3: =CONCATENATE((LOOKUP(dms_Model,dms_Model_List,dms_Worksheet_List))&" "&CRY) -> CATEGORY ANALYSIS 2017-18
B4: 2.2 REPEX
B6: There are TWO tables (with three sub-tables each) on this worksheet. Each table has been grouped (and sub-grouped) for ease of navigation. See the Instructions sheet on how to group or ungroup data.
B8: 2.2.1 - REPLACEMENT EXPENDITURE, VOLUMES AND ASSET FAILURES BY ASSET CATEGORY
D9: EXPENDITURE ($0's) | E9: ASSET REPLACEMENTS | F9: ASSET FAILURES
B10: ASSET GROUP | C10: ASSET CATEGORY | D10: =CRY -> 2017-18 | E10: =CRY -> 2017-18 | F10: =CRY -> 2017-18
B11: TRANSMISSION TOWERS Highest operating voltage; Circuit configuration | C11: < = 33 kV ; Single Circuit
C12: > 33 kV & < = 66 kV ; Single Circuit
C13: > 66 kV & < = 132 kV ; Single Circuit | E13: 2
C14: > 132 kV & < = 275 kV ; Single Circuit
C15: > 275 kV & < = 330 kV ; Single Circuit
C16: > 330 kV & < = 500 kV ; Single Circuit
C17: > 500 kV ; Single Circuit
C18: < = 33 kV ; Multiple Circuit
C19: > 33 kV & < = 66 kV ; Multiple Circuit
C20: > 66 kV & < = 132 kV ; Multiple Circuit | E20: 12
C21: > 132 kV & < = 275 kV ; Multiple Circuit
C22: > 275 kV & < = 330 kV ; Multiple Circuit
C23: > 330 kV & < = 500 kV ; Multiple Circuit
C24: > 500 kV ; Multiple Circuit
C25: Other
B26: TRANSMISSION TOWER SUPPORT STRUCTURES BY: Highest operating voltage; Circuit configuration | C26: < = 33 kV ; Single Circuit
C27: > 33 kV & < = 66 kV ; Single Circuit
C28: > 66 kV & < = 132 kV ; Single Circuit
C29: > 132 kV & < = 275 kV ; Single Circuit
C30: > 275 kV & < = 330 kV ; Single Circuit
C31: > 330 kV & < = 500 kV ; Single Circuit
C32: > 500 kV ; Single Circuit
C33: < = 33 kV ; Multiple Circuit
C34: > 33 kV & < = 66 kV ; Multiple Circuit
C35: > 66 kV & < = 132 kV ; Multiple Circuit
C36: > 132 kV & < = 275 kV ; Multiple Circuit
C37: > 275 kV & < = 330 kV ; Multiple Circuit
C38: > 330 kV & < = 500 kV ; Multiple Circuit
C39: > 500 kV ; Multiple Circuit
C40: Other
B41: CONDUCTORS BY: Voltage; Maximum continuous rating | C41: < = 33 kV ; < = 100 MVA
C42: < = 33 kV ; > 100 MVA & < = 400 MVA
C43: < = 33 kV ; > 400 MVA
C44: > 33 kV & < = 66 kV ; < = 100 MVA
C45: > 33 kV & < = 66 kV ; > 100 MVA & < = 400 MVA
C46: > 33 kV & < = 66 kV ; > 400 MVA
C47: > 66 kV & < = 132 kV ; < = 100 MVA | E47: 7.3
C48: > 66 kV & < = 132 kV ; > 100 MVA & < = 400 MVA
C49: > 66 kV & < = 132 kV ; > 400 MVA
C50: > 132 kV & < = 275 kV ; < = 200 MVA
C51: > 132 kV & < = 275 kV ; > 200 MVA & < = 600 MVA
C52: > 132 kV & < = 275 kV ; > 600 MVA
C53: > 275 kV & < = 330 kV ; < = 800 MVA
C54: > 275 kV & < = 330 kV ; > 800 MVA & < = 1200 MVA
C55: > 275 kV & < = 330 kV ; > 1200 MVA
C56: > 330 kV & < = 500 kV ; < = 1000 MVA
C57: > 330 kV & < = 500 kV ; > 1000 MVA & < = 1500 MVA
C58: > 330 kV & < = 500 kV ; > 1500 MVA
C59: > 500 kV ; < = 2000 MVA
C60: > 500 kV ; > 2000 MVA & < = 3000 MVA
C61: > 500 kV ; > 3000 MVA
C62: Other
B63: TRANSMISSION CABLES BY: Highest operating voltage; Insulation type | C63: < = 33 kV ; Oil Filled
C64: > 33 kV & < = 66 kV ; Oil Filled
C65: > 66 kV & < = 132 kV ; Oil Filled
C66: > 132 kV & < = 275 kV ; Oil Filled
C67: > 275 kV & < = 330 kV ; Oil Filled
C68: > 330 kV & < = 500 kV ; Oil Filled
C69: > 500 kV ; Oil Filled
C70: < = 33 kV ; XLPE Insulated
C71: > 33 kV & < = 66 kV ; XLPE Insulated
C72: > 66 kV & < = 132 kV ; XLPE Insulated
C73: > 132 kV & < = 275 kV ; XLPE Insulated
C74: > 275 kV & < = 330 kV ; XLPE Insulated
C75: > 330 kV & < = 500 kV ; XLPE Insulated
C76: > 500 kV ; XLPE Insulated
C77: < = 33 kV ; Other Insulated
C78: > 33 kV & < = 66 kV ; Other Insulated
C79: > 66 kV & < = 132 kV ; Other Insulated
C80: > 132 kV & < = 275 kV ; Other Insulated
C81: > 275 kV & < = 330 kV ; Other Insulated
C82: > 330 kV & < = 500 kV ; Other Insulated
C83: > 500 kV ; Other Insulated
C84: Other
B85: SUBSTATION SWITCHBAYS BY: Highest operating voltage; Switch type | C85: < = 33 kV ; Air Insulated circuit Breaker
C86: > 33 kV & < = 66 kV ; Air Insulated circuit Breaker
C87: > 66 kV & < = 132 kV ; Air Insulated circuit Breaker | E87: 13
C88: > 132 kV & < = 275 kV ; Air Insulated circuit Breaker
C89: > 275 kV & < = 330 kV ; Air Insulated circuit Breaker
C90: > 330 kV & < = 500 kV ; Air Insulated circuit Breaker
C91: > 500 kV ; Air Insulated circuit Breaker
C92: < = 33 kV ; Air Insulated Isolators / Earth Switch
C93: > 33 kV & < = 66 kV ; Air Insulated Isolators / Earth Switch
C94: > 66 kV & < = 132 kV ; Air Insulated Isolators / Earth Switch | E94: 39
C95: > 132 kV & < = 275 kV ; Air Insulated Isolators / Earth Switch | E95: 3
C96: > 275 kV & < = 330 kV ; Air Insulated Isolators / Earth Switch
C97: > 330 kV & < = 500 kV ; Air Insulated Isolators / Earth Switch
C98: > 500 kV ; Air Insulated Isolators / Earth Switch
C99: < = 33 kV ; VT
C100: > 33 kV & < = 66 kV ; VT | E100: 6
C101: > 66 kV & < = 132 kV ; VT | E101: 18
C102: > 132 kV & < = 275 kV ; VT
C103: > 275 kV & < = 330 kV ; VT
C104: > 330 kV & < = 500 kV ; VT
C105: > 500 kV ; VT
C106: < = 33 kV ; CT
C107: > 33 kV & < = 66 kV ; CT | E107: 6
C108: > 66 kV & < = 132 kV ; CT | E108: 6
C109: > 132 kV & < = 275 kV ; CT
C110: > 275 kV & < = 330 kV ; CT
C111: > 330 kV & < = 500 kV ; CT
C112: > 500 kV ; CT
C113: < = 33 kV ; GIS Module
C114: > 33 kV & < = 66 kV ; GIS Module
C115: > 66 kV & < = 132 kV ; GIS Module
C116: > 132 kV & < = 275 kV ; GIS Module
C117: > 275 kV & < = 330 kV ; GIS Module
C118: > 330 kV & < = 500 kV ; GIS Module
C119: > 500 kV ; GIS Module
C120: Other
B121: SUBSTATION POWER TRANSFORMERS BY: Highest operating voltage; Ampere rating | C121: < = 33 kV ; < = 10 MVA
C122: < = 33 kV ; > 10 MVA & < = 30 MVA
C123: < = 33 kV ; > 30 MVA
C124: > 33 kV & < = 66 kV ; < = 10 MVA
C125: > 33 kV & < = 66 kV ; > 10 MVA & < = 30 MVA
C126: > 33 kV & < = 66 kV ; > 30 MVA
C127: > 66 kV & < = 132 kV ; < = 30 MVA
C128: > 66 kV & < = 132 kV ; > 30 MVA & < = 60 MVA
C129: > 66 kV & < = 132 kV ; > 60 MVA
C130: > 132 kV & < = 220 kV ; < = 50 MVA
C131: > 132 kV & < = 220 kV ; > 50 MVA & < = 100 MVA
C132: > 132 kV & < = 220 kV ; > 100 MVA
C133: > 220 kV & < = 275 kV ; < = 50 MVA
C134: > 220 kV & < = 275 kV ; > 50 MVA & < = 100 MVA
C135: > 220 kV & < = 275 kV ; > 100 MVA
C136: > 275 kV & < = 330 kV ; < = 100 MVA
C137: > 275 kV & < = 330 kV ; > 100 MVA & < = 250 MVA
C138: > 275 kV & < = 330 kV ; > 250 MVA
C139: > 330 kV & < = 500 kV ; < = 150 MVA
C140: > 330 kV & < = 500 kV ; > 150 MVA & < = 300 MVA
C141: > 330 kV & < = 500 kV ; > 300 MVA
C142: > 500 kV ; < = 1000 MVA
C143: > 500 kV ; > 1000 MVA & < = 1500 MVA
C144: > 500 kV ; > 1500 MVA
C145: Other
B146: SUBSTATION REACTIVE PLANT BY: Highest operating voltage; Function | C146: < = 33 kV ; SVCS
C147: > 33 kV & < = 66 kV ; SVCS
C148: > 66 kV & < = 132 kV ; SVCS
C149: > 132 kV & < = 275 kV ; SVCS
C150: > 275 kV & < = 330 kV ; SVCS
C151: > 330 kV & < = 500 kV ; SVCS
C152: > 500 kV ; SVCS
C153: < = 33 kV ; Capacitors
C154: > 33 kV & < = 66 kV ; Capacitors
C155: > 66 kV & < = 132 kV ; Capacitors
C156: > 132 kV & < = 275 kV ; Capacitors
C157: > 275 kV & < = 330 kV ; Capacitors
C158: > 330 kV & < = 500 kV ; Capacitors
C159: > 500 kV ; Capacitors
C160: < = 33 kV ; Oil Filled Reactors
C161: > 33 kV & < = 66 kV ; Oil Filled Reactors
C162: > 66 kV & < = 132 kV ; Oil Filled Reactors
C163: > 132 kV & < = 275 kV ; Oil Filled Reactors
C164: > 275 kV & < = 330 kV ; Oil Filled Reactors
C165: > 330 kV & < = 500 kV ; Oil Filled Reactors
C166: > 500 kV ; Oil Filled Reactors
C167: Other
B168: SCADA, NETWORK CONTROL AND PROTECTION SYSTEMS BY: Function | C168: Communications Network Assets | E168: 10
C169: Master Station Assets
C170: Control equipment / systems
C171: Infrastructure: protection and control
C172: Metering systems
C173: OPGW | E173: 7.3
C174: Protection schemes / systems
C175: Site establishment
C176: Station SCADA and control systems
C177: Telecommunications Network / Systems
C178: Total secondary systems | E178: 26
C179: Other
B180: OTHER BY: TNSP defined | C180: <NSP to enter description for Asset Group/Category not listed above>
C181: Substation Buildings | E181: 3
C182: Substation Site Infrastructure | E182: 3
C183: Other
B211: 2.2.2 - SELECTED ASSET CHARACTERISTICS
D212: ASSET VOLUMES CURRENTLY IN COMMISSION | E212: ASSET REPLACEMENTS
B213: ASSET GROUP | C213: ASSET CATEGORY | D213: =CRY -> 2017-18 | E213: =CRY -> 2017-18
B214: CONDUCTORS BY: CONDUCTOR LENGTH MATERIAL TYPE | C214: AAAC | D214: 7854 | E214: 7
C215: AAC | D215: 0
C216: ACAR | D216: 0
C217: ACSR | D217: 6655
C218: HD Cu | D218: 0
B247: SUBSTATION REACTIVE PLANT BY: REACTIVE CAPACITY | C247: Total MVAr by SVCs | D247: 3361
C248: Total MVAr by Capacitors | D248: 7536.2
C249: Total MVAr by Oil Filled Reactors | D249: 1032.4

Sheet 2.3 Augex
B1: REGULATORY REPORTING STATEMENT
B2: =INDEX(dms_TradingNameFull_List,MATCH(dms_TradingName,dms_TradingName_List)) -> Queensland Electricity Transmission Corporation Limited trading as Powerlink Queensland
B3: =CONCATENATE((LOOKUP(dms_Model,dms_Model_List,dms_Worksheet_List))&" "&CRY) -> CATEGORY ANALYSIS 2017-18
B4: 2.3 AUGEX PROJECTS
B6: There are THREE tables on this worksheet - each has been 'grouped' for easy navigation. Both ROWS and COLUMNS have been grouped. See the Instructions sheet on how to group or ungroup tables.
B8: 2.3.1 - AUGEX ASSET DATA - SUBSTATIONS
B9: NOTE: TNSP MUST PROVIDE EXPENDITURE INFORMATION ON A PROJECT CLOSE BASIS.
B10: SUBSTATION AND PROJECT SUMMARY | L10: PLANT AND EQUIPMENT EXPENDITURE AND VOLUME | Z10: OTHER EXPENDITURE | AB10: TOTAL DIRECT EXPENDITURE ($0's) | AC10: YEARS INCURRED | AD10: RELATED PARTY CONTRACTS | AG10: LAND AND EASEMENTS
B11: SUBSTATION ID | C11: SUBSTATION TYPE | D11: PROJECT ID | E11: PROJECT TYPE | F11: PROJECT TRIGGER | G11: VOLTAGE (KV) | H11: SUBSTATION RATING NORMAL CYCLIC (MVA) | J11: SUBSTATION RATING N-1 EMERGENCY (MVA) | L11: TRANSFORMERS | P11: SWITCHGEAR | S11: REACTIVE PLANT | W11: OTHER PLANT ITEM | X11: INSTALLATION (LABOUR) | Z11: CIVIL WORKS | AA11: OTHER DIRECT | AD11: RELATED PARTY MARGINS | AE11: TOTAL | AF11: ALL NON RELATED PARTYCONTRACTS | AG11: LAND PURCHASES | AH11: EASEMENTS | AI11: Comments
H12: PRE | I12: POST | J12: PRE | K12: POST | L12: Units Added | M12: MVA Added | N12: OLTC INCLUDED? | O12: Expenditure ($0's) | P12: Insulation | Q12: Units Added | R12: Expenditure ($0's) | S12: Plant Type | T12: Units Added | U12: Expenditure ($0's) | W12: Expenditure ($0's) | X12: Volume | Y12: Expenditure ($0's) | Z12: Expenditure ($0's) | AD12: Expenditure ($0's) | AG12: Expenditure ($0's)
B13: <Enter substation ID>
B20: Project Totals | L20: =SUM(L13:L19) -> 0 | M20: =SUM(M13:M19) -> 0 | O20: =SUM(O13:O19) -> 0 | Q20: =SUM(Q13:Q19) -> 0 | R20: =SUM(R13:R19) -> 0 | T20: =SUM(T13:T19) -> 0 | U20: =SUM(U13:U19) -> 0 | W20: =SUM(W13:W19) -> 0 | X20: =SUM(X13:X19) -> 0 | Y20: =SUM(Y13:Y19) -> 0 | Z20: =SUM(Z13) -> 0 | AA20: =SUM(AA13) -> 0 | AB20: =O20+R20+U20+W20+SUM(Y20:AA20) -> 0 | AD20: =SUM(AD13) -> 0 | AE20: =SUM(AE13) -> 0 | AF20: =SUM(AF13) -> 0 | AG20: =SUM(AG13) -> 0 | AH20: =SUM(AH13) -> 0
B21: <Enter substation ID>
B28: Project Totals | L28: =SUM(L21:L27) -> 0 | M28: =SUM(M21:M27) -> 0 | O28: =SUM(O21:O27) -> 0 | Q28: =SUM(Q21:Q27) -> 0 | R28: =SUM(R21:R27) -> 0 | T28: =SUM(T21:T27) -> 0 | U28: =SUM(U21:U27) -> 0 | W28: =SUM(W21:W27) -> 0 | X28: =SUM(X21:X27) -> 0 | Y28: =SUM(Y21:Y27) -> 0 | Z28: =SUM(Z21) -> 0 | AA28: =SUM(AA21) -> 0 | AB28: =O28+R28+U28+W28+SUM(Y28:AA28) -> 0 | AD28: =SUM(AD21) -> 0 | AE28: =SUM(AE21) -> 0 | AF28: =SUM(AF21) -> 0 | AG28: =SUM(AG21) -> 0 | AH28: =SUM(AH21) -> 0
B29: <Enter substation ID>
B36: Project Totals | L36: =SUM(L29:L35) -> 0 | M36: =SUM(M29:M35) -> 0 | O36: =SUM(O29:O35) -> 0 | Q36: =SUM(Q29:Q35) -> 0 | R36: =SUM(R29:R35) -> 0 | T36: =SUM(T29:T35) -> 0 | U36: =SUM(U29:U35) -> 0 | W36: =SUM(W29:W35) -> 0 | X36: =SUM(X29:X35) -> 0 | Y36: =SUM(Y29:Y35) -> 0 | Z36: =SUM(Z29) -> 0 | AA36: =SUM(AA29) -> 0 | AB36: =O36+R36+U36+W36+SUM(Y36:AA36) -> 0 | AD36: =SUM(AD29) -> 0 | AE36: =SUM(AE29) -> 0 | AF36: =SUM(AF29) -> 0 | AG36: =SUM(AG29) -> 0 | AH36: =SUM(AH29) -> 0
B37: <Enter substation ID>
B44: Project Totals | L44: =SUM(L37:L43) -> 0 | M44: =SUM(M37:M43) -> 0 | O44: =SUM(O37:O43) -> 0 | Q44: =SUM(Q37:Q43) -> 0 | R44: =SUM(R37:R43) -> 0 | T44: =SUM(T37:T43) -> 0 | U44: =SUM(U37:U43) -> 0 | W44: =SUM(W37:W43) -> 0 | X44: =SUM(X37:X43) -> 0 | Y44: =SUM(Y37:Y43) -> 0 | Z44: =SUM(Z37) -> 0 | AA44: =SUM(AA37) -> 0 | AB44: =O44+R44+U44+W44+SUM(Y44:AA44) -> 0 | AD44: =SUM(AD37) -> 0 | AE44: =SUM(AE37) -> 0 | AF44: =SUM(AF37) -> 0 | AG44: =SUM(AG37) -> 0 | AH44: =SUM(AH37) -> 0
B45: <Enter substation ID>
B52: Project Totals | L52: =SUM(L45:L51) -> 0 | M52: =SUM(M45:M51) -> 0 | O52: =SUM(O45:O51) -> 0 | Q52: =SUM(Q45:Q51) -> 0 | R52: =SUM(R45:R51) -> 0 | T52: =SUM(T45:T51) -> 0 | U52: =SUM(U45:U51) -> 0 | W52: =SUM(W45:W51) -> 0 | X52: =SUM(X45:X51) -> 0 | Y52: =SUM(Y45:Y51) -> 0 | Z52: =SUM(Z45) -> 0 | AA52: =SUM(AA45) -> 0 | AB52: =O52+R52+U52+W52+SUM(Y52:AA52) -> 0 | AD52: =SUM(AD45) -> 0 | AE52: =SUM(AE45) -> 0 | AF52: =SUM(AF45) -> 0 | AG52: =SUM(AG45) -> 0 | AH52: =SUM(AH45) -> 0
B53: <Enter substation ID>
B60: Project Totals | L60: =SUM(L53:L59) -> 0 | M60: =SUM(M53:M59) -> 0 | O60: =SUM(O53:O59) -> 0 | Q60: =SUM(Q53:Q59) -> 0 | R60: =SUM(R53:R59) -> 0 | T60: =SUM(T53:T59) -> 0 | U60: =SUM(U53:U59) -> 0 | W60: =SUM(W53:W59) -> 0 | X60: =SUM(X53:X59) -> 0 | Y60: =SUM(Y53:Y59) -> 0 | Z60: =SUM(Z53) -> 0 | AA60: =SUM(AA53) -> 0 | AB60: =O60+R60+U60+W60+SUM(Y60:AA60) -> 0 | AD60: =SUM(AD53) -> 0 | AE60: =SUM(AE53) -> 0 | AF60: =SUM(AF53) -> 0 | AG60: =SUM(AG53) -> 0 | AH60: =SUM(AH53) -> 0
B61: <Enter substation ID>
B68: Project Totals | L68: =SUM(L61:L67) -> 0 | M68: =SUM(M61:M67) -> 0 | O68: =SUM(O61:O67) -> 0 | Q68: =SUM(Q61:Q67) -> 0 | R68: =SUM(R61:R67) -> 0 | T68: =SUM(T61:T67) -> 0 | U68: =SUM(U61:U67) -> 0 | W68: =SUM(W61:W67) -> 0 | X68: =SUM(X61:X67) -> 0 | Y68: =SUM(Y61:Y67) -> 0 | Z68: =SUM(Z61) -> 0 | AA68: =SUM(AA61) -> 0 | AB68: =O68+R68+U68+W68+SUM(Y68:AA68) -> 0 | AD68: =SUM(AD61) -> 0 | AE68: =SUM(AE61) -> 0 | AF68: =SUM(AF61) -> 0 | AG68: =SUM(AG61) -> 0 | AH68: =SUM(AH61) -> 0
B69: <Enter substation ID>
B76: Project Totals | L76: =SUM(L69:L75) -> 0 | M76: =SUM(M69:M75) -> 0 | O76: =SUM(O69:O75) -> 0 | Q76: =SUM(Q69:Q75) -> 0 | R76: =SUM(R69:R75) -> 0 | T76: =SUM(T69:T75) -> 0 | U76: =SUM(U69:U75) -> 0 | W76: =SUM(W69:W75) -> 0 | X76: =SUM(X69:X75) -> 0 | Y76: =SUM(Y69:Y75) -> 0 | Z76: =SUM(Z69) -> 0 | AA76: =SUM(AA69) -> 0 | AB76: =O76+R76+U76+W76+SUM(Y76:AA76) -> 0 | AD76: =SUM(AD69) -> 0 | AE76: =SUM(AE69) -> 0 | AF76: =SUM(AF69) -> 0 | AG76: =SUM(AG69) -> 0 | AH76: =SUM(AH69) -> 0
B77: <Enter substation ID>
B84: Project Totals | L84: =SUM(L77:L83) -> 0 | M84: =SUM(M77:M83) -> 0 | O84: =SUM(O77:O83) -> 0 | Q84: =SUM(Q77:Q83) -> 0 | R84: =SUM(R77:R83) -> 0 | T84: =SUM(T77:T83) -> 0 | U84: =SUM(U77:U83) -> 0 | W84: =SUM(W77:W83) -> 0 | X84: =SUM(X77:X83) -> 0 | Y84: =SUM(Y77:Y83) -> 0 | Z84: =SUM(Z77) -> 0 | AA84: =SUM(AA77) -> 0 | AB84: =O84+R84+U84+W84+SUM(Y84:AA84) -> 0 | AD84: =SUM(AD77) -> 0 | AE84: =SUM(AE77) -> 0 | AF84: =SUM(AF77) -> 0 | AG84: =SUM(AG77) -> 0 | AH84: =SUM(AH77) -> 0
B85: <Enter substation ID>
B92: Project Totals | L92: =SUM(L85:L91) -> 0 | M92: =SUM(M85:M91) -> 0 | O92: =SUM(O85:O91) -> 0 | Q92: =SUM(Q85:Q91) -> 0 | R92: =SUM(R85:R91) -> 0 | T92: =SUM(T85:T91) -> 0 | U92: =SUM(U85:U91) -> 0 | W92: =SUM(W85:W91) -> 0 | X92: =SUM(X85:X91) -> 0 | Y92: =SUM(Y85:Y91) -> 0 | Z92: =SUM(Z85) -> 0 | AA92: =SUM(AA85) -> 0 | AB92: =O92+R92+U92+W92+SUM(Y92:AA92) -> 0 | AD92: =SUM(AD85) -> 0 | AE92: =SUM(AE85) -> 0 | AF92: =SUM(AF85) -> 0 | AG92: =SUM(AG85) -> 0 | AH92: =SUM(AH85) -> 0
B93: <Enter substation ID>
B100: Project Totals | L100: =SUM(L93:L99) -> 0 | M100: =SUM(M93:M99) -> 0 | O100: =SUM(O93:O99) -> 0 | Q100: =SUM(Q93:Q99) -> 0 | R100: =SUM(R93:R99) -> 0 | T100: =SUM(T93:T99) -> 0 | U100: =SUM(U93:U99) -> 0 | W100: =SUM(W93:W99) -> 0 | X100: =SUM(X93:X99) -> 0 | Y100: =SUM(Y93:Y99) -> 0 | Z100: =SUM(Z93) -> 0 | AA100: =SUM(AA93) -> 0 | AB100: =O100+R100+U100+W100+SUM(Y100:AA100) -> 0 | AD100: =SUM(AD93) -> 0 | AE100: =SUM(AE93) -> 0 | AF100: =SUM(AF93) -> 0 | AG100: =SUM(AG93) -> 0 | AH100: =SUM(AH93) -> 0
B101: <Enter substation ID>
B108: Project Totals | L108: =SUM(L101:L107) -> 0 | M108: =SUM(M101:M107) -> 0 | O108: =SUM(O101:O107) -> 0 | Q108: =SUM(Q101:Q107) -> 0 | R108: =SUM(R101:R107) -> 0 | T108: =SUM(T101:T107) -> 0 | U108: =SUM(U101:U107) -> 0 | W108: =SUM(W101:W107) -> 0 | X108: =SUM(X101:X107) -> 0 | Y108: =SUM(Y101:Y107) -> 0 | Z108: =SUM(Z101) -> 0 | AA108: =SUM(AA101) -> 0 | AB108: =O108+R108+U108+W108+SUM(Y108:AA108) -> 0 | AD108: =SUM(AD101) -> 0 | AE108: =SUM(AE101) -> 0 | AF108: =SUM(AF101) -> 0 | AG108: =SUM(AG101) -> 0 | AH108: =SUM(AH101) -> 0
B109: <Enter substation ID>
B116: Project Totals | L116: =SUM(L109:L115) -> 0 | M116: =SUM(M109:M115) -> 0 | O116: =SUM(O109:O115) -> 0 | Q116: =SUM(Q109:Q115) -> 0 | R116: =SUM(R109:R115) -> 0 | T116: =SUM(T109:T115) -> 0 | U116: =SUM(U109:U115) -> 0 | W116: =SUM(W109:W115) -> 0 | X116: =SUM(X109:X115) -> 0 | Y116: =SUM(Y109:Y115) -> 0 | Z116: =SUM(Z109) -> 0 | AA116: =SUM(AA109) -> 0 | AB116: =O116+R116+U116+W116+SUM(Y116:AA116) -> 0 | AD116: =SUM(AD109) -> 0 | AE116: =SUM(AE109) -> 0 | AF116: =SUM(AF109) -> 0 | AG116: =SUM(AG109) -> 0 | AH116: =SUM(AH109) -> 0
B117: <Enter substation ID>
B124: Project Totals | L124: =SUM(L117:L123) -> 0 | M124: =SUM(M117:M123) -> 0 | O124: =SUM(O117:O123) -> 0 | Q124: =SUM(Q117:Q123) -> 0 | R124: =SUM(R117:R123) -> 0 | T124: =SUM(T117:T123) -> 0 | U124: =SUM(U117:U123) -> 0 | W124: =SUM(W117:W123) -> 0 | X124: =SUM(X117:X123) -> 0 | Y124: =SUM(Y117:Y123) -> 0 | Z124: =SUM(Z117) -> 0 | AA124: =SUM(AA117) -> 0 | AB124: =O124+R124+U124+W124+SUM(Y124:AA124) -> 0 | AD124: =SUM(AD117) -> 0 | AE124: =SUM(AE117) -> 0 | AF124: =SUM(AF117) -> 0 | AG124: =SUM(AG117) -> 0 | AH124: =SUM(AH117) -> 0
B125: <Enter substation ID>
B132: Project Totals | L132: =SUM(L125:L131) -> 0 | M132: =SUM(M125:M131) -> 0 | O132: =SUM(O125:O131) -> 0 | Q132: =SUM(Q125:Q131) -> 0 | R132: =SUM(R125:R131) -> 0 | T132: =SUM(T125:T131) -> 0 | U132: =SUM(U125:U131) -> 0 | W132: =SUM(W125:W131) -> 0 | X132: =SUM(X125:X131) -> 0 | Y132: =SUM(Y125:Y131) -> 0 | Z132: =SUM(Z125) -> 0 | AA132: =SUM(AA125) -> 0 | AB132: =O132+R132+U132+W132+SUM(Y132:AA132) -> 0 | AD132: =SUM(AD125) -> 0 | AE132: =SUM(AE125) -> 0 | AF132: =SUM(AF125) -> 0 | AG132: =SUM(AG125) -> 0 | AH132: =SUM(AH125) -> 0
D133: Non material projects | AB133: 2180677 | AC133: 2018
D134: Non material projects
B137: 2.3.2 - AUGEX ASSET DATA - LINES
B138: NOTE: TNSP MUST PROVIDE EXPENDITURE INFORMATION ON A PROJECT CLOSE BASIS.
B139: LINE AND PROJECT SUMMARY | L139: PLANT AND EQUIPMENT EXPENDITURE AND VOLUME | Z139: OTHER EXPENDITURE | AB139: TOTAL DIRECT EXPENDITURE ($0's) | AC139: YEARS INCURRED | AD139: ALL RELATED PARTY CONTRACTS | AG139: LAND AND EASEMENTS
B140: LINE ID | D140: PROJECT ID | E140: PROJECT TYPE | F140: PROJECT TRIGGER | G140: VOLTAGE (KV) | H140: ROUTE LINE LENGTH ADDED | L140: TOWERS/POLES (INCLUDING STRUCTURES, AND CIVIL WORKS) | P140: LINES AND CABLES | W140: OTHER PLANT ITEM | X140: INSTALLATION (LABOUR) | Z140: CIVIL WORKS | AA140: OTHER DIRECT | AD140: RELATED PARTY MARGINS | AE140: TOTAL | AF140: ALL NON RELATED PARTYCONTRACTS | AG140: LAND PURCHASES | AH140: EASEMENTS
P141: Type | Q141: Rating (MVA) | S141: N-1 Emergency Rating (MVA) | U141: Circuit KM Added | V141: Expenditure ($0's)
H142: KM ADDED | L142: Configuration | M142: Towers/Poles Added | N142: Towers/Poles Upgraded | O142: Expenditure ($0's) | Q142: PRE | R142: POST | S142: PRE | T142: POST | W142: Expenditure ($0's) | X142: Volume | Y142: Expenditure ($0's) | Z142: Expenditure ($0's) | AD142: Expenditure ($0's) | AG142: Expenditure ($0's)
B143: <Enter line ID>
B150: Project Totals | M150: =SUM(M143:M149) -> 0 | N150: =SUM(N143:N149) -> 0 | O150: =SUM(O143:O149) -> 0 | U150: =SUM(U143:U149) -> 0 | V150: 0 | W150: 0 | X150: 0 | Y150: 0 | Z150: 0 | AA150: 0 | AB150: =O150+R150+U150+W150+SUM(Y150:AA150) -> 0 | AD150: =SUM(AD143:AD149) -> 0 | AE150: =SUM(AE143:AE149) -> 0 | AF150: =SUM(AF143:AF149) -> 0 | AG150: =SUM(AG143:AG149) -> 0 | AH150: =SUM(AH143:AH149) -> 0
B151: <Enter line ID>
B158: Project Totals | M158: =SUM(M151:M157) -> 0 | N158: =SUM(N151:N157) -> 0 | O158: =SUM(O151:O157) -> 0 | U158: =SUM(U151:U157) -> 0 | V158: =SUM(V151:V157) -> 0 | W158: =SUM(W151:W157) -> 0 | X158: 0 | Y158: 0 | Z158: 0 | AA158: 0 | AB158: =O158+R158+U158+W158+SUM(Y158:AA158) -> 0 | AD158: =SUM(AD151:AD157) -> 0 | AE158: =SUM(AE151:AE157) -> 0 | AF158: =SUM(AF151:AF157) -> 0 | AG158: =SUM(AG151:AG157) -> 0 | AH158: =SUM(AH151:AH157) -> 0
B159: <Enter line ID>
B166: Project Totals | M166: =SUM(M159:M165) -> 0 | N166: =SUM(N159:N165) -> 0 | O166: =SUM(O159:O165) -> 0 | U166: =SUM(U159:U165) -> 0 | V166: =SUM(V159:V165) -> 0 | W166: =SUM(W159:W165) -> 0 | X166: 0 | Y166: 0 | Z166: 0 | AA166: 0 | AB166: =O166+R166+U166+W166+SUM(Y166:AA166) -> 0 | AD166: =SUM(AD159:AD165) -> 0 | AE166: =SUM(AE159:AE165) -> 0 | AF166: =SUM(AF159:AF165) -> 0 | AG166: =SUM(AG159:AG165) -> 0 | AH166: =SUM(AH159:AH165) -> 0
B167: <Enter line ID>
B174: Project Totals | M174: =SUM(M167:M173) -> 0 | N174: =SUM(N167:N173) -> 0 | O174: =SUM(O167:O173) -> 0 | U174: =SUM(U167:U173) -> 0 | V174: =SUM(V167:V173) -> 0 | W174: =SUM(W167:W173) -> 0 | X174: 0 | Y174: 0 | Z174: 0 | AA174: 0 | AB174: =O174+R174+U174+W174+SUM(Y174:AA174) -> 0 | AD174: =SUM(AD167:AD173) -> 0 | AE174: =SUM(AE167:AE173) -> 0 | AF174: =SUM(AF167:AF173) -> 0 | AG174: =SUM(AG167:AG173) -> 0 | AH174: =SUM(AH167:AH173) -> 0
B175: <Enter line ID>
B182: Project Totals | M182: =SUM(M175:M181) -> 0 | N182: =SUM(N175:N181) -> 0 | O182: =SUM(O175:O181) -> 0 | U182: =SUM(U175:U181) -> 0 | V182: =SUM(V175:V181) -> 0 | W182: =SUM(W175:W181) -> 0 | X182: 0 | Y182: 0 | Z182: 0 | AA182: 0 | AB182: =O182+R182+U182+W182+SUM(Y182:AA182) -> 0 | AD182: =SUM(AD175:AD181) -> 0 | AE182: =SUM(AE175:AE181) -> 0 | AF182: =SUM(AF175:AF181) -> 0 | AG182: =SUM(AG175:AG181) -> 0 | AH182: =SUM(AH175:AH181) -> 0
B183: <Enter line ID>
B190: Project Totals | M190: =SUM(M183:M189) -> 0 | N190: =SUM(N183:N189) -> 0 | O190: =SUM(O183:O189) -> 0 | U190: =SUM(U183:U189) -> 0 | V190: =SUM(V183:V189) -> 0 | W190: =SUM(W183:W189) -> 0 | X190: 0 | Y190: 0 | Z190: 0 | AA190: 0 | AB190: =O190+R190+U190+W190+SUM(Y190:AA190) -> 0 | AD190: =SUM(AD183:AD189) -> 0 | AE190: =SUM(AE183:AE189) -> 0 | AF190: =SUM(AF183:AF189) -> 0 | AG190: =SUM(AG183:AG189) -> 0 | AH190: =SUM(AH183:AH189) -> 0
B191: <Enter line ID>
B198: Project Totals | M198: =SUM(M191:M197) -> 0 | N198: =SUM(N191:N197) -> 0 | O198: =SUM(O191:O197) -> 0 | U198: =SUM(U191:U197) -> 0 | V198: =SUM(V191:V197) -> 0 | W198: =SUM(W191:W197) -> 0 | X198: 0 | Y198: 0 | Z198: 0 | AA198: 0 | AB198: =O198+R198+U198+W198+SUM(Y198:AA198) -> 0 | AD198: =SUM(AD191:AD197) -> 0 | AE198: =SUM(AE191:AE197) -> 0 | AF198: =SUM(AF191:AF197) -> 0 | AG198: =SUM(AG191:AG197) -> 0 | AH198: =SUM(AH191:AH197) -> 0
D199: Non material projects
D200: Non material projects
D201: Non material projects
B205: 2.3.4 - AUGEX - TOTAL EXPENDITURE
C207: EXPENDITURE ($0's)
B208: AUGMENTATION CAPEX (as incurred) | C208: =CRY -> 2017-18
B209: Substations | C209: 427401.09
B210: Lines
B211: Other assets
B212: Total augmentation capex | C212: =SUM(C209:C211) -> 427401.09

Sheet 2.5 Connections
B1: REGULATORY REPORTING STATEMENT
B2: =INDEX(dms_TradingNameFull_List,MATCH(dms_TradingName,dms_TradingName_List)) -> Queensland Electricity Transmission Corporation Limited trading as Powerlink Queensland
B3: =CONCATENATE((LOOKUP(dms_Model,dms_Model_List,dms_Worksheet_List))&" "&CRY) -> CATEGORY ANALYSIS 2017-18
B4: 2.5 CONNECTIONS EXPENDITURE
B6: There are TWO tables on this worksheet. Each has been grouped (or sub-grouped). See the Instructions sheet on how to group or ungroup data.
B8: 2.5.1 - EXPENDITURE ON CONNECTION PROJECTS
C9: EXPENDITURE ($0's)
B10: CONNECTION PROJECT | C10: =CRY -> 2017-18
B11: DIRECT MATERIALS EXPENDITURE
B12: <Enter project description here…>
B37: DIRECT LABOUR EXPENDITURE
B38: =IF(ISBLANK(B12),"",B12) -> <Enter project description here…>
B66: 2.5.2 - DESCRIPTION OF CONNECTION PROJECTS
C67: CONNECTION RATING (MVA) | D67: CONNECTION VOLTAGE (KV) | E67: UNDERGROUND / OVERHEAD | F67: YEAR CONNECTION PROJECT COMPLETED
B68: =IF(ISBLANK(B12),"",B12) -> <Enter project description here…>

Sheet 2.6 Non-network
B1: REGULATORY REPORTING STATEMENT
B2: =INDEX(dms_TradingNameFull_List,MATCH(dms_TradingName,dms_TradingName_List)) -> Queensland Electricity Transmission Corporation Limited trading as Powerlink Queensland
B3: =CONCATENATE((LOOKUP(dms_Model,dms_Model_List,dms_Worksheet_List))&" "&CRY) -> CATEGORY ANALYSIS 2017-18
B4: 2.6 NON NETWORK EXPENDITURE
B6: There are THREE tables on this worksheet - each has been 'grouped' (and sub-grouped) for easy navigation. See the Instructions sheet on how to group or ungroup tables.
B8: 2.6.1 - NON-NETWORK EXPENDITURE
E9: EXPENDITURE ($0's)
B10: SERVICE SUBCATEGORY | C10: ASSET CATEGORY | E10: =CRY -> 2017-18
B11: OPEX
B12: IT & COMMUNICATIONS | C12: Client device expenditure | E12: 1427327
C13: Recurrent expenditure | E13: 19989253
C14: Non-recurrent expenditure | E14: 0
B15: MOTOR VEHICLES | C15: Car | E15: 286745
C16: Light commercial vehicle | E16: 1498696
C17: Elevated work platform (LCV) | E17: 0
C18: Elevated work platform (HCV) | E18: 0
C19: Heavy commercial vehicle | E19: 155553
B20: BUILDINGS AND PROPERTY | C20: Total buildings and property expenditure | E20: 5423355
B21: OTHER | C21: Other expenditure | E21: 0
B22: OTHER - DNSP nominated | C22: Motor Vehicle - Other | E22: 259787
B33: CAPEX
B34: IT & COMMUNICATIONS | C34: Client device expenditure | E34: 697829
C35: Recurrent expenditure | E35: 6427025
C36: Non-recurrent expenditure | E36: 20772597
B37: MOTOR VEHICLES | C37: Car | E37: 281474
C38: Light commercial vehicle | E38: 1436271
C39: Elevated work platform (LCV) | E39: 0
C40: Elevated work platform (HCV) | E40: 0
C41: Heavy commercial vehicle | E41: 312208
B42: BUILDINGS AND PROPERTY | C42: Total buildings and property expenditure | E42: 2223513
B43: OTHER | C43: Other expenditure | E43: 0
B44: OTHER - DNSP nominated | C44: Motor Vehicle - Other | E44: 726558
C45: Tools and Equipment | E45: 1839695
B58: 2.6.2 - ANNUAL DESCRIPTOR METRICS - IT & COMMUNICATIONS EXPENDITURE
E59: VOLUMES (0's)
B60: NON-NETWORK CATEGORY | C60: DESCRIPTOR METRIC | E60: =CRY -> 2017-18
B61: IT & COMMUNICATIONS | C61: Employee numbers | E61: 842.49
C62: User numbers | E62: 1656
C63: Number of devices | E63: 2042
B66: 2.6.3 - ANNUAL DESCRIPTOR METRICS - MOTOR VEHICLES
E67: VOLUMES / %
B68: ASSET CATEGORY | C68: DESCRIPTOR METRIC | D68: UNITS | E68: =CRY -> 2017-18
B69: CAR | C69: Average kilometres travelled | D69: 0's | E69: 16507
C70: Number purchased | D70: 0's | E70: 6
C71: Number leased | D71: 0's | E71: 0
C72: Number in fleet | D72: 0's | E72: 47
C73: Proportion of total fleet expenditure allocated as regulatory expenditure | D73: (per cent) | E73: 0.808
B74: LIGHT COMMERCIAL VEHICLE | C74: Average kilometres travelled | D74: 0's | E74: 23055
C75: Number purchased | D75: 0's | E75: 15
C76: Number leased | D76: 0's | E76: 0
C77: Number in fleet | D77: 0's | E77: 139
C78: Proportion of total fleet expenditure allocated as regulatory expenditure | D78: (per cent) | E78: 0.808
B79: ELEVATED WORK PLATFORM (LCV) | C79: Average kilometres travelled | D79: 0's | E79: 0
C80: Number purchased | D80: 0's | E80: 0
C81: Number leased | D81: 0's | E81: 0
C82: Number in fleet | D82: 0's | E82: 0
C83: Proportion of total fleet expenditure allocated as regulatory expenditure | D83: (per cent) | E83: 0
B84: ELEVATED WORK PLATFORM (HCV) | C84: Average kilometres travelled | D84: 0's | E84: 0
C85: Number purchased | D85: 0's | E85: 0
C86: Number leased | D86: 0's | E86: 0
C87: Number in fleet | D87: 0's | E87: 0
C88: Proportion of total fleet expenditure allocated as regulatory expenditure | D88: (per cent) | E88: 0
B89: HEAVY COMMERCIAL VEHICLE | C89: Average kilometres travelled | D89: 0's | E89: 14958
C90: Number purchased | D90: 0's | E90: 1
C91: Number leased | D91: 0's | E91: 0
C92: Number in fleet | D92: 0's | E92: 7
C93: Proportion of total fleet expenditure allocated as regulatory expenditure | D93: (per cent) | E93: 0.808

Sheet 2.7 Vegetation management
B1: REGULATORY REPORTING STATEMENT
B2: =INDEX(dms_TradingNameFull_List,MATCH(dms_TradingName,dms_TradingName_List)) -> Queensland Electricity Transmission Corporation Limited trading as Powerlink Queensland
B3: =CONCATENATE((LOOKUP(dms_Model,dms_Model_List,dms_Worksheet_List))&" "&CRY) -> CATEGORY ANALYSIS 2017-18
B4: 2.7 VEGETATION MANAGEMENT
B6: There are THREE tables on this worksheet. Each has been 'grouped' for easy navigation. See the Instructions sheet on how to group or ungroup data.
B8: 2.7.1 - DESCRIPTOR METRICS BY ZONE
E9: VOLUMES
B10: ZONES | C10: ASSET / ENVIRONMENTAL FACTOR | D10: UNITS | E10: =CRY -> 2017-18
B11: ZONE 1 (URBAN) | C11: Route line length within zone | D11: km | E11: 702
C12: Number of maintenance spans | D12: 0's | E12: 1325
C13: Total length of maintenance spans | D13: km | E13: 433
C14: Average number of trees per maintenance span | D14: 0's | E14: 1438
C15: Length of vegetation corridors | D15: km | E15: 702
C16: Average width of vegetation corridors | D16: metres | E16: 52
C17: Average frequency of cutting cycle | D17: years | E17: 1
B18: ZONE 2 (RURAL) | C18: Route line length within zone | D18: km | E18: 7098
C19: Number of maintenance spans | D19: 0's | E19: 4764
C20: Total length of maintenance spans | D20: km | E20: 2023
C21: Average number of trees per maintenance span | D21: 0's | E21: 969
C22: Length of vegetation corridors | D22: km | E22: 2366
C23: Average width of vegetation corridors | D23: metres | E23: 55
C24: Average frequency of cutting cycle | D24: years | E24: 3
B25: ZONE 3 (TROPICAL) | C25: Route line length within zone | D25: km | E25: 1828
C26: Number of maintenance spans | D26: 0's | E26: 2270
C27: Total length of maintenance spans | D27: km | E27: 912
C28: Average number of trees per maintenance span | D28: 0's | E28: 952
C29: Length of vegetation corridors | D29: km | E29: 914
C30: Average width of vegetation corridors | D30: metres | E30: 50
C31: Average frequency of cutting cycle | D31: years | E31: 2
B32: ZONE 4 | C32: Route line length within zone | D32: km
C33: Number of maintenance spans | D33: 0's
C34: Total length of maintenance spans | D34: km
C35: Average number of trees per maintenance span | D35: 0's
C36: Length of vegetation corridors | D36: km
C37: Average width of vegetation corridors | D37: metres
C38: Average frequency of cutting cycle | D38: years
B39: ZONE 5 | C39: Route line length within zone | D39: km
C40: Number of maintenance spans | D40: 0's
C41: Total length of maintenance spans | D41: km
C42: Average number of trees per maintenance span | D42: 0's
C43: Length of vegetation corridors | D43: km
C44: Average width of vegetation corridors | D44: metres
C45: Average frequency of cutting cycle | D45: years
B46: ZONE 6 | C46: Route line length within zone | D46: km
C47: Number of maintenance spans | D47: 0's
C48: Total length of maintenance spans | D48: km
C49: Average number of trees per maintenance span | D49: 0's
C50: Length of vegetation corridors | D50: km
C51: Average width of vegetation corridors | D51: metres
C52: Average frequency of cutting cycle | D52: years
B53: ZONE 7 | C53: Route line length within zone | D53: km
C54: Number of maintenance spans | D54: 0's
C55: Total length of maintenance spans | D55: km
C56: Average number of trees per maintenance span | D56: 0's
C57: Length of vegetation corridors | D57: km
C58: Average width of vegetation corridors | D58: metres
C59: Average frequency of cutting cycle | D59: years
B60: ZONE 8 | C60: Route line length within zone | D60: km
C61: Number of maintenance spans | D61: 0's
C62: Total length of maintenance spans | D62: km
C63: Average number of trees per maintenance span | D63: 0's
C64: Length of vegetation corridors | D64: km
C65: Average width of vegetation corridors | D65: metres
C66: Average frequency of cutting cycle | D66: years
B67: ZONE 9 | C67: Route line length within zone | D67: km
C68: Number of maintenance spans | D68: 0's
C69: Total length of maintenance spans | D69: km
C70: Average number of trees per maintenance span | D70: 0's
C71: Length of vegetation corridors | D71: km
C72: Average width of vegetation corridors | D72: metres
C73: Average frequency of cutting cycle | D73: years
B74: ZONE 10 | C74: Route line length within zone | D74: km
C75: Number of maintenance spans | D75: 0's
C76: Total length of maintenance spans | D76: km
C77: Average number of trees per maintenance span | D77: 0's
C78: Length of vegetation corridors | D78: km
C79: Average width of vegetation corridors | D79: metres
C80: Average frequency of cutting cycle | D80: years
B83: 2.7.2 - EXPENDITURE METRICS BY ZONE
E84: EXPENDITURE ($0's)
B85: ZONES | C85: SERVICE SUBCATEGORY | E85: =CRY -> 2017-18
B86: =B11 -> ZONE 1 (URBAN) | C86: Tree trimming | E86: 304544.04
C87: Vegetation corridor clearance | E87: 2120735.17
C88: Inspection | E88: 82938.7
C89: Audit | E89: 0
C90: Contractor liaison expenditure | E90: 442563.17
C91: Other vegetation management expenditure | E91: 0
B92: =B18 -> ZONE 2 (RURAL) | C92: Tree trimming | E92: 45572.57
C93: Vegetation corridor clearance | E93: 5801572.2
C94: Inspection | E94: 355945.24
C95: Audit | E95: 0
C96: Contractor liaison expenditure | E96: 809200.34
C97: Other vegetation management expenditure | E97: 0
B98: =B25 -> ZONE 3 (TROPICAL) | C98: Tree trimming | E98: 308173.09
C99: Vegetation corridor clearance | E99: 2057975.08
C100: Inspection | E100: 65633.84
C101: Audit | E101: 0
C102: Contractor liaison expenditure | E102: 309458.65
C103: Other vegetation management expenditure | E103: 0
B104: =B32 -> ZONE 4 | C104: Tree trimming
C105: Vegetation corridor clearance
C106: Inspection
C107: Audit
C108: Contractor liaison expenditure
C109: Other vegetation management expenditure
B110: =B39 -> ZONE 5 | C110: Tree trimming
C111: Vegetation corridor clearance
C112: Inspection
C113: Audit
C114: Contractor liaison expenditure
C115: Other vegetation management expenditure
B116: =B46 -> ZONE 6 | C116: Tree trimming
C117: Vegetation corridor clearance
C118: Inspection
C119: Audit
C120: Contractor liaison expenditure
C121: Other vegetation management expenditure
B122: =B53 -> ZONE 7 | C122: Tree trimming
C123: Vegetation corridor clearance
C124: Inspection
C125: Audit
C126: Contractor liaison expenditure
C127: Other vegetation management expenditure
B128: =B60 -> ZONE 8 | C128: Tree trimming
C129: Vegetation corridor clearance
C130: Inspection
C131: Audit
C132: Contractor liaison expenditure
C133: Other vegetation management expenditure
B134: =B67 -> ZONE 9 | C134: Tree trimming
C135: Vegetation corridor clearance
C136: Inspection
C137: Audit
C138: Contractor liaison expenditure
C139: Other vegetation management expenditure
B140: =B74 -> ZONE 10 | C140: Tree trimming
C141: Vegetation corridor clearance
C142: Inspection
C143: Audit
C144: Contractor liaison expenditure
C145: Other vegetation management expenditure
B148: 2.7.3 - DESCRIPTOR METRICS ACROSS ALL ZONES - UNPLANNED VEGETATION EVENTS
E149: VOLUMES (0's)
B150: DESCRIPTOR METRIC | E150: =CRY -> 2017-18
B151: Number of fire starts caused by vegetation grow-ins (NSP responsibility) | E151: 1
B152: Number of fire starts caused by vegetation blow-ins and fall-ins (NSP responsibility) | E152: 0
B153: Number of outages caused by vegetation grow-ins (NSP responsibility) | E153: 1
B154: Number of outages caused by vegetation blow-ins and fall-ins (NSP responsibility) | E154: 0
B155: Number of fire starts caused by vegetation grow-ins (other party responsibility) | E155: 0
B156: Number of fire starts caused by vegetation blow-ins and fall-ins (other party responsibility) | E156: 0
B157: Number of outages caused by vegetation grow-ins (other party responsibility) | E157: 0
B158: Number of outages caused by vegetation blow-ins and fall-ins (other party responsibility) | E158: 0

Sheet 2.8 Maintenance
B1: REGULATORY REPORTING STATEMENT
B2: =INDEX(dms_TradingNameFull_List,MATCH(dms_TradingName,dms_TradingName_List)) -> Queensland Electricity Transmission Corporation Limited trading as Powerlink Queensland
B3: =CONCATENATE((LOOKUP(dms_Model,dms_Model_List,dms_Worksheet_List))&" "&CRY) -> CATEGORY ANALYSIS 2017-18
B4: 2.8 MAINTENANCE
B6: There are TWO tables on this worksheet. Each has been 'grouped' for easy navigation. See the Instructions sheet on how to group or ungroup data.
B8: 2.8.1 - DESCRIPTOR METRICS FOR ROUTINE AND NON-ROUTINE MAINTENANCE
F9: ASSET QUANTITY | H9: AVERAGE AGE OF ASSET GROUP | I9: INSPECTION CYCLE (YEARS) | J9: MAINTENANCE CYCLE (YEARS)
B10: MAINTENANCE ACTIVITY | C10: MAINTENANCE ASSET CATEGORY | D10: MEASURE / ASSET QUANTITY | E10: UNITS | F10: AT YEAR END | G10: INSPECTED/ MAINTAINED
F11: =CRY -> 2017-18 | G11: =CRY -> 2017-18 | H11: =CRY -> 2017-18
B12: Transmission lines maintenance | C12: Transmission towers | D12: Number of towers | E12: 0's | F12: 23532 | G12: 23532 | H12: 29.23 | I12: 1 | J12: 0
C13: Transmission tower support structures | D13: Number of towers | E13: 0's | F13: 23532 | G13: 23532 | H13: 29.23 | I13: 1 | J13: 0
C14: Conductors | D14: Route length | E14: km | F14: 9627 | G14: 9627 | H14: 27.07 | I14: 1 | J14: 0
C15: Transmission cables | D15: Route length | E15: km | F15: 21.53 | G15: 21.53 | H15: 21.06 | I15: 0.5 | J15: 0
B16: Substations equipment & property maintenance | C16: Substation switchbays (incl. Reactive plant) | D16: Number of switchbays | E16: 0's | F16: 1486 | G16: 1486 | H16: 17.21 | I16: 6 | J16: 0
C17: Substation power transformers | D17: Number of transformers | E17: 0's | F17: 201 | G17: 201 | H17: 18.62 | I17: 0.5 | J17: 6
C18: Substation property | D18: Number of substation properties maintained | E18: 0's | F18: 128 | G18: 128 | H18: 27.11 | I18: 0.5 | J18: 0
B19: SCADA & network control maintenance | C19: SCADA & network control maintenance | D19: Comms and SCADA equipment | F19: 5905 | G19: 5905 | H19: 10.68 | I19: 1 | J19: 0
B20: Protection systems maintenance | C20: Protection systems maintenance | D20: Protection relays | F20: 5176 | G20: 5176 | H20: 9.726 | I20: 6 | J20: 0
B21: Other maintenance activity | C21: Transmission lines maintenance | D21: Insulator strings (000's) | F21: 169.3 | G21: 1.693 | H21: 17.23 | I21: 5 | J21: 0
C22: Corridor maintenance (non veg) | D22: Length (route km) | F22: 9627 | G22: 3978 | H22: 29.23 | I22: 1 | J22: 0
B46: 2.8.2 - COST METRICS FOR ROUTINE AND NON-ROUTINE MAINTENANCE
F47: DIRECT EXPENDITURE ($0's)
B48: ASSET CATEGORIES | C48: ASSET SUBCATEGORIES | F48: ROUTINE MAINTENANCE | G48: NON-ROUTINE MAINTENANCE
F49: =CRY -> 2017-18 | G49: =CRY -> 2017-18
B50: Transmission lines maintenance | C50: Transmission towers | F50: 2565422.61 | G50: 8249269.44
C51: Transmission tower support structures | F51: 719523.15 | G51: 16913809.35
C52: Conductors | F52: 0 | G52: 49465.34
C53: Transmission cables | F53: 172935.38 | G53: 170298.92
B54: Substations equipment & property maintenance | C54: Substation switchbays (incl. Reactive plant) | F54: 4540724.97 | G54: 13781746.49
C55: Substation power transformers | F55: 859958.47 | G55: 5134263.6
C56: Substation property | F56: 1920311.4 | G56: 6588776.22
B57: SCADA & network control maintenance | C57: SCADA & network control maintenance | F57: 1247359.21 | G57: 5112623.5
B58: Protection systems maintenance | C58: Protection systems maintenance | F58: 694497.03 | G58: 3464266.88
B59: Other maintenance activity | C59: =IF(ISBLANK(C21),"",C21) -> Transmission lines maintenance | D59: =IF(ISBLANK(D21),"",D21) -> Insulator strings (000's)
C60: =IF(ISBLANK(C22),"",C22) -> Corridor maintenance (non veg) | D60: Length (route km) | F60: 1932.87 | G60: 3705934.69

Sheet 2.10 Overheads
B1: REGULATORY REPORTING STATEMENT
B2: =INDEX(dms_TradingNameFull_List,MATCH(dms_TradingName,dms_TradingName_List)) -> Queensland Electricity Transmission Corporation Limited trading as Powerlink Queensland
B3: =CONCATENATE((LOOKUP(dms_Model,dms_Model_List,dms_Worksheet_List))&" "&CRY) -> CATEGORY ANALYSIS 2017-18
B4: 2.10 OVERHEADS
B7: There are TWO tables on this worksheet. Each has been 'grouped' (and sub-grouped) for easy navigation. See the Instructions sheet on how to group or ungroup data.
B9: Instructions
B10: Enter each expenditure category currently reported under annual Information Guidelines.
B12: 2.10.1 - NETWORK OVERHEADS EXPENDITURE
D13: EXPENDITURE ($0's)
D14: =CRY -> 2017-18
B15: MAINTENANCE SUPPORT
B16: Prescribed Services | D16: 11651706
B41: Negotiated Services | C41: Total | D41: 382322
B42: Unregulated Services | C42: Total | D42: 399969
B43: NETWORK MONITORING AND CONTROL
B44: Prescribed Services | D44: 15510588
B65: Negotiated Services | C65: Total | D65: 761027
B66: Unregulated Services | C66: Total | D66: 517626
B67: ASEET MANAGEMENT SUPPORT
B68: Prescribed Services | D68: 21629882
B94: Negotiated Services | C94: Total | D94: 399658
B95: Unregulated Services | C95: Total | D95: 932883
B99: 2.10.2 - CORPORATE OVERHEADS EXPENDITURE
D100: EXPENDITURE ($0's)
D101: =CRY -> 2017-18
B102: CORPORATE OVERHEADS
B103: Prescribed Services | C103: Grid Support | D103: 0
C104: Corporate Support | D104: 50707082
C105: Insurance Premiums | D105: 6646743
C106: Self Insurance | D106: 7167012
C107: AEMC Levy | D107: 4581420
C108: Project - write-off | D108: 3545260
B128: Negotiated Services | C128: Total | D128: 1338020
B129: Unregulated Services | C129: Total | D129: 4665425

Sheet 2.11 Labour
B1: REGULATORY REPORTING STATEMENT
B2: =INDEX(dms_TradingNameFull_List,MATCH(dms_TradingName,dms_TradingName_List)) -> Queensland Electricity Transmission Corporation Limited trading as Powerlink Queensland
B3: =CONCATENATE((LOOKUP(dms_Model,dms_Model_List,dms_Worksheet_List))&" "&CRY) -> CATEGORY ANALYSIS 2017-18
B4: 2.11 LABOUR
B6: There are TWO tables on this worksheet. Each table has been 'grouped' (and sub-grouped) for easy navigation. See the Instructions sheet on how to group or ungroup data.
B8: 2.11.1 - COST METRICS PER ANNUM
D9: ASL (0's) | E9: TOTAL LABOUR EXPENDITURE ($0's) | F9: AVERAGE PRODUCTIVE WORK HOURS PER ASL (0's) | G9: STAND-DOWN OCCURENCES PER ASL (0's)
D11: =CRY -> 2017-18 | E11: =CRY -> 2017-18 | F11: =CRY -> 2017-18 | G11: =CRY -> 2017-18
B12: CORPORATE OVERHEADS | C12: Executive manager | D12: 2.835 | E12: 1422334.783 | F12: 1235.406214 | G12: 0
C13: Senior manager | D13: 4.5765 | E13: 1179667.597 | F13: 1331.508106 | G13: 0
C14: Manager | D14: 17.812575 | E14: 3553949.586 | F14: 1293.217822 | G14: 0
C15: Professional | D15: 110.456325 | E15: 19016159.6 | F15: 1294.547356 | G15: 0
C16: Semi professional | D16: 4.9275 | E16: 767870.7353 | F16: 1261.081655 | G16: 0
C17: Support staff | D17: 40.978575 | E17: 4727160.905 | F17: 1279.968412 | G17: 0
C18: Intern, junior staff, apprentice | D18: 3.87045 | E18: 233266.8596 | F18: 1318.642594 | G18: 0
B19: NETWORK OVERHEADS | C19: Executive manager | D19: 1.62 | E19: 680175.1808 | F19: 1327.77225 | G19: 0
C20: Senior manager | D20: 7.02 | E20: 1847739.677 | F20: 1304.616531 | G20: 0
C21: Manager | D21: 16.499025 | E21: 3598607.208 | F21: 1284.728881 | G21: 0
C22: Professional | D22: 113.388525 | E22: 20943243.63 | F22: 1318.320536 | G22: 0
C23: Semi professional | D23: 45.3627 | E23: 7865437.05 | F23: 1297.353788 | G23: 0
C24: Support staff | D24: 17.391375 | E24: 1802726.858 | F24: 1253.618203 | G24: 0
C25: Intern, junior staff, apprentice | D25: 4.2444 | E25: 403001.9463 | F25: 1366.636174 | G25: 0
B26: TOTAL DIRECT NETWORK LABOUR | C26: Skilled electrical worker | D26: 103.275 | E26: 16580284.6 | F26: 1473.981259 | G26: 0
C27: Skilled non electical worker | D27: 0 | E27: 0 | F27: 0 | G27: 0
C28: Apprentice | D28: 21.472425 | E28: 2049076.784 | F28: 1330.879937 | G28: 0
C29: Unskilled worker | D29: 1.62 | E29: 243242.1719 | F29: 1598.04682 | G29: 0
B32: 2.11.2 - DESCRIPTOR METRICS
B33: AVERAGE PRODUCTIVE WORK HOURS PER ASL
D34: ORDINARY TIME (0's) | F34: OVERTIME (0's)
D35: PER ASL | E35: HOURLY RATE PER ASL | F35: PER ASL | G35: HOURLY RATE PER ASL
D36: =CRY -> 2017-18 | E36: =CRY -> 2017-18 | F36: =CRY -> 2017-18 | G36: =CRY -> 2017-18
B37: CORPORATE OVERHEADS | C37: Executive manager | D37: 1235.406214 | E37: 258.2010424 | F37: 0 | G37: 0
C38: Senior manager | D38: 1331.508106 | E38: 115.2321527 | F38: 0 | G38: 0
C39: Manager | D39: 1292.48373 | E39: 90.80126475 | F39: 0.7340922354 | G39: 74.01237832
C40: Professional | D40: 1281.420019 | E40: 70.55845991 | F40: 8.532387 | G40: 64.58970673
C41: Semi professional | D41: 1237.588548 | E41: 64.34446116 | F41: 23.49310685 | G41: 71.76226309
C42: Support staff | D42: 1246.601911 | E42: 48.53852622 | F42: 28.47274706 | G42: 51.69695936
C43: Intern, junior staff, apprentice | D43: 1296.948042 | E43: 24.25658184 | F43: 21.6945518 | G43: 57.56943038
B44: NETWORK OVERHEADS | C44: Executive manager | D44: 1327.77225 | E44: 180.1454849 | F44: 0 | G44: 0
C45: Senior manager | D45: 1304.616531 | E45: 117.0276445 | F45: 0 | G45: 0
C46: Manager | D46: 1276.816245 | E46: 99.11553263 | F46: 7.912635928 | G46: 105.4935647
C47: Professional | D47: 1271.406655 | E47: 76.77776477 | F47: 45.884694 | G47: 97.82350252
C48: Semi professional | D48: 1211.50504 | E48: 68.90912098 | F48: 85.31134995 | G48: 115.2858532
C49: Support staff | D49: 1247.945782 | E49: 44.48621953 | F49: 5.672420726 | G49: 29.89021748
C50: Intern, junior staff, apprentice | D50: 1421.587143 | E50: 36.13748439 | F50: 37.89116168 | G50: 41.17589988
B51: TOTAL DIRECT NETWORK LABOUR | C51: Skilled electrical worker | D51: 1230.945301 | E51: 51.38281864 | F51: 243.0359576 | G51: 73.70715049
C52: Skilled non electical worker | D52: 0 | E52: 0 | F52: 0 | G52: 0
C53: Apprentice | D53: 1195.964711 | E53: 34.31315138 | F53: 134.9763365 | G53: 45.88553678
C54: Unskilled worker | D54: 1296.63367 | E54: 42.90086319 | F54: 301.41315 | G54: 67.70764347

Sheet 2.12 Input tables
B1: REGULATORY REPORTING STATEMENT
B2: =INDEX(dms_TradingNameFull_List,MATCH(dms_TradingName,dms_TradingName_List)) -> Queensland Electricity Transmission Corporation Limited trading as Powerlink Queensland
B3: =CONCATENATE((LOOKUP(dms_Model,dms_Model_List,dms_Worksheet_List))&" "&CRY) -> CATEGORY ANALYSIS 2017-18
B4: 2.12 INPUT TABLES
B7: 2.12 INPUT TABLES
D8: DIRECT MATERIAL EXPENDITURE ($0's) | E8: DIRECT LABOUR EXPENDITURE ($0's) | F8: CONTRACT EXPENDITURE ($0's) | G8: OTHER EXPENDITURE ($0's) | H8: RELATED PARTY CONTRACT EXPENDITURE ($0's) | I8: RELATED PARTY CONTRACT MARGIN
D9: =CRY -> 2017-18 | E9: 2017-18 | F9: 2017-18 | G9: 2017-18 | H9: 2017-18 | I9: 2017-18
B10: VEGETATION MANAGEMENT | C10: ='2.7 Vegetation management'!B11 -> ZONE 1 (URBAN) | D10: 55843.13 | E10: 404072.3 | F10: 2414907.82 | G10: 75957.83
C11: ='2.7 Vegetation management'!B18 -> ZONE 2 (RURAL) | D11: 2888.89 | E11: 425073.13 | F11: 6488004.68 | G11: 96323.65
C12: ='2.7 Vegetation management'!B25 -> ZONE 3 (TROPICAL) | D12: 0 | E12: 0 | F12: 2741240.66 | G12: 0
C13: ='2.7 Vegetation management'!B32 -> ZONE 4
C14: ='2.7 Vegetation management'!B39 -> ZONE 5
C15: ='2.7 Vegetation management'!B46 -> ZONE 6
C16: ='2.7 Vegetation management'!B53 -> ZONE 7
C17: ='2.7 Vegetation management'!B60 -> ZONE 8
C18: ='2.7 Vegetation management'!B67 -> ZONE 9
C19: ='2.7 Vegetation management'!B74 -> ZONE 10
B30: ROUTINE MAINTENANCE | C30: Transmission Lines Maintenance | D30: 1311.48 | E30: 873640.28 | F30: 2333826.94 | G30: 249102.44
C31: Substations Equipment & Propoerty Maintenance | D31: 21003.88 | E31: 2468175.88 | F31: 4188132.81 | G31: 643682.27
C32: SCADA & Network Control Maintenance | D32: 1052.7 | E32: 333648.47 | F32: 842020.83 | G32: 70637.21
C33: Protection Systems Maintenance | D33: 0 | E33: 214354.97 | F33: 439140.35 | G33: 41001.71
C34: Other Maintenance Activity | E34: 1277.6 | F34: 237.8 | G34: 417.47
B48: NON-ROUTINE MAINTENANCE | C48: Transmission Lines Maintenance | D48: 2439285.22 | E48: 7242405.84 | F48: 13325019.16 | G48: 2376132.83
C49: Substations Equipment & Propoerty Maintenance | D49: 2917756.35 | E49: 7562122.78 | F49: 13106503.92 | G49: 1918403.26
C50: Scada & Network Control Maintenance | D50: 179969.18 | E50: 2678071.32 | F50: 1838208.32 | G50: 416374.68
C51: Protection Systems Maintenance | D51: 243747.27 | E51: 1781238.62 | F51: 1176022.36 | G51: 263258.63
C52: Other Maintenance Activity | D52: 14399.92 | E52: 102292.89 | F52: 3554388.64 | G52: 34853.24
B64: OVERHEADS | C64: Network Overheads | D64: 436915.63 | E64: 33383757.53 | F64: 2867671.41 | G64: 12103831.65
C65: Corporate Overheads | D65: 3628866.567 | E65: 30055246.4 | F65: 12924162.04 | G65: 26039242.18
B66: AUGMENTATION | C66: Subtransmission Substations, Switching Stations , Zone Substations | D66: 15707.88 | E66: 214052.33 | F66: 134178.89 | G66: 63461.99
C67: Subtransmission Lines | D67: 0 | E67: 0 | F67: 0 | G67: 0
C68: HV Feeders | D68: 0 | E68: 0 | F68: 0 | G68: 0
C69: Other Assets | D69: 0 | E69: 0 | F69: 0 | G69: 0
B70: CONNECTIONS | C70: All New Customer Connections
B71: REPLACEMENT | C71: Transmission Towers | D71: 34097.89322 | E71: 144783.9692 | F71: 2225052.959 | G71: 38690.07167
C72: Transmission Tower Support Structures | D72: 0 | E72: 0 | F72: 0 | G72: 0
C73: Conductors | D73: 18294.52057 | E73: 74669.75929 | F73: 1153241.411 | G73: 19880.12735
C74: Transmission Cables | D74: 0 | E74: 0 | F74: 0 | G74: 0
C75: Substation Switchbays | D75: 45685.34998 | E75: 1440735.973 | F75: 1087433.147 | G75: 463152.5051
C76: Substation Power Transformers | D76: 0 | E76: 0 | F76: 0 | G76: 0
C77: Substation Reactive Plant | D77: 0 | E77: 0 | F77: 0 | G77: 0
C78: SCADA network control and protection systems | D78: 40383.17374 | E78: 1236667.911 | F78: 1867448.812 | G78: 93658.18984
C79: Other | D79: 8802.52987 | E79: 1302778.561 | F79: 996682.1275 | G79: 226663.2319
B80: NON-NETWORK EXPENDITURE | C80: IT and communications | D80: 0 | E80: 384044.49 | F80: 979544.28 | G80: 355917.33
C81: Motor Vehicles | D81: 2758507.3 | E81: 0 | F81: 0 | G81: 66721.75
C82: Buildings And Property | D82: 0 | E82: 97400.75 | F82: 921990.61 | G82: 6093.83
C83: Other | D83: 641468.53 | E83: 6894.06 | F83: 20004 | G83: 171328.96

Sheet 5.2 Asset Age Profile
B1: REGULATORY REPORTING STATEMENT
B2: =INDEX(dms_TradingNameFull_List,MATCH(dms_TradingName,dms_TradingName_List)) -> Queensland Electricity Transmission Corporation Limited trading as Powerlink Queensland
B3: =CONCATENATE((LOOKUP(dms_Model,dms_Model_List,dms_Worksheet_List))&" "&CRY) -> CATEGORY ANALYSIS 2017-18
B4: 5.2 ASSET AGE PROFILE
B5: .
B6: There is ONE table on this worksheet. Both ROWS and COLUMNS have been 'grouped' for easy navigation. See the Instructions sheet on how to group or ungroup data.
B8: TABLE 5.2.1 - ASSET AGE PROFILE
D9: ECONOMIC LIFE (YEARS) | F9: INSTALLED ASSETS -˃ QUANTITY CURRENTLY IN COMMISSION BY YEAR
B10: ASSET GROUP | C10: ASSET CATEGORY | D10: MEAN | E10: STANDARD DEVIATION | F10: =CRY -> 2017-18 | G10: =IF(dms_RPT="financial",(VALUE(LEFT(F10,4)-1)&"-"&MID(F10,3,2)),VALUE(LEFT(F10,4)-1)) -> 2016-17 | H10: =IF(dms_RPT="financial",(VALUE(LEFT(G10,4)-1)&"-"&MID(G10,3,2)),VALUE(LEFT(G10,4)-1)) -> 2015-16 | I10: 2014-15 | J10: 2013-14 | K10: 2012-13 | L10: 2011-12 | M10: 2010-11 | N10: 2009-10 | O10: 2008-09 | P10: 2007-08 | Q10: 2006-07 | R10: 2005-06 | S10: 2004-05 | T10: 2003-04 | U10: 2002-03 | V10: 2001-02 | W10: 2000-01 | X10: 1999-00 | Y10: 1998-99 | Z10: 1997-98 | AA10: 1996-97 | AB10: 1995-96 | AC10: 1994-95 | AD10: 1993-94 | AE10: 1992-93 | AF10: 1991-92 | AG10: 1990-91 | AH10: 1989-90 | AI10: 1988-89 | AJ10: 1987-88 | AK10: 1986-87 | AL10: 1985-86 | AM10: =IF(dms_RPT="financial",(VALUE(LEFT(AL10,4)-1)&"-"&MID(AL10,3,2)),VALUE(LEFT(AL10,4)-1)) -> 1984-85 | AN10: 1983-84 | AO10: 1982-83 | AP10: 1981-82 | AQ10: 1980-81 | AR10: 1979-80 | AS10: 1978-79 | AT10: 1977-78 | AU10: 1976-77 | AV10: 1975-76 | AW10: 1974-75 | AX10: 1973-74 | AY10: 1972-73 | AZ10: 1971-72 | BA10: 1970-71 | BB10: 1969-70 | BC10: 1968-69 | BD10: 1967-68 | BE10: 1966-67 | BF10: 1965-66 | BG10: 1964-65 | BH10: 1963-64 | BI10: 1962-63 | BJ10: 1961-62 | BK10: 1960-61 | BL10: 1959-60 | BM10: 1958-59 | BN10: 1957-58 | BO10: 1956-57 | BP10: 1955-56 | BQ10: 1954-55 | BR10: 1953-54 | BS10: =IF(dms_RPT="financial",(VALUE(LEFT(BR10,4)-1)&"-"&MID(BR10,3,2)),VALUE(LEFT(BR10,4)-1)) -> 1952-53 | BT10: 1951-52 | BU10: 1950-51 | BV10: 1949-50 | BW10: 1948-49 | BX10: 1947-48 | BY10: 1946-47 | BZ10: 1945-46 | CA10: 1944-45 | CB10: 1943-44 | CC10: 1942-43 | CD10: 1941-42 | CE10: 1940-41 | CF10: 1939-40 | CG10: 1938-39 | CH10: 1937-38 | CI10: 1936-37 | CJ10: 1935-36 | CK10: 1934-35 | CL10: 1933-34 | CM10: 1932-33 | CN10: 1931-32 | CO10: 1930-31 | CP10: 1929-30 | CQ10: 1928-29 | CR10: 1927-28 | CS10: 1926-27 | CT10: 1925-26 | CU10: 1924-25 | CV10: 1923-24 | CW10: 1922-23 | CX10: 1921-22 | CY10: =IF(dms_RPT="financial",(VALUE(LEFT(CX10,4)-1)&"-"&MID(CX10,3,2)),VALUE(LEFT(CX10,4)-1)) -> 1920-21 | CZ10: 1919-20 | DA10: 1918-19 | DB10: =IF(dms_RPT="financial",(VALUE(LEFT(DA10,4)-1)&"-"&MID(DA10,3,2)),VALUE(LEFT(DA10,4)-1)) -> 1917-18 | DC10: =IF(dms_RPT="financial",(VALUE(LEFT(DB10,4)-1)&"-"&MID(DB10,3,2)),VALUE(LEFT(DB10,4)-1)) -> 1916-17 | DD10: =IF(dms_RPT="financial",(VALUE(LEFT(DC10,4)-1)&"-"&MID(DC10,3,2)),VALUE(LEFT(DC10,4)-1)) -> 1915-16 | DE10: =IF(dms_RPT="financial",(VALUE(LEFT(DD10,4)-1)&"-"&MID(DD10,3,2)),VALUE(LEFT(DD10,4)-1)) -> 1914-15 | DF10: =IF(dms_RPT="financial",(VALUE(LEFT(DE10,4)-1)&"-"&MID(DE10,3,2)),VALUE(LEFT(DE10,4)-1)) -> 1913-14 | DG10: =IF(dms_RPT="financial",(VALUE(LEFT(DF10,4)-1)&"-"&MID(DF10,3,2)),VALUE(LEFT(DF10,4)-1)) -> 1912-13 | DH10: =IF(dms_RPT="financial",(VALUE(LEFT(DG10,4)-1)&"-"&MID(DG10,3,2)),VALUE(LEFT(DG10,4)-1)) -> 1911-12 | DI10: =IF(dms_RPT="financial",(VALUE(LEFT(DH10,4)-1)&"-"&MID(DH10,3,2)),VALUE(LEFT(DH10,4)-1)) -> 1910-11 | DJ10: =IF(dms_RPT="financial",(VALUE(LEFT(DI10,4)-1)&"-"&MID(DI10,3,2)),VALUE(LEFT(DI10,4)-1)) -> 1909-10
B11: TRANSMISSION TOWERS Highest operating voltage; Circuit configuration | C11: < = 33 kV; Single Circuit | D11: 0 | E11: 0 | F11: 0 | G11: 0 | H11: 0 | I11: 0 | J11: 0 | K11: 0 | L11: 0 | M11: 0 | N11: 0 | O11: 0 | P11: 0 | Q11: 0 | R11: 0 | S11: 0 | T11: 0 | U11: 0 | V11: 0 | W11: 0 | X11: 0 | Y11: 0 | Z11: 0 | AA11: 0 | AB11: 0 | AC11: 0 | AD11: 0 | AE11: 0 | AF11: 0 | AG11: 0 | AH11: 0 | AI11: 18 | AJ11: 0 | AK11: 0 | AL11: 0 | AM11: 0 | AN11: 0 | AO11: 0 | AP11: 0 | AQ11: 0 | AR11: 0 | AS11: 0 | AT11: 0 | AU11: 0 | AV11: 0 | AW11: 0 | AX11: 0 | AY11: 0 | AZ11: 0 | BA11: 0 | BB11: 0 | BC11: 0 | BD11: 0 | BE11: 0 | BF11: 0 | BG11: 0 | BH11: 0 | BI11: 0 | BJ11: 0 | BK11: 0 | BL11: 0 | BM11: 0 | BN11: 0 | BO11: 0 | BP11: 0 | BQ11: 0 | BR11: 0 | BS11: 0 | BT11: 0 | BU11: 0 | BV11: 0 | BW11: 0 | BX11: 0 | BY11: 0 | BZ11: 0 | CA11: 0 | CB11: 0 | CC11: 0 | CD11: 0 | CE11: 0 | CF11: 0 | CG11: 0 | CH11: 0 | CI11: 0 | CJ11: 0 | CK11: 0 | CL11: 0 | CM11: 0 | CN11: 0 | CO11: 0 | CP11: 0 | CQ11: 0 | CR11: 0 | CS11: 0 | CT11: 0 | CU11: 0 | CV11: 0 | CW11: 0 | CX11: 0 | CY11: 0 | CZ11: 0 | DA11: 0 | DB11: 0 | DC11: 0 | DD11: 0 | DE11: 0 | DF11: 0 | DG11: 0 | DH11: 0 | DI11: 0 | DJ11: 0
C12: > 33 kV & < = 66 kV ; Single Circuit | D12: 0 | E12: 0 | F12: 0 | G12: 0 | H12: 0 | I12: 0 | J12: 0 | K12: 0 | L12: 0 | M12: 0 | N12: 0 | O12: 0 | P12: 0 | Q12: 0 | R12: 0 | S12: 0 | T12: 0 | U12: 0 | V12: 0 | W12: 0 | X12: 0 | Y12: 0 | Z12: 0 | AA12: 0 | AB12: 0 | AC12: 0 | AD12: 0 | AE12: 0 | AF12: 0 | AG12: 0 | AH12: 0 | AI12: 0 | AJ12: 0 | AK12: 0 | AL12: 0 | AM12: 0 | AN12: 0 | AO12: 0 | AP12: 0 | AQ12: 0 | AR12: 0 | AS12: 0 | AT12: 0 | AU12: 0 | AV12: 0 | AW12: 0 | AX12: 0 | AY12: 0 | AZ12: 0 | BA12: 0 | BB12: 0 | BC12: 0 | BD12: 0 | BE12: 0 | BF12: 0 | BG12: 0 | BH12: 0 | BI12: 0 | BJ12: 0 | BK12: 0 | BL12: 0 | BM12: 0 | BN12: 0 | BO12: 0 | BP12: 0 | BQ12: 0 | BR12: 0 | BS12: 0 | BT12: 0 | BU12: 0 | BV12: 0 | BW12: 0 | BX12: 0 | BY12: 0 | BZ12: 0 | CA12: 0 | CB12: 0 | CC12: 0 | CD12: 0 | CE12: 0 | CF12: 0 | CG12: 0 | CH12: 0 | CI12: 0 | CJ12: 0 | CK12: 0 | CL12: 0 | CM12: 0 | CN12: 0 | CO12: 0 | CP12: 0 | CQ12: 0 | CR12: 0 | CS12: 0 | CT12: 0 | CU12: 0 | CV12: 0 | CW12: 0 | CX12: 0 | CY12: 0 | CZ12: 0 | DA12: 0 | DB12: 0 | DC12: 0 | DD12: 0 | DE12: 0 | DF12: 0 | DG12: 0 | DH12: 0 | DI12: 0 | DJ12: 0
C13: > 66 kV & < = 132 kV ; Single Circuit | D13: 50 | E13: 7.1 | F13: 0 | G13: 2 | H13: 8 | I13: 7 | J13: 22 | K13: 14 | L13: 17 | M13: 39 | N13: 20 | O13: 191 | P13: 20 | Q13: 100 | R13: 16 | S13: 15 | T13: 4 | U13: 8 | V13: 2 | W13: 1 | X13: 9 | Y13: 0 | Z13: 3 | AA13: 0 | AB13: 0 | AC13: 0 | AD13: 0 | AE13: 122 | AF13: 5 | AG13: 0 | AH13: 4 | AI13: 0 | AJ13: 233 | AK13: 477 | AL13: 12 | AM13: 1 | AN13: 0 | AO13: 0 | AP13: 151 | AQ13: 144 | AR13: 0 | AS13: 34 | AT13: 25 | AU13: 464 | AV13: 0 | AW13: 0 | AX13: 4 | AY13: 6 | AZ13: 0 | BA13: 0 | BB13: 0 | BC13: 458 | BD13: 0 | BE13: 175 | BF13: 0 | BG13: 128 | BH13: 0 | BI13: 228 | BJ13: 0 | BK13: 0 | BL13: 0 | BM13: 0 | BN13: 0 | BO13: 0 | BP13: 0 | BQ13: 0 | BR13: 0 | BS13: 0 | BT13: 0 | BU13: 0 | BV13: 0 | BW13: 0 | BX13: 0 | BY13: 0 | BZ13: 0 | CA13: 0 | CB13: 0 | CC13: 0 | CD13: 0 | CE13: 0 | CF13: 0 | CG13: 0 | CH13: 0 | CI13: 0 | CJ13: 0 | CK13: 0 | CL13: 0 | CM13: 0 | CN13: 0 | CO13: 0 | CP13: 0 | CQ13: 0 | CR13: 0 | CS13: 0 | CT13: 0 | CU13: 0 | CV13: 0 | CW13: 0 | CX13: 0 | CY13: 0 | CZ13: 0 | DA13: 0 | DB13: 0 | DC13: 0 | DD13: 0 | DE13: 0 | DF13: 0 | DG13: 0 | DH13: 0 | DI13: 0 | DJ13: 0
C14: > 132 kV & < = 275 kV ; Single Circuit | D14: 50 | E14: 7.1 | F14: 16 | G14: 0 | H14: 0 | I14: 8 | J14: 8 | K14: 18 | L14: 6 | M14: 11 | N14: 21 | O14: 17 | P14: 12 | Q14: 12 | R14: 0 | S14: 221 | T14: 42 | U14: 272 | V14: 1 | W14: 2 | X14: 0 | Y14: 72 | Z14: 2 | AA14: 0 | AB14: 161 | AC14: 150 | AD14: 40 | AE14: 462 | AF14: 0 | AG14: 17 | AH14: 0 | AI14: 10 | AJ14: 114 | AK14: 171 | AL14: 363 | AM14: 239 | AN14: 0 | AO14: 299 | AP14: 357 | AQ14: 1162 | AR14: 223 | AS14: 414 | AT14: 951 | AU14: 1093 | AV14: 0 | AW14: 362 | AX14: 0 | AY14: 982 | AZ14: 0 | BA14: 0 | BB14: 0 | BC14: 0 | BD14: 0 | BE14: 0 | BF14: 0 | BG14: 0 | BH14: 0 | BI14: 0 | BJ14: 0 | BK14: 0 | BL14: 0 | BM14: 0 | BN14: 0 | BO14: 0 | BP14: 0 | BQ14: 0 | BR14: 0 | BS14: 0 | BT14: 0 | BU14: 0 | BV14: 0 | BW14: 0 | BX14: 0 | BY14: 0 | BZ14: 0 | CA14: 0 | CB14: 0 | CC14: 0 | CD14: 0 | CE14: 0 | CF14: 0 | CG14: 0 | CH14: 0 | CI14: 0 | CJ14: 0 | CK14: 0 | CL14: 0 | CM14: 0 | CN14: 0 | CO14: 0 | CP14: 0 | CQ14: 0 | CR14: 0 | CS14: 0 | CT14: 0 | CU14: 0 | CV14: 0 | CW14: 0 | CX14: 0 | CY14: 0 | CZ14: 0 | DA14: 0 | DB14: 0 | DC14: 0 | DD14: 0 | DE14: 0 | DF14: 0 | DG14: 0 | DH14: 0 | DI14: 0 | DJ14: 0
C15: > 275 kV & < = 330 kV ; Single Circuit | D15: 50 | E15: 7.1 | F15: 0 | G15: 0 | H15: 0 | I15: 0 | J15: 0 | K15: 0 | L15: 0 | M15: 0 | N15: 0 | O15: 0 | P15: 0 | Q15: 0 | R15: 0 | S15: 14 | T15: 0 | U15: 0 | V15: 0 | W15: 0 | X15: 0 | Y15: 0 | Z15: 0 | AA15: 0 | AB15: 0 | AC15: 0 | AD15: 0 | AE15: 0 | AF15: 0 | AG15: 0 | AH15: 0 | AI15: 0 | AJ15: 0 | AK15: 0 | AL15: 0 | AM15: 0 | AN15: 0 | AO15: 0 | AP15: 0 | AQ15: 0 | AR15: 0 | AS15: 0 | AT15: 0 | AU15: 0 | AV15: 0 | AW15: 0 | AX15: 0 | AY15: 0 | AZ15: 0 | BA15: 0 | BB15: 0 | BC15: 0 | BD15: 0 | BE15: 0 | BF15: 0 | BG15: 0 | BH15: 0 | BI15: 0 | BJ15: 0 | BK15: 0 | BL15: 0 | BM15: 0 | BN15: 0 | BO15: 0 | BP15: 0 | BQ15: 0 | BR15: 0 | BS15: 0 | BT15: 0 | BU15: 0 | BV15: 0 | BW15: 0 | BX15: 0 | BY15: 0 | BZ15: 0 | CA15: 0 | CB15: 0 | CC15: 0 | CD15: 0 | CE15: 0 | CF15: 0 | CG15: 0 | CH15: 0 | CI15: 0 | CJ15: 0 | CK15: 0 | CL15: 0 | CM15: 0 | CN15: 0 | CO15: 0 | CP15: 0 | CQ15: 0 | CR15: 0 | CS15: 0 | CT15: 0 | CU15: 0 | CV15: 0 | CW15: 0 | CX15: 0 | CY15: 0 | CZ15: 0 | DA15: 0 | DB15: 0 | DC15: 0 | DD15: 0 | DE15: 0 | DF15: 0 | DG15: 0 | DH15: 0 | DI15: 0 | DJ15: 0
C16: > 330 kV & < = 500 kV ; Single Circuit | D16: 0 | E16: 0 | F16: 0 | G16: 0 | H16: 0 | I16: 0 | J16: 0 | K16: 0 | L16: 0 | M16: 0 | N16: 0 | O16: 0 | P16: 0 | Q16: 0 | R16: 0 | S16: 0 | T16: 0 | U16: 0 | V16: 0 | W16: 0 | X16: 0 | Y16: 0 | Z16: 0 | AA16: 0 | AB16: 0 | AC16: 0 | AD16: 0 | AE16: 0 | AF16: 0 | AG16: 0 | AH16: 0 | AI16: 0 | AJ16: 0 | AK16: 0 | AL16: 0 | AM16: 0 | AN16: 0 | AO16: 0 | AP16: 0 | AQ16: 0 | AR16: 0 | AS16: 0 | AT16: 0 | AU16: 0 | AV16: 0 | AW16: 0 | AX16: 0 | AY16: 0 | AZ16: 0 | BA16: 0 | BB16: 0 | BC16: 0 | BD16: 0 | BE16: 0 | BF16: 0 | BG16: 0 | BH16: 0 | BI16: 0 | BJ16: 0 | BK16: 0 | BL16: 0 | BM16: 0 | BN16: 0 | BO16: 0 | BP16: 0 | BQ16: 0 | BR16: 0 | BS16: 0 | BT16: 0 | BU16: 0 | BV16: 0 | BW16: 0 | BX16: 0 | BY16: 0 | BZ16: 0 | CA16: 0 | CB16: 0 | CC16: 0 | CD16: 0 | CE16: 0 | CF16: 0 | CG16: 0 | CH16: 0 | CI16: 0 | CJ16: 0 | CK16: 0 | CL16: 0 | CM16: 0 | CN16: 0 | CO16: 0 | CP16: 0 | CQ16: 0 | CR16: 0 | CS16: 0 | CT16: 0 | CU16: 0 | CV16: 0 | CW16: 0 | CX16: 0 | CY16: 0 | CZ16: 0 | DA16: 0 | DB16: 0 | DC16: 0 | DD16: 0 | DE16: 0 | DF16: 0 | DG16: 0 | DH16: 0 | DI16: 0 | DJ16: 0
C17: > 500 kV ; Single Circuit | D17: 0 | E17: 0 | F17: 0 | G17: 0 | H17: 0 | I17: 0 | J17: 0 | K17: 0 | L17: 0 | M17: 0 | N17: 0 | O17: 0 | P17: 0 | Q17: 0 | R17: 0 | S17: 0 | T17: 0 | U17: 0 | V17: 0 | W17: 0 | X17: 0 | Y17: 0 | Z17: 0 | AA17: 0 | AB17: 0 | AC17: 0 | AD17: 0 | AE17: 0 | AF17: 0 | AG17: 0 | AH17: 0 | AI17: 0 | AJ17: 0 | AK17: 0 | AL17: 0 | AM17: 0 | AN17: 0 | AO17: 0 | AP17: 0 | AQ17: 0 | AR17: 0 | AS17: 0 | AT17: 0 | AU17: 0 | AV17: 0 | AW17: 0 | AX17: 0 | AY17: 0 | AZ17: 0 | BA17: 0 | BB17: 0 | BC17: 0 | BD17: 0 | BE17: 0 | BF17: 0 | BG17: 0 | BH17: 0 | BI17: 0 | BJ17: 0 | BK17: 0 | BL17: 0 | BM17: 0 | BN17: 0 | BO17: 0 | BP17: 0 | BQ17: 0 | BR17: 0 | BS17: 0 | BT17: 0 | BU17: 0 | BV17: 0 | BW17: 0 | BX17: 0 | BY17: 0 | BZ17: 0 | CA17: 0 | CB17: 0 | CC17: 0 | CD17: 0 | CE17: 0 | CF17: 0 | CG17: 0 | CH17: 0 | CI17: 0 | CJ17: 0 | CK17: 0 | CL17: 0 | CM17: 0 | CN17: 0 | CO17: 0 | CP17: 0 | CQ17: 0 | CR17: 0 | CS17: 0 | CT17: 0 | CU17: 0 | CV17: 0 | CW17: 0 | CX17: 0 | CY17: 0 | CZ17: 0 | DA17: 0 | DB17: 0 | DC17: 0 | DD17: 0 | DE17: 0 | DF17: 0 | DG17: 0 | DH17: 0 | DI17: 0 | DJ17: 0
C18: < = 33 kV; Multiple Circuit | D18: 0 | E18: 0 | F18: 0 | G18: 0 | H18: 0 | I18: 0 | J18: 0 | K18: 0 | L18: 0 | M18: 0 | N18: 0 | O18: 0 | P18: 0 | Q18: 0 | R18: 0 | S18: 0 | T18: 0 | U18: 0 | V18: 0 | W18: 0 | X18: 0 | Y18: 0 | Z18: 0 | AA18: 0 | AB18: 0 | AC18: 0 | AD18: 0 | AE18: 0 | AF18: 0 | AG18: 0 | AH18: 0 | AI18: 0 | AJ18: 0 | AK18: 0 | AL18: 0 | AM18: 0 | AN18: 0 | AO18: 0 | AP18: 0 | AQ18: 0 | AR18: 0 | AS18: 0 | AT18: 0 | AU18: 0 | AV18: 0 | AW18: 0 | AX18: 0 | AY18: 0 | AZ18: 0 | BA18: 0 | BB18: 0 | BC18: 0 | BD18: 0 | BE18: 0 | BF18: 0 | BG18: 0 | BH18: 0 | BI18: 0 | BJ18: 0 | BK18: 0 | BL18: 0 | BM18: 0 | BN18: 0 | BO18: 0 | BP18: 0 | BQ18: 0 | BR18: 0 | BS18: 0 | BT18: 0 | BU18: 0 | BV18: 0 | BW18: 0 | BX18: 0 | BY18: 0 | BZ18: 0 | CA18: 0 | CB18: 0 | CC18: 0 | CD18: 0 | CE18: 0 | CF18: 0 | CG18: 0 | CH18: 0 | CI18: 0 | CJ18: 0 | CK18: 0 | CL18: 0 | CM18: 0 | CN18: 0 | CO18: 0 | CP18: 0 | CQ18: 0 | CR18: 0 | CS18: 0 | CT18: 0 | CU18: 0 | CV18: 0 | CW18: 0 | CX18: 0 | CY18: 0 | CZ18: 0 | DA18: 0 | DB18: 0 | DC18: 0 | DD18: 0 | DE18: 0 | DF18: 0 | DG18: 0 | DH18: 0 | DI18: 0 | DJ18: 0
C19: > 33 kV & < = 66 kV ; Multiple Circuit | D19: 50 | E19: 7.1 | F19: 0 | G19: 0 | H19: 0 | I19: 0 | J19: 0 | K19: 0 | L19: 0 | M19: 0 | N19: 0 | O19: 0 | P19: 0 | Q19: 0 | R19: 0 | S19: 0 | T19: 0 | U19: 0 | V19: 0 | W19: 0 | X19: 0 | Y19: 0 | Z19: 0 | AA19: 0 | AB19: 0 | AC19: 0 | AD19: 0 | AE19: 0 | AF19: 0 | AG19: 0 | AH19: 0 | AI19: 0 | AJ19: 0 | AK19: 0 | AL19: 0 | AM19: 0 | AN19: 2 | AO19: 0 | AP19: 0 | AQ19: 0 | AR19: 0 | AS19: 0 | AT19: 0 | AU19: 0 | AV19: 0 | AW19: 0 | AX19: 0 | AY19: 0 | AZ19: 0 | BA19: 0 | BB19: 0 | BC19: 0 | BD19: 0 | BE19: 0 | BF19: 0 | BG19: 0 | BH19: 0 | BI19: 0 | BJ19: 0 | BK19: 0 | BL19: 0 | BM19: 0 | BN19: 0 | BO19: 0 | BP19: 0 | BQ19: 0 | BR19: 0 | BS19: 0 | BT19: 0 | BU19: 0 | BV19: 0 | BW19: 0 | BX19: 0 | BY19: 0 | BZ19: 0 | CA19: 0 | CB19: 0 | CC19: 0 | CD19: 0 | CE19: 0 | CF19: 0 | CG19: 0 | CH19: 0 | CI19: 0 | CJ19: 0 | CK19: 0 | CL19: 0 | CM19: 0 | CN19: 0 | CO19: 0 | CP19: 0 | CQ19: 0 | CR19: 0 | CS19: 0 | CT19: 0 | CU19: 0 | CV19: 0 | CW19: 0 | CX19: 0 | CY19: 0 | CZ19: 0 | DA19: 0 | DB19: 0 | DC19: 0 | DD19: 0 | DE19: 0 | DF19: 0 | DG19: 0 | DH19: 0 | DI19: 0 | DJ19: 0
C20: > 66 kV & < = 132 kV ; Multiple Circuit | D20: 50 | E20: 7.1 | F20: 12 | G20: 0 | H20: 0 | I20: 36 | J20: 0 | K20: 11 | L20: 4 | M20: 189 | N20: 140 | O20: 216 | P20: 437 | Q20: 1 | R20: 12 | S20: 24 | T20: 21 | U20: 0 | V20: 1 | W20: 5 | X20: 207 | Y20: 0 | Z20: 22 | AA20: 31 | AB20: 0 | AC20: 0 | AD20: 0 | AE20: 63 | AF20: 2 | AG20: 0 | AH20: 0 | AI20: 0 | AJ20: 3 | AK20: 139 | AL20: 401 | AM20: 21 | AN20: 0 | AO20: 77 | AP20: 114 | AQ20: 0 | AR20: 0 | AS20: 442 | AT20: 243 | AU20: 221 | AV20: 32 | AW20: 0 | AX20: 205 | AY20: 0 | AZ20: 12 | BA20: 424 | BB20: 11 | BC20: 6 | BD20: 529 | BE20: 240 | BF20: 67 | BG20: 0 | BH20: 28 | BI20: 208 | BJ20: 0 | BK20: 0 | BL20: 0 | BM20: 0 | BN20: 0 | BO20: 0 | BP20: 0 | BQ20: 0 | BR20: 0 | BS20: 0 | BT20: 0 | BU20: 0 | BV20: 0 | BW20: 0 | BX20: 0 | BY20: 0 | BZ20: 0 | CA20: 0 | CB20: 0 | CC20: 0 | CD20: 0 | CE20: 0 | CF20: 0 | CG20: 0 | CH20: 0 | CI20: 0 | CJ20: 0 | CK20: 0 | CL20: 0 | CM20: 0 | CN20: 0 | CO20: 0 | CP20: 0 | CQ20: 0 | CR20: 0 | CS20: 0 | CT20: 0 | CU20: 0 | CV20: 0 | CW20: 0 | CX20: 0 | CY20: 0 | CZ20: 0 | DA20: 0 | DB20: 0 | DC20: 0 | DD20: 0 | DE20: 0 | DF20: 0 | DG20: 0 | DH20: 0 | DI20: 0 | DJ20: 0
C21: > 132 kV & < = 275 kV ; Multiple Circuit | D21: 50 | E21: 7.1 | F21: 8 | G21: 0 | H21: 0 | I21: 7 | J21: 481 | K21: 542 | L21: 210 | M21: 356 | N21: 603 | O21: 344 | P21: 97 | Q21: 147 | R21: 71 | S21: 7 | T21: 214 | U21: 0 | V21: 200 | W21: 340 | X21: 316 | Y21: 728 | Z21: 137 | AA21: 0 | AB21: 0 | AC21: 1 | AD21: 18 | AE21: 77 | AF21: 0 | AG21: 13 | AH21: 6 | AI21: 518 | AJ21: 4 | AK21: 65 | AL21: 29 | AM21: 214 | AN21: 9 | AO21: 3 | AP21: 0 | AQ21: 96 | AR21: 0 | AS21: 1 | AT21: 4 | AU21: 0 | AV21: 0 | AW21: 0 | AX21: 0 | AY21: 4 | AZ21: 115 | BA21: 0 | BB21: 111 | BC21: 0 | BD21: 0 | BE21: 0 | BF21: 0 | BG21: 0 | BH21: 0 | BI21: 0 | BJ21: 0 | BK21: 0 | BL21: 0 | BM21: 0 | BN21: 0 | BO21: 0 | BP21: 0 | BQ21: 0 | BR21: 0 | BS21: 0 | BT21: 0 | BU21: 0 | BV21: 0 | BW21: 0 | BX21: 0 | BY21: 0 | BZ21: 0 | CA21: 0 | CB21: 0 | CC21: 0 | CD21: 0 | CE21: 0 | CF21: 0 | CG21: 0 | CH21: 0 | CI21: 0 | CJ21: 0 | CK21: 0 | CL21: 0 | CM21: 0 | CN21: 0 | CO21: 0 | CP21: 0 | CQ21: 0 | CR21: 0 | CS21: 0 | CT21: 0 | CU21: 0 | CV21: 0 | CW21: 0 | CX21: 0 | CY21: 0 | CZ21: 0 | DA21: 0 | DB21: 0 | DC21: 0 | DD21: 0 | DE21: 0 | DF21: 0 | DG21: 0 | DH21: 0 | DI21: 0 | DJ21: 0
C22: > 275 kV & < = 330 kV ; Multiple Circuit | D22: 50 | E22: 7.1 | F22: 0 | G22: 0 | H22: 0 | I22: 0 | J22: 0 | K22: 0 | L22: 0 | M22: 0 | N22: 0 | O22: 0 | P22: 170 | Q22: 0 | R22: 0 | S22: 235 | T22: 0 | U22: 0 | V22: 0 | W22: 483 | X22: 0 | Y22: 0 | Z22: 0 | AA22: 0 | AB22: 0 | AC22: 0 | AD22: 0 | AE22: 0 | AF22: 0 | AG22: 0 | AH22: 0 | AI22: 0 | AJ22: 0 | AK22: 0 | AL22: 0 | AM22: 0 | AN22: 0 | AO22: 0 | AP22: 0 | AQ22: 0 | AR22: 0 | AS22: 0 | AT22: 0 | AU22: 0 | AV22: 0 | AW22: 0 | AX22: 0 | AY22: 0 | AZ22: 0 | BA22: 0 | BB22: 0 | BC22: 0 | BD22: 0 | BE22: 0 | BF22: 0 | BG22: 0 | BH22: 0 | BI22: 0 | BJ22: 0 | BK22: 0 | BL22: 0 | BM22: 0 | BN22: 0 | BO22: 0 | BP22: 0 | BQ22: 0 | BR22: 0 | BS22: 0 | BT22: 0 | BU22: 0 | BV22: 0 | BW22: 0 | BX22: 0 | BY22: 0 | BZ22: 0 | CA22: 0 | CB22: 0 | CC22: 0 | CD22: 0 | CE22: 0 | CF22: 0 | CG22: 0 | CH22: 0 | CI22: 0 | CJ22: 0 | CK22: 0 | CL22: 0 | CM22: 0 | CN22: 0 | CO22: 0 | CP22: 0 | CQ22: 0 | CR22: 0 | CS22: 0 | CT22: 0 | CU22: 0 | CV22: 0 | CW22: 0 | CX22: 0 | CY22: 0 | CZ22: 0 | DA22: 0 | DB22: 0 | DC22: 0 | DD22: 0 | DE22: 0 | DF22: 0 | DG22: 0 | DH22: 0 | DI22: 0 | DJ22: 0
C23: > 330 kV & < = 500 kV ; Multiple Circuit | D23: 50 | E23: 7.1 | F23: 0 | G23: 0 | H23: 0 | I23: 0 | J23: 0 | K23: 1 | L23: 0 | M23: 0 | N23: 0 | O23: 0 | P23: 0 | Q23: 0 | R23: 0 | S23: 0 | T23: 0 | U23: 0 | V23: 0 | W23: 0 | X23: 0 | Y23: 0 | Z23: 0 | AA23: 0 | AB23: 0 | AC23: 0 | AD23: 0 | AE23: 0 | AF23: 0 | AG23: 0 | AH23: 0 | AI23: 0 | AJ23: 0 | AK23: 0 | AL23: 0 | AM23: 0 | AN23: 0 | AO23: 0 | AP23: 0 | AQ23: 0 | AR23: 0 | AS23: 0 | AT23: 0 | AU23: 0 | AV23: 0 | AW23: 0 | AX23: 0 | AY23: 0 | AZ23: 0 | BA23: 0 | BB23: 0 | BC23: 0 | BD23: 0 | BE23: 0 | BF23: 0 | BG23: 0 | BH23: 0 | BI23: 0 | BJ23: 0 | BK23: 0 | BL23: 0 | BM23: 0 | BN23: 0 | BO23: 0 | BP23: 0 | BQ23: 0 | BR23: 0 | BS23: 0 | BT23: 0 | BU23: 0 | BV23: 0 | BW23: 0 | BX23: 0 | BY23: 0 | BZ23: 0 | CA23: 0 | CB23: 0 | CC23: 0 | CD23: 0 | CE23: 0 | CF23: 0 | CG23: 0 | CH23: 0 | CI23: 0 | CJ23: 0 | CK23: 0 | CL23: 0 | CM23: 0 | CN23: 0 | CO23: 0 | CP23: 0 | CQ23: 0 | CR23: 0 | CS23: 0 | CT23: 0 | CU23: 0 | CV23: 0 | CW23: 0 | CX23: 0 | CY23: 0 | CZ23: 0 | DA23: 0 | DB23: 0 | DC23: 0 | DD23: 0 | DE23: 0 | DF23: 0 | DG23: 0 | DH23: 0 | DI23: 0 | DJ23: 0
C24: > 500 kV ; Multiple Circuit | D24: 0 | E24: 0 | F24: 0 | G24: 0 | H24: 0 | I24: 0 | J24: 0 | K24: 0 | L24: 0 | M24: 0 | N24: 0 | O24: 0 | P24: 0 | Q24: 0 | R24: 0 | S24: 0 | T24: 0 | U24: 0 | V24: 0 | W24: 0 | X24: 0 | Y24: 0 | Z24: 0 | AA24: 0 | AB24: 0 | AC24: 0 | AD24: 0 | AE24: 0 | AF24: 0 | AG24: 0 | AH24: 0 | AI24: 0 | AJ24: 0 | AK24: 0 | AL24: 0 | AM24: 0 | AN24: 0 | AO24: 0 | AP24: 0 | AQ24: 0 | AR24: 0 | AS24: 0 | AT24: 0 | AU24: 0 | AV24: 0 | AW24: 0 | AX24: 0 | AY24: 0 | AZ24: 0 | BA24: 0 | BB24: 0 | BC24: 0 | BD24: 0 | BE24: 0 | BF24: 0 | BG24: 0 | BH24: 0 | BI24: 0 | BJ24: 0 | BK24: 0 | BL24: 0 | BM24: 0 | BN24: 0 | BO24: 0 | BP24: 0 | BQ24: 0 | BR24: 0 | BS24: 0 | BT24: 0 | BU24: 0 | BV24: 0 | BW24: 0 | BX24: 0 | BY24: 0 | BZ24: 0 | CA24: 0 | CB24: 0 | CC24: 0 | CD24: 0 | CE24: 0 | CF24: 0 | CG24: 0 | CH24: 0 | CI24: 0 | CJ24: 0 | CK24: 0 | CL24: 0 | CM24: 0 | CN24: 0 | CO24: 0 | CP24: 0 | CQ24: 0 | CR24: 0 | CS24: 0 | CT24: 0 | CU24: 0 | CV24: 0 | CW24: 0 | CX24: 0 | CY24: 0 | CZ24: 0 | DA24: 0 | DB24: 0 | DC24: 0 | DD24: 0 | DE24: 0 | DF24: 0 | DG24: 0 | DH24: 0 | DI24: 0 | DJ24: 0
C25: Other | D25: 15 | E25: 3.9 | F25: 0 | G25: 45 | H25: 15 | I25: 41 | J25: 0 | K25: 51 | L25: 0 | M25: 0 | N25: 7 | O25: 0 | P25: 0 | Q25: 0 | R25: 0 | S25: 0 | T25: 0 | U25: 0 | V25: 0 | W25: 0 | X25: 0 | Y25: 0 | Z25: 0 | AA25: 0 | AB25: 0 | AC25: 0 | AD25: 0 | AE25: 0 | AF25: 0 | AG25: 0 | AH25: 0 | AI25: 0 | AJ25: 0 | AK25: 0 | AL25: 0 | AM25: 0 | AN25: 0 | AO25: 0 | AP25: 0 | AQ25: 0 | AR25: 0 | AS25: 0 | AT25: 0 | AU25: 0 | AV25: 0 | AW25: 0 | AX25: 0 | AY25: 0 | AZ25: 0 | BA25: 0 | BB25: 0 | BC25: 0 | BD25: 0 | BE25: 0 | BF25: 0 | BG25: 0 | BH25: 0 | BI25: 0 | BJ25: 0 | BK25: 0 | BL25: 0 | BM25: 0 | BN25: 0 | BO25: 0 | BP25: 0 | BQ25: 0 | BR25: 0 | BS25: 0 | BT25: 0 | BU25: 0 | BV25: 0 | BW25: 0 | BX25: 0 | BY25: 0 | BZ25: 0 | CA25: 0 | CB25: 0 | CC25: 0 | CD25: 0 | CE25: 0 | CF25: 0 | CG25: 0 | CH25: 0 | CI25: 0 | CJ25: 0 | CK25: 0 | CL25: 0 | CM25: 0 | CN25: 0 | CO25: 0 | CP25: 0 | CQ25: 0 | CR25: 0 | CS25: 0 | CT25: 0 | CU25: 0 | CV25: 0 | CW25: 0 | CX25: 0 | CY25: 0 | CZ25: 0 | DA25: 0 | DB25: 0 | DC25: 0 | DD25: 0 | DE25: 0 | DF25: 0 | DG25: 0 | DH25: 0 | DI25: 0 | DJ25: 0
B26: TRANSMISSION TOWER SUPPORT STRUCTURES BY: Highest operating voltage; Circuit configuration | C26: < = 33 kV; Single Circuit | D26: 0 | E26: 0 | F26: 0 | G26: 0 | H26: 0 | I26: 0 | J26: 0 | K26: 0 | L26: 0 | M26: 0 | N26: 0 | O26: 0 | P26: 0 | Q26: 0 | R26: 0 | S26: 0 | T26: 0 | U26: 0 | V26: 0 | W26: 0 | X26: 0 | Y26: 0 | Z26: 0 | AA26: 0 | AB26: 0 | AC26: 0 | AD26: 0 | AE26: 0 | AF26: 0 | AG26: 0 | AH26: 0 | AI26: 0 | AJ26: 0 | AK26: 0 | AL26: 0 | AM26: 0 | AN26: 0 | AO26: 0 | AP26: 0 | AQ26: 0 | AR26: 0 | AS26: 0 | AT26: 0 | AU26: 0 | AV26: 0 | AW26: 0 | AX26: 0 | AY26: 0 | AZ26: 0 | BA26: 0 | BB26: 0 | BC26: 0 | BD26: 0 | BE26: 0 | BF26: 0 | BG26: 0 | BH26: 0 | BI26: 0 | BJ26: 0 | BK26: 0 | BL26: 0 | BM26: 0 | BN26: 0 | BO26: 0 | BP26: 0 | BQ26: 0 | BR26: 0 | BS26: 0 | BT26: 0 | BU26: 0 | BV26: 0 | BW26: 0 | BX26: 0 | BY26: 0 | BZ26: 0 | CA26: 0 | CB26: 0 | CC26: 0 | CD26: 0 | CE26: 0 | CF26: 0 | CG26: 0 | CH26: 0 | CI26: 0 | CJ26: 0 | CK26: 0 | CL26: 0 | CM26: 0 | CN26: 0 | CO26: 0 | CP26: 0 | CQ26: 0 | CR26: 0 | CS26: 0 | CT26: 0 | CU26: 0 | CV26: 0 | CW26: 0 | CX26: 0 | CY26: 0 | CZ26: 0 | DA26: 0 | DB26: 0 | DC26: 0 | DD26: 0 | DE26: 0 | DF26: 0 | DG26: 0 | DH26: 0 | DI26: 0 | DJ26: 0
C27: > 33 kV & < = 66 kV ; Single Circuit | D27: 0 | E27: 0 | F27: 0 | G27: 0 | H27: 0 | I27: 0 | J27: 0 | K27: 0 | L27: 0 | M27: 0 | N27: 0 | O27: 0 | P27: 0 | Q27: 0 | R27: 0 | S27: 0 | T27: 0 | U27: 0 | V27: 0 | W27: 0 | X27: 0 | Y27: 0 | Z27: 0 | AA27: 0 | AB27: 0 | AC27: 0 | AD27: 0 | AE27: 0 | AF27: 0 | AG27: 0 | AH27: 0 | AI27: 0 | AJ27: 0 | AK27: 0 | AL27: 0 | AM27: 0 | AN27: 0 | AO27: 0 | AP27: 0 | AQ27: 0 | AR27: 0 | AS27: 0 | AT27: 0 | AU27: 0 | AV27: 0 | AW27: 0 | AX27: 0 | AY27: 0 | AZ27: 0 | BA27: 0 | BB27: 0 | BC27: 0 | BD27: 0 | BE27: 0 | BF27: 0 | BG27: 0 | BH27: 0 | BI27: 0 | BJ27: 0 | BK27: 0 | BL27: 0 | BM27: 0 | BN27: 0 | BO27: 0 | BP27: 0 | BQ27: 0 | BR27: 0 | BS27: 0 | BT27: 0 | BU27: 0 | BV27: 0 | BW27: 0 | BX27: 0 | BY27: 0 | BZ27: 0 | CA27: 0 | CB27: 0 | CC27: 0 | CD27: 0 | CE27: 0 | CF27: 0 | CG27: 0 | CH27: 0 | CI27: 0 | CJ27: 0 | CK27: 0 | CL27: 0 | CM27: 0 | CN27: 0 | CO27: 0 | CP27: 0 | CQ27: 0 | CR27: 0 | CS27: 0 | CT27: 0 | CU27: 0 | CV27: 0 | CW27: 0 | CX27: 0 | CY27: 0 | CZ27: 0 | DA27: 0 | DB27: 0 | DC27: 0 | DD27: 0 | DE27: 0 | DF27: 0 | DG27: 0 | DH27: 0 | DI27: 0 | DJ27: 0
C28: > 66 kV & < = 132 kV ; Single Circuit | D28: 30 | E28: 5.5 | F28: 0 | G28: 131 | H28: 488 | I28: 295 | J28: 778 | K28: 398 | L28: 132 | M28: 333 | N28: 295 | O28: 926 | P28: 434 | Q28: 433 | R28: 136 | S28: 81 | T28: 34 | U28: 605 | V28: 61 | W28: 33 | X28: 100 | Y28: 875 | Z28: 214 | AA28: 5 | AB28: 0 | AC28: 0 | AD28: 0 | AE28: 492 | AF28: 24 | AG28: 6 | AH28: 28 | AI28: 1316 | AJ28: 174 | AK28: 427 | AL28: 26 | AM28: 78 | AN28: 0 | AO28: 138 | AP28: 518 | AQ28: 450 | AR28: 0 | AS28: 3 | AT28: 10 | AU28: 1466 | AV28: 0 | AW28: 1 | AX28: 24 | AY28: 0 | AZ28: 0 | BA28: 4 | BB28: 0 | BC28: 810 | BD28: 6 | BE28: 47 | BF28: 15 | BG28: 400 | BH28: 0 | BI28: 24 | BJ28: 3 | BK28: 0 | BL28: 0 | BM28: 0 | BN28: 0 | BO28: 0 | BP28: 0 | BQ28: 0 | BR28: 0 | BS28: 0 | BT28: 0 | BU28: 0 | BV28: 0 | BW28: 0 | BX28: 0 | BY28: 0 | BZ28: 0 | CA28: 0 | CB28: 0 | CC28: 0 | CD28: 0 | CE28: 0 | CF28: 0 | CG28: 0 | CH28: 0 | CI28: 0 | CJ28: 0 | CK28: 0 | CL28: 0 | CM28: 0 | CN28: 0 | CO28: 0 | CP28: 0 | CQ28: 0 | CR28: 0 | CS28: 0 | CT28: 0 | CU28: 0 | CV28: 0 | CW28: 0 | CX28: 0 | CY28: 0 | CZ28: 0 | DA28: 0 | DB28: 0 | DC28: 0 | DD28: 0 | DE28: 0 | DF28: 0 | DG28: 0 | DH28: 0 | DI28: 0 | DJ28: 0
C29: > 132 kV & < = 275 kV ; Single Circuit | D29: 30 | E29: 5.5 | F29: 82 | G29: 1808 | H29: 121 | I29: 211 | J29: 1390 | K29: 2958 | L29: 1583 | M29: 1450 | N29: 2061 | O29: 3240 | P29: 2422 | Q29: 91 | R29: 29 | S29: 1495 | T29: 650 | U29: 1096 | V29: 401 | W29: 74 | X29: 563 | Y29: 344 | Z29: 2805 | AA29: 0 | AB29: 408 | AC29: 655 | AD29: 366 | AE29: 1180 | AF29: 170 | AG29: 108 | AH29: 19 | AI29: 88 | AJ29: 1876 | AK29: 798 | AL29: 15 | AM29: 1157 | AN29: 0 | AO29: 1725 | AP29: 1803 | AQ29: 554 | AR29: 186 | AS29: 3 | AT29: 460 | AU29: 1963 | AV29: 0 | AW29: 838 | AX29: 775 | AY29: 1499 | AZ29: 30 | BA29: 0 | BB29: 0 | BC29: 0 | BD29: 0 | BE29: 0 | BF29: 0 | BG29: 0 | BH29: 0 | BI29: 0 | BJ29: 0 | BK29: 0 | BL29: 0 | BM29: 0 | BN29: 0 | BO29: 0 | BP29: 0 | BQ29: 0 | BR29: 0 | BS29: 0 | BT29: 0 | BU29: 0 | BV29: 0 | BW29: 0 | BX29: 0 | BY29: 0 | BZ29: 0 | CA29: 0 | CB29: 0 | CC29: 0 | CD29: 0 | CE29: 0 | CF29: 0 | CG29: 0 | CH29: 0 | CI29: 0 | CJ29: 0 | CK29: 0 | CL29: 0 | CM29: 0 | CN29: 0 | CO29: 0 | CP29: 0 | CQ29: 0 | CR29: 0 | CS29: 0 | CT29: 0 | CU29: 0 | CV29: 0 | CW29: 0 | CX29: 0 | CY29: 0 | CZ29: 0 | DA29: 0 | DB29: 0 | DC29: 0 | DD29: 0 | DE29: 0 | DF29: 0 | DG29: 0 | DH29: 0 | DI29: 0 | DJ29: 0
C30: > 275 kV & < = 330 kV ; Single Circuit | D30: 30 | E30: 5.5 | F30: 0 | G30: 0 | H30: 0 | I30: 0 | J30: 0 | K30: 0 | L30: 0 | M30: 0 | N30: 0 | O30: 0 | P30: 0 | Q30: 48 | R30: 0 | S30: 180 | T30: 0 | U30: 0 | V30: 0 | W30: 0 | X30: 0 | Y30: 0 | Z30: 0 | AA30: 0 | AB30: 0 | AC30: 0 | AD30: 0 | AE30: 0 | AF30: 0 | AG30: 0 | AH30: 0 | AI30: 0 | AJ30: 0 | AK30: 0 | AL30: 0 | AM30: 0 | AN30: 0 | AO30: 0 | AP30: 0 | AQ30: 0 | AR30: 0 | AS30: 0 | AT30: 0 | AU30: 0 | AV30: 0 | AW30: 0 | AX30: 0 | AY30: 0 | AZ30: 0 | BA30: 0 | BB30: 0 | BC30: 0 | BD30: 0 | BE30: 0 | BF30: 0 | BG30: 0 | BH30: 0 | BI30: 0 | BJ30: 0 | BK30: 0 | BL30: 0 | BM30: 0 | BN30: 0 | BO30: 0 | BP30: 0 | BQ30: 0 | BR30: 0 | BS30: 0 | BT30: 0 | BU30: 0 | BV30: 0 | BW30: 0 | BX30: 0 | BY30: 0 | BZ30: 0 | CA30: 0 | CB30: 0 | CC30: 0 | CD30: 0 | CE30: 0 | CF30: 0 | CG30: 0 | CH30: 0 | CI30: 0 | CJ30: 0 | CK30: 0 | CL30: 0 | CM30: 0 | CN30: 0 | CO30: 0 | CP30: 0 | CQ30: 0 | CR30: 0 | CS30: 0 | CT30: 0 | CU30: 0 | CV30: 0 | CW30: 0 | CX30: 0 | CY30: 0 | CZ30: 0 | DA30: 0 | DB30: 0 | DC30: 0 | DD30: 0 | DE30: 0 | DF30: 0 | DG30: 0 | DH30: 0 | DI30: 0 | DJ30: 0
C31: > 330 kV & < = 500 kV ; Single Circuit | D31: 0 | E31: 0 | F31: 0 | G31: 0 | H31: 0 | I31: 0 | J31: 0 | K31: 0 | L31: 0 | M31: 0 | N31: 0 | O31: 0 | P31: 0 | Q31: 0 | R31: 0 | S31: 0 | T31: 0 | U31: 0 | V31: 0 | W31: 0 | X31: 0 | Y31: 0 | Z31: 0 | AA31: 0 | AB31: 0 | AC31: 0 | AD31: 0 | AE31: 0 | AF31: 0 | AG31: 0 | AH31: 0 | AI31: 0 | AJ31: 0 | AK31: 0 | AL31: 0 | AM31: 0 | AN31: 0 | AO31: 0 | AP31: 0 | AQ31: 0 | AR31: 0 | AS31: 0 | AT31: 0 | AU31: 0 | AV31: 0 | AW31: 0 | AX31: 0 | AY31: 0 | AZ31: 0 | BA31: 0 | BB31: 0 | BC31: 0 | BD31: 0 | BE31: 0 | BF31: 0 | BG31: 0 | BH31: 0 | BI31: 0 | BJ31: 0 | BK31: 0 | BL31: 0 | BM31: 0 | BN31: 0 | BO31: 0 | BP31: 0 | BQ31: 0 | BR31: 0 | BS31: 0 | BT31: 0 | BU31: 0 | BV31: 0 | BW31: 0 | BX31: 0 | BY31: 0 | BZ31: 0 | CA31: 0 | CB31: 0 | CC31: 0 | CD31: 0 | CE31: 0 | CF31: 0 | CG31: 0 | CH31: 0 | CI31: 0 | CJ31: 0 | CK31: 0 | CL31: 0 | CM31: 0 | CN31: 0 | CO31: 0 | CP31: 0 | CQ31: 0 | CR31: 0 | CS31: 0 | CT31: 0 | CU31: 0 | CV31: 0 | CW31: 0 | CX31: 0 | CY31: 0 | CZ31: 0 | DA31: 0 | DB31: 0 | DC31: 0 | DD31: 0 | DE31: 0 | DF31: 0 | DG31: 0 | DH31: 0 | DI31: 0 | DJ31: 0
C32: > 500 kV ; Single Circuit | D32: 0 | E32: 0 | F32: 0 | G32: 0 | H32: 0 | I32: 0 | J32: 0 | K32: 0 | L32: 0 | M32: 0 | N32: 0 | O32: 0 | P32: 0 | Q32: 0 | R32: 0 | S32: 0 | T32: 0 | U32: 0 | V32: 0 | W32: 0 | X32: 0 | Y32: 0 | Z32: 0 | AA32: 0 | AB32: 0 | AC32: 0 | AD32: 0 | AE32: 0 | AF32: 0 | AG32: 0 | AH32: 0 | AI32: 0 | AJ32: 0 | AK32: 0 | AL32: 0 | AM32: 0 | AN32: 0 | AO32: 0 | AP32: 0 | AQ32: 0 | AR32: 0 | AS32: 0 | AT32: 0 | AU32: 0 | AV32: 0 | AW32: 0 | AX32: 0 | AY32: 0 | AZ32: 0 | BA32: 0 | BB32: 0 | BC32: 0 | BD32: 0 | BE32: 0 | BF32: 0 | BG32: 0 | BH32: 0 | BI32: 0 | BJ32: 0 | BK32: 0 | BL32: 0 | BM32: 0 | BN32: 0 | BO32: 0 | BP32: 0 | BQ32: 0 | BR32: 0 | BS32: 0 | BT32: 0 | BU32: 0 | BV32: 0 | BW32: 0 | BX32: 0 | BY32: 0 | BZ32: 0 | CA32: 0 | CB32: 0 | CC32: 0 | CD32: 0 | CE32: 0 | CF32: 0 | CG32: 0 | CH32: 0 | CI32: 0 | CJ32: 0 | CK32: 0 | CL32: 0 | CM32: 0 | CN32: 0 | CO32: 0 | CP32: 0 | CQ32: 0 | CR32: 0 | CS32: 0 | CT32: 0 | CU32: 0 | CV32: 0 | CW32: 0 | CX32: 0 | CY32: 0 | CZ32: 0 | DA32: 0 | DB32: 0 | DC32: 0 | DD32: 0 | DE32: 0 | DF32: 0 | DG32: 0 | DH32: 0 | DI32: 0 | DJ32: 0
C33: < = 33 kV; Multiple Circuit | D33: 0 | E33: 0 | F33: 0 | G33: 0 | H33: 0 | I33: 0 | J33: 0 | K33: 0 | L33: 0 | M33: 0 | N33: 0 | O33: 0 | P33: 0 | Q33: 0 | R33: 0 | S33: 0 | T33: 0 | U33: 0 | V33: 0 | W33: 0 | X33: 0 | Y33: 0 | Z33: 0 | AA33: 0 | AB33: 0 | AC33: 0 | AD33: 0 | AE33: 0 | AF33: 0 | AG33: 0 | AH33: 0 | AI33: 0 | AJ33: 0 | AK33: 0 | AL33: 0 | AM33: 0 | AN33: 0 | AO33: 0 | AP33: 0 | AQ33: 0 | AR33: 0 | AS33: 0 | AT33: 0 | AU33: 0 | AV33: 0 | AW33: 0 | AX33: 0 | AY33: 0 | AZ33: 0 | BA33: 0 | BB33: 0 | BC33: 0 | BD33: 0 | BE33: 0 | BF33: 0 | BG33: 0 | BH33: 0 | BI33: 0 | BJ33: 0 | BK33: 0 | BL33: 0 | BM33: 0 | BN33: 0 | BO33: 0 | BP33: 0 | BQ33: 0 | BR33: 0 | BS33: 0 | BT33: 0 | BU33: 0 | BV33: 0 | BW33: 0 | BX33: 0 | BY33: 0 | BZ33: 0 | CA33: 0 | CB33: 0 | CC33: 0 | CD33: 0 | CE33: 0 | CF33: 0 | CG33: 0 | CH33: 0 | CI33: 0 | CJ33: 0 | CK33: 0 | CL33: 0 | CM33: 0 | CN33: 0 | CO33: 0 | CP33: 0 | CQ33: 0 | CR33: 0 | CS33: 0 | CT33: 0 | CU33: 0 | CV33: 0 | CW33: 0 | CX33: 0 | CY33: 0 | CZ33: 0 | DA33: 0 | DB33: 0 | DC33: 0 | DD33: 0 | DE33: 0 | DF33: 0 | DG33: 0 | DH33: 0 | DI33: 0 | DJ33: 0
C34: > 33 kV & < = 66 kV ; Multiple Circuit | D34: 30 | E34: 5.5 | F34: 0 | G34: 0 | H34: 0 | I34: 0 | J34: 0 | K34: 0 | L34: 0 | M34: 0 | N34: 0 | O34: 0 | P34: 0 | Q34: 0 | R34: 0 | S34: 0 | T34: 0 | U34: 0 | V34: 0 | W34: 0 | X34: 0 | Y34: 0 | Z34: 0 | AA34: 0 | AB34: 0 | AC34: 0 | AD34: 0 | AE34: 0 | AF34: 0 | AG34: 0 | AH34: 0 | AI34: 0 | AJ34: 0 | AK34: 0 | AL34: 0 | AM34: 0 | AN34: 24 | AO34: 0 | AP34: 0 | AQ34: 12 | AR34: 0 | AS34: 0 | AT34: 0 | AU34: 0 | AV34: 0 | AW34: 0 | AX34: 0 | AY34: 0 | AZ34: 0 | BA34: 0 | BB34: 0 | BC34: 0 | BD34: 0 | BE34: 0 | BF34: 0 | BG34: 0 | BH34: 0 | BI34: 0 | BJ34: 0 | BK34: 0 | BL34: 0 | BM34: 0 | BN34: 0 | BO34: 0 | BP34: 0 | BQ34: 0 | BR34: 0 | BS34: 0 | BT34: 0 | BU34: 0 | BV34: 0 | BW34: 0 | BX34: 0 | BY34: 0 | BZ34: 0 | CA34: 0 | CB34: 0 | CC34: 0 | CD34: 0 | CE34: 0 | CF34: 0 | CG34: 0 | CH34: 0 | CI34: 0 | CJ34: 0 | CK34: 0 | CL34: 0 | CM34: 0 | CN34: 0 | CO34: 0 | CP34: 0 | CQ34: 0 | CR34: 0 | CS34: 0 | CT34: 0 | CU34: 0 | CV34: 0 | CW34: 0 | CX34: 0 | CY34: 0 | CZ34: 0 | DA34: 0 | DB34: 0 | DC34: 0 | DD34: 0 | DE34: 0 | DF34: 0 | DG34: 0 | DH34: 0 | DI34: 0 | DJ34: 0
C35: > 66 kV & < = 132 kV ; Multiple Circuit | D35: 30 | E35: 5.5 | F35: 481 | G35: 885 | H35: 867 | I35: 1320 | J35: 635 | K35: 739 | L35: 997 | M35: 2016 | N35: 1619 | O35: 2901 | P35: 3432 | Q35: 333 | R35: 2354 | S35: 1281 | T35: 539 | U35: 2467 | V35: 398 | W35: 461 | X35: 3655 | Y35: 998 | Z35: 280 | AA35: 463 | AB35: 18 | AC35: 0 | AD35: 201 | AE35: 257 | AF35: 108 | AG35: 54 | AH35: 139 | AI35: 594 | AJ35: 39 | AK35: 51 | AL35: 2402 | AM35: 102 | AN35: 6 | AO35: 2910 | AP35: 162 | AQ35: 6 | AR35: 666 | AS35: 264 | AT35: 867 | AU35: 282 | AV35: 228 | AW35: 36 | AX35: 1203 | AY35: 21 | AZ35: 0 | BA35: 21 | BB35: 0 | BC35: 42 | BD35: 875 | BE35: 1317 | BF35: 6 | BG35: 6 | BH35: 0 | BI35: 657 | BJ35: 18 | BK35: 0 | BL35: 0 | BM35: 0 | BN35: 0 | BO35: 6 | BP35: 0 | BQ35: 0 | BR35: 0 | BS35: 0 | BT35: 0 | BU35: 0 | BV35: 0 | BW35: 0 | BX35: 0 | BY35: 0 | BZ35: 0 | CA35: 0 | CB35: 0 | CC35: 0 | CD35: 0 | CE35: 0 | CF35: 0 | CG35: 0 | CH35: 0 | CI35: 0 | CJ35: 0 | CK35: 0 | CL35: 0 | CM35: 0 | CN35: 0 | CO35: 0 | CP35: 0 | CQ35: 0 | CR35: 0 | CS35: 0 | CT35: 0 | CU35: 0 | CV35: 0 | CW35: 0 | CX35: 0 | CY35: 0 | CZ35: 0 | DA35: 0 | DB35: 0 | DC35: 0 | DD35: 0 | DE35: 0 | DF35: 0 | DG35: 0 | DH35: 0 | DI35: 0 | DJ35: 0
C36: > 132 kV & < = 275 kV ; Multiple Circuit | D36: 30 | E36: 5.5 | F36: 0 | G36: 487 | H36: 713 | I36: 71 | J36: 5057 | K36: 5108 | L36: 2035 | M36: 3804 | N36: 8273 | O36: 3147 | P36: 2193 | Q36: 2202 | R36: 846 | S36: 2699 | T36: 2226 | U36: 171 | V36: 2335 | W36: 3714 | X36: 2856 | Y36: 6264 | Z36: 677 | AA36: 0 | AB36: 73 | AC36: 0 | AD36: 198 | AE36: 409 | AF36: 165 | AG36: 308 | AH36: 141 | AI36: 369 | AJ36: 39 | AK36: 621 | AL36: 204 | AM36: 1868 | AN36: 84 | AO36: 60 | AP36: 0 | AQ36: 1142 | AR36: 48 | AS36: 0 | AT36: 24 | AU36: 6 | AV36: 0 | AW36: 0 | AX36: 0 | AY36: 24 | AZ36: 1312 | BA36: 0 | BB36: 684 | BC36: 0 | BD36: 12 | BE36: 0 | BF36: 0 | BG36: 0 | BH36: 0 | BI36: 0 | BJ36: 0 | BK36: 0 | BL36: 0 | BM36: 0 | BN36: 0 | BO36: 0 | BP36: 0 | BQ36: 0 | BR36: 0 | BS36: 0 | BT36: 0 | BU36: 0 | BV36: 0 | BW36: 0 | BX36: 0 | BY36: 0 | BZ36: 0 | CA36: 0 | CB36: 0 | CC36: 0 | CD36: 0 | CE36: 0 | CF36: 0 | CG36: 0 | CH36: 0 | CI36: 0 | CJ36: 0 | CK36: 0 | CL36: 0 | CM36: 0 | CN36: 0 | CO36: 0 | CP36: 0 | CQ36: 0 | CR36: 0 | CS36: 0 | CT36: 0 | CU36: 0 | CV36: 0 | CW36: 0 | CX36: 0 | CY36: 0 | CZ36: 0 | DA36: 0 | DB36: 0 | DC36: 0 | DD36: 0 | DE36: 0 | DF36: 0 | DG36: 0 | DH36: 0 | DI36: 0 | DJ36: 0
C37: > 275 kV & < = 330 kV ; Multiple Circuit | D37: 30 | E37: 5.5 | F37: 0 | G37: 2 | H37: 0 | I37: 0 | J37: 0 | K37: 0 | L37: 14 | M37: 0 | N37: 0 | O37: 0 | P37: 1767 | Q37: 36 | R37: 0 | S37: 3334 | T37: 36 | U37: 0 | V37: 1 | W37: 3707 | X37: 0 | Y37: 0 | Z37: 0 | AA37: 0 | AB37: 0 | AC37: 0 | AD37: 0 | AE37: 0 | AF37: 0 | AG37: 0 | AH37: 0 | AI37: 0 | AJ37: 0 | AK37: 0 | AL37: 0 | AM37: 0 | AN37: 0 | AO37: 0 | AP37: 0 | AQ37: 0 | AR37: 0 | AS37: 0 | AT37: 0 | AU37: 0 | AV37: 0 | AW37: 0 | AX37: 0 | AY37: 0 | AZ37: 0 | BA37: 0 | BB37: 0 | BC37: 0 | BD37: 0 | BE37: 0 | BF37: 0 | BG37: 0 | BH37: 0 | BI37: 0 | BJ37: 0 | BK37: 0 | BL37: 0 | BM37: 0 | BN37: 0 | BO37: 0 | BP37: 0 | BQ37: 0 | BR37: 0 | BS37: 0 | BT37: 0 | BU37: 0 | BV37: 0 | BW37: 0 | BX37: 0 | BY37: 0 | BZ37: 0 | CA37: 0 | CB37: 0 | CC37: 0 | CD37: 0 | CE37: 0 | CF37: 0 | CG37: 0 | CH37: 0 | CI37: 0 | CJ37: 0 | CK37: 0 | CL37: 0 | CM37: 0 | CN37: 0 | CO37: 0 | CP37: 0 | CQ37: 0 | CR37: 0 | CS37: 0 | CT37: 0 | CU37: 0 | CV37: 0 | CW37: 0 | CX37: 0 | CY37: 0 | CZ37: 0 | DA37: 0 | DB37: 0 | DC37: 0 | DD37: 0 | DE37: 0 | DF37: 0 | DG37: 0 | DH37: 0 | DI37: 0 | DJ37: 0
C38: > 330 kV & < = 500 kV ; Multiple Circuit | D38: 0 | E38: 0 | F38: 0 | G38: 0 | H38: 0 | I38: 0 | J38: 0 | K38: 0 | L38: 0 | M38: 0 | N38: 0 | O38: 0 | P38: 0 | Q38: 0 | R38: 0 | S38: 0 | T38: 0 | U38: 0 | V38: 0 | W38: 0 | X38: 0 | Y38: 0 | Z38: 0 | AA38: 0 | AB38: 0 | AC38: 0 | AD38: 0 | AE38: 0 | AF38: 0 | AG38: 0 | AH38: 0 | AI38: 0 | AJ38: 0 | AK38: 0 | AL38: 0 | AM38: 0 | AN38: 0 | AO38: 0 | AP38: 0 | AQ38: 0 | AR38: 0 | AS38: 0 | AT38: 0 | AU38: 0 | AV38: 0 | AW38: 0 | AX38: 0 | AY38: 0 | AZ38: 0 | BA38: 0 | BB38: 0 | BC38: 0 | BD38: 0 | BE38: 0 | BF38: 0 | BG38: 0 | BH38: 0 | BI38: 0 | BJ38: 0 | BK38: 0 | BL38: 0 | BM38: 0 | BN38: 0 | BO38: 0 | BP38: 0 | BQ38: 0 | BR38: 0 | BS38: 0 | BT38: 0 | BU38: 0 | BV38: 0 | BW38: 0 | BX38: 0 | BY38: 0 | BZ38: 0 | CA38: 0 | CB38: 0 | CC38: 0 | CD38: 0 | CE38: 0 | CF38: 0 | CG38: 0 | CH38: 0 | CI38: 0 | CJ38: 0 | CK38: 0 | CL38: 0 | CM38: 0 | CN38: 0 | CO38: 0 | CP38: 0 | CQ38: 0 | CR38: 0 | CS38: 0 | CT38: 0 | CU38: 0 | CV38: 0 | CW38: 0 | CX38: 0 | CY38: 0 | CZ38: 0 | DA38: 0 | DB38: 0 | DC38: 0 | DD38: 0 | DE38: 0 | DF38: 0 | DG38: 0 | DH38: 0 | DI38: 0 | DJ38: 0
C39: > 500 kV ; Multiple Circuit | D39: 0 | E39: 0 | F39: 0 | G39: 0 | H39: 0 | I39: 0 | J39: 0 | K39: 0 | L39: 0 | M39: 0 | N39: 0 | O39: 0 | P39: 0 | Q39: 0 | R39: 0 | S39: 0 | T39: 0 | U39: 0 | V39: 0 | W39: 0 | X39: 0 | Y39: 0 | Z39: 0 | AA39: 0 | AB39: 0 | AC39: 0 | AD39: 0 | AE39: 0 | AF39: 0 | AG39: 0 | AH39: 0 | AI39: 0 | AJ39: 0 | AK39: 0 | AL39: 0 | AM39: 0 | AN39: 0 | AO39: 0 | AP39: 0 | AQ39: 0 | AR39: 0 | AS39: 0 | AT39: 0 | AU39: 0 | AV39: 0 | AW39: 0 | AX39: 0 | AY39: 0 | AZ39: 0 | BA39: 0 | BB39: 0 | BC39: 0 | BD39: 0 | BE39: 0 | BF39: 0 | BG39: 0 | BH39: 0 | BI39: 0 | BJ39: 0 | BK39: 0 | BL39: 0 | BM39: 0 | BN39: 0 | BO39: 0 | BP39: 0 | BQ39: 0 | BR39: 0 | BS39: 0 | BT39: 0 | BU39: 0 | BV39: 0 | BW39: 0 | BX39: 0 | BY39: 0 | BZ39: 0 | CA39: 0 | CB39: 0 | CC39: 0 | CD39: 0 | CE39: 0 | CF39: 0 | CG39: 0 | CH39: 0 | CI39: 0 | CJ39: 0 | CK39: 0 | CL39: 0 | CM39: 0 | CN39: 0 | CO39: 0 | CP39: 0 | CQ39: 0 | CR39: 0 | CS39: 0 | CT39: 0 | CU39: 0 | CV39: 0 | CW39: 0 | CX39: 0 | CY39: 0 | CZ39: 0 | DA39: 0 | DB39: 0 | DC39: 0 | DD39: 0 | DE39: 0 | DF39: 0 | DG39: 0 | DH39: 0 | DI39: 0 | DJ39: 0
C40: Other
B41: CONDUCTORS BY: Voltage; Maximum continuous rating | C41: < = 33 kV ; < = 100 MVA | D41: 50 | E41: 7.1 | F41: 0 | G41: 0 | H41: 0 | I41: 0 | J41: 0 | K41: 0 | L41: 0 | M41: 0 | N41: 0 | O41: 0 | P41: 0 | Q41: 0 | R41: 0 | S41: 0 | T41: 0 | U41: 0 | V41: 0 | W41: 0 | X41: 0 | Y41: 0 | Z41: 0 | AA41: 0 | AB41: 0 | AC41: 0 | AD41: 0 | AE41: 0 | AF41: 0 | AG41: 0 | AH41: 0 | AI41: 0 | AJ41: 0 | AK41: 0 | AL41: 0 | AM41: 0 | AN41: 0 | AO41: 0 | AP41: 0 | AQ41: 0 | AR41: 0 | AS41: 0 | AT41: 0 | AU41: 0 | AV41: 0 | AW41: 0 | AX41: 0 | AY41: 0 | AZ41: 0 | BA41: 0 | BB41: 0 | BC41: 0 | BD41: 0 | BE41: 0 | BF41: 0 | BG41: 0 | BH41: 0 | BI41: 0 | BJ41: 0 | BK41: 0 | BL41: 0 | BM41: 0 | BN41: 0 | BO41: 0 | BP41: 0 | BQ41: 0 | BR41: 0 | BS41: 0 | BT41: 0 | BU41: 0 | BV41: 0 | BW41: 0 | BX41: 0 | BY41: 0 | BZ41: 0 | CA41: 0 | CB41: 0 | CC41: 0 | CD41: 0 | CE41: 0 | CF41: 0 | CG41: 0 | CH41: 0 | CI41: 0 | CJ41: 0 | CK41: 0 | CL41: 0 | CM41: 0 | CN41: 0 | CO41: 0 | CP41: 0 | CQ41: 0 | CR41: 0 | CS41: 0 | CT41: 0 | CU41: 0 | CV41: 0 | CW41: 0 | CX41: 0 | CY41: 0 | CZ41: 0 | DA41: 0 | DB41: 0 | DC41: 0 | DD41: 0 | DE41: 0 | DF41: 0 | DG41: 0 | DH41: 0 | DI41: 0 | DJ41: 0
C42: < = 33 kV ; > 100 MVA & < = 400 MVA | D42: 0 | E42: 0 | F42: 0 | G42: 0 | H42: 0 | I42: 0 | J42: 0 | K42: 0 | L42: 0 | M42: 0 | N42: 0 | O42: 0 | P42: 0 | Q42: 0 | R42: 0 | S42: 0 | T42: 0 | U42: 0 | V42: 0 | W42: 0 | X42: 0 | Y42: 0 | Z42: 0 | AA42: 0 | AB42: 0 | AC42: 0 | AD42: 0 | AE42: 0 | AF42: 0 | AG42: 0 | AH42: 0 | AI42: 0 | AJ42: 0 | AK42: 0 | AL42: 0 | AM42: 0 | AN42: 0 | AO42: 0 | AP42: 0 | AQ42: 0 | AR42: 0 | AS42: 0 | AT42: 0 | AU42: 0 | AV42: 0 | AW42: 0 | AX42: 0 | AY42: 0 | AZ42: 0 | BA42: 0 | BB42: 0 | BC42: 0 | BD42: 0 | BE42: 0 | BF42: 0 | BG42: 0 | BH42: 0 | BI42: 0 | BJ42: 0 | BK42: 0 | BL42: 0 | BM42: 0 | BN42: 0 | BO42: 0 | BP42: 0 | BQ42: 0 | BR42: 0 | BS42: 0 | BT42: 0 | BU42: 0 | BV42: 0 | BW42: 0 | BX42: 0 | BY42: 0 | BZ42: 0 | CA42: 0 | CB42: 0 | CC42: 0 | CD42: 0 | CE42: 0 | CF42: 0 | CG42: 0 | CH42: 0 | CI42: 0 | CJ42: 0 | CK42: 0 | CL42: 0 | CM42: 0 | CN42: 0 | CO42: 0 | CP42: 0 | CQ42: 0 | CR42: 0 | CS42: 0 | CT42: 0 | CU42: 0 | CV42: 0 | CW42: 0 | CX42: 0 | CY42: 0 | CZ42: 0 | DA42: 0 | DB42: 0 | DC42: 0 | DD42: 0 | DE42: 0 | DF42: 0 | DG42: 0 | DH42: 0 | DI42: 0 | DJ42: 0
C43: < = 33 kV ; > 400 MVA | D43: 0 | E43: 0 | F43: 0 | G43: 0 | H43: 0 | I43: 0 | J43: 0 | K43: 0 | L43: 0 | M43: 0 | N43: 0 | O43: 0 | P43: 0 | Q43: 0 | R43: 0 | S43: 0 | T43: 0 | U43: 0 | V43: 0 | W43: 0 | X43: 0 | Y43: 0 | Z43: 0 | AA43: 0 | AB43: 0 | AC43: 0 | AD43: 0 | AE43: 0 | AF43: 0 | AG43: 0 | AH43: 0 | AI43: 0 | AJ43: 0 | AK43: 0 | AL43: 0 | AM43: 0 | AN43: 0 | AO43: 0 | AP43: 0 | AQ43: 0 | AR43: 0 | AS43: 0 | AT43: 0 | AU43: 0 | AV43: 0 | AW43: 0 | AX43: 0 | AY43: 0 | AZ43: 0 | BA43: 0 | BB43: 0 | BC43: 0 | BD43: 0 | BE43: 0 | BF43: 0 | BG43: 0 | BH43: 0 | BI43: 0 | BJ43: 0 | BK43: 0 | BL43: 0 | BM43: 0 | BN43: 0 | BO43: 0 | BP43: 0 | BQ43: 0 | BR43: 0 | BS43: 0 | BT43: 0 | BU43: 0 | BV43: 0 | BW43: 0 | BX43: 0 | BY43: 0 | BZ43: 0 | CA43: 0 | CB43: 0 | CC43: 0 | CD43: 0 | CE43: 0 | CF43: 0 | CG43: 0 | CH43: 0 | CI43: 0 | CJ43: 0 | CK43: 0 | CL43: 0 | CM43: 0 | CN43: 0 | CO43: 0 | CP43: 0 | CQ43: 0 | CR43: 0 | CS43: 0 | CT43: 0 | CU43: 0 | CV43: 0 | CW43: 0 | CX43: 0 | CY43: 0 | CZ43: 0 | DA43: 0 | DB43: 0 | DC43: 0 | DD43: 0 | DE43: 0 | DF43: 0 | DG43: 0 | DH43: 0 | DI43: 0 | DJ43: 0
C44: > 33 kV & < = 66 kV ; < = 100 MVA | D44: 50 | E44: 7.1 | F44: 0 | G44: 0 | H44: 0 | I44: 0 | J44: 0 | K44: 0 | L44: 0 | M44: 0 | N44: 0 | O44: 0 | P44: 0 | Q44: 0 | R44: 0 | S44: 0 | T44: 0 | U44: 0 | V44: 0 | W44: 0 | X44: 0 | Y44: 0 | Z44: 0 | AA44: 0 | AB44: 0 | AC44: 0 | AD44: 0 | AE44: 0 | AF44: 0 | AG44: 0 | AH44: 0 | AI44: 0 | AJ44: 0 | AK44: 0 | AL44: 0 | AM44: 0 | AN44: 0 | AO44: 0 | AP44: 0 | AQ44: 0 | AR44: 0 | AS44: 0 | AT44: 0 | AU44: 0 | AV44: 0 | AW44: 0 | AX44: 0 | AY44: 0 | AZ44: 0 | BA44: 0 | BB44: 0 | BC44: 0 | BD44: 0 | BE44: 0 | BF44: 0 | BG44: 0 | BH44: 0 | BI44: 0 | BJ44: 0 | BK44: 0 | BL44: 0 | BM44: 0 | BN44: 0 | BO44: 0 | BP44: 0 | BQ44: 0 | BR44: 0 | BS44: 0 | BT44: 0 | BU44: 0 | BV44: 0 | BW44: 0 | BX44: 0 | BY44: 0 | BZ44: 0 | CA44: 0 | CB44: 0 | CC44: 0 | CD44: 0 | CE44: 0 | CF44: 0 | CG44: 0 | CH44: 0 | CI44: 0 | CJ44: 0 | CK44: 0 | CL44: 0 | CM44: 0 | CN44: 0 | CO44: 0 | CP44: 0 | CQ44: 0 | CR44: 0 | CS44: 0 | CT44: 0 | CU44: 0 | CV44: 0 | CW44: 0 | CX44: 0 | CY44: 0 | CZ44: 0 | DA44: 0 | DB44: 0 | DC44: 0 | DD44: 0 | DE44: 0 | DF44: 0 | DG44: 0 | DH44: 0 | DI44: 0 | DJ44: 0
C45: > 33 kV & < = 66 kV ; > 100 MVA & < = 400 MVA | D45: 0 | E45: 0 | F45: 0 | G45: 0 | H45: 0 | I45: 0 | J45: 0 | K45: 0 | L45: 0 | M45: 0 | N45: 0 | O45: 0 | P45: 0 | Q45: 0 | R45: 0 | S45: 0 | T45: 0 | U45: 0 | V45: 0 | W45: 0 | X45: 0 | Y45: 0 | Z45: 0 | AA45: 0 | AB45: 0 | AC45: 0 | AD45: 0 | AE45: 0 | AF45: 0 | AG45: 0 | AH45: 0 | AI45: 0 | AJ45: 0 | AK45: 0 | AL45: 0 | AM45: 0 | AN45: 0 | AO45: 0 | AP45: 0 | AQ45: 0 | AR45: 0 | AS45: 0 | AT45: 0 | AU45: 0 | AV45: 0 | AW45: 0 | AX45: 0 | AY45: 0 | AZ45: 0 | BA45: 0 | BB45: 0 | BC45: 0 | BD45: 0 | BE45: 0 | BF45: 0 | BG45: 0 | BH45: 0 | BI45: 0 | BJ45: 0 | BK45: 0 | BL45: 0 | BM45: 0 | BN45: 0 | BO45: 0 | BP45: 0 | BQ45: 0 | BR45: 0 | BS45: 0 | BT45: 0 | BU45: 0 | BV45: 0 | BW45: 0 | BX45: 0 | BY45: 0 | BZ45: 0 | CA45: 0 | CB45: 0 | CC45: 0 | CD45: 0 | CE45: 0 | CF45: 0 | CG45: 0 | CH45: 0 | CI45: 0 | CJ45: 0 | CK45: 0 | CL45: 0 | CM45: 0 | CN45: 0 | CO45: 0 | CP45: 0 | CQ45: 0 | CR45: 0 | CS45: 0 | CT45: 0 | CU45: 0 | CV45: 0 | CW45: 0 | CX45: 0 | CY45: 0 | CZ45: 0 | DA45: 0 | DB45: 0 | DC45: 0 | DD45: 0 | DE45: 0 | DF45: 0 | DG45: 0 | DH45: 0 | DI45: 0 | DJ45: 0
C46: > 33 kV & < = 66 kV ; > 400 MVA | D46: 0 | E46: 0 | F46: 0 | G46: 0 | H46: 0 | I46: 0 | J46: 0 | K46: 0 | L46: 0 | M46: 0 | N46: 0 | O46: 0 | P46: 0 | Q46: 0 | R46: 0 | S46: 0 | T46: 0 | U46: 0 | V46: 0 | W46: 0 | X46: 0 | Y46: 0 | Z46: 0 | AA46: 0 | AB46: 0 | AC46: 0 | AD46: 0 | AE46: 0 | AF46: 0 | AG46: 0 | AH46: 0 | AI46: 0 | AJ46: 0 | AK46: 0 | AL46: 0 | AM46: 0 | AN46: 0 | AO46: 0 | AP46: 0 | AQ46: 0 | AR46: 0 | AS46: 0 | AT46: 0 | AU46: 0 | AV46: 0 | AW46: 0 | AX46: 0 | AY46: 0 | AZ46: 0 | BA46: 0 | BB46: 0 | BC46: 0 | BD46: 0 | BE46: 0 | BF46: 0 | BG46: 0 | BH46: 0 | BI46: 0 | BJ46: 0 | BK46: 0 | BL46: 0 | BM46: 0 | BN46: 0 | BO46: 0 | BP46: 0 | BQ46: 0 | BR46: 0 | BS46: 0 | BT46: 0 | BU46: 0 | BV46: 0 | BW46: 0 | BX46: 0 | BY46: 0 | BZ46: 0 | CA46: 0 | CB46: 0 | CC46: 0 | CD46: 0 | CE46: 0 | CF46: 0 | CG46: 0 | CH46: 0 | CI46: 0 | CJ46: 0 | CK46: 0 | CL46: 0 | CM46: 0 | CN46: 0 | CO46: 0 | CP46: 0 | CQ46: 0 | CR46: 0 | CS46: 0 | CT46: 0 | CU46: 0 | CV46: 0 | CW46: 0 | CX46: 0 | CY46: 0 | CZ46: 0 | DA46: 0 | DB46: 0 | DC46: 0 | DD46: 0 | DE46: 0 | DF46: 0 | DG46: 0 | DH46: 0 | DI46: 0 | DJ46: 0
C47: > 66 kV & < = 132 kV ; < = 100 MVA | D47: 50 | E47: 7.1 | F47: 7.08 | G47: 0 | H47: 0 | I47: 29.12 | J47: 0 | K47: 0.1 | L47: 0 | M47: 0 | N47: 0 | O47: 0 | P47: 0 | Q47: 0 | R47: 0 | S47: 0 | T47: 1.2 | U47: 0 | V47: 0 | W47: 0 | X47: 0 | Y47: 0 | Z47: 0 | AA47: 23.9 | AB47: 0 | AC47: 0 | AD47: 0.98 | AE47: 43.25 | AF47: 0.2 | AG47: 0 | AH47: 0.15 | AI47: 0 | AJ47: 75.17 | AK47: 102.22 | AL47: 110.29 | AM47: 0 | AN47: 0 | AO47: 0 | AP47: 0 | AQ47: 0 | AR47: 19.22 | AS47: 0 | AT47: 9.92 | AU47: 50.05 | AV47: 47.01 | AW47: 56.28 | AX47: 0 | AY47: 338.8 | AZ47: 0 | BA47: 0 | BB47: 0 | BC47: 254.68 | BD47: 5.64 | BE47: 27.06 | BF47: 0 | BG47: 47.92 | BH47: 10.98 | BI47: 33.1 | BJ47: 0 | BK47: 0 | BL47: 0 | BM47: 0 | BN47: 0 | BO47: 0 | BP47: 0 | BQ47: 0 | BR47: 0 | BS47: 0 | BT47: 0 | BU47: 0 | BV47: 0 | BW47: 0 | BX47: 0 | BY47: 0 | BZ47: 0 | CA47: 0 | CB47: 0 | CC47: 0 | CD47: 0 | CE47: 0 | CF47: 0 | CG47: 0 | CH47: 0 | CI47: 0 | CJ47: 0 | CK47: 0 | CL47: 0 | CM47: 0 | CN47: 0 | CO47: 0 | CP47: 0 | CQ47: 0 | CR47: 0 | CS47: 0 | CT47: 0 | CU47: 0 | CV47: 0 | CW47: 0 | CX47: 0 | CY47: 0 | CZ47: 0 | DA47: 0 | DB47: 0 | DC47: 0 | DD47: 0 | DE47: 0 | DF47: 0 | DG47: 0 | DH47: 0 | DI47: 0 | DJ47: 0
C48: > 66 kV & < = 132 kV ; > 100 MVA & < = 400 MVA | D48: 50 | E48: 7.1 | F48: 0 | G48: 0 | H48: 0 | I48: 0 | J48: 93.94 | K48: 95.78 | L48: 186.4 | M48: 161.13 | N48: 230.7 | O48: 192.1 | P48: 365.57 | Q48: 42.45 | R48: 0.78 | S48: 9.91 | T48: 8.67 | U48: 1.59 | V48: 0 | W48: 0.1 | X48: 76.97 | Y48: 0.25 | Z48: 16.37 | AA48: 0 | AB48: 0.18 | AC48: 3.14 | AD48: 0.5 | AE48: 20.09 | AF48: 1.8 | AG48: 0 | AH48: 14.66 | AI48: 0 | AJ48: 0.95 | AK48: 233.44 | AL48: 264.46 | AM48: 28.36 | AN48: 0 | AO48: 54.35 | AP48: 257.57 | AQ48: 124.98 | AR48: 0 | AS48: 37.31 | AT48: 92.68 | AU48: 291.63 | AV48: 26.92 | AW48: 26.56 | AX48: 0 | AY48: 33.73 | AZ48: 19.92 | BA48: 12.63 | BB48: 53.58 | BC48: 0 | BD48: 303.87 | BE48: 178.95 | BF48: 15.14 | BG48: 25 | BH48: 15.14 | BI48: 76.38 | BJ48: 0 | BK48: 0 | BL48: 0 | BM48: 0 | BN48: 1.64 | BO48: 0 | BP48: 0 | BQ48: 0 | BR48: 0 | BS48: 0 | BT48: 0 | BU48: 0 | BV48: 0 | BW48: 0 | BX48: 0 | BY48: 0 | BZ48: 0 | CA48: 0 | CB48: 0 | CC48: 0 | CD48: 0 | CE48: 0 | CF48: 0 | CG48: 0 | CH48: 0 | CI48: 0 | CJ48: 0 | CK48: 0 | CL48: 0 | CM48: 0 | CN48: 0 | CO48: 0 | CP48: 0 | CQ48: 0 | CR48: 0 | CS48: 0 | CT48: 0 | CU48: 0 | CV48: 0 | CW48: 0 | CX48: 0 | CY48: 0 | CZ48: 0 | DA48: 0 | DB48: 0 | DC48: 0 | DD48: 0 | DE48: 0 | DF48: 0 | DG48: 0 | DH48: 0 | DI48: 0 | DJ48: 0
C49: > 66 kV & < = 132 kV ; > 400 MVA | D49: 50 | E49: 7.1 | F49: 0 | G49: 0 | H49: 0 | I49: 0 | J49: 0 | K49: 0 | L49: 0 | M49: 0 | N49: 83.78 | O49: 7.84 | P49: 0 | Q49: 0 | R49: 0 | S49: 0 | T49: 0 | U49: 0.18 | V49: 0 | W49: 0 | X49: 0 | Y49: 1.61 | Z49: 2.43 | AA49: 0 | AB49: 0 | AC49: 1.61 | AD49: 0 | AE49: 2.36 | AF49: 0 | AG49: 0 | AH49: 0 | AI49: 43.22 | AJ49: 0 | AK49: 0 | AL49: 0 | AM49: 0 | AN49: 0 | AO49: 0 | AP49: 0 | AQ49: 0 | AR49: 24.38 | AS49: 0 | AT49: 0 | AU49: 0 | AV49: 0 | AW49: 0 | AX49: 0 | AY49: 0 | AZ49: 0 | BA49: 0 | BB49: 0 | BC49: 0 | BD49: 0 | BE49: 0 | BF49: 0 | BG49: 0 | BH49: 0 | BI49: 0 | BJ49: 0 | BK49: 0 | BL49: 0 | BM49: 0 | BN49: 0 | BO49: 0 | BP49: 0 | BQ49: 0 | BR49: 0 | BS49: 0 | BT49: 0 | BU49: 0 | BV49: 0 | BW49: 0 | BX49: 0 | BY49: 0 | BZ49: 0 | CA49: 0 | CB49: 0 | CC49: 0 | CD49: 0 | CE49: 0 | CF49: 0 | CG49: 0 | CH49: 0 | CI49: 0 | CJ49: 0 | CK49: 0 | CL49: 0 | CM49: 0 | CN49: 0 | CO49: 0 | CP49: 0 | CQ49: 0 | CR49: 0 | CS49: 0 | CT49: 0 | CU49: 0 | CV49: 0 | CW49: 0 | CX49: 0 | CY49: 0 | CZ49: 0 | DA49: 0 | DB49: 0 | DC49: 0 | DD49: 0 | DE49: 0 | DF49: 0 | DG49: 0 | DH49: 0 | DI49: 0 | DJ49: 0
C50: > 132 kV & < = 275 kV ; < = 200 MVA | D50: 50 | E50: 7.1 | F50: 0 | G50: 0 | H50: 0 | I50: 0 | J50: 0 | K50: 0 | L50: 0 | M50: 0 | N50: 0 | O50: 0 | P50: 0 | Q50: 0 | R50: 0 | S50: 0 | T50: 0 | U50: 0 | V50: 0 | W50: 0 | X50: 0 | Y50: 0 | Z50: 0 | AA50: 0 | AB50: 0 | AC50: 0 | AD50: 0 | AE50: 0 | AF50: 0 | AG50: 0 | AH50: 0 | AI50: 0 | AJ50: 0 | AK50: 0 | AL50: 0 | AM50: 0 | AN50: 0 | AO50: 0 | AP50: 0 | AQ50: 0 | AR50: 0 | AS50: 0 | AT50: 0 | AU50: 0 | AV50: 0 | AW50: 0 | AX50: 0 | AY50: 0 | AZ50: 0 | BA50: 0 | BB50: 0 | BC50: 0 | BD50: 0 | BE50: 0 | BF50: 0 | BG50: 0 | BH50: 0 | BI50: 0 | BJ50: 0 | BK50: 0 | BL50: 0 | BM50: 0 | BN50: 0 | BO50: 0 | BP50: 0 | BQ50: 0 | BR50: 0 | BS50: 0 | BT50: 0 | BU50: 0 | BV50: 0 | BW50: 0 | BX50: 0 | BY50: 0 | BZ50: 0 | CA50: 0 | CB50: 0 | CC50: 0 | CD50: 0 | CE50: 0 | CF50: 0 | CG50: 0 | CH50: 0 | CI50: 0 | CJ50: 0 | CK50: 0 | CL50: 0 | CM50: 0 | CN50: 0 | CO50: 0 | CP50: 0 | CQ50: 0 | CR50: 0 | CS50: 0 | CT50: 0 | CU50: 0 | CV50: 0 | CW50: 0 | CX50: 0 | CY50: 0 | CZ50: 0 | DA50: 0 | DB50: 0 | DC50: 0 | DD50: 0 | DE50: 0 | DF50: 0 | DG50: 0 | DH50: 0 | DI50: 0 | DJ50: 0
C51: > 132 kV & < = 275 kV ; > 200 MVA & < = 600 MVA | D51: 50 | E51: 7.1 | F51: 0 | G51: 0 | H51: 0 | I51: 0 | J51: 0 | K51: 0 | L51: 1.92 | M51: 84.23 | N51: 0.53 | O51: 0.59 | P51: 0 | Q51: 0 | R51: 0 | S51: 108.57 | T51: 0 | U51: 0 | V51: 0 | W51: 0 | X51: 0 | Y51: 36.74 | Z51: 0 | AA51: 0.11 | AB51: 90.57 | AC51: 60.93 | AD51: 246.47 | AE51: 105.64 | AF51: 0 | AG51: 5.53 | AH51: 0 | AI51: 244.1 | AJ51: 84.58 | AK51: 106.12 | AL51: 7.69 | AM51: 108.47 | AN51: 1.82 | AO51: 0.22 | AP51: 0 | AQ51: 317.54 | AR51: 249.1 | AS51: 0.09 | AT51: 199.96 | AU51: 75.19 | AV51: 65.18 | AW51: 65.27 | AX51: 0 | AY51: 0 | AZ51: 0 | BA51: 0 | BB51: 0 | BC51: 0 | BD51: 0 | BE51: 0 | BF51: 0 | BG51: 0 | BH51: 0 | BI51: 0 | BJ51: 0 | BK51: 0 | BL51: 0 | BM51: 0 | BN51: 0 | BO51: 0 | BP51: 0 | BQ51: 0 | BR51: 0 | BS51: 0 | BT51: 0 | BU51: 0 | BV51: 0 | BW51: 0 | BX51: 0 | BY51: 0 | BZ51: 0 | CA51: 0 | CB51: 0 | CC51: 0 | CD51: 0 | CE51: 0 | CF51: 0 | CG51: 0 | CH51: 0 | CI51: 0 | CJ51: 0 | CK51: 0 | CL51: 0 | CM51: 0 | CN51: 0 | CO51: 0 | CP51: 0 | CQ51: 0 | CR51: 0 | CS51: 0 | CT51: 0 | CU51: 0 | CV51: 0 | CW51: 0 | CX51: 0 | CY51: 0 | CZ51: 0 | DA51: 0 | DB51: 0 | DC51: 0 | DD51: 0 | DE51: 0 | DF51: 0 | DG51: 0 | DH51: 0 | DI51: 0 | DJ51: 0
C52: > 132 kV & < = 275 kV ; > 600 MVA | D52: 50 | E52: 7.1 | F52: 0 | G52: 0 | H52: 0 | I52: 0 | J52: 333.64 | K52: 385.71 | L52: 0 | M52: 274.63 | N52: 324.68 | O52: 318.44 | P52: 206.36 | Q52: 136.82 | R52: 55.24 | S52: 4.48 | T52: 156.94 | U52: 128.15 | V52: 196.28 | W52: 307.87 | X52: 235.4 | Y52: 641.04 | Z52: 117.3 | AA52: 2.7 | AB52: 0 | AC52: 34.63 | AD52: 4.85 | AE52: 168.39 | AF52: 0 | AG52: 12.27 | AH52: 0 | AI52: 0 | AJ52: 0.28 | AK52: 0 | AL52: 162.73 | AM52: 212.35 | AN52: 21.6 | AO52: 126.71 | AP52: 149.91 | AQ52: 223.24 | AR52: 30.09 | AS52: 455.92 | AT52: 0 | AU52: 399.78 | AV52: 10.71 | AW52: 17.96 | AX52: 0 | AY52: 482.42 | AZ52: 30.97 | BA52: 0 | BB52: 75.86 | BC52: 0 | BD52: 0 | BE52: 0 | BF52: 0 | BG52: 0 | BH52: 0 | BI52: 0 | BJ52: 0 | BK52: 0 | BL52: 0 | BM52: 0 | BN52: 0 | BO52: 0 | BP52: 0 | BQ52: 0 | BR52: 0 | BS52: 0 | BT52: 0 | BU52: 0 | BV52: 0 | BW52: 0 | BX52: 0 | BY52: 0 | BZ52: 0 | CA52: 0 | CB52: 0 | CC52: 0 | CD52: 0 | CE52: 0 | CF52: 0 | CG52: 0 | CH52: 0 | CI52: 0 | CJ52: 0 | CK52: 0 | CL52: 0 | CM52: 0 | CN52: 0 | CO52: 0 | CP52: 0 | CQ52: 0 | CR52: 0 | CS52: 0 | CT52: 0 | CU52: 0 | CV52: 0 | CW52: 0 | CX52: 0 | CY52: 0 | CZ52: 0 | DA52: 0 | DB52: 0 | DC52: 0 | DD52: 0 | DE52: 0 | DF52: 0 | DG52: 0 | DH52: 0 | DI52: 0 | DJ52: 0
C53: > 275 kV & < = 330 kV ; < = 800 MVA | D53: 0 | E53: 0 | F53: 0 | G53: 0 | H53: 0 | I53: 0 | J53: 0 | K53: 0 | L53: 0 | M53: 0 | N53: 0 | O53: 0 | P53: 0 | Q53: 0 | R53: 0 | S53: 0 | T53: 0 | U53: 0 | V53: 0 | W53: 0 | X53: 0 | Y53: 0 | Z53: 0 | AA53: 0 | AB53: 0 | AC53: 0 | AD53: 0 | AE53: 0 | AF53: 0 | AG53: 0 | AH53: 0 | AI53: 0 | AJ53: 0 | AK53: 0 | AL53: 0 | AM53: 0 | AN53: 0 | AO53: 0 | AP53: 0 | AQ53: 0 | AR53: 0 | AS53: 0 | AT53: 0 | AU53: 0 | AV53: 0 | AW53: 0 | AX53: 0 | AY53: 0 | AZ53: 0 | BA53: 0 | BB53: 0 | BC53: 0 | BD53: 0 | BE53: 0 | BF53: 0 | BG53: 0 | BH53: 0 | BI53: 0 | BJ53: 0 | BK53: 0 | BL53: 0 | BM53: 0 | BN53: 0 | BO53: 0 | BP53: 0 | BQ53: 0 | BR53: 0 | BS53: 0 | BT53: 0 | BU53: 0 | BV53: 0 | BW53: 0 | BX53: 0 | BY53: 0 | BZ53: 0 | CA53: 0 | CB53: 0 | CC53: 0 | CD53: 0 | CE53: 0 | CF53: 0 | CG53: 0 | CH53: 0 | CI53: 0 | CJ53: 0 | CK53: 0 | CL53: 0 | CM53: 0 | CN53: 0 | CO53: 0 | CP53: 0 | CQ53: 0 | CR53: 0 | CS53: 0 | CT53: 0 | CU53: 0 | CV53: 0 | CW53: 0 | CX53: 0 | CY53: 0 | CZ53: 0 | DA53: 0 | DB53: 0 | DC53: 0 | DD53: 0 | DE53: 0 | DF53: 0 | DG53: 0 | DH53: 0 | DI53: 0 | DJ53: 0
C54: > 275 kV & < = 330 kV ; > 800 MVA & < = 1200 MVA | D54: 0 | E54: 0 | F54: 0 | G54: 0 | H54: 0 | I54: 0 | J54: 0 | K54: 0 | L54: 0 | M54: 0 | N54: 0 | O54: 0 | P54: 0 | Q54: 0 | R54: 0 | S54: 0 | T54: 0 | U54: 0 | V54: 0 | W54: 0 | X54: 0 | Y54: 0 | Z54: 0 | AA54: 0 | AB54: 0 | AC54: 0 | AD54: 0 | AE54: 0 | AF54: 0 | AG54: 0 | AH54: 0 | AI54: 0 | AJ54: 0 | AK54: 0 | AL54: 0 | AM54: 0 | AN54: 0 | AO54: 0 | AP54: 0 | AQ54: 0 | AR54: 0 | AS54: 0 | AT54: 0 | AU54: 0 | AV54: 0 | AW54: 0 | AX54: 0 | AY54: 0 | AZ54: 0 | BA54: 0 | BB54: 0 | BC54: 0 | BD54: 0 | BE54: 0 | BF54: 0 | BG54: 0 | BH54: 0 | BI54: 0 | BJ54: 0 | BK54: 0 | BL54: 0 | BM54: 0 | BN54: 0 | BO54: 0 | BP54: 0 | BQ54: 0 | BR54: 0 | BS54: 0 | BT54: 0 | BU54: 0 | BV54: 0 | BW54: 0 | BX54: 0 | BY54: 0 | BZ54: 0 | CA54: 0 | CB54: 0 | CC54: 0 | CD54: 0 | CE54: 0 | CF54: 0 | CG54: 0 | CH54: 0 | CI54: 0 | CJ54: 0 | CK54: 0 | CL54: 0 | CM54: 0 | CN54: 0 | CO54: 0 | CP54: 0 | CQ54: 0 | CR54: 0 | CS54: 0 | CT54: 0 | CU54: 0 | CV54: 0 | CW54: 0 | CX54: 0 | CY54: 0 | CZ54: 0 | DA54: 0 | DB54: 0 | DC54: 0 | DD54: 0 | DE54: 0 | DF54: 0 | DG54: 0 | DH54: 0 | DI54: 0 | DJ54: 0
C55: > 275 kV & < = 330 kV ; > 1200 MVA | D55: 50 | E55: 7.1 | F55: 0 | G55: 0 | H55: 0 | I55: 0 | J55: 0 | K55: 0 | L55: 0 | M55: 0 | N55: 0 | O55: 0 | P55: 0 | Q55: 0 | R55: 0 | S55: 189.36 | T55: 0 | U55: 0 | V55: 0 | W55: 413.08 | X55: 0 | Y55: 0 | Z55: 0 | AA55: 0 | AB55: 0 | AC55: 0 | AD55: 0 | AE55: 0 | AF55: 0 | AG55: 0 | AH55: 0 | AI55: 0 | AJ55: 0 | AK55: 0 | AL55: 0 | AM55: 0 | AN55: 0 | AO55: 0 | AP55: 0 | AQ55: 0 | AR55: 0 | AS55: 0 | AT55: 0 | AU55: 0 | AV55: 0 | AW55: 0 | AX55: 0 | AY55: 0 | AZ55: 0 | BA55: 0 | BB55: 0 | BC55: 0 | BD55: 0 | BE55: 0 | BF55: 0 | BG55: 0 | BH55: 0 | BI55: 0 | BJ55: 0 | BK55: 0 | BL55: 0 | BM55: 0 | BN55: 0 | BO55: 0 | BP55: 0 | BQ55: 0 | BR55: 0 | BS55: 0 | BT55: 0 | BU55: 0 | BV55: 0 | BW55: 0 | BX55: 0 | BY55: 0 | BZ55: 0 | CA55: 0 | CB55: 0 | CC55: 0 | CD55: 0 | CE55: 0 | CF55: 0 | CG55: 0 | CH55: 0 | CI55: 0 | CJ55: 0 | CK55: 0 | CL55: 0 | CM55: 0 | CN55: 0 | CO55: 0 | CP55: 0 | CQ55: 0 | CR55: 0 | CS55: 0 | CT55: 0 | CU55: 0 | CV55: 0 | CW55: 0 | CX55: 0 | CY55: 0 | CZ55: 0 | DA55: 0 | DB55: 0 | DC55: 0 | DD55: 0 | DE55: 0 | DF55: 0 | DG55: 0 | DH55: 0 | DI55: 0 | DJ55: 0
C56: > 330 kV & < = 500 kV ; < = 1000 MVA | D56: 0 | E56: 0 | F56: 0 | G56: 0 | H56: 0 | I56: 0 | J56: 0 | K56: 0 | L56: 0 | M56: 0 | N56: 0 | O56: 0 | P56: 0 | Q56: 0 | R56: 0 | S56: 0 | T56: 0 | U56: 0 | V56: 0 | W56: 0 | X56: 0 | Y56: 0 | Z56: 0 | AA56: 0 | AB56: 0 | AC56: 0 | AD56: 0 | AE56: 0 | AF56: 0 | AG56: 0 | AH56: 0 | AI56: 0 | AJ56: 0 | AK56: 0 | AL56: 0 | AM56: 0 | AN56: 0 | AO56: 0 | AP56: 0 | AQ56: 0 | AR56: 0 | AS56: 0 | AT56: 0 | AU56: 0 | AV56: 0 | AW56: 0 | AX56: 0 | AY56: 0 | AZ56: 0 | BA56: 0 | BB56: 0 | BC56: 0 | BD56: 0 | BE56: 0 | BF56: 0 | BG56: 0 | BH56: 0 | BI56: 0 | BJ56: 0 | BK56: 0 | BL56: 0 | BM56: 0 | BN56: 0 | BO56: 0 | BP56: 0 | BQ56: 0 | BR56: 0 | BS56: 0 | BT56: 0 | BU56: 0 | BV56: 0 | BW56: 0 | BX56: 0 | BY56: 0 | BZ56: 0 | CA56: 0 | CB56: 0 | CC56: 0 | CD56: 0 | CE56: 0 | CF56: 0 | CG56: 0 | CH56: 0 | CI56: 0 | CJ56: 0 | CK56: 0 | CL56: 0 | CM56: 0 | CN56: 0 | CO56: 0 | CP56: 0 | CQ56: 0 | CR56: 0 | CS56: 0 | CT56: 0 | CU56: 0 | CV56: 0 | CW56: 0 | CX56: 0 | CY56: 0 | CZ56: 0 | DA56: 0 | DB56: 0 | DC56: 0 | DD56: 0 | DE56: 0 | DF56: 0 | DG56: 0 | DH56: 0 | DI56: 0 | DJ56: 0
C57: > 330 kV & < = 500 kV ; > 1000 MVA & < = 1500 MVA | D57: 0 | E57: 0 | F57: 0 | G57: 0 | H57: 0 | I57: 0 | J57: 0 | K57: 0 | L57: 0 | M57: 0 | N57: 0 | O57: 0 | P57: 0 | Q57: 0 | R57: 0 | S57: 0 | T57: 0 | U57: 0 | V57: 0 | W57: 0 | X57: 0 | Y57: 0 | Z57: 0 | AA57: 0 | AB57: 0 | AC57: 0 | AD57: 0 | AE57: 0 | AF57: 0 | AG57: 0 | AH57: 0 | AI57: 0 | AJ57: 0 | AK57: 0 | AL57: 0 | AM57: 0 | AN57: 0 | AO57: 0 | AP57: 0 | AQ57: 0 | AR57: 0 | AS57: 0 | AT57: 0 | AU57: 0 | AV57: 0 | AW57: 0 | AX57: 0 | AY57: 0 | AZ57: 0 | BA57: 0 | BB57: 0 | BC57: 0 | BD57: 0 | BE57: 0 | BF57: 0 | BG57: 0 | BH57: 0 | BI57: 0 | BJ57: 0 | BK57: 0 | BL57: 0 | BM57: 0 | BN57: 0 | BO57: 0 | BP57: 0 | BQ57: 0 | BR57: 0 | BS57: 0 | BT57: 0 | BU57: 0 | BV57: 0 | BW57: 0 | BX57: 0 | BY57: 0 | BZ57: 0 | CA57: 0 | CB57: 0 | CC57: 0 | CD57: 0 | CE57: 0 | CF57: 0 | CG57: 0 | CH57: 0 | CI57: 0 | CJ57: 0 | CK57: 0 | CL57: 0 | CM57: 0 | CN57: 0 | CO57: 0 | CP57: 0 | CQ57: 0 | CR57: 0 | CS57: 0 | CT57: 0 | CU57: 0 | CV57: 0 | CW57: 0 | CX57: 0 | CY57: 0 | CZ57: 0 | DA57: 0 | DB57: 0 | DC57: 0 | DD57: 0 | DE57: 0 | DF57: 0 | DG57: 0 | DH57: 0 | DI57: 0 | DJ57: 0
C58: > 330 kV & < = 500 kV ; > 1500 MVA | D58: 0 | E58: 0 | F58: 0 | G58: 0 | H58: 0 | I58: 0 | J58: 0 | K58: 0 | L58: 0 | M58: 0 | N58: 0 | O58: 0 | P58: 0 | Q58: 0 | R58: 0 | S58: 0 | T58: 0 | U58: 0 | V58: 0 | W58: 0 | X58: 0 | Y58: 0 | Z58: 0 | AA58: 0 | AB58: 0 | AC58: 0 | AD58: 0 | AE58: 0 | AF58: 0 | AG58: 0 | AH58: 0 | AI58: 0 | AJ58: 0 | AK58: 0 | AL58: 0 | AM58: 0 | AN58: 0 | AO58: 0 | AP58: 0 | AQ58: 0 | AR58: 0 | AS58: 0 | AT58: 0 | AU58: 0 | AV58: 0 | AW58: 0 | AX58: 0 | AY58: 0 | AZ58: 0 | BA58: 0 | BB58: 0 | BC58: 0 | BD58: 0 | BE58: 0 | BF58: 0 | BG58: 0 | BH58: 0 | BI58: 0 | BJ58: 0 | BK58: 0 | BL58: 0 | BM58: 0 | BN58: 0 | BO58: 0 | BP58: 0 | BQ58: 0 | BR58: 0 | BS58: 0 | BT58: 0 | BU58: 0 | BV58: 0 | BW58: 0 | BX58: 0 | BY58: 0 | BZ58: 0 | CA58: 0 | CB58: 0 | CC58: 0 | CD58: 0 | CE58: 0 | CF58: 0 | CG58: 0 | CH58: 0 | CI58: 0 | CJ58: 0 | CK58: 0 | CL58: 0 | CM58: 0 | CN58: 0 | CO58: 0 | CP58: 0 | CQ58: 0 | CR58: 0 | CS58: 0 | CT58: 0 | CU58: 0 | CV58: 0 | CW58: 0 | CX58: 0 | CY58: 0 | CZ58: 0 | DA58: 0 | DB58: 0 | DC58: 0 | DD58: 0 | DE58: 0 | DF58: 0 | DG58: 0 | DH58: 0 | DI58: 0 | DJ58: 0
C59: > 500 kV ; < = 2000 MVA | D59: 0 | E59: 0 | F59: 0 | G59: 0 | H59: 0 | I59: 0 | J59: 0 | K59: 0 | L59: 0 | M59: 0 | N59: 0 | O59: 0 | P59: 0 | Q59: 0 | R59: 0 | S59: 0 | T59: 0 | U59: 0 | V59: 0 | W59: 0 | X59: 0 | Y59: 0 | Z59: 0 | AA59: 0 | AB59: 0 | AC59: 0 | AD59: 0 | AE59: 0 | AF59: 0 | AG59: 0 | AH59: 0 | AI59: 0 | AJ59: 0 | AK59: 0 | AL59: 0 | AM59: 0 | AN59: 0 | AO59: 0 | AP59: 0 | AQ59: 0 | AR59: 0 | AS59: 0 | AT59: 0 | AU59: 0 | AV59: 0 | AW59: 0 | AX59: 0 | AY59: 0 | AZ59: 0 | BA59: 0 | BB59: 0 | BC59: 0 | BD59: 0 | BE59: 0 | BF59: 0 | BG59: 0 | BH59: 0 | BI59: 0 | BJ59: 0 | BK59: 0 | BL59: 0 | BM59: 0 | BN59: 0 | BO59: 0 | BP59: 0 | BQ59: 0 | BR59: 0 | BS59: 0 | BT59: 0 | BU59: 0 | BV59: 0 | BW59: 0 | BX59: 0 | BY59: 0 | BZ59: 0 | CA59: 0 | CB59: 0 | CC59: 0 | CD59: 0 | CE59: 0 | CF59: 0 | CG59: 0 | CH59: 0 | CI59: 0 | CJ59: 0 | CK59: 0 | CL59: 0 | CM59: 0 | CN59: 0 | CO59: 0 | CP59: 0 | CQ59: 0 | CR59: 0 | CS59: 0 | CT59: 0 | CU59: 0 | CV59: 0 | CW59: 0 | CX59: 0 | CY59: 0 | CZ59: 0 | DA59: 0 | DB59: 0 | DC59: 0 | DD59: 0 | DE59: 0 | DF59: 0 | DG59: 0 | DH59: 0 | DI59: 0 | DJ59: 0
C60: > 500 kV ; > 2000 MVA & < = 3000 MVA | D60: 0 | E60: 0 | F60: 0 | G60: 0 | H60: 0 | I60: 0 | J60: 0 | K60: 0 | L60: 0 | M60: 0 | N60: 0 | O60: 0 | P60: 0 | Q60: 0 | R60: 0 | S60: 0 | T60: 0 | U60: 0 | V60: 0 | W60: 0 | X60: 0 | Y60: 0 | Z60: 0 | AA60: 0 | AB60: 0 | AC60: 0 | AD60: 0 | AE60: 0 | AF60: 0 | AG60: 0 | AH60: 0 | AI60: 0 | AJ60: 0 | AK60: 0 | AL60: 0 | AM60: 0 | AN60: 0 | AO60: 0 | AP60: 0 | AQ60: 0 | AR60: 0 | AS60: 0 | AT60: 0 | AU60: 0 | AV60: 0 | AW60: 0 | AX60: 0 | AY60: 0 | AZ60: 0 | BA60: 0 | BB60: 0 | BC60: 0 | BD60: 0 | BE60: 0 | BF60: 0 | BG60: 0 | BH60: 0 | BI60: 0 | BJ60: 0 | BK60: 0 | BL60: 0 | BM60: 0 | BN60: 0 | BO60: 0 | BP60: 0 | BQ60: 0 | BR60: 0 | BS60: 0 | BT60: 0 | BU60: 0 | BV60: 0 | BW60: 0 | BX60: 0 | BY60: 0 | BZ60: 0 | CA60: 0 | CB60: 0 | CC60: 0 | CD60: 0 | CE60: 0 | CF60: 0 | CG60: 0 | CH60: 0 | CI60: 0 | CJ60: 0 | CK60: 0 | CL60: 0 | CM60: 0 | CN60: 0 | CO60: 0 | CP60: 0 | CQ60: 0 | CR60: 0 | CS60: 0 | CT60: 0 | CU60: 0 | CV60: 0 | CW60: 0 | CX60: 0 | CY60: 0 | CZ60: 0 | DA60: 0 | DB60: 0 | DC60: 0 | DD60: 0 | DE60: 0 | DF60: 0 | DG60: 0 | DH60: 0 | DI60: 0 | DJ60: 0
C61: > 500 kV ; > 3000 MVA | D61: 0 | E61: 0 | F61: 0 | G61: 0 | H61: 0 | I61: 0 | J61: 0 | K61: 0 | L61: 0 | M61: 0 | N61: 0 | O61: 0 | P61: 0 | Q61: 0 | R61: 0 | S61: 0 | T61: 0 | U61: 0 | V61: 0 | W61: 0 | X61: 0 | Y61: 0 | Z61: 0 | AA61: 0 | AB61: 0 | AC61: 0 | AD61: 0 | AE61: 0 | AF61: 0 | AG61: 0 | AH61: 0 | AI61: 0 | AJ61: 0 | AK61: 0 | AL61: 0 | AM61: 0 | AN61: 0 | AO61: 0 | AP61: 0 | AQ61: 0 | AR61: 0 | AS61: 0 | AT61: 0 | AU61: 0 | AV61: 0 | AW61: 0 | AX61: 0 | AY61: 0 | AZ61: 0 | BA61: 0 | BB61: 0 | BC61: 0 | BD61: 0 | BE61: 0 | BF61: 0 | BG61: 0 | BH61: 0 | BI61: 0 | BJ61: 0 | BK61: 0 | BL61: 0 | BM61: 0 | BN61: 0 | BO61: 0 | BP61: 0 | BQ61: 0 | BR61: 0 | BS61: 0 | BT61: 0 | BU61: 0 | BV61: 0 | BW61: 0 | BX61: 0 | BY61: 0 | BZ61: 0 | CA61: 0 | CB61: 0 | CC61: 0 | CD61: 0 | CE61: 0 | CF61: 0 | CG61: 0 | CH61: 0 | CI61: 0 | CJ61: 0 | CK61: 0 | CL61: 0 | CM61: 0 | CN61: 0 | CO61: 0 | CP61: 0 | CQ61: 0 | CR61: 0 | CS61: 0 | CT61: 0 | CU61: 0 | CV61: 0 | CW61: 0 | CX61: 0 | CY61: 0 | CZ61: 0 | DA61: 0 | DB61: 0 | DC61: 0 | DD61: 0 | DE61: 0 | DF61: 0 | DG61: 0 | DH61: 0 | DI61: 0 | DJ61: 0
C62: Other
B63: TRANSMISSION CABLES BY: Highest operating voltage; Insulation type | C63: < = 33 kV; Oil Filled | D63: 0 | E63: 0 | F63: 0 | G63: 0 | H63: 0 | I63: 0 | J63: 0 | K63: 0 | L63: 0 | M63: 0 | N63: 0 | O63: 0 | P63: 0 | Q63: 0 | R63: 0 | S63: 0 | T63: 0 | U63: 0 | V63: 0 | W63: 0 | X63: 0 | Y63: 0 | Z63: 0 | AA63: 0 | AB63: 0 | AC63: 0 | AD63: 0 | AE63: 0 | AF63: 0 | AG63: 0 | AH63: 0 | AI63: 0 | AJ63: 0 | AK63: 0 | AL63: 0 | AM63: 0 | AN63: 0 | AO63: 0 | AP63: 0 | AQ63: 0 | AR63: 0 | AS63: 0 | AT63: 0 | AU63: 0 | AV63: 0 | AW63: 0 | AX63: 0 | AY63: 0 | AZ63: 0 | BA63: 0 | BB63: 0 | BC63: 0 | BD63: 0 | BE63: 0 | BF63: 0 | BG63: 0 | BH63: 0 | BI63: 0 | BJ63: 0 | BK63: 0 | BL63: 0 | BM63: 0 | BN63: 0 | BO63: 0 | BP63: 0 | BQ63: 0 | BR63: 0 | BS63: 0 | BT63: 0 | BU63: 0 | BV63: 0 | BW63: 0 | BX63: 0 | BY63: 0 | BZ63: 0 | CA63: 0 | CB63: 0 | CC63: 0 | CD63: 0 | CE63: 0 | CF63: 0 | CG63: 0 | CH63: 0 | CI63: 0 | CJ63: 0 | CK63: 0 | CL63: 0 | CM63: 0 | CN63: 0 | CO63: 0 | CP63: 0 | CQ63: 0 | CR63: 0 | CS63: 0 | CT63: 0 | CU63: 0 | CV63: 0 | CW63: 0 | CX63: 0 | CY63: 0 | CZ63: 0 | DA63: 0 | DB63: 0 | DC63: 0 | DD63: 0 | DE63: 0 | DF63: 0 | DG63: 0 | DH63: 0 | DI63: 0 | DJ63: 0
C64: > 33 kV & < = 66 kV ; Oil Filled | D64: 0 | E64: 0 | F64: 0 | G64: 0 | H64: 0 | I64: 0 | J64: 0 | K64: 0 | L64: 0 | M64: 0 | N64: 0 | O64: 0 | P64: 0 | Q64: 0 | R64: 0 | S64: 0 | T64: 0 | U64: 0 | V64: 0 | W64: 0 | X64: 0 | Y64: 0 | Z64: 0 | AA64: 0 | AB64: 0 | AC64: 0 | AD64: 0 | AE64: 0 | AF64: 0 | AG64: 0 | AH64: 0 | AI64: 0 | AJ64: 0 | AK64: 0 | AL64: 0 | AM64: 0 | AN64: 0 | AO64: 0 | AP64: 0 | AQ64: 0 | AR64: 0 | AS64: 0 | AT64: 0 | AU64: 0 | AV64: 0 | AW64: 0 | AX64: 0 | AY64: 0 | AZ64: 0 | BA64: 0 | BB64: 0 | BC64: 0 | BD64: 0 | BE64: 0 | BF64: 0 | BG64: 0 | BH64: 0 | BI64: 0 | BJ64: 0 | BK64: 0 | BL64: 0 | BM64: 0 | BN64: 0 | BO64: 0 | BP64: 0 | BQ64: 0 | BR64: 0 | BS64: 0 | BT64: 0 | BU64: 0 | BV64: 0 | BW64: 0 | BX64: 0 | BY64: 0 | BZ64: 0 | CA64: 0 | CB64: 0 | CC64: 0 | CD64: 0 | CE64: 0 | CF64: 0 | CG64: 0 | CH64: 0 | CI64: 0 | CJ64: 0 | CK64: 0 | CL64: 0 | CM64: 0 | CN64: 0 | CO64: 0 | CP64: 0 | CQ64: 0 | CR64: 0 | CS64: 0 | CT64: 0 | CU64: 0 | CV64: 0 | CW64: 0 | CX64: 0 | CY64: 0 | CZ64: 0 | DA64: 0 | DB64: 0 | DC64: 0 | DD64: 0 | DE64: 0 | DF64: 0 | DG64: 0 | DH64: 0 | DI64: 0 | DJ64: 0
C65: > 66 kV & < = 132 kV ; Oil Filled | D65: 45 | E65: 6.7 | F65: 0 | G65: 0 | H65: 0 | I65: 0 | J65: 0 | K65: 0 | L65: 0 | M65: 0 | N65: 0 | O65: 0 | P65: 0 | Q65: 0 | R65: 0 | S65: 0 | T65: 0 | U65: 0 | V65: 0 | W65: 0 | X65: 0 | Y65: 0 | Z65: 0 | AA65: 0 | AB65: 0 | AC65: 0 | AD65: 0 | AE65: 0 | AF65: 0 | AG65: 0 | AH65: 0 | AI65: 0 | AJ65: 0 | AK65: 0 | AL65: 0 | AM65: 0 | AN65: 0 | AO65: 0 | AP65: 0 | AQ65: 0 | AR65: 0 | AS65: 0 | AT65: 4.548 | AU65: 0 | AV65: 0 | AW65: 0 | AX65: 0 | AY65: 0 | AZ65: 0 | BA65: 0 | BB65: 0 | BC65: 0 | BD65: 0 | BE65: 0 | BF65: 0 | BG65: 0 | BH65: 0 | BI65: 0 | BJ65: 0 | BK65: 0 | BL65: 0 | BM65: 0 | BN65: 0 | BO65: 0 | BP65: 0 | BQ65: 0 | BR65: 0 | BS65: 0 | BT65: 0 | BU65: 0 | BV65: 0 | BW65: 0 | BX65: 0 | BY65: 0 | BZ65: 0 | CA65: 0 | CB65: 0 | CC65: 0 | CD65: 0 | CE65: 0 | CF65: 0 | CG65: 0 | CH65: 0 | CI65: 0 | CJ65: 0 | CK65: 0 | CL65: 0 | CM65: 0 | CN65: 0 | CO65: 0 | CP65: 0 | CQ65: 0 | CR65: 0 | CS65: 0 | CT65: 0 | CU65: 0 | CV65: 0 | CW65: 0 | CX65: 0 | CY65: 0 | CZ65: 0 | DA65: 0 | DB65: 0 | DC65: 0 | DD65: 0 | DE65: 0 | DF65: 0 | DG65: 0 | DH65: 0 | DI65: 0 | DJ65: 0
C66: > 132 kV & < = 275 kV ; Oil Filled | D66: 0 | E66: 0 | F66: 0 | G66: 0 | H66: 0 | I66: 0 | J66: 0 | K66: 0 | L66: 0 | M66: 0 | N66: 0 | O66: 0 | P66: 0 | Q66: 0 | R66: 0 | S66: 0 | T66: 0 | U66: 0 | V66: 0 | W66: 0 | X66: 0 | Y66: 0 | Z66: 0 | AA66: 0 | AB66: 0 | AC66: 0 | AD66: 0 | AE66: 0 | AF66: 0 | AG66: 0 | AH66: 0 | AI66: 0 | AJ66: 0 | AK66: 0 | AL66: 0 | AM66: 0 | AN66: 0 | AO66: 0 | AP66: 0 | AQ66: 0 | AR66: 0 | AS66: 0 | AT66: 0 | AU66: 0 | AV66: 0 | AW66: 0 | AX66: 0 | AY66: 0 | AZ66: 0 | BA66: 0 | BB66: 0 | BC66: 0 | BD66: 0 | BE66: 0 | BF66: 0 | BG66: 0 | BH66: 0 | BI66: 0 | BJ66: 0 | BK66: 0 | BL66: 0 | BM66: 0 | BN66: 0 | BO66: 0 | BP66: 0 | BQ66: 0 | BR66: 0 | BS66: 0 | BT66: 0 | BU66: 0 | BV66: 0 | BW66: 0 | BX66: 0 | BY66: 0 | BZ66: 0 | CA66: 0 | CB66: 0 | CC66: 0 | CD66: 0 | CE66: 0 | CF66: 0 | CG66: 0 | CH66: 0 | CI66: 0 | CJ66: 0 | CK66: 0 | CL66: 0 | CM66: 0 | CN66: 0 | CO66: 0 | CP66: 0 | CQ66: 0 | CR66: 0 | CS66: 0 | CT66: 0 | CU66: 0 | CV66: 0 | CW66: 0 | CX66: 0 | CY66: 0 | CZ66: 0 | DA66: 0 | DB66: 0 | DC66: 0 | DD66: 0 | DE66: 0 | DF66: 0 | DG66: 0 | DH66: 0 | DI66: 0 | DJ66: 0
C67: > 275 kV & < = 330 kV ; Oil Filled | D67: 0 | E67: 0 | F67: 0 | G67: 0 | H67: 0 | I67: 0 | J67: 0 | K67: 0 | L67: 0 | M67: 0 | N67: 0 | O67: 0 | P67: 0 | Q67: 0 | R67: 0 | S67: 0 | T67: 0 | U67: 0 | V67: 0 | W67: 0 | X67: 0 | Y67: 0 | Z67: 0 | AA67: 0 | AB67: 0 | AC67: 0 | AD67: 0 | AE67: 0 | AF67: 0 | AG67: 0 | AH67: 0 | AI67: 0 | AJ67: 0 | AK67: 0 | AL67: 0 | AM67: 0 | AN67: 0 | AO67: 0 | AP67: 0 | AQ67: 0 | AR67: 0 | AS67: 0 | AT67: 0 | AU67: 0 | AV67: 0 | AW67: 0 | AX67: 0 | AY67: 0 | AZ67: 0 | BA67: 0 | BB67: 0 | BC67: 0 | BD67: 0 | BE67: 0 | BF67: 0 | BG67: 0 | BH67: 0 | BI67: 0 | BJ67: 0 | BK67: 0 | BL67: 0 | BM67: 0 | BN67: 0 | BO67: 0 | BP67: 0 | BQ67: 0 | BR67: 0 | BS67: 0 | BT67: 0 | BU67: 0 | BV67: 0 | BW67: 0 | BX67: 0 | BY67: 0 | BZ67: 0 | CA67: 0 | CB67: 0 | CC67: 0 | CD67: 0 | CE67: 0 | CF67: 0 | CG67: 0 | CH67: 0 | CI67: 0 | CJ67: 0 | CK67: 0 | CL67: 0 | CM67: 0 | CN67: 0 | CO67: 0 | CP67: 0 | CQ67: 0 | CR67: 0 | CS67: 0 | CT67: 0 | CU67: 0 | CV67: 0 | CW67: 0 | CX67: 0 | CY67: 0 | CZ67: 0 | DA67: 0 | DB67: 0 | DC67: 0 | DD67: 0 | DE67: 0 | DF67: 0 | DG67: 0 | DH67: 0 | DI67: 0 | DJ67: 0
C68: > 330 kV & < = 500 kV ; Oil Filled | D68: 0 | E68: 0 | F68: 0 | G68: 0 | H68: 0 | I68: 0 | J68: 0 | K68: 0 | L68: 0 | M68: 0 | N68: 0 | O68: 0 | P68: 0 | Q68: 0 | R68: 0 | S68: 0 | T68: 0 | U68: 0 | V68: 0 | W68: 0 | X68: 0 | Y68: 0 | Z68: 0 | AA68: 0 | AB68: 0 | AC68: 0 | AD68: 0 | AE68: 0 | AF68: 0 | AG68: 0 | AH68: 0 | AI68: 0 | AJ68: 0 | AK68: 0 | AL68: 0 | AM68: 0 | AN68: 0 | AO68: 0 | AP68: 0 | AQ68: 0 | AR68: 0 | AS68: 0 | AT68: 0 | AU68: 0 | AV68: 0 | AW68: 0 | AX68: 0 | AY68: 0 | AZ68: 0 | BA68: 0 | BB68: 0 | BC68: 0 | BD68: 0 | BE68: 0 | BF68: 0 | BG68: 0 | BH68: 0 | BI68: 0 | BJ68: 0 | BK68: 0 | BL68: 0 | BM68: 0 | BN68: 0 | BO68: 0 | BP68: 0 | BQ68: 0 | BR68: 0 | BS68: 0 | BT68: 0 | BU68: 0 | BV68: 0 | BW68: 0 | BX68: 0 | BY68: 0 | BZ68: 0 | CA68: 0 | CB68: 0 | CC68: 0 | CD68: 0 | CE68: 0 | CF68: 0 | CG68: 0 | CH68: 0 | CI68: 0 | CJ68: 0 | CK68: 0 | CL68: 0 | CM68: 0 | CN68: 0 | CO68: 0 | CP68: 0 | CQ68: 0 | CR68: 0 | CS68: 0 | CT68: 0 | CU68: 0 | CV68: 0 | CW68: 0 | CX68: 0 | CY68: 0 | CZ68: 0 | DA68: 0 | DB68: 0 | DC68: 0 | DD68: 0 | DE68: 0 | DF68: 0 | DG68: 0 | DH68: 0 | DI68: 0 | DJ68: 0
C69: > 500 kV ; Oil Filled | D69: 0 | E69: 0 | F69: 0 | G69: 0 | H69: 0 | I69: 0 | J69: 0 | K69: 0 | L69: 0 | M69: 0 | N69: 0 | O69: 0 | P69: 0 | Q69: 0 | R69: 0 | S69: 0 | T69: 0 | U69: 0 | V69: 0 | W69: 0 | X69: 0 | Y69: 0 | Z69: 0 | AA69: 0 | AB69: 0 | AC69: 0 | AD69: 0 | AE69: 0 | AF69: 0 | AG69: 0 | AH69: 0 | AI69: 0 | AJ69: 0 | AK69: 0 | AL69: 0 | AM69: 0 | AN69: 0 | AO69: 0 | AP69: 0 | AQ69: 0 | AR69: 0 | AS69: 0 | AT69: 0 | AU69: 0 | AV69: 0 | AW69: 0 | AX69: 0 | AY69: 0 | AZ69: 0 | BA69: 0 | BB69: 0 | BC69: 0 | BD69: 0 | BE69: 0 | BF69: 0 | BG69: 0 | BH69: 0 | BI69: 0 | BJ69: 0 | BK69: 0 | BL69: 0 | BM69: 0 | BN69: 0 | BO69: 0 | BP69: 0 | BQ69: 0 | BR69: 0 | BS69: 0 | BT69: 0 | BU69: 0 | BV69: 0 | BW69: 0 | BX69: 0 | BY69: 0 | BZ69: 0 | CA69: 0 | CB69: 0 | CC69: 0 | CD69: 0 | CE69: 0 | CF69: 0 | CG69: 0 | CH69: 0 | CI69: 0 | CJ69: 0 | CK69: 0 | CL69: 0 | CM69: 0 | CN69: 0 | CO69: 0 | CP69: 0 | CQ69: 0 | CR69: 0 | CS69: 0 | CT69: 0 | CU69: 0 | CV69: 0 | CW69: 0 | CX69: 0 | CY69: 0 | CZ69: 0 | DA69: 0 | DB69: 0 | DC69: 0 | DD69: 0 | DE69: 0 | DF69: 0 | DG69: 0 | DH69: 0 | DI69: 0 | DJ69: 0
C70: < = 33 kV; XLPE Insulated | D70: 0 | E70: 0 | F70: 0 | G70: 0 | H70: 0 | I70: 0 | J70: 0 | K70: 0 | L70: 0 | M70: 0 | N70: 0 | O70: 0 | P70: 0 | Q70: 0 | R70: 0 | S70: 0 | T70: 0 | U70: 0 | V70: 0 | W70: 0 | X70: 0 | Y70: 0 | Z70: 0 | AA70: 0 | AB70: 0 | AC70: 0 | AD70: 0 | AE70: 0 | AF70: 0 | AG70: 0 | AH70: 0 | AI70: 0 | AJ70: 0 | AK70: 0 | AL70: 0 | AM70: 0 | AN70: 0 | AO70: 0 | AP70: 0 | AQ70: 0 | AR70: 0 | AS70: 0 | AT70: 0 | AU70: 0 | AV70: 0 | AW70: 0 | AX70: 0 | AY70: 0 | AZ70: 0 | BA70: 0 | BB70: 0 | BC70: 0 | BD70: 0 | BE70: 0 | BF70: 0 | BG70: 0 | BH70: 0 | BI70: 0 | BJ70: 0 | BK70: 0 | BL70: 0 | BM70: 0 | BN70: 0 | BO70: 0 | BP70: 0 | BQ70: 0 | BR70: 0 | BS70: 0 | BT70: 0 | BU70: 0 | BV70: 0 | BW70: 0 | BX70: 0 | BY70: 0 | BZ70: 0 | CA70: 0 | CB70: 0 | CC70: 0 | CD70: 0 | CE70: 0 | CF70: 0 | CG70: 0 | CH70: 0 | CI70: 0 | CJ70: 0 | CK70: 0 | CL70: 0 | CM70: 0 | CN70: 0 | CO70: 0 | CP70: 0 | CQ70: 0 | CR70: 0 | CS70: 0 | CT70: 0 | CU70: 0 | CV70: 0 | CW70: 0 | CX70: 0 | CY70: 0 | CZ70: 0 | DA70: 0 | DB70: 0 | DC70: 0 | DD70: 0 | DE70: 0 | DF70: 0 | DG70: 0 | DH70: 0 | DI70: 0 | DJ70: 0
C71: > 33 kV & < = 66 kV ; XLPE Insulated | D71: 45 | E71: 6.7 | F71: 0 | G71: 0 | H71: 0 | I71: 0 | J71: 0 | K71: 0 | L71: 0 | M71: 0 | N71: 0 | O71: 0 | P71: 0 | Q71: 0 | R71: 0 | S71: 0 | T71: 0 | U71: 0 | V71: 0 | W71: 0 | X71: 0 | Y71: 0 | Z71: 0 | AA71: 0 | AB71: 0 | AC71: 0 | AD71: 0 | AE71: 0 | AF71: 0 | AG71: 0 | AH71: 0 | AI71: 0 | AJ71: 0 | AK71: 0 | AL71: 0 | AM71: 0 | AN71: 0 | AO71: 0 | AP71: 1.288 | AQ71: 0 | AR71: 0 | AS71: 0 | AT71: 0 | AU71: 0 | AV71: 0 | AW71: 0 | AX71: 0 | AY71: 0 | AZ71: 0 | BA71: 0 | BB71: 0 | BC71: 0 | BD71: 0 | BE71: 0 | BF71: 0 | BG71: 0 | BH71: 0 | BI71: 0 | BJ71: 0 | BK71: 0 | BL71: 0 | BM71: 0 | BN71: 0 | BO71: 0 | BP71: 0 | BQ71: 0 | BR71: 0 | BS71: 0 | BT71: 0 | BU71: 0 | BV71: 0 | BW71: 0 | BX71: 0 | BY71: 0 | BZ71: 0 | CA71: 0 | CB71: 0 | CC71: 0 | CD71: 0 | CE71: 0 | CF71: 0 | CG71: 0 | CH71: 0 | CI71: 0 | CJ71: 0 | CK71: 0 | CL71: 0 | CM71: 0 | CN71: 0 | CO71: 0 | CP71: 0 | CQ71: 0 | CR71: 0 | CS71: 0 | CT71: 0 | CU71: 0 | CV71: 0 | CW71: 0 | CX71: 0 | CY71: 0 | CZ71: 0 | DA71: 0 | DB71: 0 | DC71: 0 | DD71: 0 | DE71: 0 | DF71: 0 | DG71: 0 | DH71: 0 | DI71: 0 | DJ71: 0
C72: > 66 kV & < = 132 kV ; XLPE Insulated | D72: 45 | E72: 6.7 | F72: 0 | G72: 0 | H72: 0 | I72: 0 | J72: 0 | K72: 0 | L72: 0 | M72: 0.352 | N72: 0 | O72: 1.345 | P72: 0 | Q72: 0 | R72: 0 | S72: 0 | T72: 0.805 | U72: 1.589 | V72: 0 | W72: 0 | X72: 0 | Y72: 0 | Z72: 0 | AA72: 0 | AB72: 0 | AC72: 0 | AD72: 0 | AE72: 0 | AF72: 2.12 | AG72: 0 | AH72: 0 | AI72: 0 | AJ72: 0 | AK72: 0 | AL72: 0 | AM72: 0 | AN72: 0 | AO72: 0 | AP72: 0 | AQ72: 0 | AR72: 0 | AS72: 0 | AT72: 0 | AU72: 0 | AV72: 0 | AW72: 0 | AX72: 0 | AY72: 0 | AZ72: 0 | BA72: 0 | BB72: 0 | BC72: 0 | BD72: 0 | BE72: 0 | BF72: 0 | BG72: 0 | BH72: 0 | BI72: 0 | BJ72: 0 | BK72: 0 | BL72: 0 | BM72: 0 | BN72: 0 | BO72: 0 | BP72: 0 | BQ72: 0 | BR72: 0 | BS72: 0 | BT72: 0 | BU72: 0 | BV72: 0 | BW72: 0 | BX72: 0 | BY72: 0 | BZ72: 0 | CA72: 0 | CB72: 0 | CC72: 0 | CD72: 0 | CE72: 0 | CF72: 0 | CG72: 0 | CH72: 0 | CI72: 0 | CJ72: 0 | CK72: 0 | CL72: 0 | CM72: 0 | CN72: 0 | CO72: 0 | CP72: 0 | CQ72: 0 | CR72: 0 | CS72: 0 | CT72: 0 | CU72: 0 | CV72: 0 | CW72: 0 | CX72: 0 | CY72: 0 | CZ72: 0 | DA72: 0 | DB72: 0 | DC72: 0 | DD72: 0 | DE72: 0 | DF72: 0 | DG72: 0 | DH72: 0 | DI72: 0 | DJ72: 0
C73: > 132 kV & < = 275 kV ; XLPE Insulated | D73: 45 | E73: 6.7 | F73: 0 | G73: 0 | H73: 0 | I73: 0 | J73: 0 | K73: 0 | L73: 0 | M73: 3.98 | N73: 0 | O73: 0 | P73: 0 | Q73: 0 | R73: 0 | S73: 0 | T73: 0 | U73: 0 | V73: 0 | W73: 0 | X73: 0 | Y73: 0 | Z73: 0 | AA73: 5.4 | AB73: 0 | AC73: 0 | AD73: 0 | AE73: 0 | AF73: 0 | AG73: 0 | AH73: 0 | AI73: 0 | AJ73: 0 | AK73: 0 | AL73: 0 | AM73: 0 | AN73: 0 | AO73: 0 | AP73: 0 | AQ73: 0 | AR73: 0 | AS73: 0 | AT73: 0 | AU73: 0 | AV73: 0 | AW73: 0 | AX73: 0 | AY73: 0 | AZ73: 0 | BA73: 0 | BB73: 0 | BC73: 0 | BD73: 0 | BE73: 0 | BF73: 0 | BG73: 0 | BH73: 0 | BI73: 0 | BJ73: 0 | BK73: 0 | BL73: 0 | BM73: 0 | BN73: 0 | BO73: 0 | BP73: 0 | BQ73: 0 | BR73: 0 | BS73: 0 | BT73: 0 | BU73: 0 | BV73: 0 | BW73: 0 | BX73: 0 | BY73: 0 | BZ73: 0 | CA73: 0 | CB73: 0 | CC73: 0 | CD73: 0 | CE73: 0 | CF73: 0 | CG73: 0 | CH73: 0 | CI73: 0 | CJ73: 0 | CK73: 0 | CL73: 0 | CM73: 0 | CN73: 0 | CO73: 0 | CP73: 0 | CQ73: 0 | CR73: 0 | CS73: 0 | CT73: 0 | CU73: 0 | CV73: 0 | CW73: 0 | CX73: 0 | CY73: 0 | CZ73: 0 | DA73: 0 | DB73: 0 | DC73: 0 | DD73: 0 | DE73: 0 | DF73: 0 | DG73: 0 | DH73: 0 | DI73: 0 | DJ73: 0
C74: > 275 kV & < = 330 kV ; XLPE Insulated | D74: 0 | E74: 0 | F74: 0 | G74: 0 | H74: 0 | I74: 0 | J74: 0 | K74: 0 | L74: 0 | M74: 0 | N74: 0 | O74: 0 | P74: 0 | Q74: 0 | R74: 0 | S74: 0 | T74: 0 | U74: 0 | V74: 0 | W74: 0 | X74: 0 | Y74: 0 | Z74: 0 | AA74: 0 | AB74: 0 | AC74: 0 | AD74: 0 | AE74: 0 | AF74: 0 | AG74: 0 | AH74: 0 | AI74: 0 | AJ74: 0 | AK74: 0 | AL74: 0 | AM74: 0 | AN74: 0 | AO74: 0 | AP74: 0 | AQ74: 0 | AR74: 0 | AS74: 0 | AT74: 0 | AU74: 0 | AV74: 0 | AW74: 0 | AX74: 0 | AY74: 0 | AZ74: 0 | BA74: 0 | BB74: 0 | BC74: 0 | BD74: 0 | BE74: 0 | BF74: 0 | BG74: 0 | BH74: 0 | BI74: 0 | BJ74: 0 | BK74: 0 | BL74: 0 | BM74: 0 | BN74: 0 | BO74: 0 | BP74: 0 | BQ74: 0 | BR74: 0 | BS74: 0 | BT74: 0 | BU74: 0 | BV74: 0 | BW74: 0 | BX74: 0 | BY74: 0 | BZ74: 0 | CA74: 0 | CB74: 0 | CC74: 0 | CD74: 0 | CE74: 0 | CF74: 0 | CG74: 0 | CH74: 0 | CI74: 0 | CJ74: 0 | CK74: 0 | CL74: 0 | CM74: 0 | CN74: 0 | CO74: 0 | CP74: 0 | CQ74: 0 | CR74: 0 | CS74: 0 | CT74: 0 | CU74: 0 | CV74: 0 | CW74: 0 | CX74: 0 | CY74: 0 | CZ74: 0 | DA74: 0 | DB74: 0 | DC74: 0 | DD74: 0 | DE74: 0 | DF74: 0 | DG74: 0 | DH74: 0 | DI74: 0 | DJ74: 0
C75: > 330 kV & < = 500 kV ; XLPE Insulated | D75: 0 | E75: 0 | F75: 0 | G75: 0 | H75: 0 | I75: 0 | J75: 0 | K75: 0 | L75: 0 | M75: 0 | N75: 0 | O75: 0 | P75: 0 | Q75: 0 | R75: 0 | S75: 0 | T75: 0 | U75: 0 | V75: 0 | W75: 0 | X75: 0 | Y75: 0 | Z75: 0 | AA75: 0 | AB75: 0 | AC75: 0 | AD75: 0 | AE75: 0 | AF75: 0 | AG75: 0 | AH75: 0 | AI75: 0 | AJ75: 0 | AK75: 0 | AL75: 0 | AM75: 0 | AN75: 0 | AO75: 0 | AP75: 0 | AQ75: 0 | AR75: 0 | AS75: 0 | AT75: 0 | AU75: 0 | AV75: 0 | AW75: 0 | AX75: 0 | AY75: 0 | AZ75: 0 | BA75: 0 | BB75: 0 | BC75: 0 | BD75: 0 | BE75: 0 | BF75: 0 | BG75: 0 | BH75: 0 | BI75: 0 | BJ75: 0 | BK75: 0 | BL75: 0 | BM75: 0 | BN75: 0 | BO75: 0 | BP75: 0 | BQ75: 0 | BR75: 0 | BS75: 0 | BT75: 0 | BU75: 0 | BV75: 0 | BW75: 0 | BX75: 0 | BY75: 0 | BZ75: 0 | CA75: 0 | CB75: 0 | CC75: 0 | CD75: 0 | CE75: 0 | CF75: 0 | CG75: 0 | CH75: 0 | CI75: 0 | CJ75: 0 | CK75: 0 | CL75: 0 | CM75: 0 | CN75: 0 | CO75: 0 | CP75: 0 | CQ75: 0 | CR75: 0 | CS75: 0 | CT75: 0 | CU75: 0 | CV75: 0 | CW75: 0 | CX75: 0 | CY75: 0 | CZ75: 0 | DA75: 0 | DB75: 0 | DC75: 0 | DD75: 0 | DE75: 0 | DF75: 0 | DG75: 0 | DH75: 0 | DI75: 0 | DJ75: 0
C76: > 500 kV ; XLPE Insulated | D76: 0 | E76: 0 | F76: 0 | G76: 0 | H76: 0 | I76: 0 | J76: 0 | K76: 0 | L76: 0 | M76: 0 | N76: 0 | O76: 0 | P76: 0 | Q76: 0 | R76: 0 | S76: 0 | T76: 0 | U76: 0 | V76: 0 | W76: 0 | X76: 0 | Y76: 0 | Z76: 0 | AA76: 0 | AB76: 0 | AC76: 0 | AD76: 0 | AE76: 0 | AF76: 0 | AG76: 0 | AH76: 0 | AI76: 0 | AJ76: 0 | AK76: 0 | AL76: 0 | AM76: 0 | AN76: 0 | AO76: 0 | AP76: 0 | AQ76: 0 | AR76: 0 | AS76: 0 | AT76: 0 | AU76: 0 | AV76: 0 | AW76: 0 | AX76: 0 | AY76: 0 | AZ76: 0 | BA76: 0 | BB76: 0 | BC76: 0 | BD76: 0 | BE76: 0 | BF76: 0 | BG76: 0 | BH76: 0 | BI76: 0 | BJ76: 0 | BK76: 0 | BL76: 0 | BM76: 0 | BN76: 0 | BO76: 0 | BP76: 0 | BQ76: 0 | BR76: 0 | BS76: 0 | BT76: 0 | BU76: 0 | BV76: 0 | BW76: 0 | BX76: 0 | BY76: 0 | BZ76: 0 | CA76: 0 | CB76: 0 | CC76: 0 | CD76: 0 | CE76: 0 | CF76: 0 | CG76: 0 | CH76: 0 | CI76: 0 | CJ76: 0 | CK76: 0 | CL76: 0 | CM76: 0 | CN76: 0 | CO76: 0 | CP76: 0 | CQ76: 0 | CR76: 0 | CS76: 0 | CT76: 0 | CU76: 0 | CV76: 0 | CW76: 0 | CX76: 0 | CY76: 0 | CZ76: 0 | DA76: 0 | DB76: 0 | DC76: 0 | DD76: 0 | DE76: 0 | DF76: 0 | DG76: 0 | DH76: 0 | DI76: 0 | DJ76: 0
C77: < = 33 kV; Other Insulated | D77: 0 | E77: 0 | F77: 0 | G77: 0 | H77: 0 | I77: 0 | J77: 0 | K77: 0 | L77: 0 | M77: 0 | N77: 0 | O77: 0 | P77: 0 | Q77: 0 | R77: 0 | S77: 0 | T77: 0 | U77: 0 | V77: 0 | W77: 0 | X77: 0 | Y77: 0 | Z77: 0 | AA77: 0 | AB77: 0 | AC77: 0 | AD77: 0 | AE77: 0 | AF77: 0 | AG77: 0 | AH77: 0 | AI77: 0 | AJ77: 0 | AK77: 0 | AL77: 0 | AM77: 0 | AN77: 0 | AO77: 0 | AP77: 0 | AQ77: 0 | AR77: 0 | AS77: 0 | AT77: 0 | AU77: 0 | AV77: 0 | AW77: 0 | AX77: 0 | AY77: 0 | AZ77: 0 | BA77: 0 | BB77: 0 | BC77: 0 | BD77: 0 | BE77: 0 | BF77: 0 | BG77: 0 | BH77: 0 | BI77: 0 | BJ77: 0 | BK77: 0 | BL77: 0 | BM77: 0 | BN77: 0 | BO77: 0 | BP77: 0 | BQ77: 0 | BR77: 0 | BS77: 0 | BT77: 0 | BU77: 0 | BV77: 0 | BW77: 0 | BX77: 0 | BY77: 0 | BZ77: 0 | CA77: 0 | CB77: 0 | CC77: 0 | CD77: 0 | CE77: 0 | CF77: 0 | CG77: 0 | CH77: 0 | CI77: 0 | CJ77: 0 | CK77: 0 | CL77: 0 | CM77: 0 | CN77: 0 | CO77: 0 | CP77: 0 | CQ77: 0 | CR77: 0 | CS77: 0 | CT77: 0 | CU77: 0 | CV77: 0 | CW77: 0 | CX77: 0 | CY77: 0 | CZ77: 0 | DA77: 0 | DB77: 0 | DC77: 0 | DD77: 0 | DE77: 0 | DF77: 0 | DG77: 0 | DH77: 0 | DI77: 0 | DJ77: 0
C78: > 33 kV & < = 66 kV ; Other Insulated | D78: 0 | E78: 0 | F78: 0 | G78: 0 | H78: 0 | I78: 0 | J78: 0 | K78: 0 | L78: 0 | M78: 0 | N78: 0 | O78: 0 | P78: 0 | Q78: 0 | R78: 0 | S78: 0 | T78: 0 | U78: 0 | V78: 0 | W78: 0 | X78: 0 | Y78: 0 | Z78: 0 | AA78: 0 | AB78: 0 | AC78: 0 | AD78: 0 | AE78: 0 | AF78: 0 | AG78: 0 | AH78: 0 | AI78: 0 | AJ78: 0 | AK78: 0 | AL78: 0 | AM78: 0 | AN78: 0 | AO78: 0 | AP78: 0 | AQ78: 0 | AR78: 0 | AS78: 0 | AT78: 0 | AU78: 0 | AV78: 0 | AW78: 0 | AX78: 0 | AY78: 0 | AZ78: 0 | BA78: 0 | BB78: 0 | BC78: 0 | BD78: 0 | BE78: 0 | BF78: 0 | BG78: 0 | BH78: 0 | BI78: 0 | BJ78: 0 | BK78: 0 | BL78: 0 | BM78: 0 | BN78: 0 | BO78: 0 | BP78: 0 | BQ78: 0 | BR78: 0 | BS78: 0 | BT78: 0 | BU78: 0 | BV78: 0 | BW78: 0 | BX78: 0 | BY78: 0 | BZ78: 0 | CA78: 0 | CB78: 0 | CC78: 0 | CD78: 0 | CE78: 0 | CF78: 0 | CG78: 0 | CH78: 0 | CI78: 0 | CJ78: 0 | CK78: 0 | CL78: 0 | CM78: 0 | CN78: 0 | CO78: 0 | CP78: 0 | CQ78: 0 | CR78: 0 | CS78: 0 | CT78: 0 | CU78: 0 | CV78: 0 | CW78: 0 | CX78: 0 | CY78: 0 | CZ78: 0 | DA78: 0 | DB78: 0 | DC78: 0 | DD78: 0 | DE78: 0 | DF78: 0 | DG78: 0 | DH78: 0 | DI78: 0 | DJ78: 0
C79: > 66 kV & < = 132 kV ; Other Insulated | D79: 0 | E79: 0 | F79: 0 | G79: 0 | H79: 0 | I79: 0 | J79: 0 | K79: 0 | L79: 0 | M79: 0 | N79: 0 | O79: 0 | P79: 0 | Q79: 0 | R79: 0 | S79: 0 | T79: 0 | U79: 0 | V79: 0 | W79: 0 | X79: 0 | Y79: 0 | Z79: 0 | AA79: 0 | AB79: 0 | AC79: 0 | AD79: 0 | AE79: 0 | AF79: 0 | AG79: 0 | AH79: 0 | AI79: 0 | AJ79: 0 | AK79: 0 | AL79: 0 | AM79: 0 | AN79: 0 | AO79: 0 | AP79: 0 | AQ79: 0 | AR79: 0 | AS79: 0 | AT79: 0 | AU79: 0 | AV79: 0 | AW79: 0 | AX79: 0 | AY79: 0 | AZ79: 0 | BA79: 0 | BB79: 0 | BC79: 0 | BD79: 0 | BE79: 0 | BF79: 0 | BG79: 0 | BH79: 0 | BI79: 0 | BJ79: 0 | BK79: 0 | BL79: 0 | BM79: 0 | BN79: 0 | BO79: 0 | BP79: 0 | BQ79: 0 | BR79: 0 | BS79: 0 | BT79: 0 | BU79: 0 | BV79: 0 | BW79: 0 | BX79: 0 | BY79: 0 | BZ79: 0 | CA79: 0 | CB79: 0 | CC79: 0 | CD79: 0 | CE79: 0 | CF79: 0 | CG79: 0 | CH79: 0 | CI79: 0 | CJ79: 0 | CK79: 0 | CL79: 0 | CM79: 0 | CN79: 0 | CO79: 0 | CP79: 0 | CQ79: 0 | CR79: 0 | CS79: 0 | CT79: 0 | CU79: 0 | CV79: 0 | CW79: 0 | CX79: 0 | CY79: 0 | CZ79: 0 | DA79: 0 | DB79: 0 | DC79: 0 | DD79: 0 | DE79: 0 | DF79: 0 | DG79: 0 | DH79: 0 | DI79: 0 | DJ79: 0
C80: > 132 kV & < = 275 kV ; Other Insulated | D80: 0 | E80: 0 | F80: 0 | G80: 0 | H80: 0 | I80: 0 | J80: 0 | K80: 0 | L80: 0 | M80: 0 | N80: 0 | O80: 0 | P80: 0 | Q80: 0 | R80: 0 | S80: 0 | T80: 0 | U80: 0 | V80: 0 | W80: 0 | X80: 0 | Y80: 0 | Z80: 0 | AA80: 0 | AB80: 0 | AC80: 0 | AD80: 0 | AE80: 0 | AF80: 0 | AG80: 0 | AH80: 0 | AI80: 0 | AJ80: 0 | AK80: 0 | AL80: 0 | AM80: 0 | AN80: 0 | AO80: 0 | AP80: 0 | AQ80: 0 | AR80: 0 | AS80: 0 | AT80: 0 | AU80: 0 | AV80: 0 | AW80: 0 | AX80: 0 | AY80: 0 | AZ80: 0 | BA80: 0 | BB80: 0 | BC80: 0 | BD80: 0 | BE80: 0 | BF80: 0 | BG80: 0 | BH80: 0 | BI80: 0 | BJ80: 0 | BK80: 0 | BL80: 0 | BM80: 0 | BN80: 0 | BO80: 0 | BP80: 0 | BQ80: 0 | BR80: 0 | BS80: 0 | BT80: 0 | BU80: 0 | BV80: 0 | BW80: 0 | BX80: 0 | BY80: 0 | BZ80: 0 | CA80: 0 | CB80: 0 | CC80: 0 | CD80: 0 | CE80: 0 | CF80: 0 | CG80: 0 | CH80: 0 | CI80: 0 | CJ80: 0 | CK80: 0 | CL80: 0 | CM80: 0 | CN80: 0 | CO80: 0 | CP80: 0 | CQ80: 0 | CR80: 0 | CS80: 0 | CT80: 0 | CU80: 0 | CV80: 0 | CW80: 0 | CX80: 0 | CY80: 0 | CZ80: 0 | DA80: 0 | DB80: 0 | DC80: 0 | DD80: 0 | DE80: 0 | DF80: 0 | DG80: 0 | DH80: 0 | DI80: 0 | DJ80: 0
C81: > 275 kV & < = 330 kV ; Other Insulated | D81: 0 | E81: 0 | F81: 0 | G81: 0 | H81: 0 | I81: 0 | J81: 0 | K81: 0 | L81: 0 | M81: 0 | N81: 0 | O81: 0 | P81: 0 | Q81: 0 | R81: 0 | S81: 0 | T81: 0 | U81: 0 | V81: 0 | W81: 0 | X81: 0 | Y81: 0 | Z81: 0 | AA81: 0 | AB81: 0 | AC81: 0 | AD81: 0 | AE81: 0 | AF81: 0 | AG81: 0 | AH81: 0 | AI81: 0 | AJ81: 0 | AK81: 0 | AL81: 0 | AM81: 0 | AN81: 0 | AO81: 0 | AP81: 0 | AQ81: 0 | AR81: 0 | AS81: 0 | AT81: 0 | AU81: 0 | AV81: 0 | AW81: 0 | AX81: 0 | AY81: 0 | AZ81: 0 | BA81: 0 | BB81: 0 | BC81: 0 | BD81: 0 | BE81: 0 | BF81: 0 | BG81: 0 | BH81: 0 | BI81: 0 | BJ81: 0 | BK81: 0 | BL81: 0 | BM81: 0 | BN81: 0 | BO81: 0 | BP81: 0 | BQ81: 0 | BR81: 0 | BS81: 0 | BT81: 0 | BU81: 0 | BV81: 0 | BW81: 0 | BX81: 0 | BY81: 0 | BZ81: 0 | CA81: 0 | CB81: 0 | CC81: 0 | CD81: 0 | CE81: 0 | CF81: 0 | CG81: 0 | CH81: 0 | CI81: 0 | CJ81: 0 | CK81: 0 | CL81: 0 | CM81: 0 | CN81: 0 | CO81: 0 | CP81: 0 | CQ81: 0 | CR81: 0 | CS81: 0 | CT81: 0 | CU81: 0 | CV81: 0 | CW81: 0 | CX81: 0 | CY81: 0 | CZ81: 0 | DA81: 0 | DB81: 0 | DC81: 0 | DD81: 0 | DE81: 0 | DF81: 0 | DG81: 0 | DH81: 0 | DI81: 0 | DJ81: 0
C82: > 330 kV & < = 500 kV ; Other Insulated | D82: 0 | E82: 0 | F82: 0 | G82: 0 | H82: 0 | I82: 0 | J82: 0 | K82: 0 | L82: 0 | M82: 0 | N82: 0 | O82: 0 | P82: 0 | Q82: 0 | R82: 0 | S82: 0 | T82: 0 | U82: 0 | V82: 0 | W82: 0 | X82: 0 | Y82: 0 | Z82: 0 | AA82: 0 | AB82: 0 | AC82: 0 | AD82: 0 | AE82: 0 | AF82: 0 | AG82: 0 | AH82: 0 | AI82: 0 | AJ82: 0 | AK82: 0 | AL82: 0 | AM82: 0 | AN82: 0 | AO82: 0 | AP82: 0 | AQ82: 0 | AR82: 0 | AS82: 0 | AT82: 0 | AU82: 0 | AV82: 0 | AW82: 0 | AX82: 0 | AY82: 0 | AZ82: 0 | BA82: 0 | BB82: 0 | BC82: 0 | BD82: 0 | BE82: 0 | BF82: 0 | BG82: 0 | BH82: 0 | BI82: 0 | BJ82: 0 | BK82: 0 | BL82: 0 | BM82: 0 | BN82: 0 | BO82: 0 | BP82: 0 | BQ82: 0 | BR82: 0 | BS82: 0 | BT82: 0 | BU82: 0 | BV82: 0 | BW82: 0 | BX82: 0 | BY82: 0 | BZ82: 0 | CA82: 0 | CB82: 0 | CC82: 0 | CD82: 0 | CE82: 0 | CF82: 0 | CG82: 0 | CH82: 0 | CI82: 0 | CJ82: 0 | CK82: 0 | CL82: 0 | CM82: 0 | CN82: 0 | CO82: 0 | CP82: 0 | CQ82: 0 | CR82: 0 | CS82: 0 | CT82: 0 | CU82: 0 | CV82: 0 | CW82: 0 | CX82: 0 | CY82: 0 | CZ82: 0 | DA82: 0 | DB82: 0 | DC82: 0 | DD82: 0 | DE82: 0 | DF82: 0 | DG82: 0 | DH82: 0 | DI82: 0 | DJ82: 0
C83: > 500 kV ; Other Insulated | D83: 0 | E83: 0 | F83: 0 | G83: 0 | H83: 0 | I83: 0 | J83: 0 | K83: 0 | L83: 0 | M83: 0 | N83: 0 | O83: 0 | P83: 0 | Q83: 0 | R83: 0 | S83: 0 | T83: 0 | U83: 0 | V83: 0 | W83: 0 | X83: 0 | Y83: 0 | Z83: 0 | AA83: 0 | AB83: 0 | AC83: 0 | AD83: 0 | AE83: 0 | AF83: 0 | AG83: 0 | AH83: 0 | AI83: 0 | AJ83: 0 | AK83: 0 | AL83: 0 | AM83: 0 | AN83: 0 | AO83: 0 | AP83: 0 | AQ83: 0 | AR83: 0 | AS83: 0 | AT83: 0 | AU83: 0 | AV83: 0 | AW83: 0 | AX83: 0 | AY83: 0 | AZ83: 0 | BA83: 0 | BB83: 0 | BC83: 0 | BD83: 0 | BE83: 0 | BF83: 0 | BG83: 0 | BH83: 0 | BI83: 0 | BJ83: 0 | BK83: 0 | BL83: 0 | BM83: 0 | BN83: 0 | BO83: 0 | BP83: 0 | BQ83: 0 | BR83: 0 | BS83: 0 | BT83: 0 | BU83: 0 | BV83: 0 | BW83: 0 | BX83: 0 | BY83: 0 | BZ83: 0 | CA83: 0 | CB83: 0 | CC83: 0 | CD83: 0 | CE83: 0 | CF83: 0 | CG83: 0 | CH83: 0 | CI83: 0 | CJ83: 0 | CK83: 0 | CL83: 0 | CM83: 0 | CN83: 0 | CO83: 0 | CP83: 0 | CQ83: 0 | CR83: 0 | CS83: 0 | CT83: 0 | CU83: 0 | CV83: 0 | CW83: 0 | CX83: 0 | CY83: 0 | CZ83: 0 | DA83: 0 | DB83: 0 | DC83: 0 | DD83: 0 | DE83: 0 | DF83: 0 | DG83: 0 | DH83: 0 | DI83: 0 | DJ83: 0
C84: Other
B85: SUBSTATION SWITCHBAYS BY: Highest operating voltage; Switch type | C85: < = 33 kV; Air Insulated circuit Breaker | D85: 40 | E85: 6.3 | F85: 0 | G85: 0 | H85: 0 | I85: 0 | J85: 0 | K85: 0 | L85: 0 | M85: 0 | N85: 0 | O85: 0 | P85: 0 | Q85: 0 | R85: 0 | S85: 0 | T85: 0 | U85: 0 | V85: 0 | W85: 0 | X85: 0 | Y85: 0 | Z85: 0 | AA85: 0 | AB85: 0 | AC85: 0 | AD85: 0 | AE85: 0 | AF85: 1 | AG85: 0 | AH85: 0 | AI85: 1 | AJ85: 0 | AK85: 0 | AL85: 0 | AM85: 0 | AN85: 2 | AO85: 0 | AP85: 0 | AQ85: 0 | AR85: 0 | AS85: 0 | AT85: 0 | AU85: 0 | AV85: 0 | AW85: 0 | AX85: 0 | AY85: 0 | AZ85: 0 | BA85: 0 | BB85: 0 | BC85: 0 | BD85: 0 | BE85: 0 | BF85: 0 | BG85: 0 | BH85: 0 | BI85: 0 | BJ85: 0 | BK85: 0 | BL85: 0 | BM85: 0 | BN85: 0 | BO85: 0 | BP85: 0 | BQ85: 0 | BR85: 0 | BS85: 0 | BT85: 0 | BU85: 0 | BV85: 0 | BW85: 0 | BX85: 0 | BY85: 0 | BZ85: 0 | CA85: 0 | CB85: 0 | CC85: 0 | CD85: 0 | CE85: 0 | CF85: 0 | CG85: 0 | CH85: 0 | CI85: 0 | CJ85: 0 | CK85: 0 | CL85: 0 | CM85: 0 | CN85: 0 | CO85: 0 | CP85: 0 | CQ85: 0 | CR85: 0 | CS85: 0 | CT85: 0 | CU85: 0 | CV85: 0 | CW85: 0 | CX85: 0 | CY85: 0 | CZ85: 0 | DA85: 0 | DB85: 0 | DC85: 0 | DD85: 0 | DE85: 0 | DF85: 0 | DG85: 0 | DH85: 0 | DI85: 0 | DJ85: 0
C86: > 33 kV & < = 66 kV ; Air Insulated circuit Breaker | D86: 40 | E86: 6.3 | F86: 0 | G86: 0 | H86: 0 | I86: 0 | J86: 0 | K86: 2 | L86: 7 | M86: 0 | N86: 0 | O86: 0 | P86: 0 | Q86: 0 | R86: 0 | S86: 0 | T86: 0 | U86: 0 | V86: 0 | W86: 0 | X86: 0 | Y86: 2 | Z86: 2 | AA86: 0 | AB86: 0 | AC86: 0 | AD86: 0 | AE86: 0 | AF86: 0 | AG86: 0 | AH86: 0 | AI86: 0 | AJ86: 0 | AK86: 0 | AL86: 0 | AM86: 0 | AN86: 0 | AO86: 0 | AP86: 0 | AQ86: 0 | AR86: 0 | AS86: 0 | AT86: 0 | AU86: 0 | AV86: 0 | AW86: 0 | AX86: 0 | AY86: 0 | AZ86: 0 | BA86: 0 | BB86: 0 | BC86: 0 | BD86: 0 | BE86: 0 | BF86: 0 | BG86: 0 | BH86: 0 | BI86: 0 | BJ86: 0 | BK86: 0 | BL86: 0 | BM86: 0 | BN86: 0 | BO86: 0 | BP86: 0 | BQ86: 0 | BR86: 0 | BS86: 0 | BT86: 0 | BU86: 0 | BV86: 0 | BW86: 0 | BX86: 0 | BY86: 0 | BZ86: 0 | CA86: 0 | CB86: 0 | CC86: 0 | CD86: 0 | CE86: 0 | CF86: 0 | CG86: 0 | CH86: 0 | CI86: 0 | CJ86: 0 | CK86: 0 | CL86: 0 | CM86: 0 | CN86: 0 | CO86: 0 | CP86: 0 | CQ86: 0 | CR86: 0 | CS86: 0 | CT86: 0 | CU86: 0 | CV86: 0 | CW86: 0 | CX86: 0 | CY86: 0 | CZ86: 0 | DA86: 0 | DB86: 0 | DC86: 0 | DD86: 0 | DE86: 0 | DF86: 0 | DG86: 0 | DH86: 0 | DI86: 0 | DJ86: 0
C87: > 66 kV & < = 132 kV ; Air Insulated circuit Breaker | D87: 40 | E87: 6.3 | F87: 6 | G87: 11 | H87: 0 | I87: 9 | J87: 39 | K87: 31 | L87: 28 | M87: 26 | N87: 48 | O87: 55 | P87: 27 | Q87: 21 | R87: 16 | S87: 15 | T87: 2 | U87: 4 | V87: 4 | W87: 7 | X87: 3 | Y87: 7 | Z87: 13 | AA87: 4 | AB87: 1 | AC87: 5 | AD87: 3 | AE87: 1 | AF87: 3 | AG87: 3 | AH87: 2 | AI87: 6 | AJ87: 16 | AK87: 19 | AL87: 9 | AM87: 12 | AN87: 13 | AO87: 7 | AP87: 4 | AQ87: 6 | AR87: 1 | AS87: 5 | AT87: 4 | AU87: 2 | AV87: 0 | AW87: 3 | AX87: 1 | AY87: 0 | AZ87: 0 | BA87: 0 | BB87: 0 | BC87: 0 | BD87: 0 | BE87: 0 | BF87: 0 | BG87: 0 | BH87: 0 | BI87: 6 | BJ87: 0 | BK87: 0 | BL87: 0 | BM87: 0 | BN87: 0 | BO87: 0 | BP87: 0 | BQ87: 0 | BR87: 0 | BS87: 0 | BT87: 0 | BU87: 0 | BV87: 0 | BW87: 0 | BX87: 0 | BY87: 0 | BZ87: 0 | CA87: 0 | CB87: 0 | CC87: 0 | CD87: 0 | CE87: 0 | CF87: 0 | CG87: 0 | CH87: 0 | CI87: 0 | CJ87: 0 | CK87: 0 | CL87: 0 | CM87: 0 | CN87: 0 | CO87: 0 | CP87: 0 | CQ87: 0 | CR87: 0 | CS87: 0 | CT87: 0 | CU87: 0 | CV87: 0 | CW87: 0 | CX87: 0 | CY87: 0 | CZ87: 0 | DA87: 0 | DB87: 0 | DC87: 0 | DD87: 0 | DE87: 0 | DF87: 0 | DG87: 0 | DH87: 0 | DI87: 0 | DJ87: 0
C88: > 132 kV & < = 275 kV ; Air Insulated circuit Breaker | D88: 40 | E88: 6.3 | F88: 2 | G88: 0 | H88: 2 | I88: 16 | J88: 21 | K88: 30 | L88: 28 | M88: 6 | N88: 15 | O88: 35 | P88: 43 | Q88: 31 | R88: 27 | S88: 15 | T88: 5 | U88: 10 | V88: 12 | W88: 0 | X88: 4 | Y88: 8 | Z88: 13 | AA88: 0 | AB88: 5 | AC88: 4 | AD88: 7 | AE88: 12 | AF88: 2 | AG88: 0 | AH88: 0 | AI88: 18 | AJ88: 2 | AK88: 1 | AL88: 1 | AM88: 11 | AN88: 0 | AO88: 0 | AP88: 0 | AQ88: 3 | AR88: 0 | AS88: 1 | AT88: 4 | AU88: 0 | AV88: 0 | AW88: 13 | AX88: 0 | AY88: 0 | AZ88: 0 | BA88: 0 | BB88: 0 | BC88: 0 | BD88: 0 | BE88: 0 | BF88: 0 | BG88: 0 | BH88: 0 | BI88: 0 | BJ88: 0 | BK88: 0 | BL88: 0 | BM88: 0 | BN88: 0 | BO88: 0 | BP88: 0 | BQ88: 0 | BR88: 0 | BS88: 0 | BT88: 0 | BU88: 0 | BV88: 0 | BW88: 0 | BX88: 0 | BY88: 0 | BZ88: 0 | CA88: 0 | CB88: 0 | CC88: 0 | CD88: 0 | CE88: 0 | CF88: 0 | CG88: 0 | CH88: 0 | CI88: 0 | CJ88: 0 | CK88: 0 | CL88: 0 | CM88: 0 | CN88: 0 | CO88: 0 | CP88: 0 | CQ88: 0 | CR88: 0 | CS88: 0 | CT88: 0 | CU88: 0 | CV88: 0 | CW88: 0 | CX88: 0 | CY88: 0 | CZ88: 0 | DA88: 0 | DB88: 0 | DC88: 0 | DD88: 0 | DE88: 0 | DF88: 0 | DG88: 0 | DH88: 0 | DI88: 0 | DJ88: 0
C89: > 275 kV & < = 330 kV ; Air Insulated circuit Breaker | D89: 40 | E89: 6.3 | F89: 0 | G89: 0 | H89: 0 | I89: 0 | J89: 0 | K89: 0 | L89: 3 | M89: 0 | N89: 0 | O89: 0 | P89: 1 | Q89: 0 | R89: 0 | S89: 4 | T89: 0 | U89: 0 | V89: 0 | W89: 0 | X89: 0 | Y89: 0 | Z89: 0 | AA89: 0 | AB89: 0 | AC89: 0 | AD89: 0 | AE89: 0 | AF89: 0 | AG89: 0 | AH89: 0 | AI89: 0 | AJ89: 0 | AK89: 0 | AL89: 0 | AM89: 0 | AN89: 0 | AO89: 0 | AP89: 0 | AQ89: 0 | AR89: 0 | AS89: 0 | AT89: 0 | AU89: 0 | AV89: 0 | AW89: 0 | AX89: 0 | AY89: 0 | AZ89: 0 | BA89: 0 | BB89: 0 | BC89: 0 | BD89: 0 | BE89: 0 | BF89: 0 | BG89: 0 | BH89: 0 | BI89: 0 | BJ89: 0 | BK89: 0 | BL89: 0 | BM89: 0 | BN89: 0 | BO89: 0 | BP89: 0 | BQ89: 0 | BR89: 0 | BS89: 0 | BT89: 0 | BU89: 0 | BV89: 0 | BW89: 0 | BX89: 0 | BY89: 0 | BZ89: 0 | CA89: 0 | CB89: 0 | CC89: 0 | CD89: 0 | CE89: 0 | CF89: 0 | CG89: 0 | CH89: 0 | CI89: 0 | CJ89: 0 | CK89: 0 | CL89: 0 | CM89: 0 | CN89: 0 | CO89: 0 | CP89: 0 | CQ89: 0 | CR89: 0 | CS89: 0 | CT89: 0 | CU89: 0 | CV89: 0 | CW89: 0 | CX89: 0 | CY89: 0 | CZ89: 0 | DA89: 0 | DB89: 0 | DC89: 0 | DD89: 0 | DE89: 0 | DF89: 0 | DG89: 0 | DH89: 0 | DI89: 0 | DJ89: 0
C90: > 330 kV & < = 500 kV ; Air Insulated circuit Breaker | D90: 0 | E90: 0 | F90: 0 | G90: 0 | H90: 0 | I90: 0 | J90: 0 | K90: 0 | L90: 0 | M90: 0 | N90: 0 | O90: 0 | P90: 0 | Q90: 0 | R90: 0 | S90: 0 | T90: 0 | U90: 0 | V90: 0 | W90: 0 | X90: 0 | Y90: 0 | Z90: 0 | AA90: 0 | AB90: 0 | AC90: 0 | AD90: 0 | AE90: 0 | AF90: 0 | AG90: 0 | AH90: 0 | AI90: 0 | AJ90: 0 | AK90: 0 | AL90: 0 | AM90: 0 | AN90: 0 | AO90: 0 | AP90: 0 | AQ90: 0 | AR90: 0 | AS90: 0 | AT90: 0 | AU90: 0 | AV90: 0 | AW90: 0 | AX90: 0 | AY90: 0 | AZ90: 0 | BA90: 0 | BB90: 0 | BC90: 0 | BD90: 0 | BE90: 0 | BF90: 0 | BG90: 0 | BH90: 0 | BI90: 0 | BJ90: 0 | BK90: 0 | BL90: 0 | BM90: 0 | BN90: 0 | BO90: 0 | BP90: 0 | BQ90: 0 | BR90: 0 | BS90: 0 | BT90: 0 | BU90: 0 | BV90: 0 | BW90: 0 | BX90: 0 | BY90: 0 | BZ90: 0 | CA90: 0 | CB90: 0 | CC90: 0 | CD90: 0 | CE90: 0 | CF90: 0 | CG90: 0 | CH90: 0 | CI90: 0 | CJ90: 0 | CK90: 0 | CL90: 0 | CM90: 0 | CN90: 0 | CO90: 0 | CP90: 0 | CQ90: 0 | CR90: 0 | CS90: 0 | CT90: 0 | CU90: 0 | CV90: 0 | CW90: 0 | CX90: 0 | CY90: 0 | CZ90: 0 | DA90: 0 | DB90: 0 | DC90: 0 | DD90: 0 | DE90: 0 | DF90: 0 | DG90: 0 | DH90: 0 | DI90: 0 | DJ90: 0
C91: > 500 kV ; Air Insulated circuit Breaker | D91: 0 | E91: 0 | F91: 0 | G91: 0 | H91: 0 | I91: 0 | J91: 0 | K91: 0 | L91: 0 | M91: 0 | N91: 0 | O91: 0 | P91: 0 | Q91: 0 | R91: 0 | S91: 0 | T91: 0 | U91: 0 | V91: 0 | W91: 0 | X91: 0 | Y91: 0 | Z91: 0 | AA91: 0 | AB91: 0 | AC91: 0 | AD91: 0 | AE91: 0 | AF91: 0 | AG91: 0 | AH91: 0 | AI91: 0 | AJ91: 0 | AK91: 0 | AL91: 0 | AM91: 0 | AN91: 0 | AO91: 0 | AP91: 0 | AQ91: 0 | AR91: 0 | AS91: 0 | AT91: 0 | AU91: 0 | AV91: 0 | AW91: 0 | AX91: 0 | AY91: 0 | AZ91: 0 | BA91: 0 | BB91: 0 | BC91: 0 | BD91: 0 | BE91: 0 | BF91: 0 | BG91: 0 | BH91: 0 | BI91: 0 | BJ91: 0 | BK91: 0 | BL91: 0 | BM91: 0 | BN91: 0 | BO91: 0 | BP91: 0 | BQ91: 0 | BR91: 0 | BS91: 0 | BT91: 0 | BU91: 0 | BV91: 0 | BW91: 0 | BX91: 0 | BY91: 0 | BZ91: 0 | CA91: 0 | CB91: 0 | CC91: 0 | CD91: 0 | CE91: 0 | CF91: 0 | CG91: 0 | CH91: 0 | CI91: 0 | CJ91: 0 | CK91: 0 | CL91: 0 | CM91: 0 | CN91: 0 | CO91: 0 | CP91: 0 | CQ91: 0 | CR91: 0 | CS91: 0 | CT91: 0 | CU91: 0 | CV91: 0 | CW91: 0 | CX91: 0 | CY91: 0 | CZ91: 0 | DA91: 0 | DB91: 0 | DC91: 0 | DD91: 0 | DE91: 0 | DF91: 0 | DG91: 0 | DH91: 0 | DI91: 0 | DJ91: 0
C92: < = 33 kV; Air Insulated Isolators / Earth Switch | D92: 40 | E92: 6.3 | F92: 0 | G92: 1 | H92: 0 | I92: 0 | J92: 1 | K92: 0 | L92: 2 | M92: 0 | N92: 0 | O92: 0 | P92: 0 | Q92: 1 | R92: 0 | S92: 0 | T92: 0 | U92: 0 | V92: 2 | W92: 0 | X92: 0 | Y92: 0 | Z92: 0 | AA92: 0 | AB92: 0 | AC92: 1 | AD92: 0 | AE92: 0 | AF92: 0 | AG92: 0 | AH92: 0 | AI92: 0 | AJ92: 0 | AK92: 0 | AL92: 0 | AM92: 0 | AN92: 0 | AO92: 0 | AP92: 0 | AQ92: 0 | AR92: 0 | AS92: 0 | AT92: 0 | AU92: 0 | AV92: 0 | AW92: 2 | AX92: 0 | AY92: 0 | AZ92: 0 | BA92: 0 | BB92: 0 | BC92: 0 | BD92: 0 | BE92: 0 | BF92: 0 | BG92: 0 | BH92: 0 | BI92: 1 | BJ92: 0 | BK92: 0 | BL92: 0 | BM92: 0 | BN92: 0 | BO92: 0 | BP92: 0 | BQ92: 0 | BR92: 0 | BS92: 0 | BT92: 0 | BU92: 0 | BV92: 0 | BW92: 0 | BX92: 0 | BY92: 0 | BZ92: 0 | CA92: 0 | CB92: 0 | CC92: 0 | CD92: 0 | CE92: 0 | CF92: 0 | CG92: 0 | CH92: 0 | CI92: 0 | CJ92: 0 | CK92: 0 | CL92: 0 | CM92: 0 | CN92: 0 | CO92: 0 | CP92: 0 | CQ92: 0 | CR92: 0 | CS92: 0 | CT92: 0 | CU92: 0 | CV92: 0 | CW92: 0 | CX92: 0 | CY92: 0 | CZ92: 0 | DA92: 0 | DB92: 0 | DC92: 0 | DD92: 0 | DE92: 0 | DF92: 0 | DG92: 0 | DH92: 0 | DI92: 0 | DJ92: 0
C93: > 33 kV & < = 66 kV ; Air Insulated Isolators / Earth Switch | D93: 40 | E93: 6.3 | F93: 0 | G93: 0 | H93: 0 | I93: 0 | J93: 0 | K93: 1 | L93: 0 | M93: 0 | N93: 0 | O93: 4 | P93: 1 | Q93: 0 | R93: 1 | S93: 0 | T93: 0 | U93: 0 | V93: 0 | W93: 0 | X93: 1 | Y93: 0 | Z93: 0 | AA93: 0 | AB93: 0 | AC93: 0 | AD93: 0 | AE93: 0 | AF93: 0 | AG93: 0 | AH93: 0 | AI93: 0 | AJ93: 0 | AK93: 0 | AL93: 0 | AM93: 0 | AN93: 0 | AO93: 0 | AP93: 2 | AQ93: 0 | AR93: 0 | AS93: 0 | AT93: 0 | AU93: 0 | AV93: 0 | AW93: 0 | AX93: 0 | AY93: 0 | AZ93: 0 | BA93: 0 | BB93: 0 | BC93: 0 | BD93: 0 | BE93: 0 | BF93: 0 | BG93: 0 | BH93: 0 | BI93: 0 | BJ93: 0 | BK93: 0 | BL93: 0 | BM93: 0 | BN93: 0 | BO93: 0 | BP93: 0 | BQ93: 0 | BR93: 0 | BS93: 0 | BT93: 0 | BU93: 0 | BV93: 0 | BW93: 0 | BX93: 0 | BY93: 0 | BZ93: 0 | CA93: 0 | CB93: 0 | CC93: 0 | CD93: 0 | CE93: 0 | CF93: 0 | CG93: 0 | CH93: 0 | CI93: 0 | CJ93: 0 | CK93: 0 | CL93: 0 | CM93: 0 | CN93: 0 | CO93: 0 | CP93: 0 | CQ93: 0 | CR93: 0 | CS93: 0 | CT93: 0 | CU93: 0 | CV93: 0 | CW93: 0 | CX93: 0 | CY93: 0 | CZ93: 0 | DA93: 0 | DB93: 0 | DC93: 0 | DD93: 0 | DE93: 0 | DF93: 0 | DG93: 0 | DH93: 0 | DI93: 0 | DJ93: 0
C94: > 66 kV & < = 132 kV ; Air Insulated Isolators / Earth Switch | D94: 40 | E94: 6.3 | F94: 0 | G94: 2 | H94: 0 | I94: 0 | J94: 1 | K94: 2 | L94: 3 | M94: 5 | N94: 12 | O94: 10 | P94: 4 | Q94: 2 | R94: 4 | S94: 5 | T94: 5 | U94: 3 | V94: 2 | W94: 0 | X94: 0 | Y94: 0 | Z94: 3 | AA94: 1 | AB94: 0 | AC94: 1 | AD94: 0 | AE94: 1 | AF94: 1 | AG94: 1 | AH94: 1 | AI94: 1 | AJ94: 2 | AK94: 12 | AL94: 2 | AM94: 1 | AN94: 5 | AO94: 2 | AP94: 0 | AQ94: 0 | AR94: 1 | AS94: 5 | AT94: 2 | AU94: 2 | AV94: 0 | AW94: 1 | AX94: 0 | AY94: 0 | AZ94: 2 | BA94: 0 | BB94: 1 | BC94: 0 | BD94: 0 | BE94: 0 | BF94: 0 | BG94: 0 | BH94: 2 | BI94: 0 | BJ94: 0 | BK94: 0 | BL94: 0 | BM94: 0 | BN94: 0 | BO94: 0 | BP94: 0 | BQ94: 0 | BR94: 0 | BS94: 0 | BT94: 0 | BU94: 0 | BV94: 0 | BW94: 0 | BX94: 0 | BY94: 0 | BZ94: 0 | CA94: 0 | CB94: 0 | CC94: 0 | CD94: 0 | CE94: 0 | CF94: 0 | CG94: 0 | CH94: 0 | CI94: 0 | CJ94: 0 | CK94: 0 | CL94: 0 | CM94: 0 | CN94: 0 | CO94: 0 | CP94: 0 | CQ94: 0 | CR94: 0 | CS94: 0 | CT94: 0 | CU94: 0 | CV94: 0 | CW94: 0 | CX94: 0 | CY94: 0 | CZ94: 0 | DA94: 0 | DB94: 0 | DC94: 0 | DD94: 0 | DE94: 0 | DF94: 0 | DG94: 0 | DH94: 0 | DI94: 0 | DJ94: 0
C95: > 132 kV & < = 275 kV ; Air Insulated Isolators / Earth Switch | D95: 40 | E95: 6.3 | F95: 0 | G95: 0 | H95: 0 | I95: 0 | J95: 4 | K95: 0 | L95: 2 | M95: 0 | N95: 2 | O95: 13 | P95: 10 | Q95: 9 | R95: 4 | S95: 1 | T95: 0 | U95: 0 | V95: 1 | W95: 4 | X95: 0 | Y95: 1 | Z95: 0 | AA95: 0 | AB95: 0 | AC95: 0 | AD95: 3 | AE95: 0 | AF95: 0 | AG95: 0 | AH95: 0 | AI95: 0 | AJ95: 2 | AK95: 0 | AL95: 0 | AM95: 0 | AN95: 0 | AO95: 0 | AP95: 0 | AQ95: 0 | AR95: 0 | AS95: 0 | AT95: 0 | AU95: 0 | AV95: 1 | AW95: 0 | AX95: 0 | AY95: 0 | AZ95: 0 | BA95: 0 | BB95: 0 | BC95: 1 | BD95: 0 | BE95: 0 | BF95: 0 | BG95: 0 | BH95: 0 | BI95: 0 | BJ95: 0 | BK95: 0 | BL95: 0 | BM95: 0 | BN95: 0 | BO95: 0 | BP95: 0 | BQ95: 0 | BR95: 0 | BS95: 0 | BT95: 0 | BU95: 0 | BV95: 0 | BW95: 0 | BX95: 0 | BY95: 0 | BZ95: 0 | CA95: 0 | CB95: 0 | CC95: 0 | CD95: 0 | CE95: 0 | CF95: 0 | CG95: 0 | CH95: 0 | CI95: 0 | CJ95: 0 | CK95: 0 | CL95: 0 | CM95: 0 | CN95: 0 | CO95: 0 | CP95: 0 | CQ95: 0 | CR95: 0 | CS95: 0 | CT95: 0 | CU95: 0 | CV95: 0 | CW95: 0 | CX95: 0 | CY95: 0 | CZ95: 0 | DA95: 0 | DB95: 0 | DC95: 0 | DD95: 0 | DE95: 0 | DF95: 0 | DG95: 0 | DH95: 0 | DI95: 0 | DJ95: 0
C96: > 275 kV & < = 330 kV ; Air Insulated Isolators / Earth Switch | D96: 40 | E96: 6.3 | F96: 0 | G96: 0 | H96: 0 | I96: 0 | J96: 0 | K96: 0 | L96: 0 | M96: 0 | N96: 0 | O96: 2 | P96: 0 | Q96: 0 | R96: 0 | S96: 2 | T96: 0 | U96: 0 | V96: 0 | W96: 0 | X96: 0 | Y96: 0 | Z96: 0 | AA96: 0 | AB96: 0 | AC96: 0 | AD96: 0 | AE96: 0 | AF96: 0 | AG96: 0 | AH96: 0 | AI96: 0 | AJ96: 0 | AK96: 0 | AL96: 0 | AM96: 0 | AN96: 0 | AO96: 0 | AP96: 0 | AQ96: 0 | AR96: 0 | AS96: 0 | AT96: 0 | AU96: 0 | AV96: 0 | AW96: 0 | AX96: 0 | AY96: 0 | AZ96: 0 | BA96: 0 | BB96: 0 | BC96: 0 | BD96: 0 | BE96: 0 | BF96: 0 | BG96: 0 | BH96: 0 | BI96: 0 | BJ96: 0 | BK96: 0 | BL96: 0 | BM96: 0 | BN96: 0 | BO96: 0 | BP96: 0 | BQ96: 0 | BR96: 0 | BS96: 0 | BT96: 0 | BU96: 0 | BV96: 0 | BW96: 0 | BX96: 0 | BY96: 0 | BZ96: 0 | CA96: 0 | CB96: 0 | CC96: 0 | CD96: 0 | CE96: 0 | CF96: 0 | CG96: 0 | CH96: 0 | CI96: 0 | CJ96: 0 | CK96: 0 | CL96: 0 | CM96: 0 | CN96: 0 | CO96: 0 | CP96: 0 | CQ96: 0 | CR96: 0 | CS96: 0 | CT96: 0 | CU96: 0 | CV96: 0 | CW96: 0 | CX96: 0 | CY96: 0 | CZ96: 0 | DA96: 0 | DB96: 0 | DC96: 0 | DD96: 0 | DE96: 0 | DF96: 0 | DG96: 0 | DH96: 0 | DI96: 0 | DJ96: 0
C97: > 330 kV & < = 500 kV ; Air Insulated Isolators / Earth Switch | D97: 0 | E97: 0 | F97: 0 | G97: 0 | H97: 0 | I97: 0 | J97: 0 | K97: 0 | L97: 0 | M97: 0 | N97: 0 | O97: 0 | P97: 0 | Q97: 0 | R97: 0 | S97: 0 | T97: 0 | U97: 0 | V97: 0 | W97: 0 | X97: 0 | Y97: 0 | Z97: 0 | AA97: 0 | AB97: 0 | AC97: 0 | AD97: 0 | AE97: 0 | AF97: 0 | AG97: 0 | AH97: 0 | AI97: 0 | AJ97: 0 | AK97: 0 | AL97: 0 | AM97: 0 | AN97: 0 | AO97: 0 | AP97: 0 | AQ97: 0 | AR97: 0 | AS97: 0 | AT97: 0 | AU97: 0 | AV97: 0 | AW97: 0 | AX97: 0 | AY97: 0 | AZ97: 0 | BA97: 0 | BB97: 0 | BC97: 0 | BD97: 0 | BE97: 0 | BF97: 0 | BG97: 0 | BH97: 0 | BI97: 0 | BJ97: 0 | BK97: 0 | BL97: 0 | BM97: 0 | BN97: 0 | BO97: 0 | BP97: 0 | BQ97: 0 | BR97: 0 | BS97: 0 | BT97: 0 | BU97: 0 | BV97: 0 | BW97: 0 | BX97: 0 | BY97: 0 | BZ97: 0 | CA97: 0 | CB97: 0 | CC97: 0 | CD97: 0 | CE97: 0 | CF97: 0 | CG97: 0 | CH97: 0 | CI97: 0 | CJ97: 0 | CK97: 0 | CL97: 0 | CM97: 0 | CN97: 0 | CO97: 0 | CP97: 0 | CQ97: 0 | CR97: 0 | CS97: 0 | CT97: 0 | CU97: 0 | CV97: 0 | CW97: 0 | CX97: 0 | CY97: 0 | CZ97: 0 | DA97: 0 | DB97: 0 | DC97: 0 | DD97: 0 | DE97: 0 | DF97: 0 | DG97: 0 | DH97: 0 | DI97: 0 | DJ97: 0
C98: > 500 kV ; Air Insulated Isolators / Earth Switch | D98: 0 | E98: 0 | F98: 0 | G98: 0 | H98: 0 | I98: 0 | J98: 0 | K98: 0 | L98: 0 | M98: 0 | N98: 0 | O98: 0 | P98: 0 | Q98: 0 | R98: 0 | S98: 0 | T98: 0 | U98: 0 | V98: 0 | W98: 0 | X98: 0 | Y98: 0 | Z98: 0 | AA98: 0 | AB98: 0 | AC98: 0 | AD98: 0 | AE98: 0 | AF98: 0 | AG98: 0 | AH98: 0 | AI98: 0 | AJ98: 0 | AK98: 0 | AL98: 0 | AM98: 0 | AN98: 0 | AO98: 0 | AP98: 0 | AQ98: 0 | AR98: 0 | AS98: 0 | AT98: 0 | AU98: 0 | AV98: 0 | AW98: 0 | AX98: 0 | AY98: 0 | AZ98: 0 | BA98: 0 | BB98: 0 | BC98: 0 | BD98: 0 | BE98: 0 | BF98: 0 | BG98: 0 | BH98: 0 | BI98: 0 | BJ98: 0 | BK98: 0 | BL98: 0 | BM98: 0 | BN98: 0 | BO98: 0 | BP98: 0 | BQ98: 0 | BR98: 0 | BS98: 0 | BT98: 0 | BU98: 0 | BV98: 0 | BW98: 0 | BX98: 0 | BY98: 0 | BZ98: 0 | CA98: 0 | CB98: 0 | CC98: 0 | CD98: 0 | CE98: 0 | CF98: 0 | CG98: 0 | CH98: 0 | CI98: 0 | CJ98: 0 | CK98: 0 | CL98: 0 | CM98: 0 | CN98: 0 | CO98: 0 | CP98: 0 | CQ98: 0 | CR98: 0 | CS98: 0 | CT98: 0 | CU98: 0 | CV98: 0 | CW98: 0 | CX98: 0 | CY98: 0 | CZ98: 0 | DA98: 0 | DB98: 0 | DC98: 0 | DD98: 0 | DE98: 0 | DF98: 0 | DG98: 0 | DH98: 0 | DI98: 0 | DJ98: 0
C99: < = 33 kV; VT | D99: 40 | E99: 6.3 | F99: 1 | G99: 1 | H99: 0 | I99: 0 | J99: 2 | K99: 0 | L99: 0 | M99: 0 | N99: 0 | O99: 0 | P99: 0 | Q99: 1 | R99: 0 | S99: 0 | T99: 0 | U99: 0 | V99: 1 | W99: 0 | X99: 0 | Y99: 0 | Z99: 0 | AA99: 0 | AB99: 0 | AC99: 0 | AD99: 0 | AE99: 0 | AF99: 0 | AG99: 0 | AH99: 0 | AI99: 0 | AJ99: 0 | AK99: 0 | AL99: 0 | AM99: 0 | AN99: 0 | AO99: 0 | AP99: 0 | AQ99: 0 | AR99: 0 | AS99: 0 | AT99: 0 | AU99: 0 | AV99: 0 | AW99: 0 | AX99: 0 | AY99: 0 | AZ99: 0 | BA99: 0 | BB99: 0 | BC99: 0 | BD99: 0 | BE99: 0 | BF99: 0 | BG99: 0 | BH99: 0 | BI99: 0 | BJ99: 0 | BK99: 0 | BL99: 0 | BM99: 0 | BN99: 0 | BO99: 0 | BP99: 0 | BQ99: 0 | BR99: 0 | BS99: 0 | BT99: 0 | BU99: 0 | BV99: 0 | BW99: 0 | BX99: 0 | BY99: 0 | BZ99: 0 | CA99: 0 | CB99: 0 | CC99: 0 | CD99: 0 | CE99: 0 | CF99: 0 | CG99: 0 | CH99: 0 | CI99: 0 | CJ99: 0 | CK99: 0 | CL99: 0 | CM99: 0 | CN99: 0 | CO99: 0 | CP99: 0 | CQ99: 0 | CR99: 0 | CS99: 0 | CT99: 0 | CU99: 0 | CV99: 0 | CW99: 0 | CX99: 0 | CY99: 0 | CZ99: 0 | DA99: 0 | DB99: 0 | DC99: 0 | DD99: 0 | DE99: 0 | DF99: 0 | DG99: 0 | DH99: 0 | DI99: 0 | DJ99: 0
C100: > 33 kV & < = 66 kV ; VT | D100: 40 | E100: 6.3 | F100: 1 | G100: 1 | H100: 0 | I100: 0 | J100: 0 | K100: 1 | L100: 0 | M100: 0 | N100: 0 | O100: 0 | P100: 0 | Q100: 1 | R100: 0 | S100: 0 | T100: 0 | U100: 0 | V100: 1 | W100: 0 | X100: 1 | Y100: 0 | Z100: 2 | AA100: 0 | AB100: 0 | AC100: 0 | AD100: 0 | AE100: 0 | AF100: 0 | AG100: 0 | AH100: 0 | AI100: 0 | AJ100: 0 | AK100: 0 | AL100: 0 | AM100: 1 | AN100: 0 | AO100: 0 | AP100: 0 | AQ100: 0 | AR100: 0 | AS100: 0 | AT100: 0 | AU100: 0 | AV100: 0 | AW100: 1 | AX100: 0 | AY100: 0 | AZ100: 0 | BA100: 0 | BB100: 0 | BC100: 0 | BD100: 0 | BE100: 0 | BF100: 0 | BG100: 0 | BH100: 0 | BI100: 0 | BJ100: 0 | BK100: 0 | BL100: 0 | BM100: 0 | BN100: 0 | BO100: 0 | BP100: 0 | BQ100: 0 | BR100: 0 | BS100: 0 | BT100: 0 | BU100: 0 | BV100: 0 | BW100: 0 | BX100: 0 | BY100: 0 | BZ100: 0 | CA100: 0 | CB100: 0 | CC100: 0 | CD100: 0 | CE100: 0 | CF100: 0 | CG100: 0 | CH100: 0 | CI100: 0 | CJ100: 0 | CK100: 0 | CL100: 0 | CM100: 0 | CN100: 0 | CO100: 0 | CP100: 0 | CQ100: 0 | CR100: 0 | CS100: 0 | CT100: 0 | CU100: 0 | CV100: 0 | CW100: 0 | CX100: 0 | CY100: 0 | CZ100: 0 | DA100: 0 | DB100: 0 | DC100: 0 | DD100: 0 | DE100: 0 | DF100: 0 | DG100: 0 | DH100: 0 | DI100: 0 | DJ100: 0
C101: > 66 kV & < = 132 kV ; VT | D101: 40 | E101: 6.3 | F101: 0 | G101: 0 | H101: 0 | I101: 1 | J101: 2 | K101: 1 | L101: 0 | M101: 0 | N101: 0 | O101: 1 | P101: 0 | Q101: 1 | R101: 0 | S101: 0 | T101: 0 | U101: 0 | V101: 0 | W101: 0 | X101: 0 | Y101: 0 | Z101: 0 | AA101: 0 | AB101: 0 | AC101: 0 | AD101: 0 | AE101: 0 | AF101: 0 | AG101: 0 | AH101: 0 | AI101: 0 | AJ101: 2 | AK101: 4 | AL101: 0 | AM101: 3 | AN101: 0 | AO101: 0 | AP101: 0 | AQ101: 0 | AR101: 0 | AS101: 0 | AT101: 0 | AU101: 0 | AV101: 0 | AW101: 0 | AX101: 0 | AY101: 0 | AZ101: 0 | BA101: 0 | BB101: 0 | BC101: 0 | BD101: 0 | BE101: 0 | BF101: 0 | BG101: 0 | BH101: 0 | BI101: 0 | BJ101: 0 | BK101: 0 | BL101: 0 | BM101: 0 | BN101: 0 | BO101: 0 | BP101: 0 | BQ101: 0 | BR101: 0 | BS101: 0 | BT101: 0 | BU101: 0 | BV101: 0 | BW101: 0 | BX101: 0 | BY101: 0 | BZ101: 0 | CA101: 0 | CB101: 0 | CC101: 0 | CD101: 0 | CE101: 0 | CF101: 0 | CG101: 0 | CH101: 0 | CI101: 0 | CJ101: 0 | CK101: 0 | CL101: 0 | CM101: 0 | CN101: 0 | CO101: 0 | CP101: 0 | CQ101: 0 | CR101: 0 | CS101: 0 | CT101: 0 | CU101: 0 | CV101: 0 | CW101: 0 | CX101: 0 | CY101: 0 | CZ101: 0 | DA101: 0 | DB101: 0 | DC101: 0 | DD101: 0 | DE101: 0 | DF101: 0 | DG101: 0 | DH101: 0 | DI101: 0 | DJ101: 0
C102: > 132 kV & < = 275 kV ; VT | D102: 40 | E102: 6.3 | F102: 0 | G102: 0 | H102: 1 | I102: 0 | J102: 1 | K102: 0 | L102: 0 | M102: 0 | N102: 0 | O102: 2 | P102: 0 | Q102: 0 | R102: 0 | S102: 0 | T102: 0 | U102: 0 | V102: 0 | W102: 0 | X102: 0 | Y102: 0 | Z102: 0 | AA102: 0 | AB102: 0 | AC102: 0 | AD102: 0 | AE102: 0 | AF102: 0 | AG102: 0 | AH102: 0 | AI102: 0 | AJ102: 0 | AK102: 0 | AL102: 0 | AM102: 0 | AN102: 0 | AO102: 0 | AP102: 0 | AQ102: 0 | AR102: 0 | AS102: 0 | AT102: 0 | AU102: 0 | AV102: 0 | AW102: 0 | AX102: 0 | AY102: 0 | AZ102: 0 | BA102: 0 | BB102: 0 | BC102: 0 | BD102: 0 | BE102: 0 | BF102: 0 | BG102: 0 | BH102: 0 | BI102: 0 | BJ102: 0 | BK102: 0 | BL102: 0 | BM102: 0 | BN102: 0 | BO102: 0 | BP102: 0 | BQ102: 0 | BR102: 0 | BS102: 0 | BT102: 0 | BU102: 0 | BV102: 0 | BW102: 0 | BX102: 0 | BY102: 0 | BZ102: 0 | CA102: 0 | CB102: 0 | CC102: 0 | CD102: 0 | CE102: 0 | CF102: 0 | CG102: 0 | CH102: 0 | CI102: 0 | CJ102: 0 | CK102: 0 | CL102: 0 | CM102: 0 | CN102: 0 | CO102: 0 | CP102: 0 | CQ102: 0 | CR102: 0 | CS102: 0 | CT102: 0 | CU102: 0 | CV102: 0 | CW102: 0 | CX102: 0 | CY102: 0 | CZ102: 0 | DA102: 0 | DB102: 0 | DC102: 0 | DD102: 0 | DE102: 0 | DF102: 0 | DG102: 0 | DH102: 0 | DI102: 0 | DJ102: 0
C103: > 275 kV & < = 330 kV ; VT | D103: 0 | E103: 0 | F103: 0 | G103: 0 | H103: 0 | I103: 0 | J103: 0 | K103: 0 | L103: 0 | M103: 0 | N103: 0 | O103: 0 | P103: 0 | Q103: 0 | R103: 0 | S103: 0 | T103: 0 | U103: 0 | V103: 0 | W103: 0 | X103: 0 | Y103: 0 | Z103: 0 | AA103: 0 | AB103: 0 | AC103: 0 | AD103: 0 | AE103: 0 | AF103: 0 | AG103: 0 | AH103: 0 | AI103: 0 | AJ103: 0 | AK103: 0 | AL103: 0 | AM103: 0 | AN103: 0 | AO103: 0 | AP103: 0 | AQ103: 0 | AR103: 0 | AS103: 0 | AT103: 0 | AU103: 0 | AV103: 0 | AW103: 0 | AX103: 0 | AY103: 0 | AZ103: 0 | BA103: 0 | BB103: 0 | BC103: 0 | BD103: 0 | BE103: 0 | BF103: 0 | BG103: 0 | BH103: 0 | BI103: 0 | BJ103: 0 | BK103: 0 | BL103: 0 | BM103: 0 | BN103: 0 | BO103: 0 | BP103: 0 | BQ103: 0 | BR103: 0 | BS103: 0 | BT103: 0 | BU103: 0 | BV103: 0 | BW103: 0 | BX103: 0 | BY103: 0 | BZ103: 0 | CA103: 0 | CB103: 0 | CC103: 0 | CD103: 0 | CE103: 0 | CF103: 0 | CG103: 0 | CH103: 0 | CI103: 0 | CJ103: 0 | CK103: 0 | CL103: 0 | CM103: 0 | CN103: 0 | CO103: 0 | CP103: 0 | CQ103: 0 | CR103: 0 | CS103: 0 | CT103: 0 | CU103: 0 | CV103: 0 | CW103: 0 | CX103: 0 | CY103: 0 | CZ103: 0 | DA103: 0 | DB103: 0 | DC103: 0 | DD103: 0 | DE103: 0 | DF103: 0 | DG103: 0 | DH103: 0 | DI103: 0 | DJ103: 0
C104: > 330 kV & < = 500 kV ; VT | D104: 0 | E104: 0 | F104: 0 | G104: 0 | H104: 0 | I104: 0 | J104: 0 | K104: 0 | L104: 0 | M104: 0 | N104: 0 | O104: 0 | P104: 0 | Q104: 0 | R104: 0 | S104: 0 | T104: 0 | U104: 0 | V104: 0 | W104: 0 | X104: 0 | Y104: 0 | Z104: 0 | AA104: 0 | AB104: 0 | AC104: 0 | AD104: 0 | AE104: 0 | AF104: 0 | AG104: 0 | AH104: 0 | AI104: 0 | AJ104: 0 | AK104: 0 | AL104: 0 | AM104: 0 | AN104: 0 | AO104: 0 | AP104: 0 | AQ104: 0 | AR104: 0 | AS104: 0 | AT104: 0 | AU104: 0 | AV104: 0 | AW104: 0 | AX104: 0 | AY104: 0 | AZ104: 0 | BA104: 0 | BB104: 0 | BC104: 0 | BD104: 0 | BE104: 0 | BF104: 0 | BG104: 0 | BH104: 0 | BI104: 0 | BJ104: 0 | BK104: 0 | BL104: 0 | BM104: 0 | BN104: 0 | BO104: 0 | BP104: 0 | BQ104: 0 | BR104: 0 | BS104: 0 | BT104: 0 | BU104: 0 | BV104: 0 | BW104: 0 | BX104: 0 | BY104: 0 | BZ104: 0 | CA104: 0 | CB104: 0 | CC104: 0 | CD104: 0 | CE104: 0 | CF104: 0 | CG104: 0 | CH104: 0 | CI104: 0 | CJ104: 0 | CK104: 0 | CL104: 0 | CM104: 0 | CN104: 0 | CO104: 0 | CP104: 0 | CQ104: 0 | CR104: 0 | CS104: 0 | CT104: 0 | CU104: 0 | CV104: 0 | CW104: 0 | CX104: 0 | CY104: 0 | CZ104: 0 | DA104: 0 | DB104: 0 | DC104: 0 | DD104: 0 | DE104: 0 | DF104: 0 | DG104: 0 | DH104: 0 | DI104: 0 | DJ104: 0
C105: > 500 kV ; VT | D105: 0 | E105: 0 | F105: 0 | G105: 0 | H105: 0 | I105: 0 | J105: 0 | K105: 0 | L105: 0 | M105: 0 | N105: 0 | O105: 0 | P105: 0 | Q105: 0 | R105: 0 | S105: 0 | T105: 0 | U105: 0 | V105: 0 | W105: 0 | X105: 0 | Y105: 0 | Z105: 0 | AA105: 0 | AB105: 0 | AC105: 0 | AD105: 0 | AE105: 0 | AF105: 0 | AG105: 0 | AH105: 0 | AI105: 0 | AJ105: 0 | AK105: 0 | AL105: 0 | AM105: 0 | AN105: 0 | AO105: 0 | AP105: 0 | AQ105: 0 | AR105: 0 | AS105: 0 | AT105: 0 | AU105: 0 | AV105: 0 | AW105: 0 | AX105: 0 | AY105: 0 | AZ105: 0 | BA105: 0 | BB105: 0 | BC105: 0 | BD105: 0 | BE105: 0 | BF105: 0 | BG105: 0 | BH105: 0 | BI105: 0 | BJ105: 0 | BK105: 0 | BL105: 0 | BM105: 0 | BN105: 0 | BO105: 0 | BP105: 0 | BQ105: 0 | BR105: 0 | BS105: 0 | BT105: 0 | BU105: 0 | BV105: 0 | BW105: 0 | BX105: 0 | BY105: 0 | BZ105: 0 | CA105: 0 | CB105: 0 | CC105: 0 | CD105: 0 | CE105: 0 | CF105: 0 | CG105: 0 | CH105: 0 | CI105: 0 | CJ105: 0 | CK105: 0 | CL105: 0 | CM105: 0 | CN105: 0 | CO105: 0 | CP105: 0 | CQ105: 0 | CR105: 0 | CS105: 0 | CT105: 0 | CU105: 0 | CV105: 0 | CW105: 0 | CX105: 0 | CY105: 0 | CZ105: 0 | DA105: 0 | DB105: 0 | DC105: 0 | DD105: 0 | DE105: 0 | DF105: 0 | DG105: 0 | DH105: 0 | DI105: 0 | DJ105: 0
C106: < = 33 kV; CT | D106: 40 | E106: 6.3 | F106: 0 | G106: 0 | H106: 0 | I106: 0 | J106: 0 | K106: 2 | L106: 0 | M106: 0 | N106: 0 | O106: 0 | P106: 0 | Q106: 0 | R106: 0 | S106: 0 | T106: 0 | U106: 0 | V106: 0 | W106: 0 | X106: 0 | Y106: 0 | Z106: 0 | AA106: 0 | AB106: 0 | AC106: 0 | AD106: 0 | AE106: 0 | AF106: 0 | AG106: 0 | AH106: 0 | AI106: 0 | AJ106: 0 | AK106: 0 | AL106: 0 | AM106: 0 | AN106: 0 | AO106: 0 | AP106: 0 | AQ106: 0 | AR106: 0 | AS106: 0 | AT106: 0 | AU106: 0 | AV106: 0 | AW106: 0 | AX106: 0 | AY106: 2 | AZ106: 0 | BA106: 0 | BB106: 0 | BC106: 0 | BD106: 0 | BE106: 0 | BF106: 0 | BG106: 0 | BH106: 0 | BI106: 0 | BJ106: 0 | BK106: 0 | BL106: 0 | BM106: 0 | BN106: 0 | BO106: 0 | BP106: 0 | BQ106: 0 | BR106: 0 | BS106: 0 | BT106: 0 | BU106: 0 | BV106: 0 | BW106: 0 | BX106: 0 | BY106: 0 | BZ106: 0 | CA106: 0 | CB106: 0 | CC106: 0 | CD106: 0 | CE106: 0 | CF106: 0 | CG106: 0 | CH106: 0 | CI106: 0 | CJ106: 0 | CK106: 0 | CL106: 0 | CM106: 0 | CN106: 0 | CO106: 0 | CP106: 0 | CQ106: 0 | CR106: 0 | CS106: 0 | CT106: 0 | CU106: 0 | CV106: 0 | CW106: 0 | CX106: 0 | CY106: 0 | CZ106: 0 | DA106: 0 | DB106: 0 | DC106: 0 | DD106: 0 | DE106: 0 | DF106: 0 | DG106: 0 | DH106: 0 | DI106: 0 | DJ106: 0
C107: > 33 kV & < = 66 kV ; CT | D107: 40 | E107: 6.3 | F107: 0 | G107: 0 | H107: 0 | I107: 0 | J107: 0 | K107: 0 | L107: 0 | M107: 0 | N107: 0 | O107: 0 | P107: 0 | Q107: 0 | R107: 0 | S107: 0 | T107: 0 | U107: 0 | V107: 0 | W107: 0 | X107: 1 | Y107: 1 | Z107: 0 | AA107: 0 | AB107: 0 | AC107: 0 | AD107: 0 | AE107: 0 | AF107: 0 | AG107: 0 | AH107: 0 | AI107: 0 | AJ107: 0 | AK107: 0 | AL107: 0 | AM107: 0 | AN107: 0 | AO107: 0 | AP107: 0 | AQ107: 0 | AR107: 0 | AS107: 0 | AT107: 0 | AU107: 0 | AV107: 0 | AW107: 1 | AX107: 1 | AY107: 0 | AZ107: 0 | BA107: 0 | BB107: 0 | BC107: 0 | BD107: 0 | BE107: 0 | BF107: 0 | BG107: 0 | BH107: 0 | BI107: 0 | BJ107: 0 | BK107: 0 | BL107: 0 | BM107: 0 | BN107: 0 | BO107: 0 | BP107: 0 | BQ107: 0 | BR107: 0 | BS107: 0 | BT107: 0 | BU107: 0 | BV107: 0 | BW107: 0 | BX107: 0 | BY107: 0 | BZ107: 0 | CA107: 0 | CB107: 0 | CC107: 0 | CD107: 0 | CE107: 0 | CF107: 0 | CG107: 0 | CH107: 0 | CI107: 0 | CJ107: 0 | CK107: 0 | CL107: 0 | CM107: 0 | CN107: 0 | CO107: 0 | CP107: 0 | CQ107: 0 | CR107: 0 | CS107: 0 | CT107: 0 | CU107: 0 | CV107: 0 | CW107: 0 | CX107: 0 | CY107: 0 | CZ107: 0 | DA107: 0 | DB107: 0 | DC107: 0 | DD107: 0 | DE107: 0 | DF107: 0 | DG107: 0 | DH107: 0 | DI107: 0 | DJ107: 0
C108: > 66 kV & < = 132 kV ; CT | D108: 0 | E108: 0 | F108: 0 | G108: 0 | H108: 0 | I108: 0 | J108: 0 | K108: 0 | L108: 0 | M108: 0 | N108: 0 | O108: 0 | P108: 0 | Q108: 0 | R108: 0 | S108: 0 | T108: 0 | U108: 0 | V108: 0 | W108: 0 | X108: 0 | Y108: 0 | Z108: 0 | AA108: 0 | AB108: 0 | AC108: 0 | AD108: 0 | AE108: 0 | AF108: 0 | AG108: 0 | AH108: 0 | AI108: 0 | AJ108: 0 | AK108: 0 | AL108: 0 | AM108: 0 | AN108: 0 | AO108: 0 | AP108: 0 | AQ108: 0 | AR108: 0 | AS108: 0 | AT108: 0 | AU108: 0 | AV108: 0 | AW108: 0 | AX108: 0 | AY108: 0 | AZ108: 0 | BA108: 0 | BB108: 0 | BC108: 0 | BD108: 0 | BE108: 0 | BF108: 0 | BG108: 0 | BH108: 0 | BI108: 0 | BJ108: 0 | BK108: 0 | BL108: 0 | BM108: 0 | BN108: 0 | BO108: 0 | BP108: 0 | BQ108: 0 | BR108: 0 | BS108: 0 | BT108: 0 | BU108: 0 | BV108: 0 | BW108: 0 | BX108: 0 | BY108: 0 | BZ108: 0 | CA108: 0 | CB108: 0 | CC108: 0 | CD108: 0 | CE108: 0 | CF108: 0 | CG108: 0 | CH108: 0 | CI108: 0 | CJ108: 0 | CK108: 0 | CL108: 0 | CM108: 0 | CN108: 0 | CO108: 0 | CP108: 0 | CQ108: 0 | CR108: 0 | CS108: 0 | CT108: 0 | CU108: 0 | CV108: 0 | CW108: 0 | CX108: 0 | CY108: 0 | CZ108: 0 | DA108: 0 | DB108: 0 | DC108: 0 | DD108: 0 | DE108: 0 | DF108: 0 | DG108: 0 | DH108: 0 | DI108: 0 | DJ108: 0
C109: > 132 kV & < = 275 kV ; CT | D109: 40 | E109: 6.3 | F109: 0 | G109: 0 | H109: 0 | I109: 0 | J109: 0 | K109: 0 | L109: 2 | M109: 0 | N109: 0 | O109: 0 | P109: 0 | Q109: 0 | R109: 0 | S109: 0 | T109: 0 | U109: 0 | V109: 0 | W109: 0 | X109: 0 | Y109: 0 | Z109: 0 | AA109: 0 | AB109: 0 | AC109: 0 | AD109: 0 | AE109: 0 | AF109: 0 | AG109: 0 | AH109: 0 | AI109: 0 | AJ109: 0 | AK109: 0 | AL109: 0 | AM109: 0 | AN109: 0 | AO109: 0 | AP109: 0 | AQ109: 0 | AR109: 0 | AS109: 0 | AT109: 0 | AU109: 0 | AV109: 0 | AW109: 0 | AX109: 0 | AY109: 0 | AZ109: 0 | BA109: 0 | BB109: 0 | BC109: 0 | BD109: 0 | BE109: 0 | BF109: 0 | BG109: 0 | BH109: 0 | BI109: 0 | BJ109: 0 | BK109: 0 | BL109: 0 | BM109: 0 | BN109: 0 | BO109: 0 | BP109: 0 | BQ109: 0 | BR109: 0 | BS109: 0 | BT109: 0 | BU109: 0 | BV109: 0 | BW109: 0 | BX109: 0 | BY109: 0 | BZ109: 0 | CA109: 0 | CB109: 0 | CC109: 0 | CD109: 0 | CE109: 0 | CF109: 0 | CG109: 0 | CH109: 0 | CI109: 0 | CJ109: 0 | CK109: 0 | CL109: 0 | CM109: 0 | CN109: 0 | CO109: 0 | CP109: 0 | CQ109: 0 | CR109: 0 | CS109: 0 | CT109: 0 | CU109: 0 | CV109: 0 | CW109: 0 | CX109: 0 | CY109: 0 | CZ109: 0 | DA109: 0 | DB109: 0 | DC109: 0 | DD109: 0 | DE109: 0 | DF109: 0 | DG109: 0 | DH109: 0 | DI109: 0 | DJ109: 0
C110: > 275 kV & < = 330 kV ; CT | D110: 0 | E110: 0 | F110: 0 | G110: 0 | H110: 0 | I110: 0 | J110: 0 | K110: 0 | L110: 0 | M110: 0 | N110: 0 | O110: 0 | P110: 0 | Q110: 0 | R110: 0 | S110: 0 | T110: 0 | U110: 0 | V110: 0 | W110: 0 | X110: 0 | Y110: 0 | Z110: 0 | AA110: 0 | AB110: 0 | AC110: 0 | AD110: 0 | AE110: 0 | AF110: 0 | AG110: 0 | AH110: 0 | AI110: 0 | AJ110: 0 | AK110: 0 | AL110: 0 | AM110: 0 | AN110: 0 | AO110: 0 | AP110: 0 | AQ110: 0 | AR110: 0 | AS110: 0 | AT110: 0 | AU110: 0 | AV110: 0 | AW110: 0 | AX110: 0 | AY110: 0 | AZ110: 0 | BA110: 0 | BB110: 0 | BC110: 0 | BD110: 0 | BE110: 0 | BF110: 0 | BG110: 0 | BH110: 0 | BI110: 0 | BJ110: 0 | BK110: 0 | BL110: 0 | BM110: 0 | BN110: 0 | BO110: 0 | BP110: 0 | BQ110: 0 | BR110: 0 | BS110: 0 | BT110: 0 | BU110: 0 | BV110: 0 | BW110: 0 | BX110: 0 | BY110: 0 | BZ110: 0 | CA110: 0 | CB110: 0 | CC110: 0 | CD110: 0 | CE110: 0 | CF110: 0 | CG110: 0 | CH110: 0 | CI110: 0 | CJ110: 0 | CK110: 0 | CL110: 0 | CM110: 0 | CN110: 0 | CO110: 0 | CP110: 0 | CQ110: 0 | CR110: 0 | CS110: 0 | CT110: 0 | CU110: 0 | CV110: 0 | CW110: 0 | CX110: 0 | CY110: 0 | CZ110: 0 | DA110: 0 | DB110: 0 | DC110: 0 | DD110: 0 | DE110: 0 | DF110: 0 | DG110: 0 | DH110: 0 | DI110: 0 | DJ110: 0
C111: > 330 kV & < = 500 kV ; CT | D111: 0 | E111: 0 | F111: 0 | G111: 0 | H111: 0 | I111: 0 | J111: 0 | K111: 0 | L111: 0 | M111: 0 | N111: 0 | O111: 0 | P111: 0 | Q111: 0 | R111: 0 | S111: 0 | T111: 0 | U111: 0 | V111: 0 | W111: 0 | X111: 0 | Y111: 0 | Z111: 0 | AA111: 0 | AB111: 0 | AC111: 0 | AD111: 0 | AE111: 0 | AF111: 0 | AG111: 0 | AH111: 0 | AI111: 0 | AJ111: 0 | AK111: 0 | AL111: 0 | AM111: 0 | AN111: 0 | AO111: 0 | AP111: 0 | AQ111: 0 | AR111: 0 | AS111: 0 | AT111: 0 | AU111: 0 | AV111: 0 | AW111: 0 | AX111: 0 | AY111: 0 | AZ111: 0 | BA111: 0 | BB111: 0 | BC111: 0 | BD111: 0 | BE111: 0 | BF111: 0 | BG111: 0 | BH111: 0 | BI111: 0 | BJ111: 0 | BK111: 0 | BL111: 0 | BM111: 0 | BN111: 0 | BO111: 0 | BP111: 0 | BQ111: 0 | BR111: 0 | BS111: 0 | BT111: 0 | BU111: 0 | BV111: 0 | BW111: 0 | BX111: 0 | BY111: 0 | BZ111: 0 | CA111: 0 | CB111: 0 | CC111: 0 | CD111: 0 | CE111: 0 | CF111: 0 | CG111: 0 | CH111: 0 | CI111: 0 | CJ111: 0 | CK111: 0 | CL111: 0 | CM111: 0 | CN111: 0 | CO111: 0 | CP111: 0 | CQ111: 0 | CR111: 0 | CS111: 0 | CT111: 0 | CU111: 0 | CV111: 0 | CW111: 0 | CX111: 0 | CY111: 0 | CZ111: 0 | DA111: 0 | DB111: 0 | DC111: 0 | DD111: 0 | DE111: 0 | DF111: 0 | DG111: 0 | DH111: 0 | DI111: 0 | DJ111: 0
C112: > 500 kV ; CT | D112: 0 | E112: 0 | F112: 0 | G112: 0 | H112: 0 | I112: 0 | J112: 0 | K112: 0 | L112: 0 | M112: 0 | N112: 0 | O112: 0 | P112: 0 | Q112: 0 | R112: 0 | S112: 0 | T112: 0 | U112: 0 | V112: 0 | W112: 0 | X112: 0 | Y112: 0 | Z112: 0 | AA112: 0 | AB112: 0 | AC112: 0 | AD112: 0 | AE112: 0 | AF112: 0 | AG112: 0 | AH112: 0 | AI112: 0 | AJ112: 0 | AK112: 0 | AL112: 0 | AM112: 0 | AN112: 0 | AO112: 0 | AP112: 0 | AQ112: 0 | AR112: 0 | AS112: 0 | AT112: 0 | AU112: 0 | AV112: 0 | AW112: 0 | AX112: 0 | AY112: 0 | AZ112: 0 | BA112: 0 | BB112: 0 | BC112: 0 | BD112: 0 | BE112: 0 | BF112: 0 | BG112: 0 | BH112: 0 | BI112: 0 | BJ112: 0 | BK112: 0 | BL112: 0 | BM112: 0 | BN112: 0 | BO112: 0 | BP112: 0 | BQ112: 0 | BR112: 0 | BS112: 0 | BT112: 0 | BU112: 0 | BV112: 0 | BW112: 0 | BX112: 0 | BY112: 0 | BZ112: 0 | CA112: 0 | CB112: 0 | CC112: 0 | CD112: 0 | CE112: 0 | CF112: 0 | CG112: 0 | CH112: 0 | CI112: 0 | CJ112: 0 | CK112: 0 | CL112: 0 | CM112: 0 | CN112: 0 | CO112: 0 | CP112: 0 | CQ112: 0 | CR112: 0 | CS112: 0 | CT112: 0 | CU112: 0 | CV112: 0 | CW112: 0 | CX112: 0 | CY112: 0 | CZ112: 0 | DA112: 0 | DB112: 0 | DC112: 0 | DD112: 0 | DE112: 0 | DF112: 0 | DG112: 0 | DH112: 0 | DI112: 0 | DJ112: 0
C113: < = 33 kV; GIS Module | D113: 0 | E113: 0 | F113: 0 | G113: 0 | H113: 0 | I113: 0 | J113: 0 | K113: 0 | L113: 0 | M113: 0 | N113: 0 | O113: 0 | P113: 0 | Q113: 0 | R113: 0 | S113: 0 | T113: 0 | U113: 0 | V113: 0 | W113: 0 | X113: 0 | Y113: 0 | Z113: 0 | AA113: 0 | AB113: 0 | AC113: 0 | AD113: 0 | AE113: 0 | AF113: 0 | AG113: 0 | AH113: 0 | AI113: 0 | AJ113: 0 | AK113: 0 | AL113: 0 | AM113: 0 | AN113: 0 | AO113: 0 | AP113: 0 | AQ113: 0 | AR113: 0 | AS113: 0 | AT113: 0 | AU113: 0 | AV113: 0 | AW113: 0 | AX113: 0 | AY113: 0 | AZ113: 0 | BA113: 0 | BB113: 0 | BC113: 0 | BD113: 0 | BE113: 0 | BF113: 0 | BG113: 0 | BH113: 0 | BI113: 0 | BJ113: 0 | BK113: 0 | BL113: 0 | BM113: 0 | BN113: 0 | BO113: 0 | BP113: 0 | BQ113: 0 | BR113: 0 | BS113: 0 | BT113: 0 | BU113: 0 | BV113: 0 | BW113: 0 | BX113: 0 | BY113: 0 | BZ113: 0 | CA113: 0 | CB113: 0 | CC113: 0 | CD113: 0 | CE113: 0 | CF113: 0 | CG113: 0 | CH113: 0 | CI113: 0 | CJ113: 0 | CK113: 0 | CL113: 0 | CM113: 0 | CN113: 0 | CO113: 0 | CP113: 0 | CQ113: 0 | CR113: 0 | CS113: 0 | CT113: 0 | CU113: 0 | CV113: 0 | CW113: 0 | CX113: 0 | CY113: 0 | CZ113: 0 | DA113: 0 | DB113: 0 | DC113: 0 | DD113: 0 | DE113: 0 | DF113: 0 | DG113: 0 | DH113: 0 | DI113: 0 | DJ113: 0
C114: > 33 kV & < = 66 kV ; GIS Module | D114: 0 | E114: 0 | F114: 0 | G114: 0 | H114: 0 | I114: 0 | J114: 0 | K114: 0 | L114: 0 | M114: 0 | N114: 0 | O114: 0 | P114: 0 | Q114: 0 | R114: 0 | S114: 0 | T114: 0 | U114: 0 | V114: 0 | W114: 0 | X114: 0 | Y114: 0 | Z114: 0 | AA114: 0 | AB114: 0 | AC114: 0 | AD114: 0 | AE114: 0 | AF114: 0 | AG114: 0 | AH114: 0 | AI114: 0 | AJ114: 0 | AK114: 0 | AL114: 0 | AM114: 0 | AN114: 0 | AO114: 0 | AP114: 0 | AQ114: 0 | AR114: 0 | AS114: 0 | AT114: 0 | AU114: 0 | AV114: 0 | AW114: 0 | AX114: 0 | AY114: 0 | AZ114: 0 | BA114: 0 | BB114: 0 | BC114: 0 | BD114: 0 | BE114: 0 | BF114: 0 | BG114: 0 | BH114: 0 | BI114: 0 | BJ114: 0 | BK114: 0 | BL114: 0 | BM114: 0 | BN114: 0 | BO114: 0 | BP114: 0 | BQ114: 0 | BR114: 0 | BS114: 0 | BT114: 0 | BU114: 0 | BV114: 0 | BW114: 0 | BX114: 0 | BY114: 0 | BZ114: 0 | CA114: 0 | CB114: 0 | CC114: 0 | CD114: 0 | CE114: 0 | CF114: 0 | CG114: 0 | CH114: 0 | CI114: 0 | CJ114: 0 | CK114: 0 | CL114: 0 | CM114: 0 | CN114: 0 | CO114: 0 | CP114: 0 | CQ114: 0 | CR114: 0 | CS114: 0 | CT114: 0 | CU114: 0 | CV114: 0 | CW114: 0 | CX114: 0 | CY114: 0 | CZ114: 0 | DA114: 0 | DB114: 0 | DC114: 0 | DD114: 0 | DE114: 0 | DF114: 0 | DG114: 0 | DH114: 0 | DI114: 0 | DJ114: 0
C115: > 66 kV & < = 132 kV ; GIS Module | D115: 40 | E115: 6.3 | F115: 0 | G115: 0 | H115: 0 | I115: 0 | J115: 0 | K115: 0 | L115: 0 | M115: 0 | N115: 1 | O115: 1 | P115: 4 | Q115: 40 | R115: 10 | S115: 14 | T115: 4 | U115: 27 | V115: 29 | W115: 24 | X115: 0 | Y115: 0 | Z115: 0 | AA115: 0 | AB115: 0 | AC115: 0 | AD115: 0 | AE115: 0 | AF115: 0 | AG115: 0 | AH115: 0 | AI115: 0 | AJ115: 0 | AK115: 0 | AL115: 0 | AM115: 0 | AN115: 0 | AO115: 0 | AP115: 0 | AQ115: 0 | AR115: 0 | AS115: 0 | AT115: 0 | AU115: 0 | AV115: 0 | AW115: 0 | AX115: 0 | AY115: 0 | AZ115: 0 | BA115: 0 | BB115: 0 | BC115: 0 | BD115: 0 | BE115: 0 | BF115: 0 | BG115: 0 | BH115: 0 | BI115: 0 | BJ115: 0 | BK115: 0 | BL115: 0 | BM115: 0 | BN115: 0 | BO115: 0 | BP115: 0 | BQ115: 0 | BR115: 0 | BS115: 0 | BT115: 0 | BU115: 0 | BV115: 0 | BW115: 0 | BX115: 0 | BY115: 0 | BZ115: 0 | CA115: 0 | CB115: 0 | CC115: 0 | CD115: 0 | CE115: 0 | CF115: 0 | CG115: 0 | CH115: 0 | CI115: 0 | CJ115: 0 | CK115: 0 | CL115: 0 | CM115: 0 | CN115: 0 | CO115: 0 | CP115: 0 | CQ115: 0 | CR115: 0 | CS115: 0 | CT115: 0 | CU115: 0 | CV115: 0 | CW115: 0 | CX115: 0 | CY115: 0 | CZ115: 0 | DA115: 0 | DB115: 0 | DC115: 0 | DD115: 0 | DE115: 0 | DF115: 0 | DG115: 0 | DH115: 0 | DI115: 0 | DJ115: 0
C116: > 132 kV & < = 275 kV ; GIS Module | D116: 40 | E116: 6.3 | F116: 0 | G116: 0 | H116: 0 | I116: 0 | J116: 0 | K116: 0 | L116: 0 | M116: 0 | N116: 0 | O116: 0 | P116: 0 | Q116: 0 | R116: 0 | S116: 0 | T116: 0 | U116: 2 | V116: 9 | W116: 10 | X116: 18 | Y116: 0 | Z116: 0 | AA116: 0 | AB116: 0 | AC116: 0 | AD116: 0 | AE116: 0 | AF116: 0 | AG116: 0 | AH116: 0 | AI116: 0 | AJ116: 0 | AK116: 0 | AL116: 0 | AM116: 0 | AN116: 0 | AO116: 0 | AP116: 0 | AQ116: 0 | AR116: 0 | AS116: 0 | AT116: 0 | AU116: 0 | AV116: 0 | AW116: 0 | AX116: 0 | AY116: 0 | AZ116: 0 | BA116: 0 | BB116: 0 | BC116: 0 | BD116: 0 | BE116: 0 | BF116: 0 | BG116: 0 | BH116: 0 | BI116: 0 | BJ116: 0 | BK116: 0 | BL116: 0 | BM116: 0 | BN116: 0 | BO116: 0 | BP116: 0 | BQ116: 0 | BR116: 0 | BS116: 0 | BT116: 0 | BU116: 0 | BV116: 0 | BW116: 0 | BX116: 0 | BY116: 0 | BZ116: 0 | CA116: 0 | CB116: 0 | CC116: 0 | CD116: 0 | CE116: 0 | CF116: 0 | CG116: 0 | CH116: 0 | CI116: 0 | CJ116: 0 | CK116: 0 | CL116: 0 | CM116: 0 | CN116: 0 | CO116: 0 | CP116: 0 | CQ116: 0 | CR116: 0 | CS116: 0 | CT116: 0 | CU116: 0 | CV116: 0 | CW116: 0 | CX116: 0 | CY116: 0 | CZ116: 0 | DA116: 0 | DB116: 0 | DC116: 0 | DD116: 0 | DE116: 0 | DF116: 0 | DG116: 0 | DH116: 0 | DI116: 0 | DJ116: 0
C117: > 275 kV & < = 330 kV ; GIS Module | D117: 40 | E117: 6.3 | F117: 0 | G117: 0 | H117: 0 | I117: 0 | J117: 0 | K117: 0 | L117: 0 | M117: 0 | N117: 0 | O117: 0 | P117: 0 | Q117: 0 | R117: 0 | S117: 0 | T117: 0 | U117: 0 | V117: 0 | W117: 13 | X117: 0 | Y117: 0 | Z117: 0 | AA117: 0 | AB117: 0 | AC117: 0 | AD117: 0 | AE117: 0 | AF117: 0 | AG117: 0 | AH117: 0 | AI117: 0 | AJ117: 0 | AK117: 0 | AL117: 0 | AM117: 0 | AN117: 0 | AO117: 0 | AP117: 0 | AQ117: 0 | AR117: 0 | AS117: 0 | AT117: 0 | AU117: 0 | AV117: 0 | AW117: 0 | AX117: 0 | AY117: 0 | AZ117: 0 | BA117: 0 | BB117: 0 | BC117: 0 | BD117: 0 | BE117: 0 | BF117: 0 | BG117: 0 | BH117: 0 | BI117: 0 | BJ117: 0 | BK117: 0 | BL117: 0 | BM117: 0 | BN117: 0 | BO117: 0 | BP117: 0 | BQ117: 0 | BR117: 0 | BS117: 0 | BT117: 0 | BU117: 0 | BV117: 0 | BW117: 0 | BX117: 0 | BY117: 0 | BZ117: 0 | CA117: 0 | CB117: 0 | CC117: 0 | CD117: 0 | CE117: 0 | CF117: 0 | CG117: 0 | CH117: 0 | CI117: 0 | CJ117: 0 | CK117: 0 | CL117: 0 | CM117: 0 | CN117: 0 | CO117: 0 | CP117: 0 | CQ117: 0 | CR117: 0 | CS117: 0 | CT117: 0 | CU117: 0 | CV117: 0 | CW117: 0 | CX117: 0 | CY117: 0 | CZ117: 0 | DA117: 0 | DB117: 0 | DC117: 0 | DD117: 0 | DE117: 0 | DF117: 0 | DG117: 0 | DH117: 0 | DI117: 0 | DJ117: 0
C118: > 330 kV & < = 500 kV ; GIS Module | D118: 0 | E118: 0 | F118: 0 | G118: 0 | H118: 0 | I118: 0 | J118: 0 | K118: 0 | L118: 0 | M118: 0 | N118: 0 | O118: 0 | P118: 0 | Q118: 0 | R118: 0 | S118: 0 | T118: 0 | U118: 0 | V118: 0 | W118: 0 | X118: 0 | Y118: 0 | Z118: 0 | AA118: 0 | AB118: 0 | AC118: 0 | AD118: 0 | AE118: 0 | AF118: 0 | AG118: 0 | AH118: 0 | AI118: 0 | AJ118: 0 | AK118: 0 | AL118: 0 | AM118: 0 | AN118: 0 | AO118: 0 | AP118: 0 | AQ118: 0 | AR118: 0 | AS118: 0 | AT118: 0 | AU118: 0 | AV118: 0 | AW118: 0 | AX118: 0 | AY118: 0 | AZ118: 0 | BA118: 0 | BB118: 0 | BC118: 0 | BD118: 0 | BE118: 0 | BF118: 0 | BG118: 0 | BH118: 0 | BI118: 0 | BJ118: 0 | BK118: 0 | BL118: 0 | BM118: 0 | BN118: 0 | BO118: 0 | BP118: 0 | BQ118: 0 | BR118: 0 | BS118: 0 | BT118: 0 | BU118: 0 | BV118: 0 | BW118: 0 | BX118: 0 | BY118: 0 | BZ118: 0 | CA118: 0 | CB118: 0 | CC118: 0 | CD118: 0 | CE118: 0 | CF118: 0 | CG118: 0 | CH118: 0 | CI118: 0 | CJ118: 0 | CK118: 0 | CL118: 0 | CM118: 0 | CN118: 0 | CO118: 0 | CP118: 0 | CQ118: 0 | CR118: 0 | CS118: 0 | CT118: 0 | CU118: 0 | CV118: 0 | CW118: 0 | CX118: 0 | CY118: 0 | CZ118: 0 | DA118: 0 | DB118: 0 | DC118: 0 | DD118: 0 | DE118: 0 | DF118: 0 | DG118: 0 | DH118: 0 | DI118: 0 | DJ118: 0
C119: > 500 kV ; GIS Module | D119: 0 | E119: 0 | F119: 0 | G119: 0 | H119: 0 | I119: 0 | J119: 0 | K119: 0 | L119: 0 | M119: 0 | N119: 0 | O119: 0 | P119: 0 | Q119: 0 | R119: 0 | S119: 0 | T119: 0 | U119: 0 | V119: 0 | W119: 0 | X119: 0 | Y119: 0 | Z119: 0 | AA119: 0 | AB119: 0 | AC119: 0 | AD119: 0 | AE119: 0 | AF119: 0 | AG119: 0 | AH119: 0 | AI119: 0 | AJ119: 0 | AK119: 0 | AL119: 0 | AM119: 0 | AN119: 0 | AO119: 0 | AP119: 0 | AQ119: 0 | AR119: 0 | AS119: 0 | AT119: 0 | AU119: 0 | AV119: 0 | AW119: 0 | AX119: 0 | AY119: 0 | AZ119: 0 | BA119: 0 | BB119: 0 | BC119: 0 | BD119: 0 | BE119: 0 | BF119: 0 | BG119: 0 | BH119: 0 | BI119: 0 | BJ119: 0 | BK119: 0 | BL119: 0 | BM119: 0 | BN119: 0 | BO119: 0 | BP119: 0 | BQ119: 0 | BR119: 0 | BS119: 0 | BT119: 0 | BU119: 0 | BV119: 0 | BW119: 0 | BX119: 0 | BY119: 0 | BZ119: 0 | CA119: 0 | CB119: 0 | CC119: 0 | CD119: 0 | CE119: 0 | CF119: 0 | CG119: 0 | CH119: 0 | CI119: 0 | CJ119: 0 | CK119: 0 | CL119: 0 | CM119: 0 | CN119: 0 | CO119: 0 | CP119: 0 | CQ119: 0 | CR119: 0 | CS119: 0 | CT119: 0 | CU119: 0 | CV119: 0 | CW119: 0 | CX119: 0 | CY119: 0 | CZ119: 0 | DA119: 0 | DB119: 0 | DC119: 0 | DD119: 0 | DE119: 0 | DF119: 0 | DG119: 0 | DH119: 0 | DI119: 0 | DJ119: 0
C120: Other
B121: SUBSTATION POWER TRANSFORMERS BY: Highest operating voltage; Ampere rating | C121: < = 33 kV ; < = 10 MVA | D121: 0 | E121: 0 | F121: 0 | G121: 0 | H121: 0 | I121: 0 | J121: 0 | K121: 0 | L121: 0 | M121: 0 | N121: 0 | O121: 0 | P121: 0 | Q121: 0 | R121: 0 | S121: 0 | T121: 0 | U121: 0 | V121: 0 | W121: 0 | X121: 0 | Y121: 0 | Z121: 0 | AA121: 0 | AB121: 0 | AC121: 0 | AD121: 0 | AE121: 0 | AF121: 0 | AG121: 0 | AH121: 0 | AI121: 0 | AJ121: 0 | AK121: 0 | AL121: 0 | AM121: 0 | AN121: 0 | AO121: 0 | AP121: 0 | AQ121: 0 | AR121: 0 | AS121: 0 | AT121: 0 | AU121: 0 | AV121: 0 | AW121: 0 | AX121: 0 | AY121: 0 | AZ121: 0 | BA121: 0 | BB121: 0 | BC121: 0 | BD121: 0 | BE121: 0 | BF121: 0 | BG121: 0 | BH121: 0 | BI121: 0 | BJ121: 0 | BK121: 0 | BL121: 0 | BM121: 0 | BN121: 0 | BO121: 0 | BP121: 0 | BQ121: 0 | BR121: 0 | BS121: 0 | BT121: 0 | BU121: 0 | BV121: 0 | BW121: 0 | BX121: 0 | BY121: 0 | BZ121: 0 | CA121: 0 | CB121: 0 | CC121: 0 | CD121: 0 | CE121: 0 | CF121: 0 | CG121: 0 | CH121: 0 | CI121: 0 | CJ121: 0 | CK121: 0 | CL121: 0 | CM121: 0 | CN121: 0 | CO121: 0 | CP121: 0 | CQ121: 0 | CR121: 0 | CS121: 0 | CT121: 0 | CU121: 0 | CV121: 0 | CW121: 0 | CX121: 0 | CY121: 0 | CZ121: 0 | DA121: 0 | DB121: 0 | DC121: 0 | DD121: 0 | DE121: 0 | DF121: 0 | DG121: 0 | DH121: 0 | DI121: 0 | DJ121: 0
C122: < = 33 kV ; > 10 MVA & < = 30 MVA | D122: 0 | E122: 0 | F122: 0 | G122: 0 | H122: 0 | I122: 0 | J122: 0 | K122: 0 | L122: 0 | M122: 0 | N122: 0 | O122: 0 | P122: 0 | Q122: 0 | R122: 0 | S122: 0 | T122: 0 | U122: 0 | V122: 0 | W122: 0 | X122: 0 | Y122: 0 | Z122: 0 | AA122: 0 | AB122: 0 | AC122: 0 | AD122: 0 | AE122: 0 | AF122: 0 | AG122: 0 | AH122: 0 | AI122: 0 | AJ122: 0 | AK122: 0 | AL122: 0 | AM122: 0 | AN122: 0 | AO122: 0 | AP122: 0 | AQ122: 0 | AR122: 0 | AS122: 0 | AT122: 0 | AU122: 0 | AV122: 0 | AW122: 0 | AX122: 0 | AY122: 0 | AZ122: 0 | BA122: 0 | BB122: 0 | BC122: 0 | BD122: 0 | BE122: 0 | BF122: 0 | BG122: 0 | BH122: 0 | BI122: 0 | BJ122: 0 | BK122: 0 | BL122: 0 | BM122: 0 | BN122: 0 | BO122: 0 | BP122: 0 | BQ122: 0 | BR122: 0 | BS122: 0 | BT122: 0 | BU122: 0 | BV122: 0 | BW122: 0 | BX122: 0 | BY122: 0 | BZ122: 0 | CA122: 0 | CB122: 0 | CC122: 0 | CD122: 0 | CE122: 0 | CF122: 0 | CG122: 0 | CH122: 0 | CI122: 0 | CJ122: 0 | CK122: 0 | CL122: 0 | CM122: 0 | CN122: 0 | CO122: 0 | CP122: 0 | CQ122: 0 | CR122: 0 | CS122: 0 | CT122: 0 | CU122: 0 | CV122: 0 | CW122: 0 | CX122: 0 | CY122: 0 | CZ122: 0 | DA122: 0 | DB122: 0 | DC122: 0 | DD122: 0 | DE122: 0 | DF122: 0 | DG122: 0 | DH122: 0 | DI122: 0 | DJ122: 0
C123: < = 33 kV ; > 30 MVA | D123: 0 | E123: 0 | F123: 0 | G123: 0 | H123: 0 | I123: 0 | J123: 0 | K123: 0 | L123: 0 | M123: 0 | N123: 0 | O123: 0 | P123: 0 | Q123: 0 | R123: 0 | S123: 0 | T123: 0 | U123: 0 | V123: 0 | W123: 0 | X123: 0 | Y123: 0 | Z123: 0 | AA123: 0 | AB123: 0 | AC123: 0 | AD123: 0 | AE123: 0 | AF123: 0 | AG123: 0 | AH123: 0 | AI123: 0 | AJ123: 0 | AK123: 0 | AL123: 0 | AM123: 0 | AN123: 0 | AO123: 0 | AP123: 0 | AQ123: 0 | AR123: 0 | AS123: 0 | AT123: 0 | AU123: 0 | AV123: 0 | AW123: 0 | AX123: 0 | AY123: 0 | AZ123: 0 | BA123: 0 | BB123: 0 | BC123: 0 | BD123: 0 | BE123: 0 | BF123: 0 | BG123: 0 | BH123: 0 | BI123: 0 | BJ123: 0 | BK123: 0 | BL123: 0 | BM123: 0 | BN123: 0 | BO123: 0 | BP123: 0 | BQ123: 0 | BR123: 0 | BS123: 0 | BT123: 0 | BU123: 0 | BV123: 0 | BW123: 0 | BX123: 0 | BY123: 0 | BZ123: 0 | CA123: 0 | CB123: 0 | CC123: 0 | CD123: 0 | CE123: 0 | CF123: 0 | CG123: 0 | CH123: 0 | CI123: 0 | CJ123: 0 | CK123: 0 | CL123: 0 | CM123: 0 | CN123: 0 | CO123: 0 | CP123: 0 | CQ123: 0 | CR123: 0 | CS123: 0 | CT123: 0 | CU123: 0 | CV123: 0 | CW123: 0 | CX123: 0 | CY123: 0 | CZ123: 0 | DA123: 0 | DB123: 0 | DC123: 0 | DD123: 0 | DE123: 0 | DF123: 0 | DG123: 0 | DH123: 0 | DI123: 0 | DJ123: 0
C124: > 33 kV & < = 66 kV ; < = 10 MVA | D124: 0 | E124: 0 | F124: 0 | G124: 0 | H124: 0 | I124: 0 | J124: 0 | K124: 0 | L124: 0 | M124: 0 | N124: 0 | O124: 0 | P124: 0 | Q124: 0 | R124: 0 | S124: 0 | T124: 0 | U124: 0 | V124: 0 | W124: 0 | X124: 0 | Y124: 0 | Z124: 0 | AA124: 0 | AB124: 0 | AC124: 0 | AD124: 0 | AE124: 0 | AF124: 0 | AG124: 0 | AH124: 0 | AI124: 0 | AJ124: 0 | AK124: 0 | AL124: 0 | AM124: 0 | AN124: 0 | AO124: 0 | AP124: 0 | AQ124: 0 | AR124: 0 | AS124: 0 | AT124: 0 | AU124: 0 | AV124: 0 | AW124: 0 | AX124: 0 | AY124: 0 | AZ124: 0 | BA124: 0 | BB124: 0 | BC124: 0 | BD124: 0 | BE124: 0 | BF124: 0 | BG124: 0 | BH124: 0 | BI124: 0 | BJ124: 0 | BK124: 0 | BL124: 0 | BM124: 0 | BN124: 0 | BO124: 0 | BP124: 0 | BQ124: 0 | BR124: 0 | BS124: 0 | BT124: 0 | BU124: 0 | BV124: 0 | BW124: 0 | BX124: 0 | BY124: 0 | BZ124: 0 | CA124: 0 | CB124: 0 | CC124: 0 | CD124: 0 | CE124: 0 | CF124: 0 | CG124: 0 | CH124: 0 | CI124: 0 | CJ124: 0 | CK124: 0 | CL124: 0 | CM124: 0 | CN124: 0 | CO124: 0 | CP124: 0 | CQ124: 0 | CR124: 0 | CS124: 0 | CT124: 0 | CU124: 0 | CV124: 0 | CW124: 0 | CX124: 0 | CY124: 0 | CZ124: 0 | DA124: 0 | DB124: 0 | DC124: 0 | DD124: 0 | DE124: 0 | DF124: 0 | DG124: 0 | DH124: 0 | DI124: 0 | DJ124: 0
C125: > 33 kV & < = 66 kV ; > 10 MVA & < = 30 MVA | D125: 0 | E125: 0 | F125: 0 | G125: 0 | H125: 0 | I125: 0 | J125: 0 | K125: 0 | L125: 0 | M125: 0 | N125: 0 | O125: 0 | P125: 0 | Q125: 0 | R125: 0 | S125: 0 | T125: 0 | U125: 0 | V125: 0 | W125: 0 | X125: 0 | Y125: 0 | Z125: 0 | AA125: 0 | AB125: 0 | AC125: 0 | AD125: 0 | AE125: 0 | AF125: 0 | AG125: 0 | AH125: 0 | AI125: 0 | AJ125: 0 | AK125: 0 | AL125: 0 | AM125: 0 | AN125: 0 | AO125: 0 | AP125: 0 | AQ125: 0 | AR125: 0 | AS125: 0 | AT125: 0 | AU125: 0 | AV125: 0 | AW125: 0 | AX125: 0 | AY125: 0 | AZ125: 0 | BA125: 0 | BB125: 0 | BC125: 0 | BD125: 0 | BE125: 0 | BF125: 0 | BG125: 0 | BH125: 0 | BI125: 0 | BJ125: 0 | BK125: 0 | BL125: 0 | BM125: 0 | BN125: 0 | BO125: 0 | BP125: 0 | BQ125: 0 | BR125: 0 | BS125: 0 | BT125: 0 | BU125: 0 | BV125: 0 | BW125: 0 | BX125: 0 | BY125: 0 | BZ125: 0 | CA125: 0 | CB125: 0 | CC125: 0 | CD125: 0 | CE125: 0 | CF125: 0 | CG125: 0 | CH125: 0 | CI125: 0 | CJ125: 0 | CK125: 0 | CL125: 0 | CM125: 0 | CN125: 0 | CO125: 0 | CP125: 0 | CQ125: 0 | CR125: 0 | CS125: 0 | CT125: 0 | CU125: 0 | CV125: 0 | CW125: 0 | CX125: 0 | CY125: 0 | CZ125: 0 | DA125: 0 | DB125: 0 | DC125: 0 | DD125: 0 | DE125: 0 | DF125: 0 | DG125: 0 | DH125: 0 | DI125: 0 | DJ125: 0
C126: > 33 kV & < = 66 kV ; > 30 MVA | D126: 0 | E126: 0 | F126: 0 | G126: 0 | H126: 0 | I126: 0 | J126: 0 | K126: 0 | L126: 0 | M126: 0 | N126: 0 | O126: 0 | P126: 0 | Q126: 0 | R126: 0 | S126: 0 | T126: 0 | U126: 0 | V126: 0 | W126: 0 | X126: 0 | Y126: 0 | Z126: 0 | AA126: 0 | AB126: 0 | AC126: 0 | AD126: 0 | AE126: 0 | AF126: 0 | AG126: 0 | AH126: 0 | AI126: 0 | AJ126: 0 | AK126: 0 | AL126: 0 | AM126: 0 | AN126: 0 | AO126: 0 | AP126: 0 | AQ126: 0 | AR126: 0 | AS126: 0 | AT126: 0 | AU126: 0 | AV126: 0 | AW126: 0 | AX126: 0 | AY126: 0 | AZ126: 0 | BA126: 0 | BB126: 0 | BC126: 0 | BD126: 0 | BE126: 0 | BF126: 0 | BG126: 0 | BH126: 0 | BI126: 0 | BJ126: 0 | BK126: 0 | BL126: 0 | BM126: 0 | BN126: 0 | BO126: 0 | BP126: 0 | BQ126: 0 | BR126: 0 | BS126: 0 | BT126: 0 | BU126: 0 | BV126: 0 | BW126: 0 | BX126: 0 | BY126: 0 | BZ126: 0 | CA126: 0 | CB126: 0 | CC126: 0 | CD126: 0 | CE126: 0 | CF126: 0 | CG126: 0 | CH126: 0 | CI126: 0 | CJ126: 0 | CK126: 0 | CL126: 0 | CM126: 0 | CN126: 0 | CO126: 0 | CP126: 0 | CQ126: 0 | CR126: 0 | CS126: 0 | CT126: 0 | CU126: 0 | CV126: 0 | CW126: 0 | CX126: 0 | CY126: 0 | CZ126: 0 | DA126: 0 | DB126: 0 | DC126: 0 | DD126: 0 | DE126: 0 | DF126: 0 | DG126: 0 | DH126: 0 | DI126: 0 | DJ126: 0
C127: > 66 kV & < = 132 kV ; < = 30 MVA | D127: 40 | E127: 6.3 | F127: 0 | G127: 0 | H127: 0 | I127: 2 | J127: 0 | K127: 0 | L127: 0 | M127: 0 | N127: 0 | O127: 1 | P127: 0 | Q127: 0 | R127: 0 | S127: 0 | T127: 0 | U127: 0 | V127: 0 | W127: 1 | X127: 0 | Y127: 0 | Z127: 0 | AA127: 0 | AB127: 0 | AC127: 0 | AD127: 0 | AE127: 0 | AF127: 0 | AG127: 0 | AH127: 0 | AI127: 0 | AJ127: 1 | AK127: 2 | AL127: 2 | AM127: 0 | AN127: 1 | AO127: 1 | AP127: 0 | AQ127: 0 | AR127: 0 | AS127: 0 | AT127: 0 | AU127: 1 | AV127: 0 | AW127: 0 | AX127: 0 | AY127: 0 | AZ127: 0 | BA127: 0 | BB127: 0 | BC127: 0 | BD127: 0 | BE127: 0 | BF127: 1 | BG127: 1 | BH127: 1 | BI127: 0 | BJ127: 0 | BK127: 0 | BL127: 0 | BM127: 0 | BN127: 0 | BO127: 0 | BP127: 0 | BQ127: 0 | BR127: 0 | BS127: 0 | BT127: 0 | BU127: 0 | BV127: 0 | BW127: 0 | BX127: 0 | BY127: 0 | BZ127: 0 | CA127: 0 | CB127: 0 | CC127: 0 | CD127: 0 | CE127: 0 | CF127: 0 | CG127: 0 | CH127: 0 | CI127: 0 | CJ127: 0 | CK127: 0 | CL127: 0 | CM127: 0 | CN127: 0 | CO127: 0 | CP127: 0 | CQ127: 0 | CR127: 0 | CS127: 0 | CT127: 0 | CU127: 0 | CV127: 0 | CW127: 0 | CX127: 0 | CY127: 0 | CZ127: 0 | DA127: 0 | DB127: 0 | DC127: 0 | DD127: 0 | DE127: 0 | DF127: 0 | DG127: 0 | DH127: 0 | DI127: 0 | DJ127: 0
C128: > 66 kV & < = 132 kV ; > 30 MVA & < = 60 MVA | D128: 40 | E128: 6.3 | F128: 0 | G128: 0 | H128: 0 | I128: 0 | J128: 1 | K128: 0 | L128: 0 | M128: 0 | N128: 0 | O128: 0 | P128: 0 | Q128: 1 | R128: 0 | S128: 0 | T128: 0 | U128: 2 | V128: 0 | W128: 0 | X128: 1 | Y128: 0 | Z128: 1 | AA128: 2 | AB128: 0 | AC128: 3 | AD128: 0 | AE128: 0 | AF128: 1 | AG128: 1 | AH128: 0 | AI128: 0 | AJ128: 0 | AK128: 5 | AL128: 4 | AM128: 1 | AN128: 0 | AO128: 2 | AP128: 0 | AQ128: 0 | AR128: 0 | AS128: 0 | AT128: 1 | AU128: 0 | AV128: 0 | AW128: 0 | AX128: 0 | AY128: 0 | AZ128: 0 | BA128: 0 | BB128: 0 | BC128: 0 | BD128: 0 | BE128: 0 | BF128: 0 | BG128: 0 | BH128: 0 | BI128: 0 | BJ128: 0 | BK128: 0 | BL128: 0 | BM128: 0 | BN128: 0 | BO128: 0 | BP128: 0 | BQ128: 0 | BR128: 0 | BS128: 0 | BT128: 0 | BU128: 0 | BV128: 0 | BW128: 0 | BX128: 0 | BY128: 0 | BZ128: 0 | CA128: 0 | CB128: 0 | CC128: 0 | CD128: 0 | CE128: 0 | CF128: 0 | CG128: 0 | CH128: 0 | CI128: 0 | CJ128: 0 | CK128: 0 | CL128: 0 | CM128: 0 | CN128: 0 | CO128: 0 | CP128: 0 | CQ128: 0 | CR128: 0 | CS128: 0 | CT128: 0 | CU128: 0 | CV128: 0 | CW128: 0 | CX128: 0 | CY128: 0 | CZ128: 0 | DA128: 0 | DB128: 0 | DC128: 0 | DD128: 0 | DE128: 0 | DF128: 0 | DG128: 0 | DH128: 0 | DI128: 0 | DJ128: 0
C129: > 66 kV & < = 132 kV ; > 60 MVA | D129: 40 | E129: 6.3 | F129: 0 | G129: 0 | H129: 0 | I129: 1 | J129: 4 | K129: 4 | L129: 2 | M129: 4 | N129: 2 | O129: 8 | P129: 5 | Q129: 7 | R129: 3 | S129: 3 | T129: 1 | U129: 5 | V129: 3 | W129: 4 | X129: 4 | Y129: 1 | Z129: 4 | AA129: 2 | AB129: 0 | AC129: 0 | AD129: 0 | AE129: 0 | AF129: 0 | AG129: 1 | AH129: 0 | AI129: 0 | AJ129: 0 | AK129: 0 | AL129: 0 | AM129: 0 | AN129: 0 | AO129: 0 | AP129: 1 | AQ129: 0 | AR129: 2 | AS129: 1 | AT129: 4 | AU129: 0 | AV129: 0 | AW129: 1 | AX129: 0 | AY129: 2 | AZ129: 0 | BA129: 0 | BB129: 0 | BC129: 0 | BD129: 0 | BE129: 0 | BF129: 0 | BG129: 0 | BH129: 0 | BI129: 0 | BJ129: 0 | BK129: 0 | BL129: 0 | BM129: 0 | BN129: 0 | BO129: 0 | BP129: 0 | BQ129: 0 | BR129: 0 | BS129: 0 | BT129: 0 | BU129: 0 | BV129: 0 | BW129: 0 | BX129: 0 | BY129: 0 | BZ129: 0 | CA129: 0 | CB129: 0 | CC129: 0 | CD129: 0 | CE129: 0 | CF129: 0 | CG129: 0 | CH129: 0 | CI129: 0 | CJ129: 0 | CK129: 0 | CL129: 0 | CM129: 0 | CN129: 0 | CO129: 0 | CP129: 0 | CQ129: 0 | CR129: 0 | CS129: 0 | CT129: 0 | CU129: 0 | CV129: 0 | CW129: 0 | CX129: 0 | CY129: 0 | CZ129: 0 | DA129: 0 | DB129: 0 | DC129: 0 | DD129: 0 | DE129: 0 | DF129: 0 | DG129: 0 | DH129: 0 | DI129: 0 | DJ129: 0
C130: > 132 kV & < = 220 kV ; < = 50 MVA | D130: 0 | E130: 0 | F130: 0 | G130: 0 | H130: 0 | I130: 0 | J130: 0 | K130: 0 | L130: 0 | M130: 0 | N130: 0 | O130: 0 | P130: 0 | Q130: 0 | R130: 0 | S130: 0 | T130: 0 | U130: 0 | V130: 0 | W130: 0 | X130: 0 | Y130: 0 | Z130: 0 | AA130: 0 | AB130: 0 | AC130: 0 | AD130: 0 | AE130: 0 | AF130: 0 | AG130: 0 | AH130: 0 | AI130: 0 | AJ130: 0 | AK130: 0 | AL130: 0 | AM130: 0 | AN130: 0 | AO130: 0 | AP130: 0 | AQ130: 0 | AR130: 0 | AS130: 0 | AT130: 0 | AU130: 0 | AV130: 0 | AW130: 0 | AX130: 0 | AY130: 0 | AZ130: 0 | BA130: 0 | BB130: 0 | BC130: 0 | BD130: 0 | BE130: 0 | BF130: 0 | BG130: 0 | BH130: 0 | BI130: 0 | BJ130: 0 | BK130: 0 | BL130: 0 | BM130: 0 | BN130: 0 | BO130: 0 | BP130: 0 | BQ130: 0 | BR130: 0 | BS130: 0 | BT130: 0 | BU130: 0 | BV130: 0 | BW130: 0 | BX130: 0 | BY130: 0 | BZ130: 0 | CA130: 0 | CB130: 0 | CC130: 0 | CD130: 0 | CE130: 0 | CF130: 0 | CG130: 0 | CH130: 0 | CI130: 0 | CJ130: 0 | CK130: 0 | CL130: 0 | CM130: 0 | CN130: 0 | CO130: 0 | CP130: 0 | CQ130: 0 | CR130: 0 | CS130: 0 | CT130: 0 | CU130: 0 | CV130: 0 | CW130: 0 | CX130: 0 | CY130: 0 | CZ130: 0 | DA130: 0 | DB130: 0 | DC130: 0 | DD130: 0 | DE130: 0 | DF130: 0 | DG130: 0 | DH130: 0 | DI130: 0 | DJ130: 0
C131: > 132 kV & < = 220 kV ; > 50 MVA & < = 100 MVA | D131: 0 | E131: 0 | F131: 0 | G131: 0 | H131: 0 | I131: 0 | J131: 0 | K131: 0 | L131: 0 | M131: 0 | N131: 0 | O131: 0 | P131: 0 | Q131: 0 | R131: 0 | S131: 0 | T131: 0 | U131: 0 | V131: 0 | W131: 0 | X131: 0 | Y131: 0 | Z131: 0 | AA131: 0 | AB131: 0 | AC131: 0 | AD131: 0 | AE131: 0 | AF131: 0 | AG131: 0 | AH131: 0 | AI131: 0 | AJ131: 0 | AK131: 0 | AL131: 0 | AM131: 0 | AN131: 0 | AO131: 0 | AP131: 0 | AQ131: 0 | AR131: 0 | AS131: 0 | AT131: 0 | AU131: 0 | AV131: 0 | AW131: 0 | AX131: 0 | AY131: 0 | AZ131: 0 | BA131: 0 | BB131: 0 | BC131: 0 | BD131: 0 | BE131: 0 | BF131: 0 | BG131: 0 | BH131: 0 | BI131: 0 | BJ131: 0 | BK131: 0 | BL131: 0 | BM131: 0 | BN131: 0 | BO131: 0 | BP131: 0 | BQ131: 0 | BR131: 0 | BS131: 0 | BT131: 0 | BU131: 0 | BV131: 0 | BW131: 0 | BX131: 0 | BY131: 0 | BZ131: 0 | CA131: 0 | CB131: 0 | CC131: 0 | CD131: 0 | CE131: 0 | CF131: 0 | CG131: 0 | CH131: 0 | CI131: 0 | CJ131: 0 | CK131: 0 | CL131: 0 | CM131: 0 | CN131: 0 | CO131: 0 | CP131: 0 | CQ131: 0 | CR131: 0 | CS131: 0 | CT131: 0 | CU131: 0 | CV131: 0 | CW131: 0 | CX131: 0 | CY131: 0 | CZ131: 0 | DA131: 0 | DB131: 0 | DC131: 0 | DD131: 0 | DE131: 0 | DF131: 0 | DG131: 0 | DH131: 0 | DI131: 0 | DJ131: 0
C132: > 132 kV & < = 220 kV ; > 100 MVA | D132: 0 | E132: 0 | F132: 0 | G132: 0 | H132: 0 | I132: 0 | J132: 0 | K132: 0 | L132: 0 | M132: 0 | N132: 0 | O132: 0 | P132: 0 | Q132: 0 | R132: 0 | S132: 0 | T132: 0 | U132: 0 | V132: 0 | W132: 0 | X132: 0 | Y132: 0 | Z132: 0 | AA132: 0 | AB132: 0 | AC132: 0 | AD132: 0 | AE132: 0 | AF132: 0 | AG132: 0 | AH132: 0 | AI132: 0 | AJ132: 0 | AK132: 0 | AL132: 0 | AM132: 0 | AN132: 0 | AO132: 0 | AP132: 0 | AQ132: 0 | AR132: 0 | AS132: 0 | AT132: 0 | AU132: 0 | AV132: 0 | AW132: 0 | AX132: 0 | AY132: 0 | AZ132: 0 | BA132: 0 | BB132: 0 | BC132: 0 | BD132: 0 | BE132: 0 | BF132: 0 | BG132: 0 | BH132: 0 | BI132: 0 | BJ132: 0 | BK132: 0 | BL132: 0 | BM132: 0 | BN132: 0 | BO132: 0 | BP132: 0 | BQ132: 0 | BR132: 0 | BS132: 0 | BT132: 0 | BU132: 0 | BV132: 0 | BW132: 0 | BX132: 0 | BY132: 0 | BZ132: 0 | CA132: 0 | CB132: 0 | CC132: 0 | CD132: 0 | CE132: 0 | CF132: 0 | CG132: 0 | CH132: 0 | CI132: 0 | CJ132: 0 | CK132: 0 | CL132: 0 | CM132: 0 | CN132: 0 | CO132: 0 | CP132: 0 | CQ132: 0 | CR132: 0 | CS132: 0 | CT132: 0 | CU132: 0 | CV132: 0 | CW132: 0 | CX132: 0 | CY132: 0 | CZ132: 0 | DA132: 0 | DB132: 0 | DC132: 0 | DD132: 0 | DE132: 0 | DF132: 0 | DG132: 0 | DH132: 0 | DI132: 0 | DJ132: 0
C133: > 220 kV & < = 275 kV ; < = 50 MVA | D133: 0 | E133: 0 | F133: 0 | G133: 0 | H133: 0 | I133: 0 | J133: 0 | K133: 0 | L133: 0 | M133: 0 | N133: 0 | O133: 0 | P133: 0 | Q133: 0 | R133: 0 | S133: 0 | T133: 0 | U133: 0 | V133: 0 | W133: 0 | X133: 0 | Y133: 0 | Z133: 0 | AA133: 0 | AB133: 0 | AC133: 0 | AD133: 0 | AE133: 0 | AF133: 0 | AG133: 0 | AH133: 0 | AI133: 0 | AJ133: 0 | AK133: 0 | AL133: 0 | AM133: 0 | AN133: 0 | AO133: 0 | AP133: 0 | AQ133: 0 | AR133: 0 | AS133: 0 | AT133: 0 | AU133: 0 | AV133: 0 | AW133: 0 | AX133: 0 | AY133: 0 | AZ133: 0 | BA133: 0 | BB133: 0 | BC133: 0 | BD133: 0 | BE133: 0 | BF133: 0 | BG133: 0 | BH133: 0 | BI133: 0 | BJ133: 0 | BK133: 0 | BL133: 0 | BM133: 0 | BN133: 0 | BO133: 0 | BP133: 0 | BQ133: 0 | BR133: 0 | BS133: 0 | BT133: 0 | BU133: 0 | BV133: 0 | BW133: 0 | BX133: 0 | BY133: 0 | BZ133: 0 | CA133: 0 | CB133: 0 | CC133: 0 | CD133: 0 | CE133: 0 | CF133: 0 | CG133: 0 | CH133: 0 | CI133: 0 | CJ133: 0 | CK133: 0 | CL133: 0 | CM133: 0 | CN133: 0 | CO133: 0 | CP133: 0 | CQ133: 0 | CR133: 0 | CS133: 0 | CT133: 0 | CU133: 0 | CV133: 0 | CW133: 0 | CX133: 0 | CY133: 0 | CZ133: 0 | DA133: 0 | DB133: 0 | DC133: 0 | DD133: 0 | DE133: 0 | DF133: 0 | DG133: 0 | DH133: 0 | DI133: 0 | DJ133: 0
C134: > 220 kV & < = 275 kV ; > 50 MVA & < = 100 MVA | D134: 40 | E134: 6.3 | F134: 0 | G134: 0 | H134: 0 | I134: 0 | J134: 0 | K134: 0 | L134: 0 | M134: 0 | N134: 0 | O134: 0 | P134: 0 | Q134: 0 | R134: 0 | S134: 0 | T134: 0 | U134: 0 | V134: 0 | W134: 0 | X134: 0 | Y134: 0 | Z134: 0 | AA134: 0 | AB134: 0 | AC134: 0 | AD134: 0 | AE134: 0 | AF134: 1 | AG134: 0 | AH134: 0 | AI134: 0 | AJ134: 0 | AK134: 1 | AL134: 0 | AM134: 0 | AN134: 1 | AO134: 1 | AP134: 0 | AQ134: 0 | AR134: 0 | AS134: 0 | AT134: 0 | AU134: 0 | AV134: 0 | AW134: 0 | AX134: 0 | AY134: 0 | AZ134: 0 | BA134: 0 | BB134: 0 | BC134: 0 | BD134: 0 | BE134: 0 | BF134: 0 | BG134: 0 | BH134: 0 | BI134: 0 | BJ134: 0 | BK134: 0 | BL134: 0 | BM134: 0 | BN134: 0 | BO134: 0 | BP134: 0 | BQ134: 0 | BR134: 0 | BS134: 0 | BT134: 0 | BU134: 0 | BV134: 0 | BW134: 0 | BX134: 0 | BY134: 0 | BZ134: 0 | CA134: 0 | CB134: 0 | CC134: 0 | CD134: 0 | CE134: 0 | CF134: 0 | CG134: 0 | CH134: 0 | CI134: 0 | CJ134: 0 | CK134: 0 | CL134: 0 | CM134: 0 | CN134: 0 | CO134: 0 | CP134: 0 | CQ134: 0 | CR134: 0 | CS134: 0 | CT134: 0 | CU134: 0 | CV134: 0 | CW134: 0 | CX134: 0 | CY134: 0 | CZ134: 0 | DA134: 0 | DB134: 0 | DC134: 0 | DD134: 0 | DE134: 0 | DF134: 0 | DG134: 0 | DH134: 0 | DI134: 0 | DJ134: 0
C135: > 220 kV & < = 275 kV ; > 100 MVA | D135: 40 | E135: 6.3 | F135: 0 | G135: 1 | H135: 0 | I135: 3 | J135: 3 | K135: 2 | L135: 3 | M135: 3 | N135: 3 | O135: 7 | P135: 4 | Q135: 3 | R135: 2 | S135: 4 | T135: 1 | U135: 4 | V135: 2 | W135: 3 | X135: 2 | Y135: 1 | Z135: 1 | AA135: 0 | AB135: 1 | AC135: 0 | AD135: 2 | AE135: 0 | AF135: 1 | AG135: 0 | AH135: 0 | AI135: 1 | AJ135: 1 | AK135: 3 | AL135: 0 | AM135: 4 | AN135: 0 | AO135: 0 | AP135: 3 | AQ135: 0 | AR135: 0 | AS135: 0 | AT135: 0 | AU135: 1 | AV135: 1 | AW135: 1 | AX135: 0 | AY135: 0 | AZ135: 0 | BA135: 0 | BB135: 0 | BC135: 0 | BD135: 0 | BE135: 0 | BF135: 0 | BG135: 0 | BH135: 0 | BI135: 0 | BJ135: 0 | BK135: 0 | BL135: 0 | BM135: 0 | BN135: 0 | BO135: 0 | BP135: 0 | BQ135: 0 | BR135: 0 | BS135: 0 | BT135: 0 | BU135: 0 | BV135: 0 | BW135: 0 | BX135: 0 | BY135: 0 | BZ135: 0 | CA135: 0 | CB135: 0 | CC135: 0 | CD135: 0 | CE135: 0 | CF135: 0 | CG135: 0 | CH135: 0 | CI135: 0 | CJ135: 0 | CK135: 0 | CL135: 0 | CM135: 0 | CN135: 0 | CO135: 0 | CP135: 0 | CQ135: 0 | CR135: 0 | CS135: 0 | CT135: 0 | CU135: 0 | CV135: 0 | CW135: 0 | CX135: 0 | CY135: 0 | CZ135: 0 | DA135: 0 | DB135: 0 | DC135: 0 | DD135: 0 | DE135: 0 | DF135: 0 | DG135: 0 | DH135: 0 | DI135: 0 | DJ135: 0
C136: > 275 kV & < = 330 kV ; < = 100 MVA | D136: 40 | E136: 6.3 | F136: 0 | G136: 0 | H136: 0 | I136: 0 | J136: 0 | K136: 0 | L136: 0 | M136: 0 | N136: 0 | O136: 0 | P136: 0 | Q136: 0 | R136: 0 | S136: 0 | T136: 1 | U136: 0 | V136: 0 | W136: 0 | X136: 0 | Y136: 0 | Z136: 0 | AA136: 0 | AB136: 0 | AC136: 0 | AD136: 0 | AE136: 0 | AF136: 0 | AG136: 0 | AH136: 0 | AI136: 0 | AJ136: 0 | AK136: 0 | AL136: 0 | AM136: 0 | AN136: 0 | AO136: 0 | AP136: 0 | AQ136: 0 | AR136: 0 | AS136: 0 | AT136: 0 | AU136: 0 | AV136: 0 | AW136: 0 | AX136: 0 | AY136: 0 | AZ136: 0 | BA136: 0 | BB136: 0 | BC136: 0 | BD136: 0 | BE136: 0 | BF136: 0 | BG136: 0 | BH136: 0 | BI136: 0 | BJ136: 0 | BK136: 0 | BL136: 0 | BM136: 0 | BN136: 0 | BO136: 0 | BP136: 0 | BQ136: 0 | BR136: 0 | BS136: 0 | BT136: 0 | BU136: 0 | BV136: 0 | BW136: 0 | BX136: 0 | BY136: 0 | BZ136: 0 | CA136: 0 | CB136: 0 | CC136: 0 | CD136: 0 | CE136: 0 | CF136: 0 | CG136: 0 | CH136: 0 | CI136: 0 | CJ136: 0 | CK136: 0 | CL136: 0 | CM136: 0 | CN136: 0 | CO136: 0 | CP136: 0 | CQ136: 0 | CR136: 0 | CS136: 0 | CT136: 0 | CU136: 0 | CV136: 0 | CW136: 0 | CX136: 0 | CY136: 0 | CZ136: 0 | DA136: 0 | DB136: 0 | DC136: 0 | DD136: 0 | DE136: 0 | DF136: 0 | DG136: 0 | DH136: 0 | DI136: 0 | DJ136: 0
C137: > 275 kV & < = 330 kV ; > 100 MVA & < = 250 MVA | D137: 0 | E137: 0 | F137: 0 | G137: 0 | H137: 0 | I137: 0 | J137: 0 | K137: 0 | L137: 0 | M137: 0 | N137: 0 | O137: 0 | P137: 0 | Q137: 0 | R137: 0 | S137: 0 | T137: 0 | U137: 0 | V137: 0 | W137: 0 | X137: 0 | Y137: 0 | Z137: 0 | AA137: 0 | AB137: 0 | AC137: 0 | AD137: 0 | AE137: 0 | AF137: 0 | AG137: 0 | AH137: 0 | AI137: 0 | AJ137: 0 | AK137: 0 | AL137: 0 | AM137: 0 | AN137: 0 | AO137: 0 | AP137: 0 | AQ137: 0 | AR137: 0 | AS137: 0 | AT137: 0 | AU137: 0 | AV137: 0 | AW137: 0 | AX137: 0 | AY137: 0 | AZ137: 0 | BA137: 0 | BB137: 0 | BC137: 0 | BD137: 0 | BE137: 0 | BF137: 0 | BG137: 0 | BH137: 0 | BI137: 0 | BJ137: 0 | BK137: 0 | BL137: 0 | BM137: 0 | BN137: 0 | BO137: 0 | BP137: 0 | BQ137: 0 | BR137: 0 | BS137: 0 | BT137: 0 | BU137: 0 | BV137: 0 | BW137: 0 | BX137: 0 | BY137: 0 | BZ137: 0 | CA137: 0 | CB137: 0 | CC137: 0 | CD137: 0 | CE137: 0 | CF137: 0 | CG137: 0 | CH137: 0 | CI137: 0 | CJ137: 0 | CK137: 0 | CL137: 0 | CM137: 0 | CN137: 0 | CO137: 0 | CP137: 0 | CQ137: 0 | CR137: 0 | CS137: 0 | CT137: 0 | CU137: 0 | CV137: 0 | CW137: 0 | CX137: 0 | CY137: 0 | CZ137: 0 | DA137: 0 | DB137: 0 | DC137: 0 | DD137: 0 | DE137: 0 | DF137: 0 | DG137: 0 | DH137: 0 | DI137: 0 | DJ137: 0
C138: > 275 kV & < = 330 kV ; > 250 MVA | D138: 40 | E138: 6.3 | F138: 0 | G138: 0 | H138: 0 | I138: 0 | J138: 0 | K138: 1 | L138: 0 | M138: 0 | N138: 0 | O138: 1 | P138: 0 | Q138: 0 | R138: 0 | S138: 1 | T138: 0 | U138: 0 | V138: 0 | W138: 2 | X138: 0 | Y138: 0 | Z138: 0 | AA138: 0 | AB138: 0 | AC138: 0 | AD138: 0 | AE138: 0 | AF138: 0 | AG138: 0 | AH138: 0 | AI138: 0 | AJ138: 0 | AK138: 0 | AL138: 0 | AM138: 0 | AN138: 0 | AO138: 0 | AP138: 0 | AQ138: 0 | AR138: 0 | AS138: 0 | AT138: 0 | AU138: 0 | AV138: 0 | AW138: 0 | AX138: 0 | AY138: 0 | AZ138: 0 | BA138: 0 | BB138: 0 | BC138: 0 | BD138: 0 | BE138: 0 | BF138: 0 | BG138: 0 | BH138: 0 | BI138: 0 | BJ138: 0 | BK138: 0 | BL138: 0 | BM138: 0 | BN138: 0 | BO138: 0 | BP138: 0 | BQ138: 0 | BR138: 0 | BS138: 0 | BT138: 0 | BU138: 0 | BV138: 0 | BW138: 0 | BX138: 0 | BY138: 0 | BZ138: 0 | CA138: 0 | CB138: 0 | CC138: 0 | CD138: 0 | CE138: 0 | CF138: 0 | CG138: 0 | CH138: 0 | CI138: 0 | CJ138: 0 | CK138: 0 | CL138: 0 | CM138: 0 | CN138: 0 | CO138: 0 | CP138: 0 | CQ138: 0 | CR138: 0 | CS138: 0 | CT138: 0 | CU138: 0 | CV138: 0 | CW138: 0 | CX138: 0 | CY138: 0 | CZ138: 0 | DA138: 0 | DB138: 0 | DC138: 0 | DD138: 0 | DE138: 0 | DF138: 0 | DG138: 0 | DH138: 0 | DI138: 0 | DJ138: 0
C139: > 330 kV & < = 500 kV ; < = 150 MVA | D139: 0 | E139: 0 | F139: 0 | G139: 0 | H139: 0 | I139: 0 | J139: 0 | K139: 0 | L139: 0 | M139: 0 | N139: 0 | O139: 0 | P139: 0 | Q139: 0 | R139: 0 | S139: 0 | T139: 0 | U139: 0 | V139: 0 | W139: 0 | X139: 0 | Y139: 0 | Z139: 0 | AA139: 0 | AB139: 0 | AC139: 0 | AD139: 0 | AE139: 0 | AF139: 0 | AG139: 0 | AH139: 0 | AI139: 0 | AJ139: 0 | AK139: 0 | AL139: 0 | AM139: 0 | AN139: 0 | AO139: 0 | AP139: 0 | AQ139: 0 | AR139: 0 | AS139: 0 | AT139: 0 | AU139: 0 | AV139: 0 | AW139: 0 | AX139: 0 | AY139: 0 | AZ139: 0 | BA139: 0 | BB139: 0 | BC139: 0 | BD139: 0 | BE139: 0 | BF139: 0 | BG139: 0 | BH139: 0 | BI139: 0 | BJ139: 0 | BK139: 0 | BL139: 0 | BM139: 0 | BN139: 0 | BO139: 0 | BP139: 0 | BQ139: 0 | BR139: 0 | BS139: 0 | BT139: 0 | BU139: 0 | BV139: 0 | BW139: 0 | BX139: 0 | BY139: 0 | BZ139: 0 | CA139: 0 | CB139: 0 | CC139: 0 | CD139: 0 | CE139: 0 | CF139: 0 | CG139: 0 | CH139: 0 | CI139: 0 | CJ139: 0 | CK139: 0 | CL139: 0 | CM139: 0 | CN139: 0 | CO139: 0 | CP139: 0 | CQ139: 0 | CR139: 0 | CS139: 0 | CT139: 0 | CU139: 0 | CV139: 0 | CW139: 0 | CX139: 0 | CY139: 0 | CZ139: 0 | DA139: 0 | DB139: 0 | DC139: 0 | DD139: 0 | DE139: 0 | DF139: 0 | DG139: 0 | DH139: 0 | DI139: 0 | DJ139: 0
C140: > 330 kV & < = 500 kV ; > 150 MVA & < = 300 MVA | D140: 0 | E140: 0 | F140: 0 | G140: 0 | H140: 0 | I140: 0 | J140: 0 | K140: 0 | L140: 0 | M140: 0 | N140: 0 | O140: 0 | P140: 0 | Q140: 0 | R140: 0 | S140: 0 | T140: 0 | U140: 0 | V140: 0 | W140: 0 | X140: 0 | Y140: 0 | Z140: 0 | AA140: 0 | AB140: 0 | AC140: 0 | AD140: 0 | AE140: 0 | AF140: 0 | AG140: 0 | AH140: 0 | AI140: 0 | AJ140: 0 | AK140: 0 | AL140: 0 | AM140: 0 | AN140: 0 | AO140: 0 | AP140: 0 | AQ140: 0 | AR140: 0 | AS140: 0 | AT140: 0 | AU140: 0 | AV140: 0 | AW140: 0 | AX140: 0 | AY140: 0 | AZ140: 0 | BA140: 0 | BB140: 0 | BC140: 0 | BD140: 0 | BE140: 0 | BF140: 0 | BG140: 0 | BH140: 0 | BI140: 0 | BJ140: 0 | BK140: 0 | BL140: 0 | BM140: 0 | BN140: 0 | BO140: 0 | BP140: 0 | BQ140: 0 | BR140: 0 | BS140: 0 | BT140: 0 | BU140: 0 | BV140: 0 | BW140: 0 | BX140: 0 | BY140: 0 | BZ140: 0 | CA140: 0 | CB140: 0 | CC140: 0 | CD140: 0 | CE140: 0 | CF140: 0 | CG140: 0 | CH140: 0 | CI140: 0 | CJ140: 0 | CK140: 0 | CL140: 0 | CM140: 0 | CN140: 0 | CO140: 0 | CP140: 0 | CQ140: 0 | CR140: 0 | CS140: 0 | CT140: 0 | CU140: 0 | CV140: 0 | CW140: 0 | CX140: 0 | CY140: 0 | CZ140: 0 | DA140: 0 | DB140: 0 | DC140: 0 | DD140: 0 | DE140: 0 | DF140: 0 | DG140: 0 | DH140: 0 | DI140: 0 | DJ140: 0
C141: > 330 kV & < = 500 kV ; > 300 MVA | D141: 0 | E141: 0 | F141: 0 | G141: 0 | H141: 0 | I141: 0 | J141: 0 | K141: 0 | L141: 0 | M141: 0 | N141: 0 | O141: 0 | P141: 0 | Q141: 0 | R141: 0 | S141: 0 | T141: 0 | U141: 0 | V141: 0 | W141: 0 | X141: 0 | Y141: 0 | Z141: 0 | AA141: 0 | AB141: 0 | AC141: 0 | AD141: 0 | AE141: 0 | AF141: 0 | AG141: 0 | AH141: 0 | AI141: 0 | AJ141: 0 | AK141: 0 | AL141: 0 | AM141: 0 | AN141: 0 | AO141: 0 | AP141: 0 | AQ141: 0 | AR141: 0 | AS141: 0 | AT141: 0 | AU141: 0 | AV141: 0 | AW141: 0 | AX141: 0 | AY141: 0 | AZ141: 0 | BA141: 0 | BB141: 0 | BC141: 0 | BD141: 0 | BE141: 0 | BF141: 0 | BG141: 0 | BH141: 0 | BI141: 0 | BJ141: 0 | BK141: 0 | BL141: 0 | BM141: 0 | BN141: 0 | BO141: 0 | BP141: 0 | BQ141: 0 | BR141: 0 | BS141: 0 | BT141: 0 | BU141: 0 | BV141: 0 | BW141: 0 | BX141: 0 | BY141: 0 | BZ141: 0 | CA141: 0 | CB141: 0 | CC141: 0 | CD141: 0 | CE141: 0 | CF141: 0 | CG141: 0 | CH141: 0 | CI141: 0 | CJ141: 0 | CK141: 0 | CL141: 0 | CM141: 0 | CN141: 0 | CO141: 0 | CP141: 0 | CQ141: 0 | CR141: 0 | CS141: 0 | CT141: 0 | CU141: 0 | CV141: 0 | CW141: 0 | CX141: 0 | CY141: 0 | CZ141: 0 | DA141: 0 | DB141: 0 | DC141: 0 | DD141: 0 | DE141: 0 | DF141: 0 | DG141: 0 | DH141: 0 | DI141: 0 | DJ141: 0
C142: > 500 kV ; < = 1000 MVA | D142: 0 | E142: 0 | F142: 0 | G142: 0 | H142: 0 | I142: 0 | J142: 0 | K142: 0 | L142: 0 | M142: 0 | N142: 0 | O142: 0 | P142: 0 | Q142: 0 | R142: 0 | S142: 0 | T142: 0 | U142: 0 | V142: 0 | W142: 0 | X142: 0 | Y142: 0 | Z142: 0 | AA142: 0 | AB142: 0 | AC142: 0 | AD142: 0 | AE142: 0 | AF142: 0 | AG142: 0 | AH142: 0 | AI142: 0 | AJ142: 0 | AK142: 0 | AL142: 0 | AM142: 0 | AN142: 0 | AO142: 0 | AP142: 0 | AQ142: 0 | AR142: 0 | AS142: 0 | AT142: 0 | AU142: 0 | AV142: 0 | AW142: 0 | AX142: 0 | AY142: 0 | AZ142: 0 | BA142: 0 | BB142: 0 | BC142: 0 | BD142: 0 | BE142: 0 | BF142: 0 | BG142: 0 | BH142: 0 | BI142: 0 | BJ142: 0 | BK142: 0 | BL142: 0 | BM142: 0 | BN142: 0 | BO142: 0 | BP142: 0 | BQ142: 0 | BR142: 0 | BS142: 0 | BT142: 0 | BU142: 0 | BV142: 0 | BW142: 0 | BX142: 0 | BY142: 0 | BZ142: 0 | CA142: 0 | CB142: 0 | CC142: 0 | CD142: 0 | CE142: 0 | CF142: 0 | CG142: 0 | CH142: 0 | CI142: 0 | CJ142: 0 | CK142: 0 | CL142: 0 | CM142: 0 | CN142: 0 | CO142: 0 | CP142: 0 | CQ142: 0 | CR142: 0 | CS142: 0 | CT142: 0 | CU142: 0 | CV142: 0 | CW142: 0 | CX142: 0 | CY142: 0 | CZ142: 0 | DA142: 0 | DB142: 0 | DC142: 0 | DD142: 0 | DE142: 0 | DF142: 0 | DG142: 0 | DH142: 0 | DI142: 0 | DJ142: 0
C143: > 500 kV ; > 1000 MVA & < = 1500 MVA | D143: 0 | E143: 0 | F143: 0 | G143: 0 | H143: 0 | I143: 0 | J143: 0 | K143: 0 | L143: 0 | M143: 0 | N143: 0 | O143: 0 | P143: 0 | Q143: 0 | R143: 0 | S143: 0 | T143: 0 | U143: 0 | V143: 0 | W143: 0 | X143: 0 | Y143: 0 | Z143: 0 | AA143: 0 | AB143: 0 | AC143: 0 | AD143: 0 | AE143: 0 | AF143: 0 | AG143: 0 | AH143: 0 | AI143: 0 | AJ143: 0 | AK143: 0 | AL143: 0 | AM143: 0 | AN143: 0 | AO143: 0 | AP143: 0 | AQ143: 0 | AR143: 0 | AS143: 0 | AT143: 0 | AU143: 0 | AV143: 0 | AW143: 0 | AX143: 0 | AY143: 0 | AZ143: 0 | BA143: 0 | BB143: 0 | BC143: 0 | BD143: 0 | BE143: 0 | BF143: 0 | BG143: 0 | BH143: 0 | BI143: 0 | BJ143: 0 | BK143: 0 | BL143: 0 | BM143: 0 | BN143: 0 | BO143: 0 | BP143: 0 | BQ143: 0 | BR143: 0 | BS143: 0 | BT143: 0 | BU143: 0 | BV143: 0 | BW143: 0 | BX143: 0 | BY143: 0 | BZ143: 0 | CA143: 0 | CB143: 0 | CC143: 0 | CD143: 0 | CE143: 0 | CF143: 0 | CG143: 0 | CH143: 0 | CI143: 0 | CJ143: 0 | CK143: 0 | CL143: 0 | CM143: 0 | CN143: 0 | CO143: 0 | CP143: 0 | CQ143: 0 | CR143: 0 | CS143: 0 | CT143: 0 | CU143: 0 | CV143: 0 | CW143: 0 | CX143: 0 | CY143: 0 | CZ143: 0 | DA143: 0 | DB143: 0 | DC143: 0 | DD143: 0 | DE143: 0 | DF143: 0 | DG143: 0 | DH143: 0 | DI143: 0 | DJ143: 0
C144: > 500 kV ; > 1500 MVA | D144: 0 | E144: 0 | F144: 0 | G144: 0 | H144: 0 | I144: 0 | J144: 0 | K144: 0 | L144: 0 | M144: 0 | N144: 0 | O144: 0 | P144: 0 | Q144: 0 | R144: 0 | S144: 0 | T144: 0 | U144: 0 | V144: 0 | W144: 0 | X144: 0 | Y144: 0 | Z144: 0 | AA144: 0 | AB144: 0 | AC144: 0 | AD144: 0 | AE144: 0 | AF144: 0 | AG144: 0 | AH144: 0 | AI144: 0 | AJ144: 0 | AK144: 0 | AL144: 0 | AM144: 0 | AN144: 0 | AO144: 0 | AP144: 0 | AQ144: 0 | AR144: 0 | AS144: 0 | AT144: 0 | AU144: 0 | AV144: 0 | AW144: 0 | AX144: 0 | AY144: 0 | AZ144: 0 | BA144: 0 | BB144: 0 | BC144: 0 | BD144: 0 | BE144: 0 | BF144: 0 | BG144: 0 | BH144: 0 | BI144: 0 | BJ144: 0 | BK144: 0 | BL144: 0 | BM144: 0 | BN144: 0 | BO144: 0 | BP144: 0 | BQ144: 0 | BR144: 0 | BS144: 0 | BT144: 0 | BU144: 0 | BV144: 0 | BW144: 0 | BX144: 0 | BY144: 0 | BZ144: 0 | CA144: 0 | CB144: 0 | CC144: 0 | CD144: 0 | CE144: 0 | CF144: 0 | CG144: 0 | CH144: 0 | CI144: 0 | CJ144: 0 | CK144: 0 | CL144: 0 | CM144: 0 | CN144: 0 | CO144: 0 | CP144: 0 | CQ144: 0 | CR144: 0 | CS144: 0 | CT144: 0 | CU144: 0 | CV144: 0 | CW144: 0 | CX144: 0 | CY144: 0 | CZ144: 0 | DA144: 0 | DB144: 0 | DC144: 0 | DD144: 0 | DE144: 0 | DF144: 0 | DG144: 0 | DH144: 0 | DI144: 0 | DJ144: 0
C145: Other
B146: SUBSTATION REACTIVE PLANT BY: Highest operating voltage; Function | C146: < = 33 kV; SVCS | D146: 0 | E146: 0 | F146: 0 | G146: 0 | H146: 0 | I146: 0 | J146: 0 | K146: 0 | L146: 0 | M146: 0 | N146: 0 | O146: 0 | P146: 0 | Q146: 0 | R146: 0 | S146: 0 | T146: 0 | U146: 0 | V146: 0 | W146: 0 | X146: 0 | Y146: 0 | Z146: 0 | AA146: 0 | AB146: 0 | AC146: 0 | AD146: 0 | AE146: 0 | AF146: 0 | AG146: 0 | AH146: 0 | AI146: 0 | AJ146: 0 | AK146: 0 | AL146: 0 | AM146: 0 | AN146: 0 | AO146: 0 | AP146: 0 | AQ146: 0 | AR146: 0 | AS146: 0 | AT146: 0 | AU146: 0 | AV146: 0 | AW146: 0 | AX146: 0 | AY146: 0 | AZ146: 0 | BA146: 0 | BB146: 0 | BC146: 0 | BD146: 0 | BE146: 0 | BF146: 0 | BG146: 0 | BH146: 0 | BI146: 0 | BJ146: 0 | BK146: 0 | BL146: 0 | BM146: 0 | BN146: 0 | BO146: 0 | BP146: 0 | BQ146: 0 | BR146: 0 | BS146: 0 | BT146: 0 | BU146: 0 | BV146: 0 | BW146: 0 | BX146: 0 | BY146: 0 | BZ146: 0 | CA146: 0 | CB146: 0 | CC146: 0 | CD146: 0 | CE146: 0 | CF146: 0 | CG146: 0 | CH146: 0 | CI146: 0 | CJ146: 0 | CK146: 0 | CL146: 0 | CM146: 0 | CN146: 0 | CO146: 0 | CP146: 0 | CQ146: 0 | CR146: 0 | CS146: 0 | CT146: 0 | CU146: 0 | CV146: 0 | CW146: 0 | CX146: 0 | CY146: 0 | CZ146: 0 | DA146: 0 | DB146: 0 | DC146: 0 | DD146: 0 | DE146: 0 | DF146: 0 | DG146: 0 | DH146: 0 | DI146: 0 | DJ146: 0
C147: > 33 kV & < = 66 kV ; SVCS | D147: 0 | E147: 0 | F147: 0 | G147: 0 | H147: 0 | I147: 0 | J147: 0 | K147: 0 | L147: 0 | M147: 0 | N147: 0 | O147: 0 | P147: 0 | Q147: 0 | R147: 0 | S147: 0 | T147: 0 | U147: 0 | V147: 0 | W147: 0 | X147: 0 | Y147: 0 | Z147: 0 | AA147: 0 | AB147: 0 | AC147: 0 | AD147: 0 | AE147: 0 | AF147: 0 | AG147: 0 | AH147: 0 | AI147: 0 | AJ147: 0 | AK147: 0 | AL147: 0 | AM147: 0 | AN147: 0 | AO147: 0 | AP147: 0 | AQ147: 0 | AR147: 0 | AS147: 0 | AT147: 0 | AU147: 0 | AV147: 0 | AW147: 0 | AX147: 0 | AY147: 0 | AZ147: 0 | BA147: 0 | BB147: 0 | BC147: 0 | BD147: 0 | BE147: 0 | BF147: 0 | BG147: 0 | BH147: 0 | BI147: 0 | BJ147: 0 | BK147: 0 | BL147: 0 | BM147: 0 | BN147: 0 | BO147: 0 | BP147: 0 | BQ147: 0 | BR147: 0 | BS147: 0 | BT147: 0 | BU147: 0 | BV147: 0 | BW147: 0 | BX147: 0 | BY147: 0 | BZ147: 0 | CA147: 0 | CB147: 0 | CC147: 0 | CD147: 0 | CE147: 0 | CF147: 0 | CG147: 0 | CH147: 0 | CI147: 0 | CJ147: 0 | CK147: 0 | CL147: 0 | CM147: 0 | CN147: 0 | CO147: 0 | CP147: 0 | CQ147: 0 | CR147: 0 | CS147: 0 | CT147: 0 | CU147: 0 | CV147: 0 | CW147: 0 | CX147: 0 | CY147: 0 | CZ147: 0 | DA147: 0 | DB147: 0 | DC147: 0 | DD147: 0 | DE147: 0 | DF147: 0 | DG147: 0 | DH147: 0 | DI147: 0 | DJ147: 0
C148: > 66 kV & < = 132 kV ; SVCS | D148: 40 | E148: 6.3 | F148: 0 | G148: 0 | H148: 0 | I148: 0 | J148: 0 | K148: 0 | L148: 0 | M148: 0 | N148: 0 | O148: 0 | P148: 0 | Q148: 0 | R148: 1 | S148: 0 | T148: 0 | U148: 0 | V148: 0 | W148: 0 | X148: 0 | Y148: 0 | Z148: 0 | AA148: 0 | AB148: 0 | AC148: 0 | AD148: 0 | AE148: 0 | AF148: 0 | AG148: 0 | AH148: 0 | AI148: 0 | AJ148: 2 | AK148: 7 | AL148: 0 | AM148: 0 | AN148: 0 | AO148: 0 | AP148: 0 | AQ148: 0 | AR148: 0 | AS148: 0 | AT148: 0 | AU148: 0 | AV148: 0 | AW148: 0 | AX148: 0 | AY148: 0 | AZ148: 0 | BA148: 0 | BB148: 0 | BC148: 0 | BD148: 0 | BE148: 0 | BF148: 0 | BG148: 0 | BH148: 0 | BI148: 0 | BJ148: 0 | BK148: 0 | BL148: 0 | BM148: 0 | BN148: 0 | BO148: 0 | BP148: 0 | BQ148: 0 | BR148: 0 | BS148: 0 | BT148: 0 | BU148: 0 | BV148: 0 | BW148: 0 | BX148: 0 | BY148: 0 | BZ148: 0 | CA148: 0 | CB148: 0 | CC148: 0 | CD148: 0 | CE148: 0 | CF148: 0 | CG148: 0 | CH148: 0 | CI148: 0 | CJ148: 0 | CK148: 0 | CL148: 0 | CM148: 0 | CN148: 0 | CO148: 0 | CP148: 0 | CQ148: 0 | CR148: 0 | CS148: 0 | CT148: 0 | CU148: 0 | CV148: 0 | CW148: 0 | CX148: 0 | CY148: 0 | CZ148: 0 | DA148: 0 | DB148: 0 | DC148: 0 | DD148: 0 | DE148: 0 | DF148: 0 | DG148: 0 | DH148: 0 | DI148: 0 | DJ148: 0
C149: > 132 kV & < = 275 kV ; SVCS | D149: 40 | E149: 6.3 | F149: 0 | G149: 0 | H149: 0 | I149: 0 | J149: 0 | K149: 0 | L149: 0 | M149: 0 | N149: 0 | O149: 3 | P149: 1 | Q149: 0 | R149: 0 | S149: 0 | T149: 0 | U149: 0 | V149: 0 | W149: 2 | X149: 0 | Y149: 1 | Z149: 0 | AA149: 0 | AB149: 0 | AC149: 0 | AD149: 0 | AE149: 0 | AF149: 0 | AG149: 0 | AH149: 0 | AI149: 0 | AJ149: 1 | AK149: 0 | AL149: 0 | AM149: 0 | AN149: 0 | AO149: 0 | AP149: 0 | AQ149: 0 | AR149: 0 | AS149: 0 | AT149: 0 | AU149: 0 | AV149: 0 | AW149: 0 | AX149: 0 | AY149: 0 | AZ149: 0 | BA149: 0 | BB149: 0 | BC149: 0 | BD149: 0 | BE149: 0 | BF149: 0 | BG149: 0 | BH149: 0 | BI149: 0 | BJ149: 0 | BK149: 0 | BL149: 0 | BM149: 0 | BN149: 0 | BO149: 0 | BP149: 0 | BQ149: 0 | BR149: 0 | BS149: 0 | BT149: 0 | BU149: 0 | BV149: 0 | BW149: 0 | BX149: 0 | BY149: 0 | BZ149: 0 | CA149: 0 | CB149: 0 | CC149: 0 | CD149: 0 | CE149: 0 | CF149: 0 | CG149: 0 | CH149: 0 | CI149: 0 | CJ149: 0 | CK149: 0 | CL149: 0 | CM149: 0 | CN149: 0 | CO149: 0 | CP149: 0 | CQ149: 0 | CR149: 0 | CS149: 0 | CT149: 0 | CU149: 0 | CV149: 0 | CW149: 0 | CX149: 0 | CY149: 0 | CZ149: 0 | DA149: 0 | DB149: 0 | DC149: 0 | DD149: 0 | DE149: 0 | DF149: 0 | DG149: 0 | DH149: 0 | DI149: 0 | DJ149: 0
C150: > 275 kV & < = 330 kV ; SVCS | D150: 0 | E150: 0 | F150: 0 | G150: 0 | H150: 0 | I150: 0 | J150: 0 | K150: 0 | L150: 0 | M150: 0 | N150: 0 | O150: 0 | P150: 0 | Q150: 0 | R150: 0 | S150: 0 | T150: 0 | U150: 0 | V150: 0 | W150: 0 | X150: 0 | Y150: 0 | Z150: 0 | AA150: 0 | AB150: 0 | AC150: 0 | AD150: 0 | AE150: 0 | AF150: 0 | AG150: 0 | AH150: 0 | AI150: 0 | AJ150: 0 | AK150: 0 | AL150: 0 | AM150: 0 | AN150: 0 | AO150: 0 | AP150: 0 | AQ150: 0 | AR150: 0 | AS150: 0 | AT150: 0 | AU150: 0 | AV150: 0 | AW150: 0 | AX150: 0 | AY150: 0 | AZ150: 0 | BA150: 0 | BB150: 0 | BC150: 0 | BD150: 0 | BE150: 0 | BF150: 0 | BG150: 0 | BH150: 0 | BI150: 0 | BJ150: 0 | BK150: 0 | BL150: 0 | BM150: 0 | BN150: 0 | BO150: 0 | BP150: 0 | BQ150: 0 | BR150: 0 | BS150: 0 | BT150: 0 | BU150: 0 | BV150: 0 | BW150: 0 | BX150: 0 | BY150: 0 | BZ150: 0 | CA150: 0 | CB150: 0 | CC150: 0 | CD150: 0 | CE150: 0 | CF150: 0 | CG150: 0 | CH150: 0 | CI150: 0 | CJ150: 0 | CK150: 0 | CL150: 0 | CM150: 0 | CN150: 0 | CO150: 0 | CP150: 0 | CQ150: 0 | CR150: 0 | CS150: 0 | CT150: 0 | CU150: 0 | CV150: 0 | CW150: 0 | CX150: 0 | CY150: 0 | CZ150: 0 | DA150: 0 | DB150: 0 | DC150: 0 | DD150: 0 | DE150: 0 | DF150: 0 | DG150: 0 | DH150: 0 | DI150: 0 | DJ150: 0
C151: > 330 kV & < = 500 kV ; SVCS | D151: 0 | E151: 0 | F151: 0 | G151: 0 | H151: 0 | I151: 0 | J151: 0 | K151: 0 | L151: 0 | M151: 0 | N151: 0 | O151: 0 | P151: 0 | Q151: 0 | R151: 0 | S151: 0 | T151: 0 | U151: 0 | V151: 0 | W151: 0 | X151: 0 | Y151: 0 | Z151: 0 | AA151: 0 | AB151: 0 | AC151: 0 | AD151: 0 | AE151: 0 | AF151: 0 | AG151: 0 | AH151: 0 | AI151: 0 | AJ151: 0 | AK151: 0 | AL151: 0 | AM151: 0 | AN151: 0 | AO151: 0 | AP151: 0 | AQ151: 0 | AR151: 0 | AS151: 0 | AT151: 0 | AU151: 0 | AV151: 0 | AW151: 0 | AX151: 0 | AY151: 0 | AZ151: 0 | BA151: 0 | BB151: 0 | BC151: 0 | BD151: 0 | BE151: 0 | BF151: 0 | BG151: 0 | BH151: 0 | BI151: 0 | BJ151: 0 | BK151: 0 | BL151: 0 | BM151: 0 | BN151: 0 | BO151: 0 | BP151: 0 | BQ151: 0 | BR151: 0 | BS151: 0 | BT151: 0 | BU151: 0 | BV151: 0 | BW151: 0 | BX151: 0 | BY151: 0 | BZ151: 0 | CA151: 0 | CB151: 0 | CC151: 0 | CD151: 0 | CE151: 0 | CF151: 0 | CG151: 0 | CH151: 0 | CI151: 0 | CJ151: 0 | CK151: 0 | CL151: 0 | CM151: 0 | CN151: 0 | CO151: 0 | CP151: 0 | CQ151: 0 | CR151: 0 | CS151: 0 | CT151: 0 | CU151: 0 | CV151: 0 | CW151: 0 | CX151: 0 | CY151: 0 | CZ151: 0 | DA151: 0 | DB151: 0 | DC151: 0 | DD151: 0 | DE151: 0 | DF151: 0 | DG151: 0 | DH151: 0 | DI151: 0 | DJ151: 0
C152: > 500 kV ; SVCS | D152: 0 | E152: 0 | F152: 0 | G152: 0 | H152: 0 | I152: 0 | J152: 0 | K152: 0 | L152: 0 | M152: 0 | N152: 0 | O152: 0 | P152: 0 | Q152: 0 | R152: 0 | S152: 0 | T152: 0 | U152: 0 | V152: 0 | W152: 0 | X152: 0 | Y152: 0 | Z152: 0 | AA152: 0 | AB152: 0 | AC152: 0 | AD152: 0 | AE152: 0 | AF152: 0 | AG152: 0 | AH152: 0 | AI152: 0 | AJ152: 0 | AK152: 0 | AL152: 0 | AM152: 0 | AN152: 0 | AO152: 0 | AP152: 0 | AQ152: 0 | AR152: 0 | AS152: 0 | AT152: 0 | AU152: 0 | AV152: 0 | AW152: 0 | AX152: 0 | AY152: 0 | AZ152: 0 | BA152: 0 | BB152: 0 | BC152: 0 | BD152: 0 | BE152: 0 | BF152: 0 | BG152: 0 | BH152: 0 | BI152: 0 | BJ152: 0 | BK152: 0 | BL152: 0 | BM152: 0 | BN152: 0 | BO152: 0 | BP152: 0 | BQ152: 0 | BR152: 0 | BS152: 0 | BT152: 0 | BU152: 0 | BV152: 0 | BW152: 0 | BX152: 0 | BY152: 0 | BZ152: 0 | CA152: 0 | CB152: 0 | CC152: 0 | CD152: 0 | CE152: 0 | CF152: 0 | CG152: 0 | CH152: 0 | CI152: 0 | CJ152: 0 | CK152: 0 | CL152: 0 | CM152: 0 | CN152: 0 | CO152: 0 | CP152: 0 | CQ152: 0 | CR152: 0 | CS152: 0 | CT152: 0 | CU152: 0 | CV152: 0 | CW152: 0 | CX152: 0 | CY152: 0 | CZ152: 0 | DA152: 0 | DB152: 0 | DC152: 0 | DD152: 0 | DE152: 0 | DF152: 0 | DG152: 0 | DH152: 0 | DI152: 0 | DJ152: 0
C153: < = 33 kV; Capacitors | D153: 40 | E153: 6.3 | F153: 0 | G153: 0 | H153: 0 | I153: 0 | J153: 0 | K153: 0 | L153: 0 | M153: 0 | N153: 0 | O153: 0 | P153: 0 | Q153: 0 | R153: 0 | S153: 0 | T153: 0 | U153: 0 | V153: 0 | W153: 0 | X153: 0 | Y153: 0 | Z153: 0 | AA153: 0 | AB153: 0 | AC153: 0 | AD153: 0 | AE153: 0 | AF153: 0 | AG153: 0 | AH153: 0 | AI153: 0 | AJ153: 0 | AK153: 0 | AL153: 0 | AM153: 0 | AN153: 0 | AO153: 0 | AP153: 0 | AQ153: 0 | AR153: 0 | AS153: 0 | AT153: 0 | AU153: 0 | AV153: 0 | AW153: 0 | AX153: 0 | AY153: 0 | AZ153: 0 | BA153: 0 | BB153: 0 | BC153: 0 | BD153: 0 | BE153: 0 | BF153: 0 | BG153: 0 | BH153: 0 | BI153: 0 | BJ153: 0 | BK153: 0 | BL153: 0 | BM153: 0 | BN153: 0 | BO153: 0 | BP153: 0 | BQ153: 0 | BR153: 0 | BS153: 0 | BT153: 0 | BU153: 0 | BV153: 0 | BW153: 0 | BX153: 0 | BY153: 0 | BZ153: 0 | CA153: 0 | CB153: 0 | CC153: 0 | CD153: 0 | CE153: 0 | CF153: 0 | CG153: 0 | CH153: 0 | CI153: 0 | CJ153: 0 | CK153: 0 | CL153: 0 | CM153: 0 | CN153: 0 | CO153: 0 | CP153: 0 | CQ153: 0 | CR153: 0 | CS153: 0 | CT153: 0 | CU153: 0 | CV153: 0 | CW153: 0 | CX153: 0 | CY153: 0 | CZ153: 0 | DA153: 0 | DB153: 0 | DC153: 0 | DD153: 0 | DE153: 0 | DF153: 0 | DG153: 0 | DH153: 0 | DI153: 0 | DJ153: 0
C154: > 33 kV & < = 66 kV ; Capacitors | D154: 40 | E154: 6.3 | F154: 0 | G154: 0 | H154: 0 | I154: 0 | J154: 0 | K154: 0 | L154: 0 | M154: 0 | N154: 0 | O154: 0 | P154: 0 | Q154: 0 | R154: 0 | S154: 0 | T154: 0 | U154: 0 | V154: 0 | W154: 0 | X154: 0 | Y154: 1 | Z154: 0 | AA154: 0 | AB154: 0 | AC154: 0 | AD154: 0 | AE154: 0 | AF154: 0 | AG154: 0 | AH154: 0 | AI154: 1 | AJ154: 0 | AK154: 0 | AL154: 0 | AM154: 0 | AN154: 0 | AO154: 0 | AP154: 1 | AQ154: 0 | AR154: 0 | AS154: 0 | AT154: 2 | AU154: 0 | AV154: 0 | AW154: 0 | AX154: 0 | AY154: 0 | AZ154: 0 | BA154: 0 | BB154: 0 | BC154: 0 | BD154: 0 | BE154: 0 | BF154: 0 | BG154: 0 | BH154: 0 | BI154: 0 | BJ154: 0 | BK154: 0 | BL154: 0 | BM154: 0 | BN154: 0 | BO154: 0 | BP154: 0 | BQ154: 0 | BR154: 0 | BS154: 0 | BT154: 0 | BU154: 0 | BV154: 0 | BW154: 0 | BX154: 0 | BY154: 0 | BZ154: 0 | CA154: 0 | CB154: 0 | CC154: 0 | CD154: 0 | CE154: 0 | CF154: 0 | CG154: 0 | CH154: 0 | CI154: 0 | CJ154: 0 | CK154: 0 | CL154: 0 | CM154: 0 | CN154: 0 | CO154: 0 | CP154: 0 | CQ154: 0 | CR154: 0 | CS154: 0 | CT154: 0 | CU154: 0 | CV154: 0 | CW154: 0 | CX154: 0 | CY154: 0 | CZ154: 0 | DA154: 0 | DB154: 0 | DC154: 0 | DD154: 0 | DE154: 0 | DF154: 0 | DG154: 0 | DH154: 0 | DI154: 0 | DJ154: 0
C155: > 66 kV & < = 132 kV ; Capacitors | D155: 40 | E155: 6.3 | F155: 0 | G155: 0 | H155: 0 | I155: 0 | J155: 5 | K155: 1 | L155: 3 | M155: 2 | N155: 2 | O155: 3 | P155: 2 | Q155: 6 | R155: 10 | S155: 3 | T155: 0 | U155: 4 | V155: 6 | W155: 2 | X155: 0 | Y155: 7 | Z155: 1 | AA155: 1 | AB155: 1 | AC155: 2 | AD155: 0 | AE155: 0 | AF155: 0 | AG155: 0 | AH155: 0 | AI155: 0 | AJ155: 0 | AK155: 0 | AL155: 0 | AM155: 0 | AN155: 0 | AO155: 0 | AP155: 0 | AQ155: 0 | AR155: 0 | AS155: 0 | AT155: 0 | AU155: 0 | AV155: 0 | AW155: 0 | AX155: 0 | AY155: 0 | AZ155: 0 | BA155: 0 | BB155: 0 | BC155: 0 | BD155: 0 | BE155: 0 | BF155: 0 | BG155: 0 | BH155: 0 | BI155: 0 | BJ155: 0 | BK155: 0 | BL155: 0 | BM155: 0 | BN155: 0 | BO155: 0 | BP155: 0 | BQ155: 0 | BR155: 0 | BS155: 0 | BT155: 0 | BU155: 0 | BV155: 0 | BW155: 0 | BX155: 0 | BY155: 0 | BZ155: 0 | CA155: 0 | CB155: 0 | CC155: 0 | CD155: 0 | CE155: 0 | CF155: 0 | CG155: 0 | CH155: 0 | CI155: 0 | CJ155: 0 | CK155: 0 | CL155: 0 | CM155: 0 | CN155: 0 | CO155: 0 | CP155: 0 | CQ155: 0 | CR155: 0 | CS155: 0 | CT155: 0 | CU155: 0 | CV155: 0 | CW155: 0 | CX155: 0 | CY155: 0 | CZ155: 0 | DA155: 0 | DB155: 0 | DC155: 0 | DD155: 0 | DE155: 0 | DF155: 0 | DG155: 0 | DH155: 0 | DI155: 0 | DJ155: 0
C156: > 132 kV & < = 275 kV ; Capacitors | D156: 40 | E156: 6.3 | F156: 0 | G156: 0 | H156: 0 | I156: 0 | J156: 0 | K156: 0 | L156: 2 | M156: 0 | N156: 3 | O156: 2 | P156: 3 | Q156: 2 | R156: 0 | S156: 0 | T156: 3 | U156: 3 | V156: 1 | W156: 1 | X156: 1 | Y156: 1 | Z156: 3 | AA156: 0 | AB156: 3 | AC156: 0 | AD156: 0 | AE156: 0 | AF156: 0 | AG156: 0 | AH156: 0 | AI156: 0 | AJ156: 0 | AK156: 0 | AL156: 0 | AM156: 0 | AN156: 0 | AO156: 0 | AP156: 0 | AQ156: 0 | AR156: 0 | AS156: 0 | AT156: 0 | AU156: 0 | AV156: 0 | AW156: 0 | AX156: 0 | AY156: 0 | AZ156: 0 | BA156: 0 | BB156: 0 | BC156: 0 | BD156: 0 | BE156: 0 | BF156: 0 | BG156: 0 | BH156: 0 | BI156: 0 | BJ156: 0 | BK156: 0 | BL156: 0 | BM156: 0 | BN156: 0 | BO156: 0 | BP156: 0 | BQ156: 0 | BR156: 0 | BS156: 0 | BT156: 0 | BU156: 0 | BV156: 0 | BW156: 0 | BX156: 0 | BY156: 0 | BZ156: 0 | CA156: 0 | CB156: 0 | CC156: 0 | CD156: 0 | CE156: 0 | CF156: 0 | CG156: 0 | CH156: 0 | CI156: 0 | CJ156: 0 | CK156: 0 | CL156: 0 | CM156: 0 | CN156: 0 | CO156: 0 | CP156: 0 | CQ156: 0 | CR156: 0 | CS156: 0 | CT156: 0 | CU156: 0 | CV156: 0 | CW156: 0 | CX156: 0 | CY156: 0 | CZ156: 0 | DA156: 0 | DB156: 0 | DC156: 0 | DD156: 0 | DE156: 0 | DF156: 0 | DG156: 0 | DH156: 0 | DI156: 0 | DJ156: 0
